Workbook

Sheet Sheet1 (hidden)
A1: № | B1: 列 | C1: Ｒ Ｍ 標 準 | F1: 日 新 バ ー ジ ョ ン
C2: 項 目 名 称 | D2: 項 目 名 | E2: 分類 | F2: 項 目 名 称 | G2: 項 目 名 | H2: 分類
A3: 1 | B3: A | C3: 伝票日付 | D3: BLDAT | E3: ヘッダ | F3: 伝票日付 | G3: BLDAT | H3: ヘッダ
A4: 2 | B4: B | C4: 会社ｺｰﾄﾞ | D4: BUKRS | F4: 伝票タイプ | G4: BUKRS
A5: 3 | B5: C | C5: 転記日付 | D5: BUDAT | F5: 会社コード | G5: BUDAT
A6: 4 | B6: D | C6: 伝票ﾀｲﾌﾟ | D6: BLART | F6: 転記日付 | G6: BLART
A7: 5 | B7: E | C7: 通貨ｺｰﾄﾞ | D7: WAERS | F7: 通貨コード | G7: WAERS
A8: 6 | B8: F | C8: ヘッダテキスト | D8: BKTXT | F8: 換算レート | G8: KURSF
A9: 7 | B9: G | C9: 参照伝票番号 | D9: XBLNR | F9: 参照伝票番号 | G9: XBLNR
A10: 8 | B10: H | C10: 税自動計算 | D10: XMWST | F10: ヘッダテキスト | G10: BKTXT
A11: 9 | B11: I | C11: 転記ｷｰ | D11: NEWBS | E11: 明 細 | F11: 税自動計算 | G11: XMWST
A12: 10 | B12: J | C12: 勘定ｺｰﾄﾞ | D12: NEWKO | F12: 転記キー | G12: NEWBS | H12: 明 細
A13: 11 | B13: K | C13: 特殊GL | D13: NEWUM | F13: 勘定コード | G13: NEWKO
A14: 12 | B14: L | C14: 金額 | D14: WRBTR | F14: 特殊GL | G14: NEWUM
A15: 13 | B15: M | C15: 税ｺｰﾄﾞ | D15: MWSKZ | F15: 金額 | G15: WRBTR
A16: 14 | B16: N | C16: ｿｰﾄｷｰ | D16: ZUONR | F16: 国内通貨額 | G16: DMBTR
A17: 15 | B17: O | C17: 明細ﾃｷｽﾄ | D17: SGTXT | F17: 税コード | G17: MWSKZ
A18: 16 | B18: P | C18: 起算日 | D18: VALUT | F18: ソートキー | G18: ZUONR
A19: 17 | B19: Q | C19: 期日 | D19: ZFBDT | F19: 明細テキスト | G19: SGTXT
A20: 18 | B20: R | C20: 振出日 | D20: WDATE | F20: 起算日 | G20: VALUT
A21: 19 | B21: S | C21: 支払方法 | D21: ZLSCH | F21: 期日 | G21: ZFBDT
A22: 20 | B22: T | C22: 支払保留 | D22: ZLSPR | F22: 振出日 | G22: WDATE
A23: 21 | B23: U | C23: 数量 | D23: MENGE | F23: 支払方法 | G23: ZLSCH
A24: 22 | B24: V | C24: 数量単位 | D24: MEINS | F24: 支払保留 | G24: ZLSPR
A25: 23 | B25: W | C25: 事業領域 | D25: GSBER | F25: 取引先銀行 | G25: BVTYP
A26: 24 | B26: X | C26: 原価ｾﾝﾀ | D26: KOSTL | F26: 取引銀行 | G26: HBKID
A27: 25 | B27: Y | C27: 利益ｾﾝﾀ | D27: PRCTR | F27: 中央銀行コード | G27: LZBKZ
A28: 26 | B28: Z | C28: 指図書 | D28: AUFNR | F28: 数量 | G28: MENGE
A29: 27 | B29: AA | C29: ＷＢＳ | D29: PS_PSP_PNR | F29: 数量単位 | G29: MEINS
A30: 28 | B30: AB | C30: 得意先ｺｰﾄﾞ | D30: RKEAK-FIELD1 | F30: 事業領域 | G30: GSBER
A31: 29 | B31: AC | C31: 品目ｺｰﾄﾞ | D31: RKEAK-FIELD2 | F31: 原価センタ | G31: KOSTL
A32: 30 | B32: AD | C32: 販売組織 | D32: RKEAK-FIELD6 | F32: 利益センタ | G32: PRCTR
A33: 31 | B33: AE | C33: 流通ﾁｬﾈﾙ | D33: RKEAK-FIELD7 | F33: 指図書 | G33: AUFNR
A34: 32 | B34: AF | C34: 製品部門 | D34: RKEAK-FIELD8 | F34: ＷＢＳ | G34: PS_PSP_PNR
A35: 33 | B35: AG | C35: 品目ｸﾞﾙｰﾌﾟ | D35: RKEAK-FIELD9 | F35: 得意先コード | G35: RKEAK-FIELD1
A36: 34 | B36: AH | C36: 営業所 | D36: RKEAK-FIELD2 | F36: 品目コード | G36: RKEAK-FIELD2
A37: 35 | B37: AI | C37: 営業グループ | D37: RKEAK-FIELD3 | F37: 販売組織 | G37: RKEAK-FIELD6
A38: 36 | B38: AJ | C38: 需要家 | D38: RKEAK-FIELD2 | F38: 流通チャネル | G38: RKEAK-FIELD7
A39: 37 | B39: AK | C39: 研究室/設計室 | D39: RKEAK-FIELD3 | F39: 製品部門 | G39: RKEAK-FIELD8
A40: 38 | B40: AL | F40: 品目グループ | G40: RKEAK-FIELD9
A41: 39 | B41: AM | F41: 営業所 | G41: RKEAK-FIELD2
A42: 40 | B42: AN | F42: 営業グループ | G42: RKEAK-FIELD3
A43: 41 | B43: AO | F43: 需要家 | G43: RKEAK-FIELD2

Sheet 20.12
A3: 2020-12-01 | B3: 交計受取勘定 | K3: 2020-12-01 | L3: 交計業務経費(A表) | M3: (上期) | N3: (下期) | S3: 2021-01-31 | T3: 全国通運圧縮対象計上額一覧
B4: ｺﾝﾃﾅ-配達料 | D4: ｺﾝﾃﾅ-配達料 | F4: ｺﾝﾃﾅ-配達料 | K4: 支払先 | L4: 内 容 | M4: 被請求金額 | N4: 被請求金額 | S4: 買掛金 | U4: 仮払金 | W4: 売掛金 | Y4: 貸方計 | AA4: 差額
A5: 決済日 | B5: 請求先 | C5: 金額 | D5: 請求先 | E5: 金額 | F5: 請求先 | G5: 金額 | H5: 合計 | K5: 輸送新聞社 | L5: 購読料 | M5: 1975 | O5: 図書費 | P5: 826780
B6: 中京通運他 | C6: 756377 | H6: 756377 | K6: 輸送新聞社 | L6: 送料 | O6: 郵便料 | P6: 826430 | R6: 繰越 | S6: -18482106
H7: 0 | K7: 交通日本社 | L7: 通運業者名簿追録 | O7: 図書費 | P7: 826780 | R7: 12 | S7: 4763979 | U7: 4889280 | W7: 15565
A8: 上期(20/12) | H8: 0 | K8: 交通日本社 | L8: 送料 | O8: 郵便料 | P8: 826430 | S8: 10165861 | U8: 10057785 | W8: 183150
H9: 0 | K9: 通運新聞社 | L9: 購読料 | O9: 図書費 | P9: 826780 | U9: 2075000 | W9: 811690
B10: 計 | C10: 756377 | D10: 計 | E10: 0 | F10: 計 | G10: 0 | H10: 756377 | K10: 通運新聞社 | L10: 郵送料 | O10: 郵便料 | P10: 826430 | W10: 65010
K11: 通運情報社 | L11: 購読料 | O11: 図書費 | P11: 826780 | W11: 31097
B12: 中京通運 他 | C12: 244420 | H12: 244420 | K12: 運輸世界新聞社 | L12: 購読料 | O12: 図書費 | P12: 826780
B13: 保証預り金利子 | H13: 0 | K13: 運輸図書 | L13: ｺﾝﾃﾅ貨物集配便覧追補 | O13: 図書費 | P13: 826780
A14: 下期(20/12) | H14: 0 | K14: 運輸図書 | L14: 送料 | O14: 郵便料 | P14: 826430
H15: 0 | K15: 全国通運業連合会 | L15: 全国大会会費 | O15: 会費加入 | P15: 826910
B16: 計 | C16: 244420 | D16: 計 | E16: 0 | F16: 計 | G16: 0 | H16: 244420 | K16: 全国通運業連合会 | L16: 懇親会会費 | O16: 交際費 | P16: 826800
K17: 関東通運業連合会 | L17: ｺﾝﾃﾅ委員会会費 | O17: 会費加入 | P17: 826910
K18: 関東通運業連合会 | L18: 東名大通友会会費 | O18: 会費加入 | P18: 826910
A19: 合計 | C19: 1000797 | E19: 0 | G19: 0 | H19: 1000797 | K19: 関東通運業連合会 | L19: 会費 | N19: 39900 | O19: 会費加入 | P19: 826910
K20: 中部通運業連合会 | L20: 東名大通友会会費 | O20: 会費加入 | P20: 826910 | S20: 14929840 | U20: 17022065 | W20: 1106512 | Y20: 18128577 | AA20: -3198737
A21: 2020-12-01 | B21: 交計支払勘定 | K21: 日本通運(横浜) | L21: 鉄道貨物利用運送会費 | O21: 会費加入 | P21: 826910 | U21: 事故費 | W21: その他
B22: ｺﾝﾃﾅ-着店借 | D22: ｺﾝﾃﾅ-着店借 | F22: ｺﾝﾃﾅ-着店借 | H22: 業務経費 | K22: 日本通運(横浜) | L22: 神奈川県通運会費 | O22: 会費加入 | P22: 826910
A23: 決済日 | B23: 配送依頼先 | C23: 金額 | D23: 配送依頼先 | E23: 金額 | F23: 配送依頼先 | G23: 金額 | H23: (A)表 | I23: 合計 | K23: 日本通運(横浜) | L23: 通運業界臨時会費 | O23: 会費加入 | P23: 826910
B24: 日本通運他 | C24: 13123773 | H24: 39922 | I24: 13163695 | K24: 博多港運 | L24: 九州会会費 | O24: 会費加入 | P24: 826910
I25: 0 | K25: 札幌通運 | L25: 北海道会費 | O25: 会費加入 | P25: 826910
A26: 上期(20/12) | I26: 0 | K26: 仙台運送 | L26: みちのく会費 | O26: 会費加入 | P26: 826910
I27: 0 | K27: 仙台運送 | L27: みちのく会 特別会費 | O27: 交際費 | P27: 826800
B28: 計 | C28: 13123773 | D28: 計 | E28: 0 | F28: 計 | G28: 0 | H28: 39922 | I28: 13163695 | J28: 13123773 | K28: 川崎運送 | L28: 会費 | M28: 25000 | O28: 会費加入 | P28: 826910 | S28: 0 | U28: 0 | W28: 0 | Y28: 0
K29: 丸全昭和運輸 | L29: 事務所清掃代 | M29: 12947 | O29: 雑費 | P29: 827900 | AA29: 翌月繰越
B30: 日本通運 他 | C30: 5133700 | H30: 117103 | I30: 5250803 | K30: 丸全昭和運輸 | L30: 全通神奈川連絡会費 | O30: 会費加入 | P30: 826910 | S30: -3552266 | U30: 17022065 | W30: 1106512 | Y30: 18128577 | AA30: -21680843
I31: 0 | K31: 全国通運 | L31: 郵送料 | N31: 640 | O31: 郵便料 | P31: 826430
A32: 下期(20/12) | I32: 0 | K32: 全国通運 | L32: A4ｶｯﾄ紙 | O32: 用紙代 | P32: 826730
I33: 0 | K33: 全国通運 | L33: 全通VPN料金（NTT） | N33: 21120 | O33: 雑費 | P33: 827900
I34: 0 | K34: 全国通運 | L34: 全通VPN料金（専用線） | O34: 雑費 | P34: 827900
B35: 計 | C35: 5133700 | D35: 計 | E35: 0 | F35: 計 | G35: 0 | H35: 117103 | I35: 5250803 | J35: 5133700 | K35: 全国通運 | L35: 情報ｼｽﾃﾑ開発料金 | N35: 7700 | O35: 雑費 | P35: 827900
K36: 全国通運 | L36: 情報ｼｽﾃﾑ基本料金 | N36: 14553 | O36: 雑費 | P36: 827900
K37: 全国通運 | L37: 通風コンテナ | O37: 雑費 | P37: 827900
A38: 合計 | C38: 18257473 | E38: 0 | G38: 0 | H38: 157025 | I38: 18414498 | J38: 18257473 | K38: 運送保証協会 | L38: 保証料(JR分) | N38: 33030 | O38: 雑費 | P38: 827900
D39: 前途金 | E39: 仮払金 | K39: 運送保証協会 | L39: 保証料(神奈川臨海分） | N39: 160 | O39: 雑費 | P39: 827900
A40: 他店貸,借A/C差額(上期) | C40: 12367396 | D40: 2527000 | E40: 9840396 | H40: 上期交計尻未払金 | I40: 12407318 | K40: 2020-12-01 | L40: 計 | M40: 39922 | N40: 117103
A41: 他店貸,借A/C差額(下期) | C41: 4889280 | E41: 4889280 | H41: 下期交計尻未払金 | I41: 5006383 | M41: 仮払金 | N41: 仮払金
K42: 2020-12-01 | L42: 合 計 | M42: 39922 | N42: 117103
H43: 上期 | I43: 12410964.5
H44: 下期 | I44: 5007840.5 | M44: 計算料（雑費） | N44: 計算料（雑費）
M45: 3315 | N45: 1325
M46: 331.5 | N46: 132.5 | O46: ※2019年9月下期より消費税10%
M47: 3646.5 | N47: 1457.5

Sheet 21.01
A3: 2021-01-01 | B3: 交計受取勘定 | K3: =+A3 -> 2021-01-01 | L3: 交計業務経費(A表) | M3: (上期) | N3: (下期) | S3: =EOMONTH(A3,1) -> 2021-02-28 | T3: 全国通運圧縮対象計上額一覧
B4: ｺﾝﾃﾅ-配達料 | D4: ｺﾝﾃﾅ-配達料 | F4: ｺﾝﾃﾅ-配達料 | K4: 支払先 | L4: 内 容 | M4: 被請求金額 | N4: 被請求金額 | S4: 買掛金 | U4: 仮払金 | W4: 売掛金 | Y4: 貸方計 | AA4: 差額
A5: 決済日 | B5: 請求先 | C5: 金額 | D5: =+B5 -> 請求先 | E5: 金額 | F5: =+D5 -> 請求先 | G5: 金額 | H5: 合計 | K5: 輸送新聞社 | L5: 購読料 | M5: 1975 | O5: 図書費 | P5: 826780 | Q5: =IF(LEFT(P5,1)="3","原","") -> 
B6: 中京通運他 | C6: 641575 | H6: =C6+E6+G6 -> 641575 | K6: 輸送新聞社 | L6: 送料 | O6: 郵便料 | P6: 826430 | Q6: =IF(LEFT(P6,1)="3","原","") ->  | R6: 繰越 | S6: =INDIRECT(IF(MONTH(A3)=1,RIGHT(YEAR(A3)-1,2)&".12",RIGHT(YEAR(A3),2)&"."&TEXT(MONTH(A3)-1,"00"))&"!AA30") -> -21680843
H7: =C7+E7+G7 -> 0 | K7: 交通日本社 | L7: 通運業者名簿追録 | O7: 図書費 | P7: 826780 | R7: =MONTH(A3) -> 1 | S7: 6885946 | U7: 3333770 | W7: 84260
A8: ="上期("&TEXT(A3,"YY")&"/"&TEXT(A3,"MM")&")" -> 上期(21/01) | H8: =C8+E8+G8 -> 0 | K8: 交通日本社 | L8: 送料 | O8: 郵便料 | P8: 826430 | S8: 3739890 | U8: 3192236 | W8: 81730
H9: =C9+E9+G9 -> 0 | K9: 通運新聞社 | L9: 購読料 | O9: 図書費 | P9: 826780 | U9: 2098000 | W9: 12430
B10: 計 | C10: =SUM(C6:C9) -> 641575 | D10: 計 | E10: =SUM(E6:E9) -> 0 | F10: 計 | G10: =SUM(G6:G9) -> 0 | H10: =SUM(H6:H9) -> 641575 | K10: 通運新聞社 | L10: 郵送料 | O10: 郵便料 | P10: 826430 | W10: 65010
K11: 通運情報社 | L11: 購読料 | O11: 図書費 | P11: 826780 | W11: 243870
B12: 中京通運 他 | C12: 91960 | H12: =C12+E12+G12 -> 91960 | K12: 運輸世界新聞社 | L12: 購読料 | O12: 図書費 | P12: 826780
B13: 保証預り金利子 | H13: =C13+E13+G13 -> 0 | K13: 運輸図書 | L13: ｺﾝﾃﾅ貨物集配便覧追補 | O13: 図書費 | P13: 826780
A14: ="下期("&TEXT(A3,"YY")&"/"&TEXT(A3,"MM")&")" -> 下期(21/01) | H14: =C14+E14+G14 -> 0 | K14: 運輸図書 | L14: 送料 | O14: 郵便料 | P14: 826430
H15: =C15+E15+G15 -> 0 | K15: 全国通運業連合会 | L15: 全国大会会費 | O15: 会費加入 | P15: 826910
B16: 計 | C16: =SUM(C12:C15) -> 91960 | D16: 計 | E16: =SUM(E12:E15) -> 0 | F16: 計 | G16: =SUM(G12:G15) -> 0 | H16: =SUM(H12:H15) -> 91960 | K16: 全国通運業連合会 | L16: 懇親会会費 | O16: 交際費 | P16: 826800
K17: 関東通運業連合会 | L17: ｺﾝﾃﾅ委員会会費 | O17: 会費加入 | P17: 826910
K18: 関東通運業連合会 | L18: 東名大通友会会費 | O18: 会費加入 | P18: 826910
A19: 合計 | C19: =C10+C16 -> 733535 | E19: =E10+E16 -> 0 | G19: =G10+G16 -> 0 | H19: =H10+H16 -> 733535 | K19: 関東通運業連合会 | L19: 会費 | O19: 会費加入 | P19: 826910
K20: 中部通運業連合会 | L20: 東名大通友会会費 | O20: 会費加入 | P20: 826910 | Q20: =IF(LEFT(P21,1)="3","原","") ->  | S20: =SUM(S7:S19) -> 10625836 | U20: =SUM(U6:U19) -> 8624006 | W20: =SUM(W6:W19) -> 487300 | Y20: =U20+W20 -> 9111306 | AA20: =S20-Y20 -> 1514530
A21: =+A3 -> 2021-01-01 | B21: 交計支払勘定 | K21: 日本通運(横浜) | L21: 鉄道貨物利用運送会費 | O21: 会費加入 | P21: 826910 | U21: 事故費 | W21: その他
B22: ｺﾝﾃﾅ-着店借 | D22: ｺﾝﾃﾅ-着店借 | F22: ｺﾝﾃﾅ-着店借 | H22: 業務経費 | K22: 日本通運(横浜) | L22: 神奈川県通運会費 | O22: 会費加入 | P22: 826910
A23: 決済日 | B23: 配送依頼先 | C23: 金額 | D23: =+B23 -> 配送依頼先 | E23: 金額 | F23: =+D23 -> 配送依頼先 | G23: 金額 | H23: (A)表 | I23: 合計 | K23: 日本通運(横浜) | L23: 通運業界臨時会費 | O23: 会費加入 | P23: 826910
B24: 日本通運他 | C24: 13800360 | H24: =M42 -> 39922 | I24: =C24+E24+G24+H24 -> 13840282 | K24: 博多港運 | L24: 九州会会費 | O24: 会費加入 | P24: 826910
I25: =C25+E25+G25 -> 0 | K25: 札幌通運 | L25: 北海道会費 | O25: 会費加入 | P25: 826910
A26: =A8 -> 上期(21/01) | I26: =C26+E26+G26 -> 0 | K26: 仙台運送 | L26: みちのく会費 | O26: 会費加入 | P26: 826910
I27: =C27+E27+G27 -> 0 | K27: 仙台運送 | L27: みちのく会 特別会費 | O27: 交際費 | P27: 826800
B28: 計 | C28: =SUM(C24:C27) -> 13800360 | D28: 計 | E28: =SUM(E24:E27) -> 0 | F28: 計 | G28: =SUM(G24:G27) -> 0 | H28: =SUM(H24:H27) -> 39922 | I28: =SUM(I24:I27) -> 13840282 | J28: =I28-H28 -> 13800360 | K28: 川崎運送 | L28: 会費 | M28: 25000 | O28: 会費加入 | P28: 826910 | S28: =SUM(S22:S26) -> 0 | U28: =SUM(U22:U26) -> 0 | W28: =SUM(W22:W26) -> 0 | Y28: =U28+W28 -> 0
K29: 丸全昭和運輸 | L29: 事務所清掃代 | M29: 12947 | O29: 雑費 | P29: 827900 | AA29: 翌月繰越
B30: 日本通運 他 | C30: 3425730 | H30: =N42 -> 78603 | I30: =C30+E30+G30+H30 -> 3504333 | K30: 丸全昭和運輸 | L30: 全通神奈川連絡会費 | O30: 会費加入 | P30: 826910 | S30: =S6+S20+S28 -> -11055007 | U30: =U20+U28 -> 8624006 | W30: =W20+W28 -> 487300 | Y30: =Y20+Y28 -> 9111306 | AA30: =S30-Y30 -> -20166313
I31: =C31+E31+G31 -> 0 | K31: 全国通運 | L31: 郵送料 | N31: 640 | O31: 郵便料 | P31: 826430
A32: =A14 -> 下期(21/01) | I32: =C32+E32+G32 -> 0 | K32: 全国通運 | L32: A4ｶｯﾄ紙 | O32: 用紙代 | P32: 826730 | Q32: =IF(LEFT(P34,1)="3","原","") -> 
I33: =C33+E33+G33 -> 0 | K33: 全国通運 | L33: 全通VPN料金（NTT） | N33: 21120 | O33: 雑費 | P33: 827900 | Q33: =IF(LEFT(P35,1)="3","原","") -> 
I34: =C34+E34+G34 -> 0 | K34: 全国通運 | L34: 全通VPN料金（専用線） | O34: 雑費 | P34: 827900 | Q34: =IF(LEFT(P36,1)="3","原","") -> 
B35: 計 | C35: =SUM(C30:C34) -> 3425730 | D35: 計 | E35: =SUM(E30:E34) -> 0 | F35: 計 | G35: =SUM(G30:G34) -> 0 | H35: =SUM(H30:H34) -> 78603 | I35: =SUM(C35:H35) -> 3504333 | J35: =I35-H35 -> 3425730 | K35: 全国通運 | L35: 情報ｼｽﾃﾑ開発料金 | N35: 7700 | O35: 雑費 | P35: 827900 | Q35: =IF(LEFT(P37,1)="3","原","") -> 
K36: 全国通運 | L36: 情報ｼｽﾃﾑ基本料金 | N36: 14553 | O36: 雑費 | P36: 827900 | Q36: =IF(LEFT(P38,1)="3","原","") -> 
K37: 全国通運 | L37: 通風コンテナ | O37: 雑費 | P37: 827900
A38: 合計 | C38: =C28+C35 -> 17226090 | E38: =E28+E35 -> 0 | G38: =G28+G35 -> 0 | H38: =H28+H35 -> 118525 | I38: =I28+I35 -> 17344615 | J38: =I38-H38 -> 17226090 | K38: 運送保証協会 | L38: 保証料(JR分) | N38: 34470 | O38: 雑費 | P38: 827900
D39: 前途金 | E39: 仮払金 | K39: 運送保証協会 | L39: 保証料(神奈川臨海分） | N39: 120 | O39: 雑費 | P39: 827900
A40: 他店貸,借A/C差額(上期) | C40: =I40-M42 -> 13158785 | D40: 3101000 | E40: =C40-D40 -> 10057785 | H40: 上期交計尻未払金 | I40: =I28-H10 -> 13198707 | K40: =+K3 -> 2021-01-01 | L40: 計 | M40: =SUM(M5:M39) -> 39922 | N40: =SUM(N5:N39) -> 78603
A41: 他店貸,借A/C差額(下期) | C41: =I41-N42 -> 3333770 | E41: =C41+D41-J6 -> 3333770 | H41: 下期交計尻未払金 | I41: =I35-H16 -> 3412373 | M41: 仮払金 | N41: 仮払金
K42: =K40 -> 2021-01-01 | L42: 合 計 | M42: =M40 -> 39922 | N42: =N40 -> 78603
H43: 上期 | I43: =I40+M47 -> 13201952
H44: 下期 | I44: =I41+N47 -> 3413027.5 | M44: 計算料（雑費） | N44: 計算料（雑費）
M45: 2950 | N45: 595
M46: =M45*0.1 -> 295 | N46: =N45*0.1 -> 59.5 | O46: ※2019年9月下期より消費税10%
M47: =M45+M46 -> 3245 | N47: =N45+N46 -> 654.5

Sheet 21.02
A3: 2021-02-01 | B3: 交計受取勘定 | K3: =+A3 -> 2021-02-01 | L3: 交計業務経費(A表) | M3: (上期) | N3: (下期) | S3: =EOMONTH(A3,1) -> 2021-03-31 | T3: 全国通運圧縮対象計上額一覧
B4: ｺﾝﾃﾅ-配達料 | D4: ｺﾝﾃﾅ-配達料 | F4: ｺﾝﾃﾅ-配達料 | K4: 支払先 | L4: 内 容 | M4: 被請求金額 | N4: 被請求金額 | S4: 買掛金 | U4: 仮払金 | W4: 売掛金 | Y4: 貸方計 | AA4: 差額
A5: 決済日 | B5: 請求先 | C5: 金額 | D5: =+B5 -> 請求先 | E5: 金額 | F5: =+D5 -> 請求先 | G5: 金額 | H5: 合計 | K5: 輸送新聞社 | L5: 購読料 | M5: 1975 | O5: 図書費 | P5: 826780 | Q5: =IF(LEFT(P5,1)="3","原","") -> 
B6: 中京通運他 | C6: 1030557 | H6: =C6+E6+G6 -> 1030557 | K6: 輸送新聞社 | L6: 送料 | O6: 郵便料 | P6: 826430 | Q6: =IF(LEFT(P6,1)="3","原","") ->  | R6: 繰越 | S6: =INDIRECT(IF(MONTH(A3)=1,RIGHT(YEAR(A3)-1,2)&".12",RIGHT(YEAR(A3),2)&"."&TEXT(MONTH(A3)-1,"00"))&"!AA30") -> -20166313
H7: =C7+E7+G7 -> 0 | K7: 交通日本社 | L7: 通運業者名簿追録 | O7: 図書費 | P7: 826780 | R7: =MONTH(A3) -> 2 | S7: 6453150 | U7: 1844590 | W7: 6286
A8: ="上期("&TEXT(A3,"YY")&"/"&TEXT(A3,"MM")&")" -> 上期(21/02) | H8: =C8+E8+G8 -> 0 | K8: 交通日本社 | L8: 送料 | O8: 郵便料 | P8: 826430 | S8: 6788770 | U8: 7084955 | W8: 7590
H9: =C9+E9+G9 -> 0 | K9: 通運新聞社 | L9: 購読料 | O9: 図書費 | P9: 826780 | U9: 2759000 | W9: 43120
B10: 計 | C10: =SUM(C6:C9) -> 1030557 | D10: 計 | E10: =SUM(E6:E9) -> 0 | F10: 計 | G10: =SUM(G6:G9) -> 0 | H10: =SUM(H6:H9) -> 1030557 | K10: 通運新聞社 | L10: 郵送料 | O10: 郵便料 | P10: 826430 | W10: 76450
K11: 通運情報社 | L11: 購読料 | O11: 図書費 | P11: 826780 | W11: 252780
B12: 中京通運 他 | C12: 121110 | H12: =C12+E12+G12 -> 121110 | K12: 運輸世界新聞社 | L12: 購読料 | O12: 図書費 | P12: 826780 | W12: 312290
B13: 保証預り金利子 | H13: =C13+E13+G13 -> 0 | K13: 運輸図書 | L13: ｺﾝﾃﾅ貨物集配便覧追補 | O13: 図書費 | P13: 826780
A14: ="下期("&TEXT(A3,"YY")&"/"&TEXT(A3,"MM")&")" -> 下期(21/02) | H14: =C14+E14+G14 -> 0 | K14: 運輸図書 | L14: 送料 | O14: 郵便料 | P14: 826430
H15: =C15+E15+G15 -> 0 | K15: 全国通運業連合会 | L15: 全国大会会費 | O15: 会費加入 | P15: 826910
B16: 計 | C16: =SUM(C12:C15) -> 121110 | D16: 計 | E16: =SUM(E12:E15) -> 0 | F16: 計 | G16: =SUM(G12:G15) -> 0 | H16: =SUM(H12:H15) -> 121110 | K16: 全国通運業連合会 | L16: 懇親会会費 | O16: 交際費 | P16: 826800
K17: 関東通運業連合会 | L17: ｺﾝﾃﾅ委員会会費 | O17: 会費加入 | P17: 826910
K18: 関東通運業連合会 | L18: 東名大通友会会費 | O18: 会費加入 | P18: 826910
A19: 合計 | C19: =C10+C16 -> 1151667 | E19: =E10+E16 -> 0 | G19: =G10+G16 -> 0 | H19: =H10+H16 -> 1151667 | K19: 関東通運業連合会 | L19: 会費 | O19: 会費加入 | P19: 826910
K20: 中部通運業連合会 | L20: 東名大通友会会費 | O20: 会費加入 | P20: 826910 | Q20: =IF(LEFT(P21,1)="3","原","") ->  | S20: =SUM(S7:S19) -> 13241920 | U20: =SUM(U6:U19) -> 11688545 | W20: =SUM(W6:W19) -> 698516 | Y20: =U20+W20 -> 12387061 | AA20: =S20-Y20 -> 854859
A21: =+A3 -> 2021-02-01 | B21: 交計支払勘定 | K21: 日本通運(横浜) | L21: 鉄道貨物利用運送会費 | O21: 会費加入 | P21: 826910 | U21: 事故費 | W21: その他
B22: ｺﾝﾃﾅ-着店借 | D22: ｺﾝﾃﾅ-着店借 | F22: ｺﾝﾃﾅ-着店借 | H22: 業務経費 | K22: 日本通運(横浜) | L22: 神奈川県通運会費 | O22: 会費加入 | P22: 826910
A23: 決済日 | B23: 配送依頼先 | C23: 金額 | D23: =+B23 -> 配送依頼先 | E23: 金額 | F23: =+D23 -> 配送依頼先 | G23: 金額 | H23: (A)表 | I23: 合計 | K23: 日本通運(横浜) | L23: 通運業界臨時会費 | O23: 会費加入 | P23: 826910
B24: 日本通運他 | C24: 6297793 | H24: =M42 -> 39922 | I24: =C24+E24+G24+H24 -> 6337715 | K24: 博多港運 | L24: 九州会会費 | O24: 会費加入 | P24: 826910
I25: =C25+E25+G25 -> 0 | K25: 札幌通運 | L25: 北海道会費 | O25: 会費加入 | P25: 826910
A26: =A8 -> 上期(21/02) | I26: =C26+E26+G26 -> 0 | K26: 仙台運送 | L26: みちのく会費 | O26: 会費加入 | P26: 826910
I27: =C27+E27+G27 -> 0 | K27: 仙台運送 | L27: みちのく会 特別会費 | O27: 交際費 | P27: 826800
B28: 計 | C28: =SUM(C24:C27) -> 6297793 | D28: 計 | E28: =SUM(E24:E27) -> 0 | F28: 計 | G28: =SUM(G24:G27) -> 0 | H28: =SUM(H24:H27) -> 39922 | I28: =SUM(I24:I27) -> 6337715 | J28: =I28-H28 -> 6297793 | K28: 川崎運送 | L28: 会費 | M28: 25000 | O28: 会費加入 | P28: 826910 | S28: =SUM(S22:S26) -> 0 | U28: =SUM(U22:U26) -> 0 | W28: =SUM(W22:W26) -> 0 | Y28: =U28+W28 -> 0
K29: 丸全昭和運輸 | L29: 事務所清掃代 | M29: 12947 | O29: 雑費 | P29: 827900 | AA29: 翌月繰越
B30: 日本通運 他 | C30: 1965700 | H30: =N42 -> 86633 | I30: =C30+E30+G30+H30 -> 2052333 | K30: 丸全昭和運輸 | L30: 全通神奈川連絡会費 | O30: 会費加入 | P30: 826910 | S30: =S6+S20+S28 -> -6924393 | U30: =U20+U28 -> 11688545 | W30: =W20+W28 -> 698516 | Y30: =Y20+Y28 -> 12387061 | AA30: =S30-Y30 -> -19311454
I31: =C31+E31+G31 -> 0 | K31: 全国通運 | L31: 郵送料 | N31: 640 | O31: 郵便料 | P31: 826430
A32: =A14 -> 下期(21/02) | I32: =C32+E32+G32 -> 0 | K32: 全国通運 | L32: A4ｶｯﾄ紙 | O32: 用紙代 | P32: 826730 | Q32: =IF(LEFT(P34,1)="3","原","") -> 
I33: =C33+E33+G33 -> 0 | K33: 全国通運 | L33: 全通VPN料金（NTT） | N33: 21120 | O33: 雑費 | P33: 827900 | Q33: =IF(LEFT(P35,1)="3","原","") -> 
I34: =C34+E34+G34 -> 0 | K34: 全国通運 | L34: 全通VPN料金（専用線） | O34: 雑費 | P34: 827900 | Q34: =IF(LEFT(P36,1)="3","原","") -> 
B35: 計 | C35: =SUM(C30:C34) -> 1965700 | D35: 計 | E35: =SUM(E30:E34) -> 0 | F35: 計 | G35: =SUM(G30:G34) -> 0 | H35: =SUM(H30:H34) -> 86633 | I35: =SUM(C35:H35) -> 2052333 | J35: =I35-H35 -> 1965700 | K35: 全国通運 | L35: 情報ｼｽﾃﾑ開発料金 | N35: 7700 | O35: 雑費 | P35: 827900 | Q35: =IF(LEFT(P37,1)="3","原","") -> 
K36: 全国通運 | L36: 情報ｼｽﾃﾑ基本料金 | N36: 14553 | O36: 雑費 | P36: 827900 | Q36: =IF(LEFT(P38,1)="3","原","") -> 
K37: 全国通運 | L37: 通風コンテナ | O37: 雑費 | P37: 827900
A38: 合計 | C38: =C28+C35 -> 8263493 | E38: =E28+E35 -> 0 | G38: =G28+G35 -> 0 | H38: =H28+H35 -> 126555 | I38: =I28+I35 -> 8390048 | J38: =I38-H38 -> 8263493 | K38: 運送保証協会 | L38: 保証料(JR分) | N38: 42500 | O38: 雑費 | P38: 827900
D39: 前途金 | E39: 仮払金 | K39: 運送保証協会 | L39: 保証料(神奈川臨海分） | N39: 120 | O39: 雑費 | P39: 827900
A40: 他店貸,借A/C差額(上期) | C40: =I40-M42 -> 5267236 | D40: 2075000 | E40: =C40-D40 -> 3192236 | H40: 上期交計尻未払金 | I40: =I28-H10 -> 5307158 | K40: =+K3 -> 2021-02-01 | L40: 計 | M40: =SUM(M5:M39) -> 39922 | N40: =SUM(N5:N39) -> 86633
A41: 他店貸,借A/C差額(下期) | C41: =I41-N42 -> 1844590 | E41: =C41+D41-J6 -> 1844590 | H41: 下期交計尻未払金 | I41: =I35-H16 -> 1931223 | M41: 仮払金 | N41: 仮払金
K42: =K40 -> 2021-02-01 | L42: 合 計 | M42: =M40 -> 39922 | N42: =N40 -> 86633
H43: 上期 | I43: =I40+M47 -> 5311697.7
H44: 下期 | I44: =I41+N47 -> 1932042.5 | M44: 計算料（雑費） | N44: 計算料（雑費）
M45: 4127 | N45: 745
M46: =M45*0.1 -> 412.7 | N46: =N45*0.1 -> 74.5 | O46: ※2019年9月下期より消費税10%
M47: =M45+M46 -> 4539.7 | N47: =N45+N46 -> 819.5

Sheet 21.03
A3: 2021-03-01 | B3: 交計受取勘定 | K3: =+A3 -> 2021-03-01 | L3: 交計業務経費(A表) | M3: (上期) | N3: (下期) | S3: =EOMONTH(A3,1) -> 2021-04-30 | T3: 全国通運圧縮対象計上額一覧
B4: ｺﾝﾃﾅ-配達料 | D4: ｺﾝﾃﾅ-配達料 | F4: ｺﾝﾃﾅ-配達料 | K4: 支払先 | L4: 内 容 | M4: 被請求金額 | N4: 被請求金額 | S4: 買掛金 | U4: 仮払金 | W4: 売掛金 | Y4: 貸方計 | AA4: 差額
A5: 決済日 | B5: 請求先 | C5: 金額 | D5: =+B5 -> 請求先 | E5: 金額 | F5: =+D5 -> 請求先 | G5: 金額 | H5: 合計 | K5: 輸送新聞社 | L5: 購読料 | M5: 1975 | O5: 図書費 | P5: 826780 | Q5: =IF(LEFT(P5,1)="3","原","") -> 
B6: 中京通運他 | C6: 349156 | H6: =C6+E6+G6 -> 349156 | K6: 輸送新聞社 | L6: 送料 | O6: 郵便料 | P6: 826430 | Q6: =IF(LEFT(P6,1)="3","原","") ->  | R6: 繰越 | S6: =INDIRECT(IF(MONTH(A3)=1,RIGHT(YEAR(A3)-1,2)&".12",RIGHT(YEAR(A3),2)&"."&TEXT(MONTH(A3)-1,"00"))&"!AA30") -> -19311454
H7: =C7+E7+G7 -> 0 | K7: 交通日本社 | L7: 通運業者名簿追録 | O7: 図書費 | P7: 826780 | R7: =MONTH(A3) -> 3 | S7: 6875197 | U7: 10502339 | W7: 151800
A8: ="上期("&TEXT(A3,"YY")&"/"&TEXT(A3,"MM")&")" -> 上期(21/03) | H8: =C8+E8+G8 -> 0 | K8: 交通日本社 | L8: 送料 | O8: 郵便料 | P8: 826430 | S8: 8870046 | U8: 3701240 | W8: 153230
H9: =C9+E9+G9 -> 0 | K9: 通運新聞社 | L9: 購読料 | O9: 図書費 | P9: 826780 | U9: 2813000 | W9: 10890
B10: 計 | C10: =SUM(C6:C9) -> 349156 | D10: 計 | E10: =SUM(E6:E9) -> 0 | F10: 計 | G10: =SUM(G6:G9) -> 0 | H10: =SUM(H6:H9) -> 349156 | K10: 通運新聞社 | L10: 郵送料 | O10: 郵便料 | P10: 826430 | W10: 5610
K11: 通運情報社 | L11: 購読料 | O11: 図書費 | P11: 826780 | W11: 422290
B12: 中京通運 他 | C12: 223300 | H12: =C12+E12+G12 -> 223300 | K12: 運輸世界新聞社 | L12: 購読料 | O12: 図書費 | P12: 826780
B13: 保証預り金利子 | C13: 15000 | H13: =C13+E13+G13 -> 15000 | K13: 運輸図書 | L13: ｺﾝﾃﾅ貨物集配便覧追補 | O13: 図書費 | P13: 826780
A14: ="下期("&TEXT(A3,"YY")&"/"&TEXT(A3,"MM")&")" -> 下期(21/03) | H14: =C14+E14+G14 -> 0 | K14: 運輸図書 | L14: 送料 | O14: 郵便料 | P14: 826430
H15: =C15+E15+G15 -> 0 | K15: 全国通運業連合会 | L15: 全国大会会費 | O15: 会費加入 | P15: 826910
B16: 計 | C16: =SUM(C12:C15) -> 238300 | D16: 計 | E16: =SUM(E12:E15) -> 0 | F16: 計 | G16: =SUM(G12:G15) -> 0 | H16: =SUM(H12:H15) -> 238300 | K16: 全国通運業連合会 | L16: 懇親会会費 | O16: 交際費 | P16: 826800
K17: 関東通運業連合会 | L17: ｺﾝﾃﾅ委員会会費 | O17: 会費加入 | P17: 826910
K18: 関東通運業連合会 | L18: 東名大通友会会費 | O18: 会費加入 | P18: 826910
A19: 合計 | C19: =C10+C16 -> 587456 | E19: =E10+E16 -> 0 | G19: =G10+G16 -> 0 | H19: =H10+H16 -> 587456 | K19: 関東通運業連合会 | L19: 会費 | N19: 39900 | O19: 会費加入 | P19: 826910
K20: 中部通運業連合会 | L20: 東名大通友会会費 | O20: 会費加入 | P20: 826910 | Q20: =IF(LEFT(P21,1)="3","原","") ->  | S20: =SUM(S7:S19) -> 15745243 | U20: =SUM(U6:U19) -> 17016579 | W20: =SUM(W6:W19) -> 743820 | Y20: =U20+W20 -> 17760399 | AA20: =S20-Y20 -> -2015156
A21: =+A3 -> 2021-03-01 | B21: 交計支払勘定 | K21: 日本通運(横浜) | L21: 鉄道貨物利用運送会費 | O21: 会費加入 | P21: 826910 | U21: 事故費 | W21: その他
B22: ｺﾝﾃﾅ-着店借 | D22: ｺﾝﾃﾅ-着店借 | F22: ｺﾝﾃﾅ-着店借 | H22: 業務経費 | K22: 日本通運(横浜) | L22: 神奈川県通運会費 | O22: 会費加入 | P22: 826910
A23: 決済日 | B23: 配送依頼先 | C23: 金額 | D23: =+B23 -> 配送依頼先 | E23: 金額 | F23: =+D23 -> 配送依頼先 | G23: 金額 | H23: (A)表 | I23: 合計 | K23: 日本通運(横浜) | L23: 通運業界臨時会費 | O23: 会費加入 | P23: 826910
B24: 日本通運他 | C24: 9532111 | H24: =M42 -> 39922 | I24: =C24+E24+G24+H24 -> 9572033 | K24: 博多港運 | L24: 九州会会費 | O24: 会費加入 | P24: 826910
I25: =C25+E25+G25 -> 0 | K25: 札幌通運 | L25: 北海道会費 | O25: 会費加入 | P25: 826910
A26: =A8 -> 上期(21/03) | I26: =C26+E26+G26 -> 0 | K26: 仙台運送 | L26: みちのく会費 | O26: 会費加入 | P26: 826910
I27: =C27+E27+G27 -> 0 | K27: 仙台運送 | L27: みちのく会 特別会費 | O27: 交際費 | P27: 826800
B28: 計 | C28: =SUM(C24:C27) -> 9532111 | D28: 計 | E28: =SUM(E24:E27) -> 0 | F28: 計 | G28: =SUM(G24:G27) -> 0 | H28: =SUM(H24:H27) -> 39922 | I28: =SUM(I24:I27) -> 9572033 | J28: =I28-H28 -> 9532111 | K28: 川崎運送 | L28: 会費 | M28: 25000 | O28: 会費加入 | P28: 826910 | S28: =SUM(S22:S26) -> 0 | U28: =SUM(U22:U26) -> 0 | W28: =SUM(W22:W26) -> 0 | Y28: =U28+W28 -> 0
K29: 丸全昭和運輸 | L29: 事務所清掃代 | M29: 12947 | O29: 雑費 | P29: 827900 | AA29: 翌月繰越
B30: 日本通運 他 | C30: 3939540 | H30: =N42 -> 121313 | I30: =C30+E30+G30+H30 -> 4060853 | K30: 丸全昭和運輸 | L30: 全通神奈川連絡会費 | O30: 会費加入 | P30: 826910 | S30: =S6+S20+S28 -> -3566211 | U30: =U20+U28 -> 17016579 | W30: =W20+W28 -> 743820 | Y30: =Y20+Y28 -> 17760399 | AA30: =S30-Y30 -> -21326610
I31: =C31+E31+G31 -> 0 | K31: 全国通運 | L31: 郵送料 | N31: 640 | O31: 郵便料 | P31: 826430
A32: =A14 -> 下期(21/03) | I32: =C32+E32+G32 -> 0 | K32: 全国通運 | L32: A4ｶｯﾄ紙 | O32: 用紙代 | P32: 826730 | Q32: =IF(LEFT(P34,1)="3","原","") -> 
I33: =C33+E33+G33 -> 0 | K33: 全国通運 | L33: 全通VPN料金（NTT） | N33: 21120 | O33: 雑費 | P33: 827900 | Q33: =IF(LEFT(P35,1)="3","原","") -> 
I34: =C34+E34+G34 -> 0 | K34: 全国通運 | L34: 全通VPN料金（専用線） | O34: 雑費 | P34: 827900 | Q34: =IF(LEFT(P36,1)="3","原","") -> 
B35: 計 | C35: =SUM(C30:C34) -> 3939540 | D35: 計 | E35: =SUM(E30:E34) -> 0 | F35: 計 | G35: =SUM(G30:G34) -> 0 | H35: =SUM(H30:H34) -> 121313 | I35: =SUM(C35:H35) -> 4060853 | J35: =I35-H35 -> 3939540 | K35: 全国通運 | L35: 情報ｼｽﾃﾑ開発料金 | N35: 7700 | O35: 雑費 | P35: 827900 | Q35: =IF(LEFT(P37,1)="3","原","") -> 
K36: 全国通運 | L36: 情報ｼｽﾃﾑ基本料金 | N36: 14553 | O36: 雑費 | P36: 827900 | Q36: =IF(LEFT(P38,1)="3","原","") -> 
K37: 全国通運 | L37: 通風コンテナ | O37: 雑費 | P37: 827900
A38: 合計 | C38: =C28+C35 -> 13471651 | E38: =E28+E35 -> 0 | G38: =G28+G35 -> 0 | H38: =H28+H35 -> 161235 | I38: =I28+I35 -> 13632886 | J38: =I38-H38 -> 13471651 | K38: 運送保証協会 | L38: 保証料(JR分) | N38: 37330 | O38: 雑費 | P38: 827900
D39: 前途金 | E39: 仮払金 | K39: 運送保証協会 | L39: 保証料(神奈川臨海分） | N39: 70 | O39: 雑費 | P39: 827900
A40: 他店貸,借A/C差額(上期) | C40: =I40-M42 -> 9182955 | D40: 2098000 | E40: =C40-D40 -> 7084955 | H40: 上期交計尻未払金 | I40: =I28-H10 -> 9222877 | K40: =+K3 -> 2021-03-01 | L40: 計 | M40: =SUM(M5:M39) -> 39922 | N40: =SUM(N5:N39) -> 121313
A41: 他店貸,借A/C差額(下期) | C41: =I41-N42 -> 3701240 | E41: =C41+D41-J6 -> 3701240 | H41: 下期交計尻未払金 | I41: =I35-H16 -> 3822553 | M41: 仮払金 | N41: 仮払金
K42: =K40 -> 2021-03-01 | L42: 合 計 | M42: =M40 -> 39922 | N42: =N40 -> 121313
H43: 上期 | I43: =I40+M47 -> 9224818.5
H44: 下期 | I44: =I41+N47 -> 3823909.3 | M44: 計算料（雑費） | N44: 計算料（雑費）
M45: 1765 | N45: 1233
M46: =M45*0.1 -> 176.5 | N46: =N45*0.1 -> 123.3 | O46: ※2019年9月下期より消費税10%
M47: =M45+M46 -> 1941.5 | N47: =N45+N46 -> 1356.3

Sheet 21.04
A3: 2021-04-01 | B3: 交計受取勘定 | K3: =+A3 -> 2021-04-01 | L3: 交計業務経費(A表) | M3: (上期) | N3: (下期) | S3: =EOMONTH(A3,1) -> 2021-05-31 | T3: 全国通運圧縮対象計上額一覧
B4: ｺﾝﾃﾅ-配達料 | D4: ｺﾝﾃﾅ-配達料 | F4: ｺﾝﾃﾅ-配達料 | K4: 支払先 | L4: 内 容 | M4: 被請求金額 | N4: 被請求金額 | S4: 買掛金 | U4: 仮払金 | W4: 売掛金 | Y4: 貸方計 | AA4: 差額
A5: 決済日 | B5: 請求先 | C5: 金額 | D5: =+B5 -> 請求先 | E5: 金額 | F5: =+D5 -> 請求先 | G5: 金額 | H5: 合計 | K5: 輸送新聞社 | L5: 購読料 | M5: 1975 | O5: 図書費 | P5: 826780 | Q5: =IF(LEFT(P5,1)="3","原","") -> 
B6: 中京通運他 | C6: 609290 | H6: =C6+E6+G6 -> 609290 | K6: 輸送新聞社 | L6: 送料 | O6: 郵便料 | P6: 826430 | Q6: =IF(LEFT(P6,1)="3","原","") ->  | R6: 繰越 | S6: =INDIRECT(IF(MONTH(A3)=1,RIGHT(YEAR(A3)-1,2)&".12",RIGHT(YEAR(A3),2)&"."&TEXT(MONTH(A3)-1,"00"))&"!AA30") -> -21326610
H7: =C7+E7+G7 -> 0 | K7: 交通日本社 | L7: 通運業者名簿追録 | O7: 図書費 | P7: 826780 | R7: =MONTH(A3) -> 4 | S7: 4748590 | U7: 3496680 | W7: 37730
A8: ="上期("&TEXT(A3,"YY")&"/"&TEXT(A3,"MM")&")" -> 上期(21/04) | H8: =C8+E8+G8 -> 0 | K8: 交通日本社 | L8: 送料 | O8: 郵便料 | P8: 826430 | S8: 9288392 | U8: 8198555 | W8: 125180
H9: =C9+E9+G9 -> 0 | K9: 通運新聞社 | L9: 購読料 | O9: 図書費 | P9: 826780 | U9: 1963000 | W9: 43120
B10: 計 | C10: =SUM(C6:C9) -> 609290 | D10: 計 | E10: =SUM(E6:E9) -> 0 | F10: 計 | G10: =SUM(G6:G9) -> 0 | H10: =SUM(H6:H9) -> 609290 | K10: 通運新聞社 | L10: 郵送料 | O10: 郵便料 | P10: 826430 | W10: 421300
K11: 通運情報社 | L11: 購読料 | O11: 図書費 | P11: 826780 | W11: 183480
B12: 中京通運 他 | C12: 203830 | H12: =C12+E12+G12 -> 203830 | K12: 運輸世界新聞社 | L12: 購読料 | O12: 図書費 | P12: 826780 | W12: 7260
B13: 保証預り金利子 | H13: =C13+E13+G13 -> 0 | K13: 運輸図書 | L13: ｺﾝﾃﾅ貨物集配便覧追補 | O13: 図書費 | P13: 826780
A14: ="下期("&TEXT(A3,"YY")&"/"&TEXT(A3,"MM")&")" -> 下期(21/04) | H14: =C14+E14+G14 -> 0 | K14: 運輸図書 | L14: 送料 | O14: 郵便料 | P14: 826430
H15: =C15+E15+G15 -> 0 | K15: 全国通運業連合会 | L15: 全国大会会費 | O15: 会費加入 | P15: 826910
B16: 計 | C16: =SUM(C12:C15) -> 203830 | D16: 計 | E16: =SUM(E12:E15) -> 0 | F16: 計 | G16: =SUM(G12:G15) -> 0 | H16: =SUM(H12:H15) -> 203830 | K16: 全国通運業連合会 | L16: 懇親会会費 | O16: 交際費 | P16: 826800
K17: 関東通運業連合会 | L17: ｺﾝﾃﾅ委員会会費 | O17: 会費加入 | P17: 826910
K18: 関東通運業連合会 | L18: 東名大通友会会費 | O18: 会費加入 | P18: 826910
A19: 合計 | C19: =C10+C16 -> 813120 | E19: =E10+E16 -> 0 | G19: =G10+G16 -> 0 | H19: =H10+H16 -> 813120 | K19: 関東通運業連合会 | L19: 会費 | N19: 39900 | O19: 会費加入 | P19: 826910
K20: 中部通運業連合会 | L20: 東名大通友会会費 | O20: 会費加入 | P20: 826910 | Q20: =IF(LEFT(P21,1)="3","原","") ->  | S20: =SUM(S7:S19) -> 14036982 | U20: =SUM(U6:U19) -> 13658235 | W20: =SUM(W6:W19) -> 818070 | Y20: =U20+W20 -> 14476305 | AA20: =S20-Y20 -> -439323
A21: =+A3 -> 2021-04-01 | B21: 交計支払勘定 | K21: 日本通運(横浜) | L21: 鉄道貨物利用運送会費 | O21: 会費加入 | P21: 826910 | U21: 事故費 | W21: その他
B22: ｺﾝﾃﾅ-着店借 | D22: ｺﾝﾃﾅ-着店借 | F22: ｺﾝﾃﾅ-着店借 | H22: 業務経費 | K22: 日本通運(横浜) | L22: 神奈川県通運会費 | O22: 会費加入 | P22: 826910
A23: 決済日 | B23: 配送依頼先 | C23: 金額 | D23: =+B23 -> 配送依頼先 | E23: 金額 | F23: =+D23 -> 配送依頼先 | G23: 金額 | H23: (A)表 | I23: 合計 | K23: 日本通運(横浜) | L23: 通運業界臨時会費 | O23: 会費加入 | P23: 826910
B24: 日本通運他 | C24: 13870629 | H24: =M42 -> 26975 | I24: =C24+E24+G24+H24 -> 13897604 | K24: 博多港運 | L24: 九州会会費 | O24: 会費加入 | P24: 826910
I25: =C25+E25+G25 -> 0 | K25: 札幌通運 | L25: 北海道会費 | O25: 会費加入 | P25: 826910
A26: =A8 -> 上期(21/04) | I26: =C26+E26+G26 -> 0 | K26: 仙台運送 | L26: みちのく会費 | O26: 会費加入 | P26: 826910
I27: =C27+E27+G27 -> 0 | K27: 仙台運送 | L27: みちのく会 特別会費 | O27: 交際費 | P27: 826800
B28: 計 | C28: =SUM(C24:C27) -> 13870629 | D28: 計 | E28: =SUM(E24:E27) -> 0 | F28: 計 | G28: =SUM(G24:G27) -> 0 | H28: =SUM(H24:H27) -> 26975 | I28: =SUM(I24:I27) -> 13897604 | J28: =I28-H28 -> 13870629 | K28: 川崎運送 | L28: 会費 | M28: 25000 | O28: 会費加入 | P28: 826910 | S28: =SUM(S22:S26) -> 0 | U28: =SUM(U22:U26) -> 0 | W28: =SUM(W22:W26) -> 0 | Y28: =U28+W28 -> 0
K29: 丸全昭和運輸 | L29: 事務所清掃代 | O29: 雑費 | P29: 827900 | AA29: 翌月繰越
B30: 日本通運 他 | C30: 3700510 | H30: =N42 -> 144171 | I30: =C30+E30+G30+H30 -> 3844681 | K30: 丸全昭和運輸 | L30: 全通神奈川連絡会費 | O30: 会費加入 | P30: 826910 | S30: =S6+S20+S28 -> -7289628 | U30: =U20+U28 -> 13658235 | W30: =W20+W28 -> 818070 | Y30: =Y20+Y28 -> 14476305 | AA30: =S30-Y30 -> -21765933
I31: =C31+E31+G31 -> 0 | K31: 全国通運 | L31: 郵送料 | N31: 640 | O31: 郵便料 | P31: 826430
A32: =A14 -> 下期(21/04) | I32: =C32+E32+G32 -> 0 | K32: 全国通運 | L32: A4ｶｯﾄ紙 | N32: 26400 | O32: 用紙代 | P32: 826730 | Q32: =IF(LEFT(P34,1)="3","原","") -> 
I33: =C33+E33+G33 -> 0 | K33: 全国通運 | L33: 全通VPN料金（NTT） | N33: 21120 | O33: 雑費 | P33: 827900 | Q33: =IF(LEFT(P35,1)="3","原","") -> 
I34: =C34+E34+G34 -> 0 | K34: 全国通運 | L34: 全通VPN料金（専用線） | O34: 雑費 | P34: 827900 | Q34: =IF(LEFT(P36,1)="3","原","") -> 
B35: 計 | C35: =SUM(C30:C34) -> 3700510 | D35: 計 | E35: =SUM(E30:E34) -> 0 | F35: 計 | G35: =SUM(G30:G34) -> 0 | H35: =SUM(H30:H34) -> 144171 | I35: =SUM(C35:H35) -> 3844681 | J35: =I35-H35 -> 3700510 | K35: 全国通運 | L35: 情報ｼｽﾃﾑ開発料金 | N35: 7700 | O35: 雑費 | P35: 827900 | Q35: =IF(LEFT(P37,1)="3","原","") -> 
K36: 全国通運 | L36: 情報ｼｽﾃﾑ基本料金 | N36: 12951 | O36: 雑費 | P36: 827900 | Q36: =IF(LEFT(P38,1)="3","原","") -> 
K37: 全国通運 | L37: 通風コンテナ | O37: 雑費 | P37: 827900
A38: 合計 | C38: =C28+C35 -> 17571139 | E38: =E28+E35 -> 0 | G38: =G28+G35 -> 0 | H38: =H28+H35 -> 171146 | I38: =I28+I35 -> 17742285 | J38: =I38-H38 -> 17571139 | K38: 運送保証協会 | L38: 保証料(JR分) | N38: 35400 | O38: 雑費 | P38: 827900
D39: 前途金 | E39: 仮払金 | K39: 運送保証協会 | L39: 保証料(神奈川臨海分） | N39: 60 | O39: 雑費 | P39: 827900
A40: 他店貸,借A/C差額(上期) | C40: =I40-M42 -> 13261339 | D40: 2759000 | E40: =C40-D40 -> 10502339 | H40: 上期交計尻未払金 | I40: =I28-H10 -> 13288314 | K40: =+K3 -> 2021-04-01 | L40: 計 | M40: =SUM(M5:M39) -> 26975 | N40: =SUM(N5:N39) -> 144171
A41: 他店貸,借A/C差額(下期) | C41: =I41-N42 -> 3496680 | E41: =C41+D41-J6 -> 3496680 | H41: 下期交計尻未払金 | I41: =I35-H16 -> 3640851 | M41: 仮払金 | N41: 仮払金
K42: =K40 -> 2021-04-01 | L42: 合 計 | M42: =M40 -> 26975 | N42: =N40 -> 144171
H43: 上期 | I43: =I40+M47 -> 13291396.2
H44: 下期 | I44: =I41+N47 -> 3642106.1 | M44: 計算料（雑費） | N44: 計算料（雑費）
M45: 2802 | N45: 1141
M46: =M45*0.1 -> 280.2 | N46: =N45*0.1 -> 114.1 | O46: ※2019年9月下期より消費税10%
M47: =M45+M46 -> 3082.2 | N47: =N45+N46 -> 1255.1

Sheet 21.05
A3: 2021-05-01 | B3: 交計受取勘定 | K3: =+A3 -> 2021-05-01 | L3: 交計業務経費(A表) | M3: (上期) | N3: (下期) | S3: =EOMONTH(A3,1) -> 2021-06-30 | T3: 全国通運圧縮対象計上額一覧
B4: ｺﾝﾃﾅ-配達料 | D4: ｺﾝﾃﾅ-配達料 | F4: ｺﾝﾃﾅ-配達料 | K4: 支払先 | L4: 内 容 | M4: 被請求金額 | N4: 被請求金額 | S4: 買掛金 | U4: 仮払金 | W4: 売掛金 | Y4: 貸方計 | AA4: 差額
A5: 決済日 | B5: 請求先 | C5: 金額 | D5: =+B5 -> 請求先 | E5: 金額 | F5: =+D5 -> 請求先 | G5: 金額 | H5: 合計 | K5: 輸送新聞社 | L5: 購読料 | M5: 1975 | O5: 図書費 | P5: 826780 | Q5: =IF(LEFT(P5,1)="3","原","") -> 
B6: 中京通運他 | C6: 416240 | H6: =C6+E6+G6 -> 416240 | K6: 輸送新聞社 | L6: 送料 | O6: 郵便料 | P6: 826430 | Q6: =IF(LEFT(P6,1)="3","原","") ->  | R6: 繰越 | S6: =INDIRECT(IF(MONTH(A3)=1,RIGHT(YEAR(A3)-1,2)&".12",RIGHT(YEAR(A3),2)&"."&TEXT(MONTH(A3)-1,"00"))&"!AA30") -> -21765933
H7: =C7+E7+G7 -> 0 | K7: 交通日本社 | L7: 通運業者名簿追録 | O7: 図書費 | P7: 826780 | R7: =MONTH(A3) -> 5 | S7: 6472591 | U7: 4300766 | W7: 254650
A8: ="上期("&TEXT(A3,"YY")&"/"&TEXT(A3,"MM")&")" -> 上期(21/05) | H8: =C8+E8+G8 -> 0 | K8: 交通日本社 | L8: 送料 | O8: 郵便料 | P8: 826430 | S8: 5409470 | U8: 2908950 | W8: 585090
H9: =C9+E9+G9 -> 0 | K9: 通運新聞社 | L9: 購読料 | O9: 図書費 | P9: 826780 | U9: 2562000 | W9: 43098
B10: 計 | C10: =SUM(C6:C9) -> 416240 | D10: 計 | E10: =SUM(E6:E9) -> 0 | F10: 計 | G10: =SUM(G6:G9) -> 0 | H10: =SUM(H6:H9) -> 416240 | K10: 通運新聞社 | L10: 郵送料 | O10: 郵便料 | P10: 826430
K11: 通運情報社 | L11: 購読料 | O11: 図書費 | P11: 826780
B12: 中京通運 他 | C12: 77880 | H12: =C12+E12+G12 -> 77880 | K12: 運輸世界新聞社 | L12: 購読料 | O12: 図書費 | P12: 826780
B13: 保証預り金利子 | H13: =C13+E13+G13 -> 0 | K13: 運輸図書 | L13: ｺﾝﾃﾅ貨物集配便覧追補 | O13: 図書費 | P13: 826780
A14: ="下期("&TEXT(A3,"YY")&"/"&TEXT(A3,"MM")&")" -> 下期(21/05) | H14: =C14+E14+G14 -> 0 | K14: 運輸図書 | L14: 送料 | O14: 郵便料 | P14: 826430
H15: =C15+E15+G15 -> 0 | K15: 全国通運業連合会 | L15: 全国大会会費 | O15: 会費加入 | P15: 826910
B16: 計 | C16: =SUM(C12:C15) -> 77880 | D16: 計 | E16: =SUM(E12:E15) -> 0 | F16: 計 | G16: =SUM(G12:G15) -> 0 | H16: =SUM(H12:H15) -> 77880 | K16: 全国通運業連合会 | L16: 懇親会会費 | O16: 交際費 | P16: 826800
K17: 関東通運業連合会 | L17: ｺﾝﾃﾅ委員会会費 | O17: 会費加入 | P17: 826910
K18: 関東通運業連合会 | L18: 東名大通友会会費 | O18: 会費加入 | P18: 826910
A19: 合計 | C19: =C10+C16 -> 494120 | E19: =E10+E16 -> 0 | G19: =G10+G16 -> 0 | H19: =H10+H16 -> 494120 | K19: 関東通運業連合会 | L19: 会費 | N19: 39900 | O19: 会費加入 | P19: 826910
K20: 中部通運業連合会 | L20: 東名大通友会会費 | O20: 会費加入 | P20: 826910 | Q20: =IF(LEFT(P21,1)="3","原","") ->  | S20: =SUM(S7:S19) -> 11882061 | U20: =SUM(U6:U19) -> 9771716 | W20: =SUM(W6:W19) -> 882838 | Y20: =U20+W20 -> 10654554 | AA20: =S20-Y20 -> 1227507
A21: =+A3 -> 2021-05-01 | B21: 交計支払勘定 | K21: 日本通運(横浜) | L21: 鉄道貨物利用運送会費 | O21: 会費加入 | P21: 826910 | U21: 事故費 | W21: その他
B22: ｺﾝﾃﾅ-着店借 | D22: ｺﾝﾃﾅ-着店借 | F22: ｺﾝﾃﾅ-着店借 | H22: 業務経費 | K22: 日本通運(横浜) | L22: 神奈川県通運会費 | O22: 会費加入 | P22: 826910
A23: 決済日 | B23: 配送依頼先 | C23: 金額 | D23: =+B23 -> 配送依頼先 | E23: 金額 | F23: =+D23 -> 配送依頼先 | G23: 金額 | H23: (A)表 | I23: 合計 | K23: 日本通運(横浜) | L23: 通運業界臨時会費 | O23: 会費加入 | P23: 826910
B24: 日本通運他 | C24: 11427795 | H24: =M42 -> 26975 | I24: =C24+E24+G24+H24 -> 11454770 | K24: 博多港運 | L24: 九州会会費 | O24: 会費加入 | P24: 826910
I25: =C25+E25+G25 -> 0 | K25: 札幌通運 | L25: 北海道会費 | O25: 会費加入 | P25: 826910
A26: =A8 -> 上期(21/05) | I26: =C26+E26+G26 -> 0 | K26: 仙台運送 | L26: みちのく会費 | O26: 会費加入 | P26: 826910
I27: =C27+E27+G27 -> 0 | K27: 仙台運送 | L27: みちのく会 特別会費 | O27: 交際費 | P27: 826800
B28: 計 | C28: =SUM(C24:C27) -> 11427795 | D28: 計 | E28: =SUM(E24:E27) -> 0 | F28: 計 | G28: =SUM(G24:G27) -> 0 | H28: =SUM(H24:H27) -> 26975 | I28: =SUM(I24:I27) -> 11454770 | J28: =I28-H28 -> 11427795 | K28: 川崎運送 | L28: 会費 | M28: 25000 | O28: 会費加入 | P28: 826910 | S28: =SUM(S22:S26) -> 0 | U28: =SUM(U22:U26) -> 0 | W28: =SUM(W22:W26) -> 0 | Y28: =U28+W28 -> 0
K29: 丸全昭和運輸 | L29: 事務所清掃代 | O29: 雑費 | P29: 827900 | AA29: 翌月繰越
B30: 日本通運 他 | C30: 2986830 | H30: =N42 -> 116411 | I30: =C30+E30+G30+H30 -> 3103241 | K30: 丸全昭和運輸 | L30: 全通神奈川連絡会費 | O30: 会費加入 | P30: 826910 | S30: =S6+S20+S28 -> -9883872 | U30: =U20+U28 -> 9771716 | W30: =W20+W28 -> 882838 | Y30: =Y20+Y28 -> 10654554 | AA30: =S30-Y30 -> -20538426
I31: =C31+E31+G31 -> 0 | K31: 全国通運 | L31: 郵送料 | N31: 640 | O31: 郵便料 | P31: 826430
A32: =A14 -> 下期(21/05) | I32: =C32+E32+G32 -> 0 | K32: 全国通運 | L32: A4ｶｯﾄ紙 | O32: 用紙代 | P32: 826730 | Q32: =IF(LEFT(P34,1)="3","原","") -> 
I33: =C33+E33+G33 -> 0 | K33: 全国通運 | L33: 全通VPN料金（NTT） | N33: 21120 | O33: 雑費 | P33: 827900 | Q33: =IF(LEFT(P35,1)="3","原","") -> 
I34: =C34+E34+G34 -> 0 | K34: 全国通運 | L34: 全通VPN料金（専用線） | O34: 雑費 | P34: 827900 | Q34: =IF(LEFT(P36,1)="3","原","") -> 
B35: 計 | C35: =SUM(C30:C34) -> 2986830 | D35: 計 | E35: =SUM(E30:E34) -> 0 | F35: 計 | G35: =SUM(G30:G34) -> 0 | H35: =SUM(H30:H34) -> 116411 | I35: =SUM(C35:H35) -> 3103241 | J35: =I35-H35 -> 2986830 | K35: 全国通運 | L35: 情報ｼｽﾃﾑ開発料金 | N35: 7700 | O35: 雑費 | P35: 827900 | Q35: =IF(LEFT(P37,1)="3","原","") -> 
K36: 全国通運 | L36: 情報ｼｽﾃﾑ基本料金 | N36: 12951 | O36: 雑費 | P36: 827900 | Q36: =IF(LEFT(P38,1)="3","原","") -> 
K37: 全国通運 | L37: 通風コンテナ | O37: 雑費 | P37: 827900
A38: 合計 | C38: =C28+C35 -> 14414625 | E38: =E28+E35 -> 0 | G38: =G28+G35 -> 0 | H38: =H28+H35 -> 143386 | I38: =I28+I35 -> 14558011 | J38: =I38-H38 -> 14414625 | K38: 運送保証協会 | L38: 保証料(JR分) | N38: 34050 | O38: 雑費 | P38: 827900
D39: 前途金 | E39: 仮払金 | K39: 運送保証協会 | L39: 保証料(神奈川臨海分） | N39: 50 | O39: 雑費 | P39: 827900
A40: 他店貸,借A/C差額(上期) | C40: =I40-M42 -> 11011555 | E40: =C40-D40 -> 11011555 | H40: 上期交計尻未払金 | I40: =I28-H10 -> 11038530 | K40: =+K3 -> 2021-05-01 | L40: 計 | M40: =SUM(M5:M39) -> 26975 | N40: =SUM(N5:N39) -> 116411
A41: 他店貸,借A/C差額(下期) | C41: =I41-N42 -> 2908950 | E41: =C41+D41-J6 -> 2908950 | H41: 下期交計尻未払金 | I41: =I35-H16 -> 3025361 | M41: 仮払金 | N41: 仮払金
K42: =K40 -> 2021-05-01 | L42: 合 計 | M42: =M40 -> 26975 | N42: =N40 -> 116411
H43: 上期 | I43: =I40+M47 -> 11040794.9
H44: 下期 | I44: =I41+N47 -> 3025894.5 | M44: 計算料（雑費） | N44: 計算料（雑費）
M45: 2059 | N45: 485
M46: =M45*0.1 -> 205.9 | N46: =N45*0.1 -> 48.5 | O46: ※2019年9月下期より消費税10%
M47: =M45+M46 -> 2264.9 | N47: =N45+N46 -> 533.5

Sheet 21.06
A3: 2021-06-01 | B3: 交計受取勘定 | K3: =+A3 -> 2021-06-01 | L3: 交計業務経費(A表) | M3: (上期) | N3: (下期) | S3: =EOMONTH(A3,1) -> 2021-07-31 | T3: 全国通運圧縮対象計上額一覧
B4: ｺﾝﾃﾅ-配達料 | D4: ｺﾝﾃﾅ-配達料 | F4: ｺﾝﾃﾅ-配達料 | K4: 支払先 | L4: 内 容 | M4: 被請求金額 | N4: 被請求金額 | S4: 買掛金 | U4: 仮払金 | W4: 売掛金 | Y4: 貸方計 | AA4: 差額
A5: 決済日 | B5: 請求先 | C5: 金額 | D5: =+B5 -> 請求先 | E5: 金額 | F5: =+D5 -> 請求先 | G5: 金額 | H5: 合計 | K5: 輸送新聞社 | L5: 購読料 | M5: 1975 | O5: 図書費 | P5: 826780 | Q5: =IF(LEFT(P5,1)="3","原","") -> 
B6: 中京通運他 | C6: 749100 | H6: =C6+E6+G6 -> 749100 | K6: 輸送新聞社 | L6: 送料 | O6: 郵便料 | P6: 826430 | Q6: =IF(LEFT(P6,1)="3","原","") ->  | R6: 繰越 | S6: =INDIRECT(IF(MONTH(A3)=1,RIGHT(YEAR(A3)-1,2)&".12",RIGHT(YEAR(A3),2)&"."&TEXT(MONTH(A3)-1,"00"))&"!AA30") -> -20538426
H7: =C7+E7+G7 -> 0 | K7: 交通日本社 | L7: 通運業者名簿追録 | O7: 図書費 | P7: 826780 | R7: =MONTH(A3) -> 6 | S7: 8597500 | U7: 2432000 | W7: 278520
A8: ="上期("&TEXT(A3,"YY")&"/"&TEXT(A3,"MM")&")" -> 上期(21/06) | H8: =C8+E8+G8 -> 0 | K8: 交通日本社 | L8: 送料 | O8: 郵便料 | P8: 826430 | S8: 5194530 | U8: 9022449
H9: =C9+E9+G9 -> 0 | K9: 通運新聞社 | L9: 購読料 | O9: 図書費 | P9: 826780 | U9: 2421210
B10: 計 | C10: =SUM(C6:C9) -> 749100 | D10: 計 | E10: =SUM(E6:E9) -> 0 | F10: 計 | G10: =SUM(G6:G9) -> 0 | H10: =SUM(H6:H9) -> 749100 | K10: 通運新聞社 | L10: 郵送料 | O10: 郵便料 | P10: 826430
K11: 通運情報社 | L11: 購読料 | O11: 図書費 | P11: 826780
B12: 中京通運 他 | C12: 140140 | H12: =C12+E12+G12 -> 140140 | K12: 運輸世界新聞社 | L12: 購読料 | O12: 図書費 | P12: 826780
B13: 保証預り金利子 | H13: =C13+E13+G13 -> 0 | K13: 運輸図書 | L13: ｺﾝﾃﾅ貨物集配便覧追補 | O13: 図書費 | P13: 826780
A14: ="下期("&TEXT(A3,"YY")&"/"&TEXT(A3,"MM")&")" -> 下期(21/06) | H14: =C14+E14+G14 -> 0 | K14: 運輸図書 | L14: 送料 | O14: 郵便料 | P14: 826430
H15: =C15+E15+G15 -> 0 | K15: 全国通運業連合会 | L15: 全国大会会費 | O15: 会費加入 | P15: 826910
B16: 計 | C16: =SUM(C12:C15) -> 140140 | D16: 計 | E16: =SUM(E12:E15) -> 0 | F16: 計 | G16: =SUM(G12:G15) -> 0 | H16: =SUM(H12:H15) -> 140140 | K16: 全国通運業連合会 | L16: 懇親会会費 | O16: 交際費 | P16: 826800
K17: 関東通運業連合会 | L17: ｺﾝﾃﾅ委員会会費 | O17: 会費加入 | P17: 826910
K18: 関東通運業連合会 | L18: 東名大通友会会費 | O18: 会費加入 | P18: 826910
A19: 合計 | C19: =C10+C16 -> 889240 | E19: =E10+E16 -> 0 | G19: =G10+G16 -> 0 | H19: =H10+H16 -> 889240 | K19: 関東通運業連合会 | L19: 会費 | N19: 39900 | O19: 会費加入 | P19: 826910
K20: 中部通運業連合会 | L20: 東名大通友会会費 | O20: 会費加入 | P20: 826910 | Q20: =IF(LEFT(P21,1)="3","原","") ->  | S20: =SUM(S7:S19) -> 13792030 | U20: =SUM(U6:U19) -> 13875659 | W20: =SUM(W6:W19) -> 278520 | Y20: =U20+W20 -> 14154179 | AA20: =S20-Y20 -> -362149
A21: =+A3 -> 2021-06-01 | B21: 交計支払勘定 | K21: 日本通運(横浜) | L21: 鉄道貨物利用運送会費 | O21: 会費加入 | P21: 826910 | U21: 事故費 | W21: その他
B22: ｺﾝﾃﾅ-着店借 | D22: ｺﾝﾃﾅ-着店借 | F22: ｺﾝﾃﾅ-着店借 | H22: 業務経費 | K22: 日本通運(横浜) | L22: 神奈川県通運会費 | O22: 会費加入 | P22: 826910
A23: 決済日 | B23: 配送依頼先 | C23: 金額 | D23: =+B23 -> 配送依頼先 | E23: 金額 | F23: =+D23 -> 配送依頼先 | G23: 金額 | H23: (A)表 | I23: 合計 | K23: 日本通運(横浜) | L23: 通運業界臨時会費 | O23: 会費加入 | P23: 826910
B24: 日本通運他 | C24: 7012866 | H24: =M42 -> 26975 | I24: =C24+E24+G24+H24 -> 7039841 | K24: 博多港運 | L24: 九州会会費 | O24: 会費加入 | P24: 826910
I25: =C25+E25+G25 -> 0 | K25: 札幌通運 | L25: 北海道会費 | O25: 会費加入 | P25: 826910
A26: =A8 -> 上期(21/06) | I26: =C26+E26+G26 -> 0 | K26: 仙台運送 | L26: みちのく会費 | O26: 会費加入 | P26: 826910
I27: =C27+E27+G27 -> 0 | K27: 仙台運送 | L27: みちのく会 特別会費 | O27: 交際費 | P27: 826800
B28: 計 | C28: =SUM(C24:C27) -> 7012866 | D28: 計 | E28: =SUM(E24:E27) -> 0 | F28: 計 | G28: =SUM(G24:G27) -> 0 | H28: =SUM(H24:H27) -> 26975 | I28: =SUM(I24:I27) -> 7039841 | J28: =I28-H28 -> 7012866 | K28: 川崎運送 | L28: 会費 | M28: 25000 | O28: 会費加入 | P28: 826910 | S28: =SUM(S22:S26) -> 0 | U28: =SUM(U22:U26) -> 0 | W28: =SUM(W22:W26) -> 0 | Y28: =U28+W28 -> 0
K29: 丸全昭和運輸 | L29: 事務所清掃代 | O29: 雑費 | P29: 827900 | AA29: 翌月繰越
B30: 日本通運 他 | C30: 2561350 | H30: =N42 -> 111971 | I30: =C30+E30+G30+H30 -> 2673321 | K30: 丸全昭和運輸 | L30: 全通神奈川連絡会費 | O30: 会費加入 | P30: 826910 | S30: =S6+S20+S28 -> -6746396 | U30: =U20+U28 -> 13875659 | W30: =W20+W28 -> 278520 | Y30: =Y20+Y28 -> 14154179 | AA30: =S30-Y30 -> -20900575
I31: =C31+E31+G31 -> 0 | K31: 全国通運 | L31: 郵送料 | N31: 640 | O31: 郵便料 | P31: 826430
A32: =A14 -> 下期(21/06) | I32: =C32+E32+G32 -> 0 | K32: 全国通運 | L32: A4ｶｯﾄ紙 | O32: 用紙代 | P32: 826730 | Q32: =IF(LEFT(P34,1)="3","原","") -> 
I33: =C33+E33+G33 -> 0 | K33: 全国通運 | L33: 全通VPN料金（NTT） | N33: 21120 | O33: 雑費 | P33: 827900 | Q33: =IF(LEFT(P35,1)="3","原","") -> 
I34: =C34+E34+G34 -> 0 | K34: 全国通運 | L34: 全通VPN料金（専用線） | O34: 雑費 | P34: 827900 | Q34: =IF(LEFT(P36,1)="3","原","") -> 
B35: 計 | C35: =SUM(C30:C34) -> 2561350 | D35: 計 | E35: =SUM(E30:E34) -> 0 | F35: 計 | G35: =SUM(G30:G34) -> 0 | H35: =SUM(H30:H34) -> 111971 | I35: =SUM(C35:H35) -> 2673321 | J35: =I35-H35 -> 2561350 | K35: 全国通運 | L35: 情報ｼｽﾃﾑ開発料金 | N35: 7700 | O35: 雑費 | P35: 827900 | Q35: =IF(LEFT(P37,1)="3","原","") -> 
K36: 全国通運 | L36: 情報ｼｽﾃﾑ基本料金 | N36: 12951 | O36: 雑費 | P36: 827900 | Q36: =IF(LEFT(P38,1)="3","原","") -> 
K37: 全国通運 | L37: 通風コンテナ | O37: 雑費 | P37: 827900
A38: 合計 | C38: =C28+C35 -> 9574216 | E38: =E28+E35 -> 0 | G38: =G28+G35 -> 0 | H38: =H28+H35 -> 138946 | I38: =I28+I35 -> 9713162 | J38: =I38-H38 -> 9574216 | K38: 運送保証協会 | L38: 保証料(JR分) | N38: 29570 | O38: 雑費 | P38: 827900
D39: 前途金 | E39: 仮払金 | K39: 運送保証協会 | L39: 保証料(神奈川臨海分） | N39: 90 | O39: 雑費 | P39: 827900
A40: 他店貸,借A/C差額(上期) | C40: =I40-M42 -> 6263766 | D40: 1963000 | E40: =C40-D40 -> 4300766 | H40: 上期交計尻未払金 | I40: =I28-H10 -> 6290741 | K40: =+K3 -> 2021-06-01 | L40: 計 | M40: =SUM(M5:M39) -> 26975 | N40: =SUM(N5:N39) -> 111971
A41: 他店貸,借A/C差額(下期) | C41: =I41-N42 -> 2421210 | E41: =C41+D41-J6 -> 2421210 | H41: 下期交計尻未払金 | I41: =I35-H16 -> 2533181 | M41: 仮払金 | N41: 仮払金
K42: =K40 -> 2021-06-01 | L42: 合 計 | M42: =M40 -> 26975 | N42: =N40 -> 111971
H43: 上期 | I43: =I40+M47 -> 6294354.5
H44: 下期 | I44: =I41+N47 -> 2534110.5 | M44: 計算料（雑費） | N44: 計算料（雑費）
M45: 3285 | N45: 845
M46: =M45*0.1 -> 328.5 | N46: =N45*0.1 -> 84.5 | O46: ※2019年9月下期より消費税10%
M47: =M45+M46 -> 3613.5 | N47: =N45+N46 -> 929.5

Sheet 21.07
A3: 2021-07-01 | B3: 交計受取勘定 | K3: =+A3 -> 2021-07-01 | L3: 交計業務経費(A表) | M3: (上期) | N3: (下期) | S3: =EOMONTH(A3,1) -> 2021-08-31 | T3: 全国通運圧縮対象計上額一覧
B4: ｺﾝﾃﾅ-配達料 | D4: ｺﾝﾃﾅ-配達料 | F4: ｺﾝﾃﾅ-配達料 | K4: 支払先 | L4: 内 容 | M4: 被請求金額 | N4: 被請求金額 | S4: 買掛金 | U4: 仮払金 | W4: 売掛金 | Y4: 貸方計 | AA4: 差額
A5: 決済日 | B5: 請求先 | C5: 金額 | D5: =+B5 -> 請求先 | E5: 金額 | F5: =+D5 -> 請求先 | G5: 金額 | H5: 合計 | K5: 輸送新聞社 | L5: 購読料 | M5: 1975 | O5: 図書費 | P5: 826780 | Q5: =IF(LEFT(P5,1)="3","原","") -> 
B6: 中京通運他 | C6: 736208 | H6: =C6+E6+G6 -> 736208 | K6: 輸送新聞社 | L6: 送料 | O6: 郵便料 | P6: 826430 | Q6: =IF(LEFT(P6,1)="3","原","") ->  | R6: 繰越 | S6: =INDIRECT(IF(MONTH(A3)=1,RIGHT(YEAR(A3)-1,2)&".12",RIGHT(YEAR(A3),2)&"."&TEXT(MONTH(A3)-1,"00"))&"!AA30") -> -20900575
H7: =C7+E7+G7 -> 0 | K7: 交通日本社 | L7: 通運業者名簿追録 | O7: 図書費 | P7: 826780 | R7: =MONTH(A3) -> 7 | S7: 4470070 | U7: 7260859 | W7: 6710
A8: ="上期("&TEXT(A3,"YY")&"/"&TEXT(A3,"MM")&")" -> 上期(21/07) | H8: =C8+E8+G8 -> 0 | K8: 交通日本社 | L8: 送料 | O8: 郵便料 | P8: 826430 | S8: 8052273 | U8: 2798840 | W8: 197670
H9: =C9+E9+G9 -> 0 | K9: 通運新聞社 | L9: 購読料 | O9: 図書費 | P9: 826780 | U9: 1735000 | W9: 6188
B10: 計 | C10: =SUM(C6:C9) -> 736208 | D10: 計 | E10: =SUM(E6:E9) -> 0 | F10: 計 | G10: =SUM(G6:G9) -> 0 | H10: =SUM(H6:H9) -> 736208 | K10: 通運新聞社 | L10: 郵送料 | O10: 郵便料 | P10: 826430
K11: 通運情報社 | L11: 購読料 | O11: 図書費 | P11: 826780
B12: 中京通運 他 | C12: 172040 | H12: =C12+E12+G12 -> 172040 | K12: 運輸世界新聞社 | L12: 購読料 | O12: 図書費 | P12: 826780
B13: 保証預り金利子 | H13: =C13+E13+G13 -> 0 | K13: 運輸図書 | L13: ｺﾝﾃﾅ貨物集配便覧追補 | O13: 図書費 | P13: 826780
A14: ="下期("&TEXT(A3,"YY")&"/"&TEXT(A3,"MM")&")" -> 下期(21/07) | H14: =C14+E14+G14 -> 0 | K14: 運輸図書 | L14: 送料 | O14: 郵便料 | P14: 826430
H15: =C15+E15+G15 -> 0 | K15: 全国通運業連合会 | L15: 全国大会会費 | O15: 会費加入 | P15: 826910
B16: 計 | C16: =SUM(C12:C15) -> 172040 | D16: 計 | E16: =SUM(E12:E15) -> 0 | F16: 計 | G16: =SUM(G12:G15) -> 0 | H16: =SUM(H12:H15) -> 172040 | K16: 全国通運業連合会 | L16: 懇親会会費 | O16: 交際費 | P16: 826800
K17: 関東通運業連合会 | L17: ｺﾝﾃﾅ委員会会費 | O17: 会費加入 | P17: 826910
K18: 関東通運業連合会 | L18: 東名大通友会会費 | O18: 会費加入 | P18: 826910
A19: 合計 | C19: =C10+C16 -> 908248 | E19: =E10+E16 -> 0 | G19: =G10+G16 -> 0 | H19: =H10+H16 -> 908248 | K19: 関東通運業連合会 | L19: 会費 | N19: 39900 | O19: 会費加入 | P19: 826910
K20: 中部通運業連合会 | L20: 東名大通友会会費 | O20: 会費加入 | P20: 826910 | Q20: =IF(LEFT(P21,1)="3","原","") ->  | S20: =SUM(S7:S19) -> 12522343 | U20: =SUM(U6:U19) -> 11794699 | W20: =SUM(W6:W19) -> 210568 | Y20: =U20+W20 -> 12005267 | AA20: =S20-Y20 -> 517076
A21: =+A3 -> 2021-07-01 | B21: 交計支払勘定 | K21: 日本通運(横浜) | L21: 鉄道貨物利用運送会費 | O21: 会費加入 | P21: 826910 | U21: 事故費 | W21: その他
B22: ｺﾝﾃﾅ-着店借 | D22: ｺﾝﾃﾅ-着店借 | F22: ｺﾝﾃﾅ-着店借 | H22: 業務経費 | K22: 日本通運(横浜) | L22: 神奈川県通運会費 | O22: 会費加入 | P22: 826910
A23: 決済日 | B23: 配送依頼先 | C23: 金額 | D23: =+B23 -> 配送依頼先 | E23: 金額 | F23: =+D23 -> 配送依頼先 | G23: 金額 | H23: (A)表 | I23: 合計 | K23: 日本通運(横浜) | L23: 通運業界臨時会費 | O23: 会費加入 | P23: 826910
B24: 日本通運他 | C24: 12320657 | H24: =M42 -> 26975 | I24: =C24+E24+G24+H24 -> 12347632 | K24: 博多港運 | L24: 九州会会費 | O24: 会費加入 | P24: 826910
I25: =C25+E25+G25 -> 0 | K25: 札幌通運 | L25: 北海道会費 | O25: 会費加入 | P25: 826910
A26: =A8 -> 上期(21/07) | I26: =C26+E26+G26 -> 0 | K26: 仙台運送 | L26: みちのく会費 | O26: 会費加入 | P26: 826910
I27: =C27+E27+G27 -> 0 | K27: 仙台運送 | L27: みちのく会 特別会費 | O27: 交際費 | P27: 826800
B28: 計 | C28: =SUM(C24:C27) -> 12320657 | D28: 計 | E28: =SUM(E24:E27) -> 0 | F28: 計 | G28: =SUM(G24:G27) -> 0 | H28: =SUM(H24:H27) -> 26975 | I28: =SUM(I24:I27) -> 12347632 | J28: =I28-H28 -> 12320657 | K28: 川崎運送 | L28: 会費 | M28: 25000 | O28: 会費加入 | P28: 826910 | S28: =SUM(S22:S26) -> 0 | U28: =SUM(U22:U26) -> 0 | W28: =SUM(W22:W26) -> 0 | Y28: =U28+W28 -> 0
K29: 丸全昭和運輸 | L29: 事務所清掃代 | O29: 雑費 | P29: 827900 | AA29: 翌月繰越
B30: 日本通運 他 | C30: 2970880 | H30: =N42 -> 107941 | I30: =C30+E30+G30+H30 -> 3078821 | K30: 丸全昭和運輸 | L30: 全通神奈川連絡会費 | O30: 会費加入 | P30: 826910 | S30: =S6+S20+S28 -> -8378232 | U30: =U20+U28 -> 11794699 | W30: =W20+W28 -> 210568 | Y30: =Y20+Y28 -> 12005267 | AA30: =S30-Y30 -> -20383499
I31: =C31+E31+G31 -> 0 | K31: 全国通運 | L31: 郵送料 | N31: 640 | O31: 郵便料 | P31: 826430
A32: =A14 -> 下期(21/07) | I32: =C32+E32+G32 -> 0 | K32: 全国通運 | L32: A4ｶｯﾄ紙 | O32: 用紙代 | P32: 826730 | Q32: =IF(LEFT(P34,1)="3","原","") -> 
I33: =C33+E33+G33 -> 0 | K33: 全国通運 | L33: 全通VPN料金（NTT） | N33: 21120 | O33: 雑費 | P33: 827900 | Q33: =IF(LEFT(P35,1)="3","原","") -> 
I34: =C34+E34+G34 -> 0 | K34: 全国通運 | L34: 全通VPN料金（専用線） | O34: 雑費 | P34: 827900 | Q34: =IF(LEFT(P36,1)="3","原","") -> 
B35: 計 | C35: =SUM(C30:C34) -> 2970880 | D35: 計 | E35: =SUM(E30:E34) -> 0 | F35: 計 | G35: =SUM(G30:G34) -> 0 | H35: =SUM(H30:H34) -> 107941 | I35: =SUM(C35:H35) -> 3078821 | J35: =I35-H35 -> 2970880 | K35: 全国通運 | L35: 情報ｼｽﾃﾑ開発料金 | N35: 7700 | O35: 雑費 | P35: 827900 | Q35: =IF(LEFT(P37,1)="3","原","") -> 
K36: 全国通運 | L36: 情報ｼｽﾃﾑ基本料金 | N36: 12951 | O36: 雑費 | P36: 827900 | Q36: =IF(LEFT(P38,1)="3","原","") -> 
K37: 全国通運 | L37: 通風コンテナ | O37: 雑費 | P37: 827900
A38: 合計 | C38: =C28+C35 -> 15291537 | E38: =E28+E35 -> 0 | G38: =G28+G35 -> 0 | H38: =H28+H35 -> 134916 | I38: =I28+I35 -> 15426453 | J38: =I38-H38 -> 15291537 | K38: 運送保証協会 | L38: 保証料(JR分) | N38: 25560 | O38: 雑費 | P38: 827900
D39: 前途金 | E39: 仮払金 | K39: 運送保証協会 | L39: 保証料(神奈川臨海分） | N39: 70 | O39: 雑費 | P39: 827900
A40: 他店貸,借A/C差額(上期) | C40: =I40-M42 -> 11584449 | D40: 2562000 | E40: =C40-D40 -> 9022449 | H40: 上期交計尻未払金 | I40: =I28-H10 -> 11611424 | K40: =+K3 -> 2021-07-01 | L40: 計 | M40: =SUM(M5:M39) -> 26975 | N40: =SUM(N5:N39) -> 107941
A41: 他店貸,借A/C差額(下期) | C41: =I41-N42 -> 2798840 | E41: =C41+D41-J6 -> 2798840 | H41: 下期交計尻未払金 | I41: =I35-H16 -> 2906781 | M41: 仮払金 | N41: 仮払金
K42: =K40 -> 2021-07-01 | L42: 合 計 | M42: =M40 -> 26975 | N42: =N40 -> 107941
H43: 上期 | I43: =I40+M47 -> 11615004.5
H44: 下期 | I44: =I41+N47 -> 2907875.5 | M44: 計算料（雑費） | N44: 計算料（雑費）
M45: 3255 | N45: 995
M46: =M45*0.1 -> 325.5 | N46: =N45*0.1 -> 99.5 | O46: ※2019年9月下期より消費税10%
M47: =M45+M46 -> 3580.5 | N47: =N45+N46 -> 1094.5

Sheet 21.08
A3: 2021-08-01 | B3: 交計受取勘定 | K3: =+A3 -> 2021-08-01 | L3: 交計業務経費(A表) | M3: (上期) | N3: (下期) | S3: =EOMONTH(A3,1) -> 2021-09-30 | T3: 全国通運圧縮対象計上額一覧
B4: ｺﾝﾃﾅ-配達料 | D4: ｺﾝﾃﾅ-配達料 | F4: ｺﾝﾃﾅ-配達料 | K4: 支払先 | L4: 内 容 | M4: 被請求金額 | N4: 被請求金額 | S4: 買掛金 | U4: 仮払金 | W4: 売掛金 | Y4: 貸方計 | AA4: 差額
A5: 決済日 | B5: 請求先 | C5: 金額 | D5: =+B5 -> 請求先 | E5: 金額 | F5: =+D5 -> 請求先 | G5: 金額 | H5: 合計 | K5: 輸送新聞社 | L5: 購読料 | M5: 1975 | O5: 図書費 | P5: 826780 | Q5: =IF(LEFT(P5,1)="3","原","") -> 
B6: 中京通運他 | C6: 85030 | H6: =C6+E6+G6 -> 85030 | K6: 輸送新聞社 | L6: 送料 | O6: 郵便料 | P6: 826430 | Q6: =IF(LEFT(P6,1)="3","原","") ->  | R6: 繰越 | S6: =INDIRECT(IF(MONTH(A3)=1,RIGHT(YEAR(A3)-1,2)&".12",RIGHT(YEAR(A3),2)&"."&TEXT(MONTH(A3)-1,"00"))&"!AA30") -> -20383499
H7: =C7+E7+G7 -> 0 | K7: 交通日本社 | L7: 通運業者名簿追録 | O7: 図書費 | P7: 826780 | R7: =MONTH(A3) -> 8 | S7: 5720116 | U7: 4573722 | W7: 123640
A8: ="上期("&TEXT(A3,"YY")&"/"&TEXT(A3,"MM")&")" -> 上期(21/08) | H8: =C8+E8+G8 -> 0 | K8: 交通日本社 | L8: 送料 | O8: 郵便料 | P8: 826430 | S8: 4480080 | U8: 2719392 | W8: 21780
H9: =C9+E9+G9 -> 0 | K9: 通運新聞社 | L9: 購読料 | O9: 図書費 | P9: 826780 | U9: 2287000 | W9: 125180
B10: 計 | C10: =SUM(C6:C9) -> 85030 | D10: 計 | E10: =SUM(E6:E9) -> 0 | F10: 計 | G10: =SUM(G6:G9) -> 0 | H10: =SUM(H6:H9) -> 85030 | K10: 通運新聞社 | L10: 郵送料 | O10: 郵便料 | P10: 826430
K11: 通運情報社 | L11: 購読料 | O11: 図書費 | P11: 826780
B12: 中京通運 他 | C12: 121358 | H12: =C12+E12+G12 -> 121358 | K12: 運輸世界新聞社 | L12: 購読料 | O12: 図書費 | P12: 826780
B13: 保証預り金利子 | H13: =C13+E13+G13 -> 0 | K13: 運輸図書 | L13: ｺﾝﾃﾅ貨物集配便覧追補 | O13: 図書費 | P13: 826780
A14: ="下期("&TEXT(A3,"YY")&"/"&TEXT(A3,"MM")&")" -> 下期(21/08) | H14: =C14+E14+G14 -> 0 | K14: 運輸図書 | L14: 送料 | O14: 郵便料 | P14: 826430
H15: =C15+E15+G15 -> 0 | K15: 全国通運業連合会 | L15: 全国大会会費 | O15: 会費加入 | P15: 826910
B16: 計 | C16: =SUM(C12:C15) -> 121358 | D16: 計 | E16: =SUM(E12:E15) -> 0 | F16: 計 | G16: =SUM(G12:G15) -> 0 | H16: =SUM(H12:H15) -> 121358 | K16: 全国通運業連合会 | L16: 懇親会会費 | O16: 交際費 | P16: 826800
K17: 関東通運業連合会 | L17: ｺﾝﾃﾅ委員会会費 | O17: 会費加入 | P17: 826910
K18: 関東通運業連合会 | L18: 東名大通友会会費 | O18: 会費加入 | P18: 826910
A19: 合計 | C19: =C10+C16 -> 206388 | E19: =E10+E16 -> 0 | G19: =G10+G16 -> 0 | H19: =H10+H16 -> 206388 | K19: 関東通運業連合会 | L19: 会費 | N19: 39900 | O19: 会費加入 | P19: 826910
K20: 中部通運業連合会 | L20: 東名大通友会会費 | O20: 会費加入 | P20: 826910 | Q20: =IF(LEFT(P21,1)="3","原","") ->  | S20: =SUM(S7:S19) -> 10200196 | U20: =SUM(U6:U19) -> 9580114 | W20: =SUM(W6:W19) -> 270600 | Y20: =U20+W20 -> 9850714 | AA20: =S20-Y20 -> 349482
A21: =+A3 -> 2021-08-01 | B21: 交計支払勘定 | K21: 日本通運(横浜) | L21: 鉄道貨物利用運送会費 | O21: 会費加入 | P21: 826910 | U21: 事故費 | W21: その他
B22: ｺﾝﾃﾅ-着店借 | D22: ｺﾝﾃﾅ-着店借 | F22: ｺﾝﾃﾅ-着店借 | H22: 業務経費 | K22: 日本通運(横浜) | L22: 神奈川県通運会費 | O22: 会費加入 | P22: 826910
A23: 決済日 | B23: 配送依頼先 | C23: 金額 | D23: =+B23 -> 配送依頼先 | E23: 金額 | F23: =+D23 -> 配送依頼先 | G23: 金額 | H23: (A)表 | I23: 合計 | K23: 日本通運(横浜) | L23: 通運業界臨時会費 | O23: 会費加入 | P23: 826910
B24: 日本通運他 | C24: 9777889 | H24: =M42 -> 26975 | I24: =C24+E24+G24+H24 -> 9804864 | K24: 博多港運 | L24: 九州会会費 | O24: 会費加入 | P24: 826910
I25: =C25+E25+G25 -> 0 | K25: 札幌通運 | L25: 北海道会費 | O25: 会費加入 | P25: 826910
A26: =A8 -> 上期(21/08) | I26: =C26+E26+G26 -> 0 | K26: 仙台運送 | L26: みちのく会費 | O26: 会費加入 | P26: 826910
I27: =C27+E27+G27 -> 0 | K27: 仙台運送 | L27: みちのく会 特別会費 | O27: 交際費 | P27: 826800
B28: 計 | C28: =SUM(C24:C27) -> 9777889 | D28: 計 | E28: =SUM(E24:E27) -> 0 | F28: 計 | G28: =SUM(G24:G27) -> 0 | H28: =SUM(H24:H27) -> 26975 | I28: =SUM(I24:I27) -> 9804864 | J28: =I28-H28 -> 9777889 | K28: 川崎運送 | L28: 会費 | M28: 25000 | O28: 会費加入 | P28: 826910 | S28: =SUM(S22:S26) -> 0 | U28: =SUM(U22:U26) -> 0 | W28: =SUM(W22:W26) -> 0 | Y28: =U28+W28 -> 0
K29: 丸全昭和運輸 | L29: 事務所清掃代 | O29: 雑費 | P29: 827900 | AA29: 翌月繰越
B30: 日本通運 他 | C30: 2840750 | H30: =N42 -> 109051 | I30: =C30+E30+G30+H30 -> 2949801 | K30: 丸全昭和運輸 | L30: 全通神奈川連絡会費 | O30: 会費加入 | P30: 826910 | S30: =S6+S20+S28 -> -10183303 | U30: =U20+U28 -> 9580114 | W30: =W20+W28 -> 270600 | Y30: =Y20+Y28 -> 9850714 | AA30: =S30-Y30 -> -20034017
I31: =C31+E31+G31 -> 0 | K31: 全国通運 | L31: 郵送料 | N31: 640 | O31: 郵便料 | P31: 826430
A32: =A14 -> 下期(21/08) | I32: =C32+E32+G32 -> 0 | K32: 全国通運 | L32: A4ｶｯﾄ紙 | O32: 用紙代 | P32: 826730 | Q32: =IF(LEFT(P34,1)="3","原","") -> 
I33: =C33+E33+G33 -> 0 | K33: 全国通運 | L33: 全通VPN料金（NTT） | N33: 21120 | O33: 雑費 | P33: 827900 | Q33: =IF(LEFT(P35,1)="3","原","") -> 
I34: =C34+E34+G34 -> 0 | K34: 全国通運 | L34: 全通VPN料金（専用線） | O34: 雑費 | P34: 827900 | Q34: =IF(LEFT(P36,1)="3","原","") -> 
B35: 計 | C35: =SUM(C30:C34) -> 2840750 | D35: 計 | E35: =SUM(E30:E34) -> 0 | F35: 計 | G35: =SUM(G30:G34) -> 0 | H35: =SUM(H30:H34) -> 109051 | I35: =SUM(C35:H35) -> 2949801 | J35: =I35-H35 -> 2840750 | K35: 全国通運 | L35: 情報ｼｽﾃﾑ開発料金 | N35: 7700 | O35: 雑費 | P35: 827900 | Q35: =IF(LEFT(P37,1)="3","原","") -> 
K36: 全国通運 | L36: 情報ｼｽﾃﾑ基本料金 | N36: 12951 | O36: 雑費 | P36: 827900 | Q36: =IF(LEFT(P38,1)="3","原","") -> 
K37: 全国通運 | L37: 通風コンテナ | O37: 雑費 | P37: 827900
A38: 合計 | C38: =C28+C35 -> 12618639 | E38: =E28+E35 -> 0 | G38: =G28+G35 -> 0 | H38: =H28+H35 -> 136026 | I38: =I28+I35 -> 12754665 | J38: =I38-H38 -> 12618639 | K38: 運送保証協会 | L38: 保証料(JR分) | N38: 26630 | O38: 雑費 | P38: 827900
D39: 前途金 | E39: 仮払金 | K39: 運送保証協会 | L39: 保証料(神奈川臨海分） | N39: 110 | O39: 雑費 | P39: 827900
A40: 他店貸,借A/C差額(上期) | C40: =I40-M42 -> 9692859 | D40: 2432000 | E40: =C40-D40 -> 7260859 | H40: 上期交計尻未払金 | I40: =I28-H10 -> 9719834 | K40: =+K3 -> 2021-08-01 | L40: 計 | M40: =SUM(M5:M39) -> 26975 | N40: =SUM(N5:N39) -> 109051
A41: 他店貸,借A/C差額(下期) | C41: =I41-N42 -> 2719392 | E41: =C41+D41-J6 -> 2719392 | H41: 下期交計尻未払金 | I41: =I35-H16 -> 2828443 | M41: 仮払金 | N41: 仮払金
K42: =K40 -> 2021-08-01 | L42: 合 計 | M42: =M40 -> 26975 | N42: =N40 -> 109051
H43: 上期 | I43: =I40+M47 -> 9720428
H44: 下期 | I44: =I41+N47 -> 2829262.5 | M44: 計算料（雑費） | N44: 計算料（雑費）
M45: 540 | N45: 745
M46: =M45*0.1 -> 54 | N46: =N45*0.1 -> 74.5 | O46: ※2019年9月下期より消費税10%
M47: =M45+M46 -> 594 | N47: =N45+N46 -> 819.5

Sheet 21.09
A3: 2021-09-01 | B3: 交計受取勘定 | K3: =+A3 -> 2021-09-01 | L3: 交計業務経費(A表) | M3: (上期) | N3: (下期) | S3: =EOMONTH(A3,1) -> 2021-10-31 | T3: 全国通運圧縮対象計上額一覧
B4: ｺﾝﾃﾅ-配達料 | D4: ｺﾝﾃﾅ-配達料 | F4: ｺﾝﾃﾅ-配達料 | K4: 支払先 | L4: 内 容 | M4: 被請求金額 | N4: 被請求金額 | S4: 買掛金 | U4: 仮払金 | W4: 売掛金 | Y4: 貸方計 | AA4: 差額
A5: 決済日 | B5: 請求先 | C5: 金額 | D5: =+B5 -> 請求先 | E5: 金額 | F5: =+D5 -> 請求先 | G5: 金額 | H5: 合計 | K5: 輸送新聞社 | L5: 購読料 | M5: 1975 | O5: 図書費 | P5: 826780 | Q5: =IF(LEFT(P5,1)="3","原","") -> 
B6: 中京通運他 | C6: 80520 | H6: =C6+E6+G6 -> 80520 | K6: 輸送新聞社 | L6: 送料 | O6: 郵便料 | P6: 826430 | Q6: =IF(LEFT(P6,1)="3","原","") ->  | R6: 繰越 | S6: =INDIRECT(IF(MONTH(A3)=1,RIGHT(YEAR(A3)-1,2)&".12",RIGHT(YEAR(A3),2)&"."&TEXT(MONTH(A3)-1,"00"))&"!AA30") -> -20034017
H7: =C7+E7+G7 -> 0 | K7: 交通日本社 | L7: 通運業者名簿追録 | O7: 図書費 | P7: 826780 | R7: =MONTH(A3) -> 9 | S7: 4962870 | U7: 1999910 | W7: 266970
A8: ="上期("&TEXT(A3,"YY")&"/"&TEXT(A3,"MM")&")" -> 上期(21/09) | H8: =C8+E8+G8 -> 0 | K8: 交通日本社 | L8: 送料 | O8: 郵便料 | P8: 826430 | S8: 7421425 | U8: 8579273 | W8: 71610
H9: =C9+E9+G9 -> 0 | K9: 通運新聞社 | L9: 購読料 | O9: 図書費 | P9: 826780 | W9: 162140
B10: 計 | C10: =SUM(C6:C9) -> 80520 | D10: 計 | E10: =SUM(E6:E9) -> 0 | F10: 計 | G10: =SUM(G6:G9) -> 0 | H10: =SUM(H6:H9) -> 80520 | K10: 通運新聞社 | L10: 郵送料 | O10: 郵便料 | P10: 826430 | W10: 250360
K11: 通運情報社 | L11: 購読料 | O11: 図書費 | P11: 826780
B12: 中京通運 他 | C12: 73150 | H12: =C12+E12+G12 -> 73150 | K12: 運輸世界新聞社 | L12: 購読料 | O12: 図書費 | P12: 826780
B13: 保証預り金利子 | H13: =C13+E13+G13 -> 0 | K13: 運輸図書 | L13: ｺﾝﾃﾅ貨物集配便覧追補 | O13: 図書費 | P13: 826780
A14: ="下期("&TEXT(A3,"YY")&"/"&TEXT(A3,"MM")&")" -> 下期(21/09) | H14: =C14+E14+G14 -> 0 | K14: 運輸図書 | L14: 送料 | O14: 郵便料 | P14: 826430
H15: =C15+E15+G15 -> 0 | K15: 全国通運業連合会 | L15: 全国大会会費 | O15: 会費加入 | P15: 826910
B16: 計 | C16: =SUM(C12:C15) -> 73150 | D16: 計 | E16: =SUM(E12:E15) -> 0 | F16: 計 | G16: =SUM(G12:G15) -> 0 | H16: =SUM(H12:H15) -> 73150 | K16: 全国通運業連合会 | L16: 懇親会会費 | O16: 交際費 | P16: 826800
K17: 関東通運業連合会 | L17: ｺﾝﾃﾅ委員会会費 | O17: 会費加入 | P17: 826910
K18: 関東通運業連合会 | L18: 東名大通友会会費 | O18: 会費加入 | P18: 826910
A19: 合計 | C19: =C10+C16 -> 153670 | E19: =E10+E16 -> 0 | G19: =G10+G16 -> 0 | H19: =H10+H16 -> 153670 | K19: 関東通運業連合会 | L19: 会費 | N19: 39900 | O19: 会費加入 | P19: 826910
K20: 中部通運業連合会 | L20: 東名大通友会会費 | O20: 会費加入 | P20: 826910 | Q20: =IF(LEFT(P21,1)="3","原","") ->  | S20: =SUM(S7:S19) -> 12384295 | U20: =SUM(U6:U19) -> 10579183 | W20: =SUM(W6:W19) -> 751080 | Y20: =U20+W20 -> 11330263 | AA20: =S20-Y20 -> 1054032
A21: =+A3 -> 2021-09-01 | B21: 交計支払勘定 | K21: 日本通運(横浜) | L21: 鉄道貨物利用運送会費 | O21: 会費加入 | P21: 826910 | U21: 事故費 | W21: その他
B22: ｺﾝﾃﾅ-着店借 | D22: ｺﾝﾃﾅ-着店借 | F22: ｺﾝﾃﾅ-着店借 | H22: 業務経費 | K22: 日本通運(横浜) | L22: 神奈川県通運会費 | O22: 会費加入 | P22: 826910
A23: 決済日 | B23: 配送依頼先 | C23: 金額 | D23: =+B23 -> 配送依頼先 | E23: 金額 | F23: =+D23 -> 配送依頼先 | G23: 金額 | H23: (A)表 | I23: 合計 | K23: 日本通運(横浜) | L23: 通運業界臨時会費 | O23: 会費加入 | P23: 826910
B24: 日本通運他 | C24: 6389242 | H24: =M42 -> 26975 | I24: =C24+E24+G24+H24 -> 6416217 | K24: 博多港運 | L24: 九州会会費 | O24: 会費加入 | P24: 826910
I25: =C25+E25+G25 -> 0 | K25: 札幌通運 | L25: 北海道会費 | O25: 会費加入 | P25: 826910
A26: =A8 -> 上期(21/09) | I26: =C26+E26+G26 -> 0 | K26: 仙台運送 | L26: みちのく会費 | O26: 会費加入 | P26: 826910
I27: =C27+E27+G27 -> 0 | K27: 仙台運送 | L27: みちのく会 特別会費 | O27: 交際費 | P27: 826800
B28: 計 | C28: =SUM(C24:C27) -> 6389242 | D28: 計 | E28: =SUM(E24:E27) -> 0 | F28: 計 | G28: =SUM(G24:G27) -> 0 | H28: =SUM(H24:H27) -> 26975 | I28: =SUM(I24:I27) -> 6416217 | J28: =I28-H28 -> 6389242 | K28: 川崎運送 | L28: 会費 | M28: 25000 | O28: 会費加入 | P28: 826910 | S28: =SUM(S22:S26) -> 0 | U28: =SUM(U22:U26) -> 0 | W28: =SUM(W22:W26) -> 0 | Y28: =U28+W28 -> 0
K29: 丸全昭和運輸 | L29: 事務所清掃代 | O29: 雑費 | P29: 827900 | AA29: 翌月繰越
B30: 日本通運 他 | C30: 2073060 | H30: =N42 -> 111601 | I30: =C30+E30+G30+H30 -> 2184661 | K30: 丸全昭和運輸 | L30: 全通神奈川連絡会費 | O30: 会費加入 | P30: 826910 | S30: =S6+S20+S28 -> -7649722 | U30: =U20+U28 -> 10579183 | W30: =W20+W28 -> 751080 | Y30: =Y20+Y28 -> 11330263 | AA30: =S30-Y30 -> -18979985
I31: =C31+E31+G31 -> 0 | K31: 全国通運 | L31: 郵送料 | N31: 640 | O31: 郵便料 | P31: 826430
A32: =A14 -> 下期(21/09) | I32: =C32+E32+G32 -> 0 | K32: 全国通運 | L32: A4ｶｯﾄ紙 | O32: 用紙代 | P32: 826730 | Q32: =IF(LEFT(P34,1)="3","原","") -> 
I33: =C33+E33+G33 -> 0 | K33: 全国通運 | L33: 全通VPN料金（NTT） | N33: 21120 | O33: 雑費 | P33: 827900 | Q33: =IF(LEFT(P35,1)="3","原","") -> 
I34: =C34+E34+G34 -> 0 | K34: 全国通運 | L34: 全通VPN料金（専用線） | O34: 雑費 | P34: 827900 | Q34: =IF(LEFT(P36,1)="3","原","") -> 
B35: 計 | C35: =SUM(C30:C34) -> 2073060 | D35: 計 | E35: =SUM(E30:E34) -> 0 | F35: 計 | G35: =SUM(G30:G34) -> 0 | H35: =SUM(H30:H34) -> 111601 | I35: =SUM(C35:H35) -> 2184661 | J35: =I35-H35 -> 2073060 | K35: 全国通運 | L35: 情報ｼｽﾃﾑ開発料金 | N35: 7700 | O35: 雑費 | P35: 827900 | Q35: =IF(LEFT(P37,1)="3","原","") -> 
K36: 全国通運 | L36: 情報ｼｽﾃﾑ基本料金 | N36: 12951 | O36: 雑費 | P36: 827900 | Q36: =IF(LEFT(P38,1)="3","原","") -> 
K37: 全国通運 | L37: 通風コンテナ | O37: 雑費 | P37: 827900
A38: 合計 | C38: =C28+C35 -> 8462302 | E38: =E28+E35 -> 0 | G38: =G28+G35 -> 0 | H38: =H28+H35 -> 138576 | I38: =I28+I35 -> 8600878 | J38: =I38-H38 -> 8462302 | K38: 運送保証協会 | L38: 保証料(JR分) | N38: 29220 | O38: 雑費 | P38: 827900
D39: 前途金 | E39: 仮払金 | K39: 運送保証協会 | L39: 保証料(神奈川臨海分） | N39: 70 | O39: 雑費 | P39: 827900
A40: 他店貸,借A/C差額(上期) | C40: =I40-M42 -> 6308722 | E40: =C40-D40 -> 6308722 | H40: 上期交計尻未払金 | I40: =I28-H10 -> 6335697 | K40: =+K3 -> 2021-09-01 | L40: 計 | M40: =SUM(M5:M39) -> 26975 | N40: =SUM(N5:N39) -> 111601
A41: 他店貸,借A/C差額(下期) | C41: =I41-N42 -> 1999910 | E41: =C41+D41-J6 -> 1999910 | H41: 下期交計尻未払金 | I41: =I35-H16 -> 2111511 | M41: 仮払金 | N41: 仮払金
K42: =K40 -> 2021-09-01 | L42: 合 計 | M42: =M40 -> 26975 | N42: =N40 -> 111601
H43: 上期 | I43: =I40+M47 -> 6336291
H44: 下期 | I44: =I41+N47 -> 2112044.5 | M44: 計算料（雑費） | N44: 計算料（雑費）
M45: 540 | N45: 485
M46: =M45*0.1 -> 54 | N46: =N45*0.1 -> 48.5 | O46: ※2019年9月下期より消費税10%
M47: =M45+M46 -> 594 | N47: =N45+N46 -> 533.5

Sheet 21.10
A3: 2021-10-01 | B3: 交計受取勘定 | K3: =+A3 -> 2021-10-01 | L3: 交計業務経費(A表) | M3: (上期) | N3: (下期) | S3: =EOMONTH(A3,1) -> 2021-11-30 | T3: 全国通運圧縮対象計上額一覧
B4: ｺﾝﾃﾅ-配達料 | D4: ｺﾝﾃﾅ-配達料 | F4: ｺﾝﾃﾅ-配達料 | K4: 支払先 | L4: 内 容 | M4: 被請求金額 | N4: 被請求金額 | S4: 買掛金 | U4: 仮払金 | W4: 売掛金 | Y4: 貸方計 | AA4: 差額
A5: 決済日 | B5: 請求先 | C5: 金額 | D5: =+B5 -> 請求先 | E5: 金額 | F5: =+D5 -> 請求先 | G5: 金額 | H5: 合計 | K5: 輸送新聞社 | L5: 購読料 | M5: 1975 | O5: 図書費 | P5: 826780 | Q5: =IF(LEFT(P5,1)="3","原","") -> 
B6: 中京通運他 | H6: =C6+E6+G6 -> 0 | K6: 輸送新聞社 | L6: 送料 | O6: 郵便料 | P6: 826430 | Q6: =IF(LEFT(P6,1)="3","原","") ->  | R6: 繰越 | S6: =INDIRECT(IF(MONTH(A3)=1,RIGHT(YEAR(A3)-1,2)&".12",RIGHT(YEAR(A3),2)&"."&TEXT(MONTH(A3)-1,"00"))&"!AA30") -> -18979985
H7: =C7+E7+G7 -> 0 | K7: 交通日本社 | L7: 通運業者名簿追録 | O7: 図書費 | P7: 826780 | R7: =MONTH(A3) -> 10 | S7: 6947531 | U7: 2703690 | W7: 10890
A8: ="上期("&TEXT(A3,"YY")&"/"&TEXT(A3,"MM")&")" -> 上期(21/10) | C8: 252230 | H8: =C8+E8+G8 -> 252230 | K8: 交通日本社 | L8: 送料 | O8: 郵便料 | P8: 826430 | S8: 6392474 | U8: 6287876 | W8: 225720
H9: =C9+E9+G9 -> 0 | K9: 通運新聞社 | L9: 購読料 | O9: 図書費 | P9: 826780 | U9: 2100000 | W9: 165110
B10: 計 | C10: =SUM(C6:C9) -> 252230 | D10: 計 | E10: =SUM(E6:E9) -> 0 | F10: 計 | G10: =SUM(G6:G9) -> 0 | H10: =SUM(H6:H9) -> 252230 | K10: 通運新聞社 | L10: 郵送料 | O10: 郵便料 | P10: 826430 | U10: 2263000 | W10: 187770
K11: 通運情報社 | L11: 購読料 | O11: 図書費 | P11: 826780
B12: 中京通運 他 | C12: 139920 | H12: =C12+E12+G12 -> 139920 | K12: 運輸世界新聞社 | L12: 購読料 | O12: 図書費 | P12: 826780
B13: 保証預り金利子 | H13: =C13+E13+G13 -> 0 | K13: 運輸図書 | L13: ｺﾝﾃﾅ貨物集配便覧追補 | O13: 図書費 | P13: 826780
A14: ="下期("&TEXT(A3,"YY")&"/"&TEXT(A3,"MM")&")" -> 下期(21/10) | H14: =C14+E14+G14 -> 0 | K14: 運輸図書 | L14: 送料 | O14: 郵便料 | P14: 826430
H15: =C15+E15+G15 -> 0 | K15: 全国通運業連合会 | L15: 全国大会会費 | O15: 会費加入 | P15: 826910
B16: 計 | C16: =SUM(C12:C15) -> 139920 | D16: 計 | E16: =SUM(E12:E15) -> 0 | F16: 計 | G16: =SUM(G12:G15) -> 0 | H16: =SUM(H12:H15) -> 139920 | K16: 全国通運業連合会 | L16: 懇親会会費 | O16: 交際費 | P16: 826800
K17: 関東通運業連合会 | L17: ｺﾝﾃﾅ委員会会費 | O17: 会費加入 | P17: 826910
K18: 関東通運業連合会 | L18: 東名大通友会会費 | O18: 会費加入 | P18: 826910
A19: 合計 | C19: =C10+C16 -> 392150 | E19: =E10+E16 -> 0 | G19: =G10+G16 -> 0 | H19: =H10+H16 -> 392150 | K19: 関東通運業連合会 | L19: 会費 | N19: 39900 | O19: 会費加入 | P19: 826910
K20: 中部通運業連合会 | L20: 東名大通友会会費 | O20: 会費加入 | P20: 826910 | Q20: =IF(LEFT(P21,1)="3","原","") ->  | S20: =SUM(S7:S19) -> 13340005 | U20: =SUM(U6:U19) -> 13354566 | W20: =SUM(W6:W19) -> 589490 | Y20: =U20+W20 -> 13944056 | AA20: =S20-Y20 -> -604051
A21: =+A3 -> 2021-10-01 | B21: 交計支払勘定 | K21: 日本通運(横浜) | L21: 鉄道貨物利用運送会費 | O21: 会費加入 | P21: 826910 | U21: 事故費 | W21: その他
B22: ｺﾝﾃﾅ-着店借 | D22: ｺﾝﾃﾅ-着店借 | F22: ｺﾝﾃﾅ-着店借 | H22: 業務経費 | K22: 日本通運(横浜) | L22: 神奈川県通運会費 | O22: 会費加入 | P22: 826910
A23: 決済日 | B23: 配送依頼先 | C23: 金額 | D23: =+B23 -> 配送依頼先 | E23: 金額 | F23: =+D23 -> 配送依頼先 | G23: 金額 | H23: (A)表 | I23: 合計 | K23: 日本通運(横浜) | L23: 通運業界臨時会費 | O23: 会費加入 | P23: 826910
B24: 日本通運他 | H24: =M42 -> 26975 | I24: =C24+E24+G24+H24 -> 26975 | K24: 博多港運 | L24: 九州会会費 | O24: 会費加入 | P24: 826910
I25: =C25+E25+G25 -> 0 | K25: 札幌通運 | L25: 北海道会費 | O25: 会費加入 | P25: 826910
A26: =A8 -> 上期(21/10) | C26: 11118503 | I26: =C26+E26+G26 -> 11118503 | K26: 仙台運送 | L26: みちのく会費 | O26: 会費加入 | P26: 826910
I27: =C27+E27+G27 -> 0 | K27: 仙台運送 | L27: みちのく会 特別会費 | O27: 交際費 | P27: 826800
B28: 計 | C28: =SUM(C24:C27) -> 11118503 | D28: 計 | E28: =SUM(E24:E27) -> 0 | F28: 計 | G28: =SUM(G24:G27) -> 0 | H28: =SUM(H24:H27) -> 26975 | I28: =SUM(I24:I27) -> 11145478 | J28: =I28-H28 -> 11118503 | K28: 川崎運送 | L28: 会費 | M28: 25000 | O28: 会費加入 | P28: 826910 | S28: =SUM(S22:S26) -> 0 | U28: =SUM(U22:U26) -> 0 | W28: =SUM(W22:W26) -> 0 | Y28: =U28+W28 -> 0
K29: 丸全昭和運輸 | L29: 事務所清掃代 | O29: 雑費 | P29: 827900 | AA29: 翌月繰越
B30: 日本通運 他 | C30: 2843610 | H30: =N42 -> 110541 | I30: =C30+E30+G30+H30 -> 2954151 | K30: 丸全昭和運輸 | L30: 全通神奈川連絡会費 | O30: 会費加入 | P30: 826910 | S30: =S6+S20+S28 -> -5639980 | U30: =U20+U28 -> 13354566 | W30: =W20+W28 -> 589490 | Y30: =Y20+Y28 -> 13944056 | AA30: =S30-Y30 -> -19584036
I31: =C31+E31+G31 -> 0 | K31: 全国通運 | L31: 郵送料 | N31: 640 | O31: 郵便料 | P31: 826430
A32: =A14 -> 下期(21/10) | I32: =C32+E32+G32 -> 0 | K32: 全国通運 | L32: A4ｶｯﾄ紙 | O32: 用紙代 | P32: 826730 | Q32: =IF(LEFT(P34,1)="3","原","") -> 
I33: =C33+E33+G33 -> 0 | K33: 全国通運 | L33: 全通VPN料金（NTT） | N33: 21120 | O33: 雑費 | P33: 827900 | Q33: =IF(LEFT(P35,1)="3","原","") -> 
I34: =C34+E34+G34 -> 0 | K34: 全国通運 | L34: 全通VPN料金（専用線） | O34: 雑費 | P34: 827900 | Q34: =IF(LEFT(P36,1)="3","原","") -> 
B35: 計 | C35: =SUM(C30:C34) -> 2843610 | D35: 計 | E35: =SUM(E30:E34) -> 0 | F35: 計 | G35: =SUM(G30:G34) -> 0 | H35: =SUM(H30:H34) -> 110541 | I35: =SUM(C35:H35) -> 2954151 | J35: =I35-H35 -> 2843610 | K35: 全国通運 | L35: 情報ｼｽﾃﾑ開発料金 | N35: 7700 | O35: 雑費 | P35: 827900 | Q35: =IF(LEFT(P37,1)="3","原","") -> 
K36: 全国通運 | L36: 情報ｼｽﾃﾑ基本料金 | N36: 12951 | O36: 雑費 | P36: 827900 | Q36: =IF(LEFT(P38,1)="3","原","") -> 
K37: 全国通運 | L37: 通風コンテナ | O37: 雑費 | P37: 827900
A38: 合計 | C38: =C28+C35 -> 13962113 | E38: =E28+E35 -> 0 | G38: =G28+G35 -> 0 | H38: =H28+H35 -> 137516 | I38: =I28+I35 -> 14099629 | J38: =I38-H38 -> 13962113 | K38: 運送保証協会 | L38: 保証料(JR分) | N38: 28140 | O38: 雑費 | P38: 827900
D39: 前途金 | E39: 仮払金 | K39: 運送保証協会 | L39: 保証料(神奈川臨海分） | N39: 90 | O39: 雑費 | P39: 827900
A40: 他店貸,借A/C差額(上期) | C40: =I40-M42 -> 10866273 | E40: =C40-D40 -> 10866273 | H40: 上期交計尻未払金 | I40: =I28-H10 -> 10893248 | K40: =+K3 -> 2021-10-01 | L40: 計 | M40: =SUM(M5:M39) -> 26975 | N40: =SUM(N5:N39) -> 110541
A41: 他店貸,借A/C差額(下期) | C41: =I41-N42 -> 2703690 | E41: =C41+D41-J6 -> 2703690 | H41: 下期交計尻未払金 | I41: =I35-H16 -> 2814231 | M41: 仮払金 | N41: 仮払金
K42: =K40 -> 2021-10-01 | L42: 合 計 | M42: =M40 -> 26975 | N42: =N40 -> 110541
H43: 上期 | I43: =I40+M47 -> 10894756.1
H44: 下期 | I44: =I41+N47 -> 2815105.5 | M44: 計算料（雑費） | N44: 計算料（雑費）
M45: 1371 | N45: 795
M46: =M45*0.1 -> 137.1 | N46: =N45*0.1 -> 79.5 | O46: ※2019年9月下期より消費税10%
M47: =M45+M46 -> 1508.1 | N47: =N45+N46 -> 874.5

Sheet 21.11
A3: 2021-11-01 | B3: 交計受取勘定 | K3: =+A3 -> 2021-11-01 | L3: 交計業務経費(A表) | M3: (上期) | N3: (下期) | S3: =EOMONTH(A3,1) -> 2021-12-31 | T3: 全国通運圧縮対象計上額一覧
B4: ｺﾝﾃﾅ-配達料 | D4: ｺﾝﾃﾅ-配達料 | F4: ｺﾝﾃﾅ-配達料 | K4: 支払先 | L4: 内 容 | M4: 被請求金額 | N4: 被請求金額 | S4: 買掛金 | U4: 仮払金 | W4: 売掛金 | Y4: 貸方計 | AA4: 差額
A5: 決済日 | B5: 請求先 | C5: 金額 | D5: =+B5 -> 請求先 | E5: 金額 | F5: =+D5 -> 請求先 | G5: 金額 | H5: 合計 | K5: 輸送新聞社 | L5: 購読料 | M5: 1975 | O5: 図書費 | P5: 826780 | Q5: =IF(LEFT(P5,1)="3","原","") -> 
B6: 中京通運他 | C6: 566390 | H6: =C6+E6+G6 -> 566390 | K6: 輸送新聞社 | L6: 送料 | O6: 郵便料 | P6: 826430 | Q6: =IF(LEFT(P6,1)="3","原","") ->  | R6: 繰越 | S6: =INDIRECT(IF(MONTH(A3)=1,RIGHT(YEAR(A3)-1,2)&".12",RIGHT(YEAR(A3),2)&"."&TEXT(MONTH(A3)-1,"00"))&"!AA30") -> -19584036
H7: =C7+E7+G7 -> 0 | K7: 交通日本社 | L7: 通運業者名簿追録 | O7: 図書費 | P7: 826780 | R7: =MONTH(A3) -> 11 | S7: 7435107 | U7: 3108738 | W7: 243760
A8: ="上期("&TEXT(A3,"YY")&"/"&TEXT(A3,"MM")&")" -> 上期(21/11) | H8: =C8+E8+G8 -> 0 | K8: 交通日本社 | L8: 送料 | O8: 郵便料 | P8: 826430 | U8: 9594161 | W8: 21780
H9: =C9+E9+G9 -> 0 | K9: 通運新聞社 | L9: 購読料 | O9: 図書費 | P9: 826780 | U9: 2489000 | W9: 73150
B10: 計 | C10: =SUM(C6:C9) -> 566390 | D10: 計 | E10: =SUM(E6:E9) -> 0 | F10: 計 | G10: =SUM(G6:G9) -> 0 | H10: =SUM(H6:H9) -> 566390 | K10: 通運新聞社 | L10: 郵送料 | O10: 郵便料 | P10: 826430 | W10: 171380
K11: 通運情報社 | L11: 購読料 | O11: 図書費 | P11: 826780
B12: 中京通運 他 | C12: 266310 | H12: =C12+E12+G12 -> 266310 | K12: 運輸世界新聞社 | L12: 購読料 | O12: 図書費 | P12: 826780
B13: 保証預り金利子 | H13: =C13+E13+G13 -> 0 | K13: 運輸図書 | L13: ｺﾝﾃﾅ貨物集配便覧追補 | O13: 図書費 | P13: 826780
A14: ="下期("&TEXT(A3,"YY")&"/"&TEXT(A3,"MM")&")" -> 下期(21/11) | H14: =C14+E14+G14 -> 0 | K14: 運輸図書 | L14: 送料 | O14: 郵便料 | P14: 826430
H15: =C15+E15+G15 -> 0 | K15: 全国通運業連合会 | L15: 全国大会会費 | O15: 会費加入 | P15: 826910
B16: 計 | C16: =SUM(C12:C15) -> 266310 | D16: 計 | E16: =SUM(E12:E15) -> 0 | F16: 計 | G16: =SUM(G12:G15) -> 0 | H16: =SUM(H12:H15) -> 266310 | K16: 全国通運業連合会 | L16: 懇親会会費 | O16: 交際費 | P16: 826800
K17: 関東通運業連合会 | L17: ｺﾝﾃﾅ委員会会費 | O17: 会費加入 | P17: 826910
K18: 関東通運業連合会 | L18: 東名大通友会会費 | O18: 会費加入 | P18: 826910
A19: 合計 | C19: =C10+C16 -> 832700 | E19: =E10+E16 -> 0 | G19: =G10+G16 -> 0 | H19: =H10+H16 -> 832700 | K19: 関東通運業連合会 | L19: 会費 | N19: 39900 | O19: 会費加入 | P19: 826910
K20: 中部通運業連合会 | L20: 東名大通友会会費 | O20: 会費加入 | P20: 826910 | Q20: =IF(LEFT(P21,1)="3","原","") ->  | S20: =SUM(S7:S19) -> 7435107 | U20: =SUM(U6:U19) -> 15191899 | W20: =SUM(W6:W19) -> 510070 | Y20: =U20+W20 -> 15701969 | AA20: =S20-Y20 -> -8266862
A21: =+A3 -> 2021-11-01 | B21: 交計支払勘定 | K21: 日本通運(横浜) | L21: 鉄道貨物利用運送会費 | O21: 会費加入 | P21: 826910 | U21: 事故費 | W21: その他
B22: ｺﾝﾃﾅ-着店借 | D22: ｺﾝﾃﾅ-着店借 | F22: ｺﾝﾃﾅ-着店借 | H22: 業務経費 | K22: 日本通運(横浜) | L22: 神奈川県通運会費 | O22: 会費加入 | P22: 826910
A23: 決済日 | B23: 配送依頼先 | C23: 金額 | D23: =+B23 -> 配送依頼先 | E23: 金額 | F23: =+D23 -> 配送依頼先 | G23: 金額 | H23: (A)表 | I23: 合計 | K23: 日本通運(横浜) | L23: 通運業界臨時会費 | O23: 会費加入 | P23: 826910
B24: 日本通運他 | C24: 8954266 | H24: =M42 -> 26975 | I24: =C24+E24+G24+H24 -> 8981241 | K24: 博多港運 | L24: 九州会会費 | O24: 会費加入 | P24: 826910
I25: =C25+E25+G25 -> 0 | K25: 札幌通運 | L25: 北海道会費 | O25: 会費加入 | P25: 826910
A26: =A8 -> 上期(21/11) | I26: =C26+E26+G26 -> 0 | K26: 仙台運送 | L26: みちのく会費 | O26: 会費加入 | P26: 826910
I27: =C27+E27+G27 -> 0 | K27: 仙台運送 | L27: みちのく会 特別会費 | O27: 交際費 | P27: 826800
B28: 計 | C28: =SUM(C24:C27) -> 8954266 | D28: 計 | E28: =SUM(E24:E27) -> 0 | F28: 計 | G28: =SUM(G24:G27) -> 0 | H28: =SUM(H24:H27) -> 26975 | I28: =SUM(I24:I27) -> 8981241 | J28: =I28-H28 -> 8954266 | K28: 川崎運送 | L28: 会費 | M28: 25000 | O28: 会費加入 | P28: 826910 | S28: =SUM(S22:S26) -> 0 | U28: =SUM(U22:U26) -> 0 | W28: =SUM(W22:W26) -> 0 | Y28: =U28+W28 -> 0
K29: 丸全昭和運輸 | L29: 事務所清掃代 | O29: 雑費 | P29: 827900 | AA29: 翌月繰越
B30: 日本通運 他 | C30: 3375048 | H30: =N42 -> 109581 | I30: =C30+E30+G30+H30 -> 3484629 | K30: 丸全昭和運輸 | L30: 全通神奈川連絡会費 | O30: 会費加入 | P30: 826910 | S30: =S6+S20+S28 -> -12148929 | U30: =U20+U28 -> 15191899 | W30: =W20+W28 -> 510070 | Y30: =Y20+Y28 -> 15701969 | AA30: =S30-Y30 -> -27850898
I31: =C31+E31+G31 -> 0 | K31: 全国通運 | L31: 郵送料 | N31: 640 | O31: 郵便料 | P31: 826430
A32: =A14 -> 下期(21/11) | I32: =C32+E32+G32 -> 0 | K32: 全国通運 | L32: A4ｶｯﾄ紙 | O32: 用紙代 | P32: 826730 | Q32: =IF(LEFT(P34,1)="3","原","") -> 
I33: =C33+E33+G33 -> 0 | K33: 全国通運 | L33: 全通VPN料金（NTT） | N33: 21120 | O33: 雑費 | P33: 827900 | Q33: =IF(LEFT(P35,1)="3","原","") -> 
I34: =C34+E34+G34 -> 0 | K34: 全国通運 | L34: 全通VPN料金（専用線） | O34: 雑費 | P34: 827900 | Q34: =IF(LEFT(P36,1)="3","原","") -> 
B35: 計 | C35: =SUM(C30:C34) -> 3375048 | D35: 計 | E35: =SUM(E30:E34) -> 0 | F35: 計 | G35: =SUM(G30:G34) -> 0 | H35: =SUM(H30:H34) -> 109581 | I35: =SUM(C35:H35) -> 3484629 | J35: =I35-H35 -> 3375048 | K35: 全国通運 | L35: 情報ｼｽﾃﾑ開発料金 | N35: 7700 | O35: 雑費 | P35: 827900 | Q35: =IF(LEFT(P37,1)="3","原","") -> 
K36: 全国通運 | L36: 情報ｼｽﾃﾑ基本料金 | N36: 12951 | O36: 雑費 | P36: 827900 | Q36: =IF(LEFT(P38,1)="3","原","") -> 
K37: 全国通運 | L37: 通風コンテナ | O37: 雑費 | P37: 827900
A38: 合計 | C38: =C28+C35 -> 12329314 | E38: =E28+E35 -> 0 | G38: =G28+G35 -> 0 | H38: =H28+H35 -> 136556 | I38: =I28+I35 -> 12465870 | J38: =I38-H38 -> 12329314 | K38: 運送保証協会 | L38: 保証料(JR分) | N38: 27170 | O38: 雑費 | P38: 827900
D39: 前途金 | E39: 仮払金 | K39: 運送保証協会 | L39: 保証料(神奈川臨海分） | N39: 100 | O39: 雑費 | P39: 827900
A40: 他店貸,借A/C差額(上期) | C40: =I40-M42 -> 8387876 | D40: 2100000 | E40: =C40-D40 -> 6287876 | H40: 上期交計尻未払金 | I40: =I28-H10 -> 8414851 | K40: =+K3 -> 2021-11-01 | L40: 計 | M40: =SUM(M5:M39) -> 26975 | N40: =SUM(N5:N39) -> 109581
A41: 他店貸,借A/C差額(下期) | C41: =I41-N42 -> 3108738 | E41: =C41+D41-J6 -> 3108738 | H41: 下期交計尻未払金 | I41: =I35-H16 -> 3218319 | M41: 仮払金 | N41: 仮払金
K42: =K40 -> 2021-11-01 | L42: 合 計 | M42: =M40 -> 26975 | N42: =N40 -> 109581
H43: 上期 | I43: =I40+M47 -> 8417770.4
H44: 下期 | I44: =I41+N47 -> 3219877.7 | M44: 計算料（雑費） | N44: 計算料（雑費）
M45: 2654 | N45: 1417
M46: =M45*0.1 -> 265.4 | N46: =N45*0.1 -> 141.7 | O46: ※2019年9月下期より消費税10%
M47: =M45+M46 -> 2919.4 | N47: =N45+N46 -> 1558.7

Sheet 21.12
A3: 2021-12-01 | B3: 交計受取勘定 | K3: =+A3 -> 2021-12-01 | L3: 交計業務経費(A表) | M3: (上期) | N3: (下期) | S3: =EOMONTH(A3,1) -> 2022-01-31 | T3: 全国通運圧縮対象計上額一覧
B4: ｺﾝﾃﾅ-配達料 | D4: ｺﾝﾃﾅ-配達料 | F4: ｺﾝﾃﾅ-配達料 | K4: 支払先 | L4: 内 容 | M4: 被請求金額 | N4: 被請求金額 | S4: 買掛金 | U4: 仮払金 | W4: 売掛金 | Y4: 貸方計 | AA4: 差額
A5: 決済日 | B5: 請求先 | C5: 金額 | D5: =+B5 -> 請求先 | E5: 金額 | F5: =+D5 -> 請求先 | G5: 金額 | H5: 合計 | K5: 輸送新聞社 | L5: 購読料 | M5: 1975 | O5: 図書費 | P5: 826780 | Q5: =IF(LEFT(P5,1)="3","原","") -> 
B6: 中京通運他 | C6: 531740 | H6: =C6+E6+G6 -> 531740 | K6: 輸送新聞社 | L6: 送料 | O6: 郵便料 | P6: 826430 | Q6: =IF(LEFT(P6,1)="3","原","") ->  | R6: 繰越 | S6: =INDIRECT(IF(MONTH(A3)=1,RIGHT(YEAR(A3)-1,2)&".12",RIGHT(YEAR(A3),2)&"."&TEXT(MONTH(A3)-1,"00"))&"!AA30") -> -27850898
H7: =C7+E7+G7 -> 0 | K7: 交通日本社 | L7: 通運業者名簿追録 | O7: 図書費 | P7: 826780 | R7: =MONTH(A3) -> 12 | S7: 8216825 | U7: 7807952 | W7: 131670
A8: ="上期("&TEXT(A3,"YY")&"/"&TEXT(A3,"MM")&")" -> 上期(21/12) | H8: =C8+E8+G8 -> 0 | K8: 交通日本社 | L8: 送料 | O8: 郵便料 | P8: 826430 | S8: 4361500 | U8: 2928310 | W8: 73150
H9: =C9+E9+G9 -> 0 | K9: 通運新聞社 | L9: 購読料 | O9: 図書費 | P9: 826780 | S9: 6698560 | U9: 2070000 | W9: 82940
B10: 計 | C10: =SUM(C6:C9) -> 531740 | D10: 計 | E10: =SUM(E6:E9) -> 0 | F10: 計 | G10: =SUM(G6:G9) -> 0 | H10: =SUM(H6:H9) -> 531740 | K10: 通運新聞社 | L10: 郵送料 | O10: 郵便料 | P10: 826430
K11: 通運情報社 | L11: 購読料 | O11: 図書費 | P11: 826780
B12: 中京通運 他 | C12: 86680 | H12: =C12+E12+G12 -> 86680 | K12: 運輸世界新聞社 | L12: 購読料 | O12: 図書費 | P12: 826780
B13: 保証預り金利子 | H13: =C13+E13+G13 -> 0 | K13: 運輸図書 | L13: ｺﾝﾃﾅ貨物集配便覧追補 | O13: 図書費 | P13: 826780
A14: ="下期("&TEXT(A3,"YY")&"/"&TEXT(A3,"MM")&")" -> 下期(21/12) | H14: =C14+E14+G14 -> 0 | K14: 運輸図書 | L14: 送料 | O14: 郵便料 | P14: 826430
H15: =C15+E15+G15 -> 0 | K15: 全国通運業連合会 | L15: 全国大会会費 | O15: 会費加入 | P15: 826910
B16: 計 | C16: =SUM(C12:C15) -> 86680 | D16: 計 | E16: =SUM(E12:E15) -> 0 | F16: 計 | G16: =SUM(G12:G15) -> 0 | H16: =SUM(H12:H15) -> 86680 | K16: 全国通運業連合会 | L16: 懇親会会費 | O16: 交際費 | P16: 826800
K17: 関東通運業連合会 | L17: ｺﾝﾃﾅ委員会会費 | O17: 会費加入 | P17: 826910
K18: 関東通運業連合会 | L18: 東名大通友会会費 | O18: 会費加入 | P18: 826910
A19: 合計 | C19: =C10+C16 -> 618420 | E19: =E10+E16 -> 0 | G19: =G10+G16 -> 0 | H19: =H10+H16 -> 618420 | K19: 関東通運業連合会 | L19: 会費 | N19: 39900 | O19: 会費加入 | P19: 826910
K20: 中部通運業連合会 | L20: 東名大通友会会費 | O20: 会費加入 | P20: 826910 | Q20: =IF(LEFT(P21,1)="3","原","") ->  | S20: =SUM(S7:S19) -> 19276885 | U20: =SUM(U6:U19) -> 12806262 | W20: =SUM(W6:W19) -> 287760 | Y20: =U20+W20 -> 13094022 | AA20: =S20-Y20 -> 6182863
A21: =+A3 -> 2021-12-01 | B21: 交計支払勘定 | K21: 日本通運(横浜) | L21: 鉄道貨物利用運送会費 | O21: 会費加入 | P21: 826910 | U21: 事故費 | W21: その他
B22: ｺﾝﾃﾅ-着店借 | D22: ｺﾝﾃﾅ-着店借 | F22: ｺﾝﾃﾅ-着店借 | H22: 業務経費 | K22: 日本通運(横浜) | L22: 神奈川県通運会費 | O22: 会費加入 | P22: 826910
A23: 決済日 | B23: 配送依頼先 | C23: 金額 | D23: =+B23 -> 配送依頼先 | E23: 金額 | F23: =+D23 -> 配送依頼先 | G23: 金額 | H23: (A)表 | I23: 合計 | K23: 日本通運(横浜) | L23: 通運業界臨時会費 | O23: 会費加入 | P23: 826910
B24: 日本通運他 | C24: 12388901 | H24: =M42 -> 26975 | I24: =C24+E24+G24+H24 -> 12415876 | K24: 博多港運 | L24: 九州会会費 | O24: 会費加入 | P24: 826910
I25: =C25+E25+G25 -> 0 | K25: 札幌通運 | L25: 北海道会費 | O25: 会費加入 | P25: 826910
A26: =A8 -> 上期(21/12) | I26: =C26+E26+G26 -> 0 | K26: 仙台運送 | L26: みちのく会費 | O26: 会費加入 | P26: 826910
I27: =C27+E27+G27 -> 0 | K27: 仙台運送 | L27: みちのく会 特別会費 | O27: 交際費 | P27: 826800
B28: 計 | C28: =SUM(C24:C27) -> 12388901 | D28: 計 | E28: =SUM(E24:E27) -> 0 | F28: 計 | G28: =SUM(G24:G27) -> 0 | H28: =SUM(H24:H27) -> 26975 | I28: =SUM(I24:I27) -> 12415876 | J28: =I28-H28 -> 12388901 | K28: 川崎運送 | L28: 会費 | M28: 25000 | O28: 会費加入 | P28: 826910 | S28: =SUM(S22:S26) -> 0 | U28: =SUM(U22:U26) -> 0 | W28: =SUM(W22:W26) -> 0 | Y28: =U28+W28 -> 0
K29: 丸全昭和運輸 | L29: 事務所清掃代 | O29: 雑費 | P29: 827900 | AA29: 翌月繰越
B30: 日本通運 他 | C30: 3014990 | H30: =N42 -> 114201 | I30: =C30+E30+G30+H30 -> 3129191 | K30: 丸全昭和運輸 | L30: 全通神奈川連絡会費 | O30: 会費加入 | P30: 826910 | S30: =S6+S20+S28 -> -8574013 | U30: =U20+U28 -> 12806262 | W30: =W20+W28 -> 287760 | Y30: =Y20+Y28 -> 13094022 | AA30: =S30-Y30 -> -21668035
I31: =C31+E31+G31 -> 0 | K31: 全国通運 | L31: 郵送料 | N31: 640 | O31: 郵便料 | P31: 826430
A32: =A14 -> 下期(21/12) | I32: =C32+E32+G32 -> 0 | K32: 全国通運 | L32: A4ｶｯﾄ紙 | O32: 用紙代 | P32: 826730 | Q32: =IF(LEFT(P34,1)="3","原","") -> 
I33: =C33+E33+G33 -> 0 | K33: 全国通運 | L33: 全通VPN料金（NTT） | N33: 21120 | O33: 雑費 | P33: 827900 | Q33: =IF(LEFT(P35,1)="3","原","") -> 
I34: =C34+E34+G34 -> 0 | K34: 全国通運 | L34: 全通VPN料金（専用線） | O34: 雑費 | P34: 827900 | Q34: =IF(LEFT(P36,1)="3","原","") -> 
B35: 計 | C35: =SUM(C30:C34) -> 3014990 | D35: 計 | E35: =SUM(E30:E34) -> 0 | F35: 計 | G35: =SUM(G30:G34) -> 0 | H35: =SUM(H30:H34) -> 114201 | I35: =SUM(C35:H35) -> 3129191 | J35: =I35-H35 -> 3014990 | K35: 全国通運 | L35: 情報ｼｽﾃﾑ開発料金 | N35: 7700 | O35: 雑費 | P35: 827900 | Q35: =IF(LEFT(P37,1)="3","原","") -> 
K36: 全国通運 | L36: 情報ｼｽﾃﾑ基本料金 | N36: 12951 | O36: 雑費 | P36: 827900 | Q36: =IF(LEFT(P38,1)="3","原","") -> 
K37: 全国通運 | L37: 通風コンテナ | O37: 雑費 | P37: 827900
A38: 合計 | C38: =C28+C35 -> 15403891 | E38: =E28+E35 -> 0 | G38: =G28+G35 -> 0 | H38: =H28+H35 -> 141176 | I38: =I28+I35 -> 15545067 | J38: =I38-H38 -> 15403891 | K38: 運送保証協会 | L38: 保証料(JR分) | N38: 31830 | O38: 雑費 | P38: 827900
D39: 前途金 | E39: 仮払金 | K39: 運送保証協会 | L39: 保証料(神奈川臨海分） | N39: 60 | O39: 雑費 | P39: 827900
A40: 他店貸,借A/C差額(上期) | C40: =I40-M42 -> 11857161 | D40: 2263000 | E40: =C40-D40 -> 9594161 | H40: 上期交計尻未払金 | I40: =I28-H10 -> 11884136 | K40: =+K3 -> 2021-12-01 | L40: 計 | M40: =SUM(M5:M39) -> 26975 | N40: =SUM(N5:N39) -> 114201
A41: 他店貸,借A/C差額(下期) | C41: =I41-N42 -> 2928310 | E41: =C41+D41-J6 -> 2928310 | H41: 下期交計尻未払金 | I41: =I35-H16 -> 3042511 | M41: 仮払金 | N41: 仮払金
K42: =K40 -> 2021-12-01 | L42: 合 計 | M42: =M40 -> 26975 | N42: =N40 -> 114201
H43: 上期 | I43: =I40+M47 -> 11886933.3
H44: 下期 | I44: =I41+N47 -> 3043105 | M44: 計算料（雑費） | N44: 計算料（雑費）
M45: 2543 | N45: 540
M46: =M45*0.1 -> 254.3 | N46: =N45*0.1 -> 54 | O46: ※2019年9月下期より消費税10%
M47: =M45+M46 -> 2797.3 | N47: =N45+N46 -> 594

Sheet 22.01
A3: 2022-01-01 | B3: 交計受取勘定 | K3: =+A3 -> 2022-01-01 | L3: 交計業務経費(A表) | M3: (上期) | N3: (下期) | S3: =EOMONTH(A3,1) -> 2022-02-28 | T3: 全国通運圧縮対象計上額一覧
B4: ｺﾝﾃﾅ-配達料 | D4: ｺﾝﾃﾅ-配達料 | F4: ｺﾝﾃﾅ-配達料 | K4: 支払先 | L4: 内 容 | M4: 被請求金額 | N4: 被請求金額 | S4: 買掛金 | U4: 仮払金 | W4: 売掛金 | Y4: 貸方計 | AA4: 差額
A5: 決済日 | B5: 請求先 | C5: 金額 | D5: =+B5 -> 請求先 | E5: 金額 | F5: =+D5 -> 請求先 | G5: 金額 | H5: 合計 | K5: 輸送新聞社 | L5: 購読料 | M5: 1975 | O5: 図書費 | P5: 826780 | Q5: =IF(LEFT(P5,1)="3","原","") -> 
B6: 中京通運他 | C6: 332970 | H6: =C6+E6+G6 -> 332970 | K6: 輸送新聞社 | L6: 送料 | O6: 郵便料 | P6: 826430 | Q6: =IF(LEFT(P6,1)="3","原","") ->  | R6: 繰越 | S6: =INDIRECT(IF(MONTH(A3)=1,RIGHT(YEAR(A3)-1,2)&".12",RIGHT(YEAR(A3),2)&"."&TEXT(MONTH(A3)-1,"00"))&"!AA30") -> -21668035
H7: =C7+E7+G7 -> 0 | K7: 交通日本社 | L7: 通運業者名簿追録 | O7: 図書費 | P7: 826780 | R7: =MONTH(A3) -> 1 | S7: 6753456 | U7: 5869602 | W7: 67540
A8: ="上期("&TEXT(A3,"YY")&"/"&TEXT(A3,"MM")&")" -> 上期(22/01) | H8: =C8+E8+G8 -> 0 | K8: 交通日本社 | L8: 送料 | O8: 郵便料 | P8: 826430 | S8: 4400770 | U8: 2392940 | W8: 43120
H9: =C9+E9+G9 -> 0 | K9: 通運新聞社 | L9: 購読料 | O9: 図書費 | P9: 826780 | S9: 6188 | U9: 2159000 | W9: 196680
B10: 計 | C10: =SUM(C6:C9) -> 332970 | D10: 計 | E10: =SUM(E6:E9) -> 0 | F10: 計 | G10: =SUM(G6:G9) -> 0 | H10: =SUM(H6:H9) -> 332970 | K10: 通運新聞社 | L10: 郵送料 | O10: 郵便料 | P10: 826430 | W10: 188980
K11: 通運情報社 | L11: 購読料 | O11: 図書費 | P11: 826780
B12: 中京通運 他 | C12: 81730 | H12: =C12+E12+G12 -> 81730 | K12: 運輸世界新聞社 | L12: 購読料 | O12: 図書費 | P12: 826780
B13: 保証預り金利子 | H13: =C13+E13+G13 -> 0 | K13: 運輸図書 | L13: ｺﾝﾃﾅ貨物集配便覧追補 | O13: 図書費 | P13: 826780
A14: ="下期("&TEXT(A3,"YY")&"/"&TEXT(A3,"MM")&")" -> 下期(22/01) | H14: =C14+E14+G14 -> 0 | K14: 運輸図書 | L14: 送料 | O14: 郵便料 | P14: 826430
H15: =C15+E15+G15 -> 0 | K15: 全国通運業連合会 | L15: 全国大会会費 | O15: 会費加入 | P15: 826910
B16: 計 | C16: =SUM(C12:C15) -> 81730 | D16: 計 | E16: =SUM(E12:E15) -> 0 | F16: 計 | G16: =SUM(G12:G15) -> 0 | H16: =SUM(H12:H15) -> 81730 | K16: 全国通運業連合会 | L16: 懇親会会費 | O16: 交際費 | P16: 826800
K17: 関東通運業連合会 | L17: ｺﾝﾃﾅ委員会会費 | O17: 会費加入 | P17: 826910
K18: 関東通運業連合会 | L18: 東名大通友会会費 | O18: 会費加入 | P18: 826910
A19: 合計 | C19: =C10+C16 -> 414700 | E19: =E10+E16 -> 0 | G19: =G10+G16 -> 0 | H19: =H10+H16 -> 414700 | K19: 関東通運業連合会 | L19: 会費 | O19: 会費加入 | P19: 826910
K20: 中部通運業連合会 | L20: 東名大通友会会費 | O20: 会費加入 | P20: 826910 | Q20: =IF(LEFT(P21,1)="3","原","") ->  | S20: =SUM(S7:S19) -> 11160414 | U20: =SUM(U6:U19) -> 10421542 | W20: =SUM(W6:W19) -> 496320 | Y20: =U20+W20 -> 10917862 | AA20: =S20-Y20 -> 242552
A21: =+A3 -> 2022-01-01 | B21: 交計支払勘定 | K21: 日本通運(横浜) | L21: 鉄道貨物利用運送会費 | O21: 会費加入 | P21: 826910 | U21: 事故費 | W21: その他
B22: ｺﾝﾃﾅ-着店借 | D22: ｺﾝﾃﾅ-着店借 | F22: ｺﾝﾃﾅ-着店借 | H22: 業務経費 | K22: 日本通運(横浜) | L22: 神奈川県通運会費 | O22: 会費加入 | P22: 826910
A23: 決済日 | B23: 配送依頼先 | C23: 金額 | D23: =+B23 -> 配送依頼先 | E23: 金額 | F23: =+D23 -> 配送依頼先 | G23: 金額 | H23: (A)表 | I23: 合計 | K23: 日本通運(横浜) | L23: 通運業界臨時会費 | O23: 会費加入 | P23: 826910
B24: 日本通運他 | C24: 10629922 | H24: =M42 -> 26975 | I24: =C24+E24+G24+H24 -> 10656897 | K24: 博多港運 | L24: 九州会会費 | O24: 会費加入 | P24: 826910
I25: =C25+E25+G25 -> 0 | K25: 札幌通運 | L25: 北海道会費 | O25: 会費加入 | P25: 826910
A26: =A8 -> 上期(22/01) | I26: =C26+E26+G26 -> 0 | K26: 仙台運送 | L26: みちのく会費 | O26: 会費加入 | P26: 826910
I27: =C27+E27+G27 -> 0 | K27: 仙台運送 | L27: みちのく会 特別会費 | O27: 交際費 | P27: 826800
B28: 計 | C28: =SUM(C24:C27) -> 10629922 | D28: 計 | E28: =SUM(E24:E27) -> 0 | F28: 計 | G28: =SUM(G24:G27) -> 0 | H28: =SUM(H24:H27) -> 26975 | I28: =SUM(I24:I27) -> 10656897 | J28: =I28-H28 -> 10629922 | K28: 川崎運送 | L28: 会費 | M28: 25000 | O28: 会費加入 | P28: 826910 | S28: =SUM(S22:S26) -> 0 | U28: =SUM(U22:U26) -> 0 | W28: =SUM(W22:W26) -> 0 | Y28: =U28+W28 -> 0
K29: 丸全昭和運輸 | L29: 事務所清掃代 | O29: 雑費 | P29: 827900 | AA29: 翌月繰越
B30: 日本通運 他 | C30: 2474670 | H30: =N42 -> 77821 | I30: =C30+E30+G30+H30 -> 2552491 | K30: 丸全昭和運輸 | L30: 全通神奈川連絡会費 | O30: 会費加入 | P30: 826910 | S30: =S6+S20+S28 -> -10507621 | U30: =U20+U28 -> 10421542 | W30: =W20+W28 -> 496320 | Y30: =Y20+Y28 -> 10917862 | AA30: =S30-Y30 -> -21425483
I31: =C31+E31+G31 -> 0 | K31: 全国通運 | L31: 郵送料 | N31: 640 | O31: 郵便料 | P31: 826430
A32: =A14 -> 下期(22/01) | I32: =C32+E32+G32 -> 0 | K32: 全国通運 | L32: A4ｶｯﾄ紙 | O32: 用紙代 | P32: 826730 | Q32: =IF(LEFT(P34,1)="3","原","") -> 
I33: =C33+E33+G33 -> 0 | K33: 全国通運 | L33: 全通VPN料金（NTT） | N33: 21120 | O33: 雑費 | P33: 827900 | Q33: =IF(LEFT(P35,1)="3","原","") -> 
I34: =C34+E34+G34 -> 0 | K34: 全国通運 | L34: 全通VPN料金（専用線） | O34: 雑費 | P34: 827900 | Q34: =IF(LEFT(P36,1)="3","原","") -> 
B35: 計 | C35: =SUM(C30:C34) -> 2474670 | D35: 計 | E35: =SUM(E30:E34) -> 0 | F35: 計 | G35: =SUM(G30:G34) -> 0 | H35: =SUM(H30:H34) -> 77821 | I35: =SUM(C35:H35) -> 2552491 | J35: =I35-H35 -> 2474670 | K35: 全国通運 | L35: 情報ｼｽﾃﾑ開発料金 | N35: 7700 | O35: 雑費 | P35: 827900 | Q35: =IF(LEFT(P37,1)="3","原","") -> 
K36: 全国通運 | L36: 情報ｼｽﾃﾑ基本料金 | N36: 12951 | O36: 雑費 | P36: 827900 | Q36: =IF(LEFT(P38,1)="3","原","") -> 
K37: 全国通運 | L37: 通風コンテナ | N37: 1760 | O37: 雑費 | P37: 827900
A38: 合計 | C38: =C28+C35 -> 13104592 | E38: =E28+E35 -> 0 | G38: =G28+G35 -> 0 | H38: =H28+H35 -> 104796 | I38: =I28+I35 -> 13209388 | J38: =I38-H38 -> 13104592 | K38: 運送保証協会 | L38: 保証料(JR分) | N38: 33570 | O38: 雑費 | P38: 827900
D39: 前途金 | E39: 仮払金 | K39: 運送保証協会 | L39: 保証料(神奈川臨海分） | N39: 80 | O39: 雑費 | P39: 827900
A40: 他店貸,借A/C差額(上期) | C40: =I40-M42 -> 10296952 | D40: 2489000 | E40: =C40-D40 -> 7807952 | H40: 上期交計尻未払金 | I40: =I28-H10 -> 10323927 | K40: =+K3 -> 2022-01-01 | L40: 計 | M40: =SUM(M5:M39) -> 26975 | N40: =SUM(N5:N39) -> 77821
A41: 他店貸,借A/C差額(下期) | C41: =I41-N42 -> 2392940 | E41: =C41+D41-J6 -> 2392940 | H41: 下期交計尻未払金 | I41: =I35-H16 -> 2470761 | M41: 仮払金 | N41: 仮払金
K42: =K40 -> 2022-01-01 | L42: 合 計 | M42: =M40 -> 26975 | N42: =N40 -> 77821
H43: 上期 | I43: =I40+M47 -> 10325822.3
H44: 下期 | I44: =I41+N47 -> 2471355 | M44: 計算料（雑費） | N44: 計算料（雑費）
M45: 1723 | N45: 540
M46: =M45*0.1 -> 172.3 | N46: =N45*0.1 -> 54 | O46: ※2019年9月下期より消費税10%
M47: =M45+M46 -> 1895.3 | N47: =N45+N46 -> 594

Sheet 22.02
A3: 2022-02-01 | B3: 交計受取勘定 | K3: =+A3 -> 2022-02-01 | L3: 交計業務経費(A表) | M3: (上期) | N3: (下期) | S3: =EOMONTH(A3,1) -> 2022-03-31 | T3: 全国通運圧縮対象計上額一覧
B4: ｺﾝﾃﾅ-配達料 | D4: ｺﾝﾃﾅ-配達料 | F4: ｺﾝﾃﾅ-配達料 | K4: 支払先 | L4: 内 容 | M4: 被請求金額 | N4: 被請求金額 | S4: 買掛金 | U4: 仮払金 | W4: 売掛金 | Y4: 貸方計 | AA4: 差額
A5: 決済日 | B5: 請求先 | C5: 金額 | D5: =+B5 -> 請求先 | E5: 金額 | F5: =+D5 -> 請求先 | G5: 金額 | H5: 合計 | K5: 輸送新聞社 | L5: 購読料 | M5: 1975 | O5: 図書費 | P5: 826780 | Q5: =IF(LEFT(P5,1)="3","原","") -> 
B6: 中京通運他 | C6: 269280 | H6: =C6+E6+G6 -> 269280 | K6: 輸送新聞社 | L6: 送料 | O6: 郵便料 | P6: 826430 | Q6: =IF(LEFT(P6,1)="3","原","") ->  | R6: 繰越 | S6: =INDIRECT(IF(MONTH(A3)=1,RIGHT(YEAR(A3)-1,2)&".12",RIGHT(YEAR(A3),2)&"."&TEXT(MONTH(A3)-1,"00"))&"!AA30") -> -21425483
H7: =C7+E7+G7 -> 0 | K7: 交通日本社 | L7: 通運業者名簿追録 | O7: 図書費 | P7: 826780 | R7: =MONTH(A3) -> 2 | S7: 6843009 | U7: 2058430 | W7: 84040
A8: ="上期("&TEXT(A3,"YY")&"/"&TEXT(A3,"MM")&")" -> 上期(22/02) | H8: =C8+E8+G8 -> 0 | K8: 交通日本社 | L8: 送料 | O8: 郵便料 | P8: 826430 | U8: 7413319 | W8: 377190
H9: =C9+E9+G9 -> 0 | K9: 通運新聞社 | L9: 購読料 | O9: 図書費 | P9: 826780 | U9: 2301000
B10: 計 | C10: =SUM(C6:C9) -> 269280 | D10: 計 | E10: =SUM(E6:E9) -> 0 | F10: 計 | G10: =SUM(G6:G9) -> 0 | H10: =SUM(H6:H9) -> 269280 | K10: 通運新聞社 | L10: 郵送料 | O10: 郵便料 | P10: 826430
K11: 通運情報社 | L11: 購読料 | O11: 図書費 | P11: 826780
B12: 中京通運 他 | C12: 75790 | H12: =C12+E12+G12 -> 75790 | K12: 運輸世界新聞社 | L12: 購読料 | O12: 図書費 | P12: 826780
B13: 保証預り金利子 | H13: =C13+E13+G13 -> 0 | K13: 運輸図書 | L13: ｺﾝﾃﾅ貨物集配便覧追補 | O13: 図書費 | P13: 826780
A14: ="下期("&TEXT(A3,"YY")&"/"&TEXT(A3,"MM")&")" -> 下期(22/02) | H14: =C14+E14+G14 -> 0 | K14: 運輸図書 | L14: 送料 | O14: 郵便料 | P14: 826430
H15: =C15+E15+G15 -> 0 | K15: 全国通運業連合会 | L15: 全国大会会費 | O15: 会費加入 | P15: 826910
B16: 計 | C16: =SUM(C12:C15) -> 75790 | D16: 計 | E16: =SUM(E12:E15) -> 0 | F16: 計 | G16: =SUM(G12:G15) -> 0 | H16: =SUM(H12:H15) -> 75790 | K16: 全国通運業連合会 | L16: 懇親会会費 | O16: 交際費 | P16: 826800
K17: 関東通運業連合会 | L17: ｺﾝﾃﾅ委員会会費 | O17: 会費加入 | P17: 826910
K18: 関東通運業連合会 | L18: 東名大通友会会費 | O18: 会費加入 | P18: 826910
A19: 合計 | C19: =C10+C16 -> 345070 | E19: =E10+E16 -> 0 | G19: =G10+G16 -> 0 | H19: =H10+H16 -> 345070 | K19: 関東通運業連合会 | L19: 会費 | O19: 会費加入 | P19: 826910
K20: 中部通運業連合会 | L20: 東名大通友会会費 | O20: 会費加入 | P20: 826910 | Q20: =IF(LEFT(P21,1)="3","原","") ->  | S20: =SUM(S7:S19) -> 6843009 | U20: =SUM(U6:U19) -> 11772749 | W20: =SUM(W6:W19) -> 461230 | Y20: =U20+W20 -> 12233979 | AA20: =S20-Y20 -> -5390970
A21: =+A3 -> 2022-02-01 | B21: 交計支払勘定 | K21: 日本通運(横浜) | L21: 鉄道貨物利用運送会費 | O21: 会費加入 | P21: 826910 | U21: 事故費 | W21: その他
B22: ｺﾝﾃﾅ-着店借 | D22: ｺﾝﾃﾅ-着店借 | F22: ｺﾝﾃﾅ-着店借 | H22: 業務経費 | K22: 日本通運(横浜) | L22: 神奈川県通運会費 | O22: 会費加入 | P22: 826910
A23: 決済日 | B23: 配送依頼先 | C23: 金額 | D23: =+B23 -> 配送依頼先 | E23: 金額 | F23: =+D23 -> 配送依頼先 | G23: 金額 | H23: (A)表 | I23: 合計 | K23: 日本通運(横浜) | L23: 通運業界臨時会費 | O23: 会費加入 | P23: 826910
B24: 日本通運他 | C24: 8208882 | H24: =M42 -> 26975 | I24: =C24+E24+G24+H24 -> 8235857 | K24: 博多港運 | L24: 九州会会費 | O24: 会費加入 | P24: 826910
I25: =C25+E25+G25 -> 0 | K25: 札幌通運 | L25: 北海道会費 | O25: 会費加入 | P25: 826910
A26: =A8 -> 上期(22/02) | I26: =C26+E26+G26 -> 0 | K26: 仙台運送 | L26: みちのく会費 | O26: 会費加入 | P26: 826910
I27: =C27+E27+G27 -> 0 | K27: 仙台運送 | L27: みちのく会 特別会費 | O27: 交際費 | P27: 826800
B28: 計 | C28: =SUM(C24:C27) -> 8208882 | D28: 計 | E28: =SUM(E24:E27) -> 0 | F28: 計 | G28: =SUM(G24:G27) -> 0 | H28: =SUM(H24:H27) -> 26975 | I28: =SUM(I24:I27) -> 8235857 | J28: =I28-H28 -> 8208882 | K28: 川崎運送 | L28: 会費 | M28: 25000 | O28: 会費加入 | P28: 826910 | S28: =SUM(S22:S26) -> 0 | U28: =SUM(U22:U26) -> 0 | W28: =SUM(W22:W26) -> 0 | Y28: =U28+W28 -> 0
K29: 丸全昭和運輸 | L29: 事務所清掃代 | O29: 雑費 | P29: 827900 | AA29: 翌月繰越
B30: 日本通運 他 | C30: 2134220 | H30: =N42 -> 86671 | I30: =C30+E30+G30+H30 -> 2220891 | K30: 丸全昭和運輸 | L30: 全通神奈川連絡会費 | O30: 会費加入 | P30: 826910 | S30: =S6+S20+S28 -> -14582474 | U30: =U20+U28 -> 11772749 | W30: =W20+W28 -> 461230 | Y30: =Y20+Y28 -> 12233979 | AA30: =S30-Y30 -> -26816453
I31: =C31+E31+G31 -> 0 | K31: 全国通運 | L31: 郵送料 | N31: 640 | O31: 郵便料 | P31: 826430
A32: =A14 -> 下期(22/02) | I32: =C32+E32+G32 -> 0 | K32: 全国通運 | L32: A4ｶｯﾄ紙 | O32: 用紙代 | P32: 826730 | Q32: =IF(LEFT(P34,1)="3","原","") -> 
I33: =C33+E33+G33 -> 0 | K33: 全国通運 | L33: 全通VPN料金（NTT） | N33: 21120 | O33: 雑費 | P33: 827900 | Q33: =IF(LEFT(P35,1)="3","原","") -> 
I34: =C34+E34+G34 -> 0 | K34: 全国通運 | L34: 全通VPN料金（専用線） | O34: 雑費 | P34: 827900 | Q34: =IF(LEFT(P36,1)="3","原","") -> 
B35: 計 | C35: =SUM(C30:C34) -> 2134220 | D35: 計 | E35: =SUM(E30:E34) -> 0 | F35: 計 | G35: =SUM(G30:G34) -> 0 | H35: =SUM(H30:H34) -> 86671 | I35: =SUM(C35:H35) -> 2220891 | J35: =I35-H35 -> 2134220 | K35: 全国通運 | L35: 情報ｼｽﾃﾑ開発料金 | N35: 7700 | O35: 雑費 | P35: 827900 | Q35: =IF(LEFT(P37,1)="3","原","") -> 
K36: 全国通運 | L36: 情報ｼｽﾃﾑ基本料金 | N36: 12951 | O36: 雑費 | P36: 827900 | Q36: =IF(LEFT(P38,1)="3","原","") -> 
K37: 全国通運 | L37: 通風コンテナ | O37: 雑費 | P37: 827900
A38: 合計 | C38: =C28+C35 -> 10343102 | E38: =E28+E35 -> 0 | G38: =G28+G35 -> 0 | H38: =H28+H35 -> 113646 | I38: =I28+I35 -> 10456748 | J38: =I38-H38 -> 10343102 | K38: 運送保証協会 | L38: 保証料(JR分) | N38: 44180 | O38: 雑費 | P38: 827900
D39: 前途金 | E39: 仮払金 | K39: 運送保証協会 | L39: 保証料(神奈川臨海分） | N39: 80 | O39: 雑費 | P39: 827900
A40: 他店貸,借A/C差額(上期) | C40: =I40-M42 -> 7939602 | D40: 2070000 | E40: =C40-D40 -> 5869602 | H40: 上期交計尻未払金 | I40: =I28-H10 -> 7966577 | K40: =+K3 -> 2022-02-01 | L40: 計 | M40: =SUM(M5:M39) -> 26975 | N40: =SUM(N5:N39) -> 86671
A41: 他店貸,借A/C差額(下期) | C41: =I41-N42 -> 2058430 | E41: =C41+D41-J6 -> 2058430 | H41: 下期交計尻未払金 | I41: =I35-H16 -> 2145101 | M41: 仮払金 | N41: 仮払金
K42: =K40 -> 2022-02-01 | L42: 合 計 | M42: =M40 -> 26975 | N42: =N40 -> 86671
H43: 上期 | I43: =I40+M47 -> 7968135.7
H44: 下期 | I44: =I41+N47 -> 2145634.5 | M44: 計算料（雑費） | N44: 計算料（雑費）
M45: 1417 | N45: 485
M46: =M45*0.1 -> 141.7 | N46: =N45*0.1 -> 48.5 | O46: ※2019年9月下期より消費税10%
M47: =M45+M46 -> 1558.7 | N47: =N45+N46 -> 533.5

Sheet 22.03
A3: 2022-03-01 | B3: 交計受取勘定 | K3: =+A3 -> 2022-03-01 | L3: 交計業務経費(A表) | M3: (上期) | N3: (下期) | S3: =EOMONTH(A3,1) -> 2022-04-30 | T3: 全国通運圧縮対象計上額一覧
B4: ｺﾝﾃﾅ-配達料 | D4: ｺﾝﾃﾅ-配達料 | F4: ｺﾝﾃﾅ-配達料 | K4: 支払先 | L4: 内 容 | M4: 被請求金額 | N4: 被請求金額 | S4: 買掛金 | U4: 仮払金 | W4: 売掛金 | Y4: 貸方計 | AA4: 差額
A5: 決済日 | B5: 請求先 | C5: 金額 | D5: =+B5 -> 請求先 | E5: 金額 | F5: =+D5 -> 請求先 | G5: 金額 | H5: 合計 | K5: 輸送新聞社 | L5: 購読料 | M5: 1975 | O5: 図書費 | P5: 826780 | Q5: =IF(LEFT(P5,1)="3","原","") -> 
B6: 中京通運他 | C6: 466180 | H6: =C6+E6+G6 -> 466180 | K6: 輸送新聞社 | L6: 送料 | O6: 郵便料 | P6: 826430 | Q6: =IF(LEFT(P6,1)="3","原","") ->  | R6: 繰越 | S6: =INDIRECT(IF(MONTH(A3)=1,RIGHT(YEAR(A3)-1,2)&".12",RIGHT(YEAR(A3),2)&"."&TEXT(MONTH(A3)-1,"00"))&"!AA30") -> -26816453
H7: =C7+E7+G7 -> 0 | K7: 交通日本社 | L7: 通運業者名簿追録 | O7: 図書費 | P7: 826780 | R7: =MONTH(A3) -> 3 | S7: 7424231 | U7: 2364080 | W7: 21780
A8: ="上期("&TEXT(A3,"YY")&"/"&TEXT(A3,"MM")&")" -> 上期(22/03) | H8: =C8+E8+G8 -> 0 | K8: 交通日本社 | L8: 送料 | O8: 郵便料 | P8: 826430 | S8: 5618910 | U8: 8151176 | W8: 325270
H9: =C9+E9+G9 -> 0 | K9: 通運新聞社 | L9: 購読料 | O9: 図書費 | P9: 826780
B10: 計 | C10: =SUM(C6:C9) -> 466180 | D10: 計 | E10: =SUM(E6:E9) -> 0 | F10: 計 | G10: =SUM(G6:G9) -> 0 | H10: =SUM(H6:H9) -> 466180 | K10: 通運新聞社 | L10: 郵送料 | O10: 郵便料 | P10: 826430
K11: 通運情報社 | L11: 購読料 | O11: 図書費 | P11: 826780
B12: 中京通運 他 | C12: 218350 | H12: =C12+E12+G12 -> 218350 | K12: 運輸世界新聞社 | L12: 購読料 | O12: 図書費 | P12: 826780
B13: 保証預り金利子 | C13: 15000 | H13: =C13+E13+G13 -> 15000 | K13: 運輸図書 | L13: ｺﾝﾃﾅ貨物集配便覧追補 | O13: 図書費 | P13: 826780
A14: ="下期("&TEXT(A3,"YY")&"/"&TEXT(A3,"MM")&")" -> 下期(22/03) | H14: =C14+E14+G14 -> 0 | K14: 運輸図書 | L14: 送料 | O14: 郵便料 | P14: 826430
H15: =C15+E15+G15 -> 0 | K15: 全国通運業連合会 | L15: 全国大会会費 | O15: 会費加入 | P15: 826910
B16: 計 | C16: =SUM(C12:C15) -> 233350 | D16: 計 | E16: =SUM(E12:E15) -> 0 | F16: 計 | G16: =SUM(G12:G15) -> 0 | H16: =SUM(H12:H15) -> 233350 | K16: 全国通運業連合会 | L16: 懇親会会費 | O16: 交際費 | P16: 826800
K17: 関東通運業連合会 | L17: ｺﾝﾃﾅ委員会会費 | O17: 会費加入 | P17: 826910
K18: 関東通運業連合会 | L18: 東名大通友会会費 | O18: 会費加入 | P18: 826910
A19: 合計 | C19: =C10+C16 -> 699530 | E19: =E10+E16 -> 0 | G19: =G10+G16 -> 0 | H19: =H10+H16 -> 699530 | K19: 関東通運業連合会 | L19: 会費 | N19: 39900 | O19: 会費加入 | P19: 826910
K20: 中部通運業連合会 | L20: 東名大通友会会費 | O20: 会費加入 | P20: 826910 | Q20: =IF(LEFT(P21,1)="3","原","") ->  | S20: =SUM(S7:S19) -> 13043141 | U20: =SUM(U6:U19) -> 10515256 | W20: =SUM(W6:W19) -> 347050 | Y20: =U20+W20 -> 10862306 | AA20: =S20-Y20 -> 2180835
A21: =+A3 -> 2022-03-01 | B21: 交計支払勘定 | K21: 日本通運(横浜) | L21: 鉄道貨物利用運送会費 | O21: 会費加入 | P21: 826910 | U21: 事故費 | W21: その他
B22: ｺﾝﾃﾅ-着店借 | D22: ｺﾝﾃﾅ-着店借 | F22: ｺﾝﾃﾅ-着店借 | H22: 業務経費 | K22: 日本通運(横浜) | L22: 神奈川県通運会費 | O22: 会費加入 | P22: 826910
A23: 決済日 | B23: 配送依頼先 | C23: 金額 | D23: =+B23 -> 配送依頼先 | E23: 金額 | F23: =+D23 -> 配送依頼先 | G23: 金額 | H23: (A)表 | I23: 合計 | K23: 日本通運(横浜) | L23: 通運業界臨時会費 | O23: 会費加入 | P23: 826910
B24: 日本通運他 | C24: 10038499 | H24: =M42 -> 26975 | I24: =C24+E24+G24+H24 -> 10065474 | K24: 博多港運 | L24: 九州会会費 | O24: 会費加入 | P24: 826910
I25: =C25+E25+G25 -> 0 | K25: 札幌通運 | L25: 北海道会費 | O25: 会費加入 | P25: 826910
A26: =A8 -> 上期(22/03) | I26: =C26+E26+G26 -> 0 | K26: 仙台運送 | L26: みちのく会費 | O26: 会費加入 | P26: 826910
I27: =C27+E27+G27 -> 0 | K27: 仙台運送 | L27: みちのく会 特別会費 | O27: 交際費 | P27: 826800
B28: 計 | C28: =SUM(C24:C27) -> 10038499 | D28: 計 | E28: =SUM(E24:E27) -> 0 | F28: 計 | G28: =SUM(G24:G27) -> 0 | H28: =SUM(H24:H27) -> 26975 | I28: =SUM(I24:I27) -> 10065474 | J28: =I28-H28 -> 10038499 | K28: 川崎運送 | L28: 会費 | M28: 25000 | O28: 会費加入 | P28: 826910 | S28: =SUM(S22:S26) -> 0 | U28: =SUM(U22:U26) -> 0 | W28: =SUM(W22:W26) -> 0 | Y28: =U28+W28 -> 0
K29: 丸全昭和運輸 | L29: 事務所清掃代 | O29: 雑費 | P29: 827900 | AA29: 翌月繰越
B30: 日本通運 他 | C30: 2597430 | H30: =N42 -> 124511 | I30: =C30+E30+G30+H30 -> 2721941 | K30: 丸全昭和運輸 | L30: 全通神奈川連絡会費 | O30: 会費加入 | P30: 826910 | S30: =S6+S20+S28 -> -13773312 | U30: =U20+U28 -> 10515256 | W30: =W20+W28 -> 347050 | Y30: =Y20+Y28 -> 10862306 | AA30: =S30-Y30 -> -24635618
I31: =C31+E31+G31 -> 0 | K31: 全国通運 | L31: 郵送料 | N31: 640 | O31: 郵便料 | P31: 826430
A32: =A14 -> 下期(22/03) | I32: =C32+E32+G32 -> 0 | K32: 全国通運 | L32: A4ｶｯﾄ紙 | O32: 用紙代 | P32: 826730 | Q32: =IF(LEFT(P34,1)="3","原","") -> 
I33: =C33+E33+G33 -> 0 | K33: 全国通運 | L33: 全通VPN料金（NTT） | N33: 21120 | O33: 雑費 | P33: 827900 | Q33: =IF(LEFT(P35,1)="3","原","") -> 
I34: =C34+E34+G34 -> 0 | K34: 全国通運 | L34: 全通VPN料金（専用線） | O34: 雑費 | P34: 827900 | Q34: =IF(LEFT(P36,1)="3","原","") -> 
B35: 計 | C35: =SUM(C30:C34) -> 2597430 | D35: 計 | E35: =SUM(E30:E34) -> 0 | F35: 計 | G35: =SUM(G30:G34) -> 0 | H35: =SUM(H30:H34) -> 124511 | I35: =SUM(C35:H35) -> 2721941 | J35: =I35-H35 -> 2597430 | K35: 全国通運 | L35: 情報ｼｽﾃﾑ開発料金 | N35: 7700 | O35: 雑費 | P35: 827900 | Q35: =IF(LEFT(P37,1)="3","原","") -> 
K36: 全国通運 | L36: 情報ｼｽﾃﾑ基本料金 | N36: 12951 | O36: 雑費 | P36: 827900 | Q36: =IF(LEFT(P38,1)="3","原","") -> 
K37: 全国通運 | L37: 通風コンテナ | O37: 雑費 | P37: 827900
A38: 合計 | C38: =C28+C35 -> 12635929 | E38: =E28+E35 -> 0 | G38: =G28+G35 -> 0 | H38: =H28+H35 -> 151486 | I38: =I28+I35 -> 12787415 | J38: =I38-H38 -> 12635929 | K38: 運送保証協会 | L38: 保証料(JR分) | N38: 42200 | O38: 雑費 | P38: 827900
D39: 前途金 | E39: 仮払金 | K39: 運送保証協会 | L39: 保証料(神奈川臨海分） | O39: 雑費 | P39: 827900
A40: 他店貸,借A/C差額(上期) | C40: =I40-M42 -> 9572319 | E40: =C40-D40 -> 9572319 | H40: 上期交計尻未払金 | I40: =I28-H10 -> 9599294 | K40: =+K3 -> 2022-03-01 | L40: 計 | M40: =SUM(M5:M39) -> 26975 | N40: =SUM(N5:N39) -> 124511
A41: 他店貸,借A/C差額(下期) | C41: =I41-N42 -> 2364080 | E41: =C41+D41-J6 -> 2364080 | H41: 下期交計尻未払金 | I41: =I35-H16 -> 2488591 | M41: 仮払金 | N41: 仮払金
K42: =K40 -> 2022-03-01 | L42: 合 計 | M42: =M40 -> 26975 | N42: =N40 -> 124511
H43: 上期 | I43: =I40+M47 -> 9601789.9
H44: 下期 | I44: =I41+N47 -> 2489896.7 | M44: 計算料（雑費） | N44: 計算料（雑費）
M45: 2269 | N45: 1187
M46: =M45*0.1 -> 226.9 | N46: =N45*0.1 -> 118.7 | O46: ※2019年9月下期より消費税10%
M47: =M45+M46 -> 2495.9 | N47: =N45+N46 -> 1305.7

Sheet 22.04
A3: 2022-04-01 | B3: 交計受取勘定 | K3: =+A3 -> 2022-04-01 | L3: 交計業務経費(A表) | M3: (上期) | N3: (下期) | S3: =EOMONTH(A3,1) -> 2022-05-31 | T3: 全国通運圧縮対象計上額一覧
B4: ｺﾝﾃﾅ-配達料 | D4: ｺﾝﾃﾅ-配達料 | F4: ｺﾝﾃﾅ-配達料 | K4: 支払先 | L4: 内 容 | M4: 被請求金額 | N4: 被請求金額 | S4: 買掛金 | U4: 仮払金 | W4: 売掛金 | Y4: 貸方計 | AA4: 差額
A5: 決済日 | B5: 請求先 | C5: 金額 | D5: =+B5 -> 請求先 | E5: 金額 | F5: =+D5 -> 請求先 | G5: 金額 | H5: 合計 | K5: 輸送新聞社 | L5: 購読料 | M5: 1975 | O5: 図書費 | P5: 826780 | Q5: =IF(LEFT(P5,1)="3","原","") -> 
B6: 中京通運他 | C6: 265540 | H6: =C6+E6+G6 -> 265540 | K6: 輸送新聞社 | L6: 送料 | O6: 郵便料 | P6: 826430 | Q6: =IF(LEFT(P6,1)="3","原","") ->  | R6: 繰越 | S6: =INDIRECT(IF(MONTH(A3)=1,RIGHT(YEAR(A3)-1,2)&".12",RIGHT(YEAR(A3),2)&"."&TEXT(MONTH(A3)-1,"00"))&"!AA30") -> -24635618
H7: =C7+E7+G7 -> 0 | K7: 交通日本社 | L7: 通運業者名簿追録 | O7: 図書費 | P7: 826780 | R7: =MONTH(A3) -> 4 | S7: 4839010 | U7: 2606010 | W7: 151580
A8: ="上期("&TEXT(A3,"YY")&"/"&TEXT(A3,"MM")&")" -> 上期(22/04) | H8: =C8+E8+G8 -> 0 | K8: 交通日本社 | L8: 送料 | O8: 郵便料 | P8: 826430 | S8: 8455979 | U8: 8312548 | W8: 203060
H9: =C9+E9+G9 -> 0 | K9: 通運新聞社 | L9: 購読料 | O9: 図書費 | P9: 826780 | U9: 3437 | W9: 21780
B10: 計 | C10: =SUM(C6:C9) -> 265540 | D10: 計 | E10: =SUM(E6:E9) -> 0 | F10: 計 | G10: =SUM(G6:G9) -> 0 | H10: =SUM(H6:H9) -> 265540 | K10: 通運新聞社 | L10: 郵送料 | O10: 郵便料 | P10: 826430 | W10: 91740
K11: 通運情報社 | L11: 購読料 | O11: 図書費 | P11: 826780
B12: 中京通運 他 | C12: 217580 | H12: =C12+E12+G12 -> 217580 | K12: 運輸世界新聞社 | L12: 購読料 | O12: 図書費 | P12: 826780
B13: 保証預り金利子 | H13: =C13+E13+G13 -> 0 | K13: 運輸図書 | L13: ｺﾝﾃﾅ貨物集配便覧追補 | O13: 図書費 | P13: 826780
A14: ="下期("&TEXT(A3,"YY")&"/"&TEXT(A3,"MM")&")" -> 下期(22/04) | H14: =C14+E14+G14 -> 0 | K14: 運輸図書 | L14: 送料 | O14: 郵便料 | P14: 826430
H15: =C15+E15+G15 -> 0 | K15: 全国通運業連合会 | L15: 全国大会会費 | O15: 会費加入 | P15: 826910
B16: 計 | C16: =SUM(C12:C15) -> 217580 | D16: 計 | E16: =SUM(E12:E15) -> 0 | F16: 計 | G16: =SUM(G12:G15) -> 0 | H16: =SUM(H12:H15) -> 217580 | K16: 全国通運業連合会 | L16: 懇親会会費 | O16: 交際費 | P16: 826800
K17: 関東通運業連合会 | L17: ｺﾝﾃﾅ委員会会費 | O17: 会費加入 | P17: 826910
K18: 関東通運業連合会 | L18: 東名大通友会会費 | O18: 会費加入 | P18: 826910
A19: 合計 | C19: =C10+C16 -> 483120 | E19: =E10+E16 -> 0 | G19: =G10+G16 -> 0 | H19: =H10+H16 -> 483120 | K19: 関東通運業連合会 | L19: 会費 | N19: 39900 | O19: 会費加入 | P19: 826910
K20: 中部通運業連合会 | L20: 東名大通友会会費 | O20: 会費加入 | P20: 826910 | Q20: =IF(LEFT(P21,1)="3","原","") ->  | S20: =SUM(S7:S19) -> 13294989 | U20: =SUM(U6:U19) -> 10921995 | W20: =SUM(W6:W19) -> 468160 | Y20: =U20+W20 -> 11390155 | AA20: =S20-Y20 -> 1904834
A21: =+A3 -> 2022-04-01 | B21: 交計支払勘定 | K21: 日本通運(横浜) | L21: 鉄道貨物利用運送会費 | O21: 会費加入 | P21: 826910 | U21: 事故費 | W21: その他
B22: ｺﾝﾃﾅ-着店借 | D22: ｺﾝﾃﾅ-着店借 | F22: ｺﾝﾃﾅ-着店借 | H22: 業務経費 | K22: 日本通運(横浜) | L22: 神奈川県通運会費 | O22: 会費加入 | P22: 826910
A23: 決済日 | B23: 配送依頼先 | C23: 金額 | D23: =+B23 -> 配送依頼先 | E23: 金額 | F23: =+D23 -> 配送依頼先 | G23: 金額 | H23: (A)表 | I23: 合計 | K23: 日本通運(横浜) | L23: 通運業界臨時会費 | O23: 会費加入 | P23: 826910
B24: 日本通運他 | C24: 10717716 | H24: =M42 -> 26975 | I24: =C24+E24+G24+H24 -> 10744691 | K24: 博多港運 | L24: 九州会会費 | O24: 会費加入 | P24: 826910
I25: =C25+E25+G25 -> 0 | K25: 札幌通運 | L25: 北海道会費 | O25: 会費加入 | P25: 826910
A26: =A8 -> 上期(22/04) | I26: =C26+E26+G26 -> 0 | K26: 仙台運送 | L26: みちのく会費 | O26: 会費加入 | P26: 826910
I27: =C27+E27+G27 -> 0 | K27: 仙台運送 | L27: みちのく会 特別会費 | O27: 交際費 | P27: 826800
B28: 計 | C28: =SUM(C24:C27) -> 10717716 | D28: 計 | E28: =SUM(E24:E27) -> 0 | F28: 計 | G28: =SUM(G24:G27) -> 0 | H28: =SUM(H24:H27) -> 26975 | I28: =SUM(I24:I27) -> 10744691 | J28: =I28-H28 -> 10717716 | K28: 川崎運送 | L28: 会費 | M28: 25000 | O28: 会費加入 | P28: 826910 | S28: =SUM(S22:S26) -> 0 | U28: =SUM(U22:U26) -> 0 | W28: =SUM(W22:W26) -> 0 | Y28: =U28+W28 -> 0
K29: 丸全昭和運輸 | L29: 事務所清掃代 | O29: 雑費 | P29: 827900 | AA29: 翌月繰越
B30: 日本通運 他 | C30: 2823590 | H30: =N42 -> 118013 | I30: =C30+E30+G30+H30 -> 2941603 | K30: 丸全昭和運輸 | L30: 全通神奈川連絡会費 | O30: 会費加入 | P30: 826910 | S30: =S6+S20+S28 -> -11340629 | U30: =U20+U28 -> 10921995 | W30: =W20+W28 -> 468160 | Y30: =Y20+Y28 -> 11390155 | AA30: =S30-Y30 -> -22730784
I31: =C31+E31+G31 -> 0 | K31: 全国通運 | L31: 郵送料 | N31: 640 | O31: 郵便料 | P31: 826430
A32: =A14 -> 下期(22/04) | I32: =C32+E32+G32 -> 0 | K32: 全国通運 | L32: A4ｶｯﾄ紙 | O32: 用紙代 | P32: 826730 | Q32: =IF(LEFT(P34,1)="3","原","") -> 
I33: =C33+E33+G33 -> 0 | K33: 全国通運 | L33: 全通VPN料金（NTT） | N33: 21120 | O33: 雑費 | P33: 827900 | Q33: =IF(LEFT(P35,1)="3","原","") -> 
I34: =C34+E34+G34 -> 0 | K34: 全国通運 | L34: 全通VPN料金（専用線） | O34: 雑費 | P34: 827900 | Q34: =IF(LEFT(P36,1)="3","原","") -> 
B35: 計 | C35: =SUM(C30:C34) -> 2823590 | D35: 計 | E35: =SUM(E30:E34) -> 0 | F35: 計 | G35: =SUM(G30:G34) -> 0 | H35: =SUM(H30:H34) -> 118013 | I35: =SUM(C35:H35) -> 2941603 | J35: =I35-H35 -> 2823590 | K35: 全国通運 | L35: 情報ｼｽﾃﾑ開発料金 | N35: 7150 | O35: 雑費 | P35: 827900 | Q35: =IF(LEFT(P37,1)="3","原","") -> 
K36: 全国通運 | L36: 情報ｼｽﾃﾑ基本料金 | N36: 12243 | O36: 雑費 | P36: 827900 | Q36: =IF(LEFT(P38,1)="3","原","") -> 
K37: 全国通運 | L37: 通風コンテナ | O37: 雑費 | P37: 827900
A38: 合計 | C38: =C28+C35 -> 13541306 | E38: =E28+E35 -> 0 | G38: =G28+G35 -> 0 | H38: =H28+H35 -> 144988 | I38: =I28+I35 -> 13686294 | J38: =I38-H38 -> 13541306 | K38: 運送保証協会 | L38: 保証料(JR分) | N38: 36880 | O38: 雑費 | P38: 827900
D39: 前途金 | E39: 仮払金 | K39: 運送保証協会 | L39: 保証料(神奈川臨海分） | N39: 80 | O39: 雑費 | P39: 827900
A40: 他店貸,借A/C差額(上期) | C40: =I40-M42 -> 10452176 | D40: 2301000 | E40: =C40-D40 -> 8151176 | H40: 上期交計尻未払金 | I40: =I28-H10 -> 10479151 | K40: =+K3 -> 2022-04-01 | L40: 計 | M40: =SUM(M5:M39) -> 26975 | N40: =SUM(N5:N39) -> 118013
A41: 他店貸,借A/C差額(下期) | C41: =I41-N42 -> 2606010 | E41: =C41+D41-J6 -> 2606010 | H41: 下期交計尻未払金 | I41: =I35-H16 -> 2724023 | M41: 仮払金 | N41: 仮払金
K42: =K40 -> 2022-04-01 | L42: 合 計 | M42: =M40 -> 26975 | N42: =N40 -> 118013
H43: 上期 | I43: =I40+M47 -> 10480709.7
H44: 下期 | I44: =I41+N47 -> 2725328.7 | M44: 計算料（雑費） | N44: 計算料（雑費）
M45: 1417 | N45: 1187
M46: =M45*0.1 -> 141.7 | N46: =N45*0.1 -> 118.7 | O46: ※2019年9月下期より消費税10%
M47: =M45+M46 -> 1558.7 | N47: =N45+N46 -> 1305.7

Sheet 22.05
A3: 2022-05-01 | B3: 交計受取勘定 | K3: =+A3 -> 2022-05-01 | L3: 交計業務経費(A表) | M3: (上期) | N3: (下期) | S3: =EOMONTH(A3,1) -> 2022-06-30 | T3: 全国通運圧縮対象計上額一覧
B4: ｺﾝﾃﾅ-配達料 | D4: ｺﾝﾃﾅ-配達料 | F4: ｺﾝﾃﾅ-配達料 | K4: 支払先 | L4: 内 容 | M4: 被請求金額 | N4: 被請求金額 | S4: 買掛金 | U4: 仮払金 | W4: 売掛金 | Y4: 貸方計 | AA4: 差額
A5: 決済日 | B5: 請求先 | C5: 金額 | D5: =+B5 -> 請求先 | E5: 金額 | F5: =+D5 -> 請求先 | G5: 金額 | H5: 合計 | K5: 輸送新聞社 | L5: 購読料 | M5: 1975 | O5: 図書費 | P5: 826780 | Q5: =IF(LEFT(P5,1)="3","原","") -> 
B6: 中京通運他 | C6: 45430 | H6: =C6+E6+G6 -> 45430 | K6: 輸送新聞社 | L6: 送料 | O6: 郵便料 | P6: 826430 | Q6: =IF(LEFT(P6,1)="3","原","") ->  | R6: 繰越 | S6: =INDIRECT(IF(MONTH(A3)=1,RIGHT(YEAR(A3)-1,2)&".12",RIGHT(YEAR(A3),2)&"."&TEXT(MONTH(A3)-1,"00"))&"!AA30") -> -22730784
H7: =C7+E7+G7 -> 0 | K7: 交通日本社 | L7: 通運業者名簿追録 | O7: 図書費 | P7: 826780 | R7: =MONTH(A3) -> 5 | S7: 5637610 | U7: 4598410 | W7: 185130
A8: ="上期("&TEXT(A3,"YY")&"/"&TEXT(A3,"MM")&")" -> 上期(22/05) | H8: =C8+E8+G8 -> 0 | K8: 交通日本社 | L8: 送料 | O8: 郵便料 | P8: 826430 | U8: 3115530 | W8: 45870
H9: =C9+E9+G9 -> 0 | K9: 通運新聞社 | L9: 購読料 | O9: 図書費 | P9: 826780 | U9: 1889000
B10: 計 | C10: =SUM(C6:C9) -> 45430 | D10: 計 | E10: =SUM(E6:E9) -> 0 | F10: 計 | G10: =SUM(G6:G9) -> 0 | H10: =SUM(H6:H9) -> 45430 | K10: 通運新聞社 | L10: 郵送料 | O10: 郵便料 | P10: 826430 | U10: 2241000
K11: 通運情報社 | L11: 購読料 | O11: 図書費 | P11: 826780
B12: 中京通運 他 | C12: 179410 | H12: =C12+E12+G12 -> 179410 | K12: 運輸世界新聞社 | L12: 購読料 | O12: 図書費 | P12: 826780
B13: 保証預り金利子 | H13: =C13+E13+G13 -> 0 | K13: 運輸図書 | L13: ｺﾝﾃﾅ貨物集配便覧追補 | O13: 図書費 | P13: 826780
A14: ="下期("&TEXT(A3,"YY")&"/"&TEXT(A3,"MM")&")" -> 下期(22/05) | H14: =C14+E14+G14 -> 0 | K14: 運輸図書 | L14: 送料 | O14: 郵便料 | P14: 826430
H15: =C15+E15+G15 -> 0 | K15: 全国通運業連合会 | L15: 全国大会会費 | O15: 会費加入 | P15: 826910
B16: 計 | C16: =SUM(C12:C15) -> 179410 | D16: 計 | E16: =SUM(E12:E15) -> 0 | F16: 計 | G16: =SUM(G12:G15) -> 0 | H16: =SUM(H12:H15) -> 179410 | K16: 全国通運業連合会 | L16: 懇親会会費 | O16: 交際費 | P16: 826800
K17: 関東通運業連合会 | L17: ｺﾝﾃﾅ委員会会費 | O17: 会費加入 | P17: 826910
K18: 関東通運業連合会 | L18: 東名大通友会会費 | O18: 会費加入 | P18: 826910
A19: 合計 | C19: =C10+C16 -> 224840 | E19: =E10+E16 -> 0 | G19: =G10+G16 -> 0 | H19: =H10+H16 -> 224840 | K19: 関東通運業連合会 | L19: 会費 | O19: 会費加入 | P19: 826910
K20: 中部通運業連合会 | L20: 東名大通友会会費 | O20: 会費加入 | P20: 826910 | Q20: =IF(LEFT(P21,1)="3","原","") ->  | S20: =SUM(S7:S19) -> 5637610 | U20: =SUM(U6:U19) -> 11843940 | W20: =SUM(W6:W19) -> 231000 | Y20: =U20+W20 -> 12074940 | AA20: =S20-Y20 -> -6437330
A21: =+A3 -> 2022-05-01 | B21: 交計支払勘定 | K21: 日本通運(横浜) | L21: 鉄道貨物利用運送会費 | O21: 会費加入 | P21: 826910 | U21: 事故費 | W21: その他
B22: ｺﾝﾃﾅ-着店借 | D22: ｺﾝﾃﾅ-着店借 | F22: ｺﾝﾃﾅ-着店借 | H22: 業務経費 | K22: 日本通運(横浜) | L22: 神奈川県通運会費 | O22: 会費加入 | P22: 826910
A23: 決済日 | B23: 配送依頼先 | C23: 金額 | D23: =+B23 -> 配送依頼先 | E23: 金額 | F23: =+D23 -> 配送依頼先 | G23: 金額 | H23: (A)表 | I23: 合計 | K23: 日本通運(横浜) | L23: 通運業界臨時会費 | O23: 会費加入 | P23: 826910
B24: 日本通運他 | C24: 10920978 | H24: =M42 -> 26975 | I24: =C24+E24+G24+H24 -> 10947953 | K24: 博多港運 | L24: 九州会会費 | O24: 会費加入 | P24: 826910
I25: =C25+E25+G25 -> 0 | K25: 札幌通運 | L25: 北海道会費 | O25: 会費加入 | P25: 826910
A26: =A8 -> 上期(22/05) | I26: =C26+E26+G26 -> 0 | K26: 仙台運送 | L26: みちのく会費 | O26: 会費加入 | P26: 826910
I27: =C27+E27+G27 -> 0 | K27: 仙台運送 | L27: みちのく会 特別会費 | O27: 交際費 | P27: 826800
B28: 計 | C28: =SUM(C24:C27) -> 10920978 | D28: 計 | E28: =SUM(E24:E27) -> 0 | F28: 計 | G28: =SUM(G24:G27) -> 0 | H28: =SUM(H24:H27) -> 26975 | I28: =SUM(I24:I27) -> 10947953 | J28: =I28-H28 -> 10920978 | K28: 川崎運送 | L28: 会費 | M28: 25000 | N28: 39900 | O28: 会費加入 | P28: 826910 | S28: =SUM(S22:S26) -> 0 | U28: =SUM(U22:U26) -> 0 | W28: =SUM(W22:W26) -> 0 | Y28: =U28+W28 -> 0
K29: 丸全昭和運輸 | L29: 事務所清掃代 | O29: 雑費 | P29: 827900 | AA29: 翌月繰越
B30: 日本通運 他 | C30: 3294940 | H30: =N42 -> 143733 | I30: =C30+E30+G30+H30 -> 3438673 | K30: 丸全昭和運輸 | L30: 全通神奈川連絡会費 | O30: 会費加入 | P30: 826910 | S30: =S6+S20+S28 -> -17093174 | U30: =U20+U28 -> 11843940 | W30: =W20+W28 -> 231000 | Y30: =Y20+Y28 -> 12074940 | AA30: =S30-Y30 -> -29168114
I31: =C31+E31+G31 -> 0 | K31: 全国通運 | L31: 郵送料 | N31: 640 | O31: 郵便料 | P31: 826430
A32: =A14 -> 下期(22/05) | I32: =C32+E32+G32 -> 0 | K32: 全国通運 | L32: A4ｶｯﾄ紙 | N32: 26400 | O32: 用紙代 | P32: 826730 | Q32: =IF(LEFT(P34,1)="3","原","") -> 
I33: =C33+E33+G33 -> 0 | K33: 全国通運 | L33: 全通VPN料金（NTT） | N33: 21120 | O33: 雑費 | P33: 827900 | Q33: =IF(LEFT(P35,1)="3","原","") -> 
I34: =C34+E34+G34 -> 0 | K34: 全国通運 | L34: 全通VPN料金（専用線） | O34: 雑費 | P34: 827900 | Q34: =IF(LEFT(P36,1)="3","原","") -> 
B35: 計 | C35: =SUM(C30:C34) -> 3294940 | D35: 計 | E35: =SUM(E30:E34) -> 0 | F35: 計 | G35: =SUM(G30:G34) -> 0 | H35: =SUM(H30:H34) -> 143733 | I35: =SUM(C35:H35) -> 3438673 | J35: =I35-H35 -> 3294940 | K35: 全国通運 | L35: 情報ｼｽﾃﾑ開発料金 | N35: 7150 | O35: 雑費 | P35: 827900 | Q35: =IF(LEFT(P37,1)="3","原","") -> 
K36: 全国通運 | L36: 情報ｼｽﾃﾑ基本料金 | N36: 12243 | O36: 雑費 | P36: 827900 | Q36: =IF(LEFT(P38,1)="3","原","") -> 
K37: 全国通運 | L37: 通風コンテナ | O37: 雑費 | P37: 827900
A38: 合計 | C38: =C28+C35 -> 14215918 | E38: =E28+E35 -> 0 | G38: =G28+G35 -> 0 | H38: =H28+H35 -> 170708 | I38: =I28+I35 -> 14386626 | J38: =I38-H38 -> 14215918 | K38: 運送保証協会 | L38: 保証料(JR分) | N38: 36190 | O38: 雑費 | P38: 827900
D39: 前途金 | E39: 仮払金 | K39: 運送保証協会 | L39: 保証料(神奈川臨海分） | N39: 90 | O39: 雑費 | P39: 827900
A40: 他店貸,借A/C差額(上期) | C40: =I40-M42 -> 10875548 | D40: 2563000 | E40: =C40-D40 -> 8312548 | H40: 上期交計尻未払金 | I40: =I28-H10 -> 10902523 | K40: =+K3 -> 2022-05-01 | L40: 計 | M40: =SUM(M5:M39) -> 26975 | N40: =SUM(N5:N39) -> 143733
A41: 他店貸,借A/C差額(下期) | C41: =I41-N42 -> 3115530 | E41: =C41+D41-J6 -> 3115530 | H41: 下期交計尻未払金 | I41: =I35-H16 -> 3259263 | M41: 仮払金 | N41: 仮払金
K42: =K40 -> 2022-05-01 | L42: 合 計 | M42: =M40 -> 26975 | N42: =N40 -> 143733
H43: 上期 | I43: =I40+M47 -> 10902875
H44: 下期 | I44: =I41+N47 -> 3260357.5 | M44: 計算料（雑費） | N44: 計算料（雑費）
M45: 320 | N45: 995
M46: =M45*0.1 -> 32 | N46: =N45*0.1 -> 99.5 | O46: ※2019年9月下期より消費税10%
M47: =M45+M46 -> 352 | N47: =N45+N46 -> 1094.5

Sheet 22.06
A3: 2022-06-01 | B3: 交計受取勘定 | K3: =+A3 -> 2022-06-01 | L3: 交計業務経費(A表) | M3: (上期) | N3: (下期) | S3: =EOMONTH(A3,1) -> 2022-07-31 | T3: 全国通運圧縮対象計上額一覧
B4: ｺﾝﾃﾅ-配達料 | D4: ｺﾝﾃﾅ-配達料 | F4: ｺﾝﾃﾅ-配達料 | K4: 支払先 | L4: 内 容 | M4: 被請求金額 | N4: 被請求金額 | S4: 買掛金 | U4: 仮払金 | W4: 売掛金 | Y4: 貸方計 | AA4: 差額
A5: 決済日 | B5: 請求先 | C5: 金額 | D5: =+B5 -> 請求先 | E5: 金額 | F5: =+D5 -> 請求先 | G5: 金額 | H5: 合計 | K5: 輸送新聞社 | L5: 購読料 | M5: 1975 | O5: 図書費 | P5: 826780 | Q5: =IF(LEFT(P5,1)="3","原","") -> 
B6: 中京通運他 | C6: 346390 | H6: =C6+E6+G6 -> 346390 | K6: 輸送新聞社 | L6: 送料 | O6: 郵便料 | P6: 826430 | Q6: =IF(LEFT(P6,1)="3","原","") ->  | R6: 繰越 | S6: =INDIRECT(IF(MONTH(A3)=1,RIGHT(YEAR(A3)-1,2)&".12",RIGHT(YEAR(A3),2)&"."&TEXT(MONTH(A3)-1,"00"))&"!AA30") -> -29168114
H7: =C7+E7+G7 -> 0 | K7: 交通日本社 | L7: 通運業者名簿追録 | O7: 図書費 | P7: 826780 | R7: =MONTH(A3) -> 6 | S7: 5516500 | U7: 3520000 | W7: 337370
A8: ="上期("&TEXT(A3,"YY")&"/"&TEXT(A3,"MM")&")" -> 上期(22/06) | H8: =C8+E8+G8 -> 0 | K8: 交通日本社 | L8: 送料 | O8: 郵便料 | P8: 826430 | S8: 6249088 | U8: 8492556 | W8: 45870
H9: =C9+E9+G9 -> 0 | K9: 通運新聞社 | L9: 購読料 | O9: 図書費 | P9: 826780 | S9: 7389951 | W9: 125180
B10: 計 | C10: =SUM(C6:C9) -> 346390 | D10: 計 | E10: =SUM(E6:E9) -> 0 | F10: 計 | G10: =SUM(G6:G9) -> 0 | H10: =SUM(H6:H9) -> 346390 | K10: 通運新聞社 | L10: 郵送料 | O10: 郵便料 | P10: 826430 | W10: 87120
K11: 通運情報社 | L11: 購読料 | O11: 図書費 | P11: 826780
B12: 中京通運 他 | C12: 82060 | H12: =C12+E12+G12 -> 82060 | K12: 運輸世界新聞社 | L12: 購読料 | O12: 図書費 | P12: 826780
B13: 保証預り金利子 | H13: =C13+E13+G13 -> 0 | K13: 運輸図書 | L13: ｺﾝﾃﾅ貨物集配便覧追補 | O13: 図書費 | P13: 826780
A14: ="下期("&TEXT(A3,"YY")&"/"&TEXT(A3,"MM")&")" -> 下期(22/06) | H14: =C14+E14+G14 -> 0 | K14: 運輸図書 | L14: 送料 | O14: 郵便料 | P14: 826430
H15: =C15+E15+G15 -> 0 | K15: 全国通運業連合会 | L15: 全国大会会費 | O15: 会費加入 | P15: 826910
B16: 計 | C16: =SUM(C12:C15) -> 82060 | D16: 計 | E16: =SUM(E12:E15) -> 0 | F16: 計 | G16: =SUM(G12:G15) -> 0 | H16: =SUM(H12:H15) -> 82060 | K16: 全国通運業連合会 | L16: 懇親会会費 | O16: 交際費 | P16: 826800
K17: 関東通運業連合会 | L17: ｺﾝﾃﾅ委員会会費 | O17: 会費加入 | P17: 826910
K18: 関東通運業連合会 | L18: 東名大通友会会費 | O18: 会費加入 | P18: 826910
A19: 合計 | C19: =C10+C16 -> 428450 | E19: =E10+E16 -> 0 | G19: =G10+G16 -> 0 | H19: =H10+H16 -> 428450 | K19: 関東通運業連合会 | L19: 会費 | N19: 39900 | O19: 会費加入 | P19: 826910
K20: 中部通運業連合会 | L20: 東名大通友会会費 | O20: 会費加入 | P20: 826910 | Q20: =IF(LEFT(P21,1)="3","原","") ->  | S20: =SUM(S7:S19) -> 19155539 | U20: =SUM(U6:U19) -> 12012556 | W20: =SUM(W6:W19) -> 595540 | Y20: =U20+W20 -> 12608096 | AA20: =S20-Y20 -> 6547443
A21: =+A3 -> 2022-06-01 | B21: 交計支払勘定 | K21: 日本通運(横浜) | L21: 鉄道貨物利用運送会費 | O21: 会費加入 | P21: 826910 | U21: 事故費 | W21: その他
B22: ｺﾝﾃﾅ-着店借 | D22: ｺﾝﾃﾅ-着店借 | F22: ｺﾝﾃﾅ-着店借 | H22: 業務経費 | K22: 日本通運(横浜) | L22: 神奈川県通運会費 | O22: 会費加入 | P22: 826910
A23: 決済日 | B23: 配送依頼先 | C23: 金額 | D23: =+B23 -> 配送依頼先 | E23: 金額 | F23: =+D23 -> 配送依頼先 | G23: 金額 | H23: (A)表 | I23: 合計 | K23: 日本通運(横浜) | L23: 通運業界臨時会費 | O23: 会費加入 | P23: 826910
B24: 日本通運他 | C24: 6833800 | H24: =M42 -> 31475 | I24: =C24+E24+G24+H24 -> 6865275 | K24: 博多港運 | L24: 九州会会費 | O24: 会費加入 | P24: 826910
I25: =C25+E25+G25 -> 0 | K25: 札幌通運 | L25: 北海道会費 | M25: 4500 | O25: 会費加入 | P25: 826910
A26: =A8 -> 上期(22/06) | I26: =C26+E26+G26 -> 0 | K26: 仙台運送 | L26: みちのく会費 | O26: 会費加入 | P26: 826910
I27: =C27+E27+G27 -> 0 | K27: 仙台運送 | L27: みちのく会 特別会費 | O27: 交際費 | P27: 826800
B28: 計 | C28: =SUM(C24:C27) -> 6833800 | D28: 計 | E28: =SUM(E24:E27) -> 0 | F28: 計 | G28: =SUM(G24:G27) -> 0 | H28: =SUM(H24:H27) -> 31475 | I28: =SUM(I24:I27) -> 6865275 | J28: =I28-H28 -> 6833800 | K28: 川崎運送 | L28: 会費 | M28: 25000 | O28: 会費加入 | P28: 826910 | S28: =SUM(S22:S26) -> 0 | U28: =SUM(U22:U26) -> 0 | W28: =SUM(W22:W26) -> 0 | Y28: =U28+W28 -> 0
K29: 丸全昭和運輸 | L29: 事務所清掃代 | O29: 雑費 | P29: 827900 | AA29: 翌月繰越
B30: 日本通運 他 | C30: 3602060 | H30: =N42 -> 110563 | I30: =C30+E30+G30+H30 -> 3712623 | K30: 丸全昭和運輸 | L30: 全通神奈川連絡会費 | O30: 会費加入 | P30: 826910 | S30: =S6+S20+S28 -> -10012575 | U30: =U20+U28 -> 12012556 | W30: =W20+W28 -> 595540 | Y30: =Y20+Y28 -> 12608096 | AA30: =S30-Y30 -> -22620671
I31: =C31+E31+G31 -> 0 | K31: 全国通運 | L31: 郵送料 | N31: 640 | O31: 郵便料 | P31: 826430
A32: =A14 -> 下期(22/06) | I32: =C32+E32+G32 -> 0 | K32: 全国通運 | L32: A4ｶｯﾄ紙 | O32: 用紙代 | P32: 826730 | Q32: =IF(LEFT(P34,1)="3","原","") -> 
I33: =C33+E33+G33 -> 0 | K33: 全国通運 | L33: 全通VPN料金（NTT） | N33: 21120 | O33: 雑費 | P33: 827900 | Q33: =IF(LEFT(P35,1)="3","原","") -> 
I34: =C34+E34+G34 -> 0 | K34: 全国通運 | L34: 全通VPN料金（専用線） | O34: 雑費 | P34: 827900 | Q34: =IF(LEFT(P36,1)="3","原","") -> 
B35: 計 | C35: =SUM(C30:C34) -> 3602060 | D35: 計 | E35: =SUM(E30:E34) -> 0 | F35: 計 | G35: =SUM(G30:G34) -> 0 | H35: =SUM(H30:H34) -> 110563 | I35: =SUM(C35:H35) -> 3712623 | J35: =I35-H35 -> 3602060 | K35: 全国通運 | L35: 情報ｼｽﾃﾑ開発料金 | N35: 7150 | O35: 雑費 | P35: 827900 | Q35: =IF(LEFT(P37,1)="3","原","") -> 
K36: 全国通運 | L36: 情報ｼｽﾃﾑ基本料金 | N36: 12243 | O36: 雑費 | P36: 827900 | Q36: =IF(LEFT(P38,1)="3","原","") -> 
K37: 全国通運 | L37: 通風コンテナ | O37: 雑費 | P37: 827900
A38: 合計 | C38: =C28+C35 -> 10435860 | E38: =E28+E35 -> 0 | G38: =G28+G35 -> 0 | H38: =H28+H35 -> 142038 | I38: =I28+I35 -> 10577898 | J38: =I38-H38 -> 10435860 | K38: 運送保証協会 | L38: 保証料(JR分) | N38: 29450 | O38: 雑費 | P38: 827900
D39: 前途金 | E39: 仮払金 | K39: 運送保証協会 | L39: 保証料(神奈川臨海分） | N39: 60 | O39: 雑費 | P39: 827900
A40: 他店貸,借A/C差額(上期) | C40: =I40-M42 -> 6487410 | E40: =C40-D40 -> 6487410 | H40: 上期交計尻未払金 | I40: =I28-H10 -> 6518885 | K40: =+K3 -> 2022-06-01 | L40: 計 | M40: =SUM(M5:M39) -> 31475 | N40: =SUM(N5:N39) -> 110563
A41: 他店貸,借A/C差額(下期) | C41: =I41-N42 -> 3520000 | E41: =C41+D41-J6 -> 3520000 | H41: 下期交計尻未払金 | I41: =I35-H16 -> 3630563 | M41: 仮払金 | N41: 仮払金
K42: =K40 -> 2022-06-01 | L42: 合 計 | M42: =M40 -> 31475 | N42: =N40 -> 110563
H43: 上期 | I43: =I40+M47 -> 6520826.5
H44: 下期 | I44: =I41+N47 -> 3631157 | M44: 計算料（雑費） | N44: 計算料（雑費）
M45: 1765 | N45: 540
M46: =M45*0.1 -> 176.5 | N46: =N45*0.1 -> 54 | O46: ※2019年9月下期より消費税10%
M47: =M45+M46 -> 1941.5 | N47: =N45+N46 -> 594

Sheet 22.07
A3: 2022-07-01 | B3: 交計受取勘定 | K3: =+A3 -> 2022-07-01 | L3: 交計業務経費(A表) | M3: (上期) | N3: (下期) | S3: =EOMONTH(A3,1) -> 2022-08-31 | T3: 全国通運圧縮対象計上額一覧
B4: ｺﾝﾃﾅ-配達料 | D4: ｺﾝﾃﾅ-配達料 | F4: ｺﾝﾃﾅ-配達料 | K4: 支払先 | L4: 内 容 | M4: 被請求金額 | N4: 被請求金額 | S4: 買掛金 | U4: 仮払金 | W4: 売掛金 | Y4: 貸方計 | AA4: 差額
A5: 決済日 | B5: 請求先 | C5: 金額 | D5: =+B5 -> 請求先 | E5: 金額 | F5: =+D5 -> 請求先 | G5: 金額 | H5: 合計 | K5: 輸送新聞社 | L5: 購読料 | M5: 1975 | O5: 図書費 | P5: 826780 | Q5: =IF(LEFT(P5,1)="3","原","") -> 
B6: 中京通運他 | C6: 339240 | H6: =C6+E6+G6 -> 339240 | K6: 輸送新聞社 | L6: 送料 | O6: 郵便料 | P6: 826430 | Q6: =IF(LEFT(P6,1)="3","原","") ->  | R6: 繰越 | S6: =INDIRECT(IF(MONTH(A3)=1,RIGHT(YEAR(A3)-1,2)&".12",RIGHT(YEAR(A3),2)&"."&TEXT(MONTH(A3)-1,"00"))&"!AA30") -> -22620671
H7: =C7+E7+G7 -> 0 | K7: 交通日本社 | L7: 通運業者名簿追録 | O7: 図書費 | P7: 826780 | R7: =MONTH(A3) -> 7 | S7: 6961573 | T7: 他店借 | U7: 6057414 | W7: 169180
A8: ="上期("&TEXT(A3,"YY")&"/"&TEXT(A3,"MM")&")" -> 上期(22/07) | H8: =C8+E8+G8 -> 0 | K8: 交通日本社 | L8: 送料 | O8: 郵便料 | P8: 826430 | S8: 4952750 | T8: 鉄道 | U8: 2745930 | W8: 54450
H9: =C9+E9+G9 -> 0 | K9: 通運新聞社 | L9: 購読料 | O9: 図書費 | P9: 826780 | S9: 5424210 | T9: 返金 | U9: 1768000 | W9: 22000
B10: 計 | C10: =SUM(C6:C9) -> 339240 | D10: 計 | E10: =SUM(E6:E9) -> 0 | F10: 計 | G10: =SUM(G6:G9) -> 0 | H10: =SUM(H6:H9) -> 339240 | K10: 通運新聞社 | L10: 郵送料 | O10: 郵便料 | P10: 826430
K11: 通運情報社 | L11: 購読料 | O11: 図書費 | P11: 826780
B12: 中京通運 他 | C12: 131120 | H12: =C12+E12+G12 -> 131120 | K12: 運輸世界新聞社 | L12: 購読料 | O12: 図書費 | P12: 826780
B13: 保証預り金利子 | H13: =C13+E13+G13 -> 0 | K13: 運輸図書 | L13: ｺﾝﾃﾅ貨物集配便覧追補 | O13: 図書費 | P13: 826780
A14: ="下期("&TEXT(A3,"YY")&"/"&TEXT(A3,"MM")&")" -> 下期(22/07) | H14: =C14+E14+G14 -> 0 | K14: 運輸図書 | L14: 送料 | O14: 郵便料 | P14: 826430
H15: =C15+E15+G15 -> 0 | K15: 全国通運業連合会 | L15: 全国大会会費 | O15: 会費加入 | P15: 826910
B16: 計 | C16: =SUM(C12:C15) -> 131120 | D16: 計 | E16: =SUM(E12:E15) -> 0 | F16: 計 | G16: =SUM(G12:G15) -> 0 | H16: =SUM(H12:H15) -> 131120 | K16: 全国通運業連合会 | L16: 懇親会会費 | O16: 交際費 | P16: 826800
K17: 関東通運業連合会 | L17: ｺﾝﾃﾅ委員会会費 | O17: 会費加入 | P17: 826910
K18: 関東通運業連合会 | L18: 東名大通友会会費 | O18: 会費加入 | P18: 826910
A19: 合計 | C19: =C10+C16 -> 470360 | E19: =E10+E16 -> 0 | G19: =G10+G16 -> 0 | H19: =H10+H16 -> 470360 | K19: 関東通運業連合会 | L19: 会費 | N19: 39900 | O19: 会費加入 | P19: 826910
K20: 中部通運業連合会 | L20: 東名大通友会会費 | O20: 会費加入 | P20: 826910 | Q20: =IF(LEFT(P21,1)="3","原","") ->  | S20: =SUM(S7:S19) -> 17338533 | U20: =SUM(U6:U19) -> 10571344 | W20: =SUM(W6:W19) -> 245630 | Y20: =U20+W20 -> 10816974 | AA20: =S20-Y20 -> 6521559
A21: =+A3 -> 2022-07-01 | B21: 交計支払勘定 | K21: 日本通運(横浜) | L21: 鉄道貨物利用運送会費 | O21: 会費加入 | P21: 826910 | U21: 事故費 | W21: その他
B22: ｺﾝﾃﾅ-着店借 | D22: ｺﾝﾃﾅ-着店借 | F22: ｺﾝﾃﾅ-着店借 | H22: 業務経費 | K22: 日本通運(横浜) | L22: 神奈川県通運会費 | O22: 会費加入 | P22: 826910
A23: 決済日 | B23: 配送依頼先 | C23: 金額 | D23: =+B23 -> 配送依頼先 | E23: 金額 | F23: =+D23 -> 配送依頼先 | G23: 金額 | H23: (A)表 | I23: 合計 | K23: 日本通運(横浜) | L23: 通運業界臨時会費 | O23: 会費加入 | P23: 826910
B24: 日本通運他 | C24: 11072796 | H24: =M42 -> 26975 | I24: =C24+E24+G24+H24 -> 11099771 | K24: 博多港運 | L24: 九州会会費 | N24: 4500 | O24: 会費加入 | P24: 826910
I25: =C25+E25+G25 -> 0 | K25: 札幌通運 | L25: 北海道会費 | N25: 4500 | O25: 会費加入 | P25: 826910
A26: =A8 -> 上期(22/07) | I26: =C26+E26+G26 -> 0 | K26: 仙台運送 | L26: みちのく会費 | O26: 会費加入 | P26: 826910
I27: =C27+E27+G27 -> 0 | K27: 仙台運送 | L27: みちのく会 特別会費 | O27: 交際費 | P27: 826800
B28: 計 | C28: =SUM(C24:C27) -> 11072796 | D28: 計 | E28: =SUM(E24:E27) -> 0 | F28: 計 | G28: =SUM(G24:G27) -> 0 | H28: =SUM(H24:H27) -> 26975 | I28: =SUM(I24:I27) -> 11099771 | J28: =I28-H28 -> 11072796 | K28: 川崎運送 | L28: 会費 | M28: 25000 | O28: 会費加入 | P28: 826910 | S28: =SUM(S22:S26) -> 0 | U28: =SUM(U22:U26) -> 0 | W28: =SUM(W22:W26) -> 0 | Y28: =U28+W28 -> 0
K29: 丸全昭和運輸 | L29: 事務所清掃代 | O29: 雑費 | P29: 827900 | AA29: 翌月繰越
B30: 日本通運 他 | C30: 2877050 | H30: =N42 -> 117633 | I30: =C30+E30+G30+H30 -> 2994683 | K30: 丸全昭和運輸 | L30: 全通神奈川連絡会費 | O30: 会費加入 | P30: 826910 | S30: =S6+S20+S28 -> -5282138 | U30: =U20+U28 -> 10571344 | W30: =W20+W28 -> 245630 | Y30: =Y20+Y28 -> 10816974 | AA30: =S30-Y30 -> -16099112
I31: =C31+E31+G31 -> 0 | K31: 全国通運 | L31: 郵送料 | N31: 640 | O31: 郵便料 | P31: 826430
A32: =A14 -> 下期(22/07) | I32: =C32+E32+G32 -> 0 | K32: 全国通運 | L32: A4ｶｯﾄ紙 | O32: 用紙代 | P32: 826730 | Q32: =IF(LEFT(P34,1)="3","原","") -> 
I33: =C33+E33+G33 -> 0 | K33: 全国通運 | L33: 全通VPN料金（NTT） | N33: 21120 | O33: 雑費 | P33: 827900 | Q33: =IF(LEFT(P35,1)="3","原","") -> 
I34: =C34+E34+G34 -> 0 | K34: 全国通運 | L34: 全通VPN料金（専用線） | O34: 雑費 | P34: 827900 | Q34: =IF(LEFT(P36,1)="3","原","") -> 
B35: 計 | C35: =SUM(C30:C34) -> 2877050 | D35: 計 | E35: =SUM(E30:E34) -> 0 | F35: 計 | G35: =SUM(G30:G34) -> 0 | H35: =SUM(H30:H34) -> 117633 | I35: =SUM(C35:H35) -> 2994683 | J35: =I35-H35 -> 2877050 | K35: 全国通運 | L35: 情報ｼｽﾃﾑ開発料金 | N35: 7150 | O35: 雑費 | P35: 827900 | Q35: =IF(LEFT(P37,1)="3","原","") -> 
K36: 全国通運 | L36: 情報ｼｽﾃﾑ基本料金 | N36: 12243 | O36: 雑費 | P36: 827900 | Q36: =IF(LEFT(P38,1)="3","原","") -> 
K37: 全国通運 | L37: 通風コンテナ | O37: 雑費 | P37: 827900
A38: 合計 | C38: =C28+C35 -> 13949846 | E38: =E28+E35 -> 0 | G38: =G28+G35 -> 0 | H38: =H28+H35 -> 144608 | I38: =I28+I35 -> 14094454 | J38: =I38-H38 -> 13949846 | K38: 運送保証協会 | L38: 保証料(JR分) | N38: 27520 | O38: 雑費 | P38: 827900
D39: 前途金 | E39: 仮払金 | K39: 運送保証協会 | L39: 保証料(神奈川臨海分） | N39: 60 | O39: 雑費 | P39: 827900
A40: 他店貸,借A/C差額(上期) | C40: =I40-M42 -> 10733556 | D40: 2241000 | E40: =C40-D40 -> 8492556 | H40: 上期交計尻未払金 | I40: =I28-H10 -> 10760531 | K40: =+K3 -> 2022-07-01 | L40: 計 | M40: =SUM(M5:M39) -> 26975 | N40: =SUM(N5:N39) -> 117633
A41: 他店貸,借A/C差額(下期) | C41: =I41-N42 -> 2745930 | E41: =C41+D41-J6 -> 2745930 | H41: 下期交計尻未払金 | I41: =I35-H16 -> 2863563 | M41: 仮払金 | N41: 仮払金
K42: =K40 -> 2022-07-01 | L42: 合 計 | M42: =M40 -> 26975 | N42: =N40 -> 117633
H43: 上期 | I43: =I40+M47 -> 10762426.3
H44: 下期 | I44: =I41+N47 -> 2864437.5 | M44: 計算料（雑費） | N44: 計算料（雑費）
M45: 1723 | N45: 795
M46: =M45*0.1 -> 172.3 | N46: =N45*0.1 -> 79.5 | O46: ※2019年9月下期より消費税10%
M47: =M45+M46 -> 1895.3 | N47: =N45+N46 -> 874.5

Sheet 22.08
A3: 2022-08-01 | B3: 交計受取勘定 | K3: =+A3 -> 2022-08-01 | L3: 交計業務経費(A表) | M3: (上期) | N3: (下期) | S3: =EOMONTH(A3,1) -> 2022-09-30 | T3: 全国通運圧縮対象計上額一覧
B4: ｺﾝﾃﾅ-配達料 | D4: ｺﾝﾃﾅ-配達料 | F4: ｺﾝﾃﾅ-配達料 | K4: 支払先 | L4: 内 容 | M4: 被請求金額 | N4: 被請求金額 | S4: 買掛金 | U4: 仮払金 | W4: 売掛金 | Y4: 貸方計 | AA4: 差額
A5: 決済日 | B5: 請求先 | C5: 金額 | D5: =+B5 -> 請求先 | E5: 金額 | F5: =+D5 -> 請求先 | G5: 金額 | H5: 合計 | K5: 輸送新聞社 | L5: 購読料 | M5: 1975 | O5: 図書費 | P5: 826780 | Q5: =IF(LEFT(P5,1)="3","原","") -> 
B6: 中京通運他 | C6: 274780 | H6: =C6+E6+G6 -> 274780 | K6: 輸送新聞社 | L6: 送料 | O6: 郵便料 | P6: 826430 | Q6: =IF(LEFT(P6,1)="3","原","") ->  | R6: 繰越 | S6: =INDIRECT(IF(MONTH(A3)=1,RIGHT(YEAR(A3)-1,2)&".12",RIGHT(YEAR(A3),2)&"."&TEXT(MONTH(A3)-1,"00"))&"!AA30") -> -16099112
H7: =C7+E7+G7 -> 0 | K7: 交通日本社 | L7: 通運業者名簿追録 | O7: 図書費 | P7: 826780 | R7: =MONTH(A3) -> 8 | S7: 4968986 | T7: 他店借 | U7: 5944653 | W7: 169730
A8: ="上期("&TEXT(A3,"YY")&"/"&TEXT(A3,"MM")&")" -> 上期(22/08) | H8: =C8+E8+G8 -> 0 | K8: 交通日本社 | L8: 送料 | O8: 郵便料 | P8: 826430 | S8: 5584975 | T8: 鉄道 | U8: 2516910 | W8: 199650
H9: =C9+E9+G9 -> 0 | K9: 通運新聞社 | L9: 購読料 | O9: 図書費 | P9: 826780 | U9: 1750000 | W9: 125180
B10: 計 | C10: =SUM(C6:C9) -> 274780 | D10: 計 | E10: =SUM(E6:E9) -> 0 | F10: 計 | G10: =SUM(G6:G9) -> 0 | H10: =SUM(H6:H9) -> 274780 | K10: 通運新聞社 | L10: 郵送料 | O10: 郵便料 | P10: 826430 | U10: 2063000 | W10: 21780
K11: 通運情報社 | L11: 購読料 | O11: 図書費 | P11: 826780
B12: 中京通運 他 | C12: 141900 | H12: =C12+E12+G12 -> 141900 | K12: 運輸世界新聞社 | L12: 購読料 | O12: 図書費 | P12: 826780
B13: 保証預り金利子 | H13: =C13+E13+G13 -> 0 | K13: 運輸図書 | L13: ｺﾝﾃﾅ貨物集配便覧追補 | O13: 図書費 | P13: 826780
A14: ="下期("&TEXT(A3,"YY")&"/"&TEXT(A3,"MM")&")" -> 下期(22/08) | H14: =C14+E14+G14 -> 0 | K14: 運輸図書 | L14: 送料 | O14: 郵便料 | P14: 826430
H15: =C15+E15+G15 -> 0 | K15: 全国通運業連合会 | L15: 全国大会会費 | O15: 会費加入 | P15: 826910
B16: 計 | C16: =SUM(C12:C15) -> 141900 | D16: 計 | E16: =SUM(E12:E15) -> 0 | F16: 計 | G16: =SUM(G12:G15) -> 0 | H16: =SUM(H12:H15) -> 141900 | K16: 全国通運業連合会 | L16: 懇親会会費 | O16: 交際費 | P16: 826800
K17: 関東通運業連合会 | L17: ｺﾝﾃﾅ委員会会費 | O17: 会費加入 | P17: 826910
K18: 関東通運業連合会 | L18: 東名大通友会会費 | O18: 会費加入 | P18: 826910
A19: 合計 | C19: =C10+C16 -> 416680 | E19: =E10+E16 -> 0 | G19: =G10+G16 -> 0 | H19: =H10+H16 -> 416680 | K19: 関東通運業連合会 | L19: 会費 | N19: 39900 | O19: 会費加入 | P19: 826910
K20: 中部通運業連合会 | L20: 東名大通友会会費 | O20: 会費加入 | P20: 826910 | Q20: =IF(LEFT(P21,1)="3","原","") ->  | S20: =SUM(S7:S19) -> 10553961 | U20: =SUM(U6:U19) -> 12274563 | W20: =SUM(W6:W19) -> 516340 | Y20: =U20+W20 -> 12790903 | AA20: =S20-Y20 -> -2236942
A21: =+A3 -> 2022-08-01 | B21: 交計支払勘定 | K21: 日本通運(横浜) | L21: 鉄道貨物利用運送会費 | O21: 会費加入 | P21: 826910 | U21: 事故費 | W21: その他
B22: ｺﾝﾃﾅ-着店借 | D22: ｺﾝﾃﾅ-着店借 | F22: ｺﾝﾃﾅ-着店借 | H22: 業務経費 | K22: 日本通運(横浜) | L22: 神奈川県通運会費 | O22: 会費加入 | P22: 826910
A23: 決済日 | B23: 配送依頼先 | C23: 金額 | D23: =+B23 -> 配送依頼先 | E23: 金額 | F23: =+D23 -> 配送依頼先 | G23: 金額 | H23: (A)表 | I23: 合計 | K23: 日本通運(横浜) | L23: 通運業界臨時会費 | O23: 会費加入 | P23: 826910
B24: 日本通運他 | C24: 8395194 | H24: =M42 -> 31475 | I24: =C24+E24+G24+H24 -> 8426669 | K24: 博多港運 | L24: 九州会会費 | N24: 4500 | O24: 会費加入 | P24: 826910
I25: =C25+E25+G25 -> 0 | K25: 札幌通運 | L25: 北海道会費 | M25: 4500 | O25: 会費加入 | P25: 826910
A26: =A8 -> 上期(22/08) | I26: =C26+E26+G26 -> 0 | K26: 仙台運送 | L26: みちのく会費 | O26: 会費加入 | P26: 826910
I27: =C27+E27+G27 -> 0 | K27: 仙台運送 | L27: みちのく会 特別会費 | O27: 交際費 | P27: 826800
B28: 計 | C28: =SUM(C24:C27) -> 8395194 | D28: 計 | E28: =SUM(E24:E27) -> 0 | F28: 計 | G28: =SUM(G24:G27) -> 0 | H28: =SUM(H24:H27) -> 31475 | I28: =SUM(I24:I27) -> 8426669 | J28: =I28-H28 -> 8395194 | K28: 川崎運送 | L28: 会費 | M28: 25000 | O28: 会費加入 | P28: 826910 | S28: =SUM(S22:S26) -> 0 | U28: =SUM(U22:U26) -> 0 | W28: =SUM(W22:W26) -> 0 | Y28: =U28+W28 -> 0
K29: 丸全昭和運輸 | L29: 事務所清掃代 | O29: 雑費 | P29: 827900 | AA29: 翌月繰越
B30: 日本通運 他 | C30: 2658810 | H30: =N42 -> 114173 | I30: =C30+E30+G30+H30 -> 2772983 | K30: 丸全昭和運輸 | L30: 全通神奈川連絡会費 | O30: 会費加入 | P30: 826910 | S30: =S6+S20+S28 -> -5545151 | U30: =U20+U28 -> 12274563 | W30: =W20+W28 -> 516340 | Y30: =Y20+Y28 -> 12790903 | AA30: =S30-Y30 -> -18336054
I31: =C31+E31+G31 -> 0 | K31: 全国通運 | L31: 郵送料 | N31: 640 | O31: 郵便料 | P31: 826430
A32: =A14 -> 下期(22/08) | I32: =C32+E32+G32 -> 0 | K32: 全国通運 | L32: A4ｶｯﾄ紙 | O32: 用紙代 | P32: 826730 | Q32: =IF(LEFT(P34,1)="3","原","") -> 
I33: =C33+E33+G33 -> 0 | K33: 全国通運 | L33: 全通VPN料金（NTT） | N33: 21120 | O33: 雑費 | P33: 827900 | Q33: =IF(LEFT(P35,1)="3","原","") -> 
I34: =C34+E34+G34 -> 0 | K34: 全国通運 | L34: 全通VPN料金（専用線） | O34: 雑費 | P34: 827900 | Q34: =IF(LEFT(P36,1)="3","原","") -> 
B35: 計 | C35: =SUM(C30:C34) -> 2658810 | D35: 計 | E35: =SUM(E30:E34) -> 0 | F35: 計 | G35: =SUM(G30:G34) -> 0 | H35: =SUM(H30:H34) -> 114173 | I35: =SUM(C35:H35) -> 2772983 | J35: =I35-H35 -> 2658810 | K35: 全国通運 | L35: 情報ｼｽﾃﾑ開発料金 | N35: 7150 | O35: 雑費 | P35: 827900 | Q35: =IF(LEFT(P37,1)="3","原","") -> 
K36: 全国通運 | L36: 情報ｼｽﾃﾑ基本料金 | N36: 12243 | O36: 雑費 | P36: 827900 | Q36: =IF(LEFT(P38,1)="3","原","") -> 
K37: 全国通運 | L37: 通風コンテナ | O37: 雑費 | P37: 827900
A38: 合計 | C38: =C28+C35 -> 11054004 | E38: =E28+E35 -> 0 | G38: =G28+G35 -> 0 | H38: =H28+H35 -> 145648 | I38: =I28+I35 -> 11199652 | J38: =I38-H38 -> 11054004 | K38: 運送保証協会 | L38: 保証料(JR分) | N38: 28540 | O38: 雑費 | P38: 827900
D39: 前途金 | E39: 仮払金 | K39: 運送保証協会 | L39: 保証料(神奈川臨海分） | N39: 80 | O39: 雑費 | P39: 827900
A40: 他店貸,借A/C差額(上期) | C40: =I40-M42 -> 8120414 | D40: 2063000 | E40: =C40-D40 -> 6057414 | H40: 上期交計尻未払金 | I40: =I28-H10 -> 8151889 | K40: =+K3 -> 2022-08-01 | L40: 計 | M40: =SUM(M5:M39) -> 31475 | N40: =SUM(N5:N39) -> 114173
A41: 他店貸,借A/C差額(下期) | C41: =I41-N42 -> 2516910 | E41: =C41+D41-J6 -> 2516910 | H41: 下期交計尻未払金 | I41: =I35-H16 -> 2631083 | M41: 仮払金 | N41: 仮払金
K42: =K40 -> 2022-08-01 | L42: 合 計 | M42: =M40 -> 31475 | N42: =N40 -> 114173
H43: 上期 | I43: =I40+M47 -> 8153498.3
H44: 下期 | I44: =I41+N47 -> 2632012.5 | M44: 計算料（雑費） | N44: 計算料（雑費）
M45: 1463 | N45: 845
M46: =M45*0.1 -> 146.3 | N46: =N45*0.1 -> 84.5 | O46: ※2019年9月下期より消費税10%
M47: =M45+M46 -> 1609.3 | N47: =N45+N46 -> 929.5

Sheet 22.09
A3: 2022-09-01 | B3: 交計受取勘定 | K3: =+A3 -> 2022-09-01 | L3: 交計業務経費(A表) | M3: (上期) | N3: (下期) | S3: =EOMONTH(A3,1) -> 2022-10-31 | T3: 全国通運圧縮対象計上額一覧
B4: ｺﾝﾃﾅ-配達料 | D4: ｺﾝﾃﾅ-配達料 | F4: ｺﾝﾃﾅ-配達料 | K4: 支払先 | L4: 内 容 | M4: 被請求金額 | N4: 被請求金額 | S4: 買掛金 | U4: 仮払金 | W4: 売掛金 | Y4: 貸方計 | AA4: 差額
A5: 決済日 | B5: 請求先 | C5: 金額 | D5: =+B5 -> 請求先 | E5: 金額 | F5: =+D5 -> 請求先 | G5: 金額 | H5: 合計 | K5: 輸送新聞社 | L5: 購読料 | M5: 1975 | O5: 図書費 | P5: 826780 | Q5: =IF(LEFT(P5,1)="3","原","") -> 
B6: 中京通運他 | C6: 125620 | H6: =C6+E6+G6 -> 125620 | K6: 輸送新聞社 | L6: 送料 | O6: 郵便料 | P6: 826430 | Q6: =IF(LEFT(P6,1)="3","原","") ->  | R6: 繰越 | S6: =INDIRECT(IF(MONTH(A3)=1,RIGHT(YEAR(A3)-1,2)&".12",RIGHT(YEAR(A3),2)&"."&TEXT(MONTH(A3)-1,"00"))&"!AA30") -> -18336054
H7: =C7+E7+G7 -> 0 | K7: 交通日本社 | L7: 通運業者名簿追録 | O7: 図書費 | P7: 826780 | R7: =MONTH(A3) -> 9 | S7: 5792267 | U7: 2472680 | W7: 82830
A8: ="上期("&TEXT(A3,"YY")&"/"&TEXT(A3,"MM")&")" -> 上期(22/09) | H8: =C8+E8+G8 -> 0 | K8: 交通日本社 | L8: 送料 | O8: 郵便料 | P8: 826430 | S8: 5264940 | U8: 5674621 | W8: 250360
H9: =C9+E9+G9 -> 0 | K9: 通運新聞社 | L9: 購読料 | O9: 図書費 | P9: 826780 | U9: 1910000 | W9: 234740
B10: 計 | C10: =SUM(C6:C9) -> 125620 | D10: 計 | E10: =SUM(E6:E9) -> 0 | F10: 計 | G10: =SUM(G6:G9) -> 0 | H10: =SUM(H6:H9) -> 125620 | K10: 通運新聞社 | L10: 郵送料 | O10: 郵便料 | P10: 826430
K11: 通運情報社 | L11: 購読料 | O11: 図書費 | P11: 826780
B12: 中京通運 他 | C12: 65890 | H12: =C12+E12+G12 -> 65890 | K12: 運輸世界新聞社 | L12: 購読料 | O12: 図書費 | P12: 826780
B13: 保証預り金利子 | H13: =C13+E13+G13 -> 0 | K13: 運輸図書 | L13: ｺﾝﾃﾅ貨物集配便覧追補 | O13: 図書費 | P13: 826780
A14: ="下期("&TEXT(A3,"YY")&"/"&TEXT(A3,"MM")&")" -> 下期(22/09) | H14: =C14+E14+G14 -> 0 | K14: 運輸図書 | L14: 送料 | O14: 郵便料 | P14: 826430
H15: =C15+E15+G15 -> 0 | K15: 全国通運業連合会 | L15: 全国大会会費 | O15: 会費加入 | P15: 826910
B16: 計 | C16: =SUM(C12:C15) -> 65890 | D16: 計 | E16: =SUM(E12:E15) -> 0 | F16: 計 | G16: =SUM(G12:G15) -> 0 | H16: =SUM(H12:H15) -> 65890 | K16: 全国通運業連合会 | L16: 懇親会会費 | O16: 交際費 | P16: 826800
K17: 関東通運業連合会 | L17: ｺﾝﾃﾅ委員会会費 | O17: 会費加入 | P17: 826910
K18: 関東通運業連合会 | L18: 東名大通友会会費 | O18: 会費加入 | P18: 826910
A19: 合計 | C19: =C10+C16 -> 191510 | E19: =E10+E16 -> 0 | G19: =G10+G16 -> 0 | H19: =H10+H16 -> 191510 | K19: 関東通運業連合会 | L19: 会費 | O19: 会費加入 | P19: 826910
K20: 中部通運業連合会 | L20: 東名大通友会会費 | O20: 会費加入 | P20: 826910 | Q20: =IF(LEFT(P21,1)="3","原","") ->  | S20: =SUM(S7:S19) -> 11057207 | U20: =SUM(U6:U19) -> 10057301 | W20: =SUM(W6:W19) -> 567930 | Y20: =U20+W20 -> 10625231 | AA20: =S20-Y20 -> 431976
A21: =+A3 -> 2022-09-01 | B21: 交計支払勘定 | K21: 日本通運(横浜) | L21: 鉄道貨物利用運送会費 | O21: 会費加入 | P21: 826910 | U21: 事故費 | W21: その他
B22: ｺﾝﾃﾅ-着店借 | D22: ｺﾝﾃﾅ-着店借 | F22: ｺﾝﾃﾅ-着店借 | H22: 業務経費 | K22: 日本通運(横浜) | L22: 神奈川県通運会費 | O22: 会費加入 | P22: 826910
A23: 決済日 | B23: 配送依頼先 | C23: 金額 | D23: =+B23 -> 配送依頼先 | E23: 金額 | F23: =+D23 -> 配送依頼先 | G23: 金額 | H23: (A)表 | I23: 合計 | K23: 日本通運(横浜) | L23: 通運業界臨時会費 | O23: 会費加入 | P23: 826910
B24: 日本通運他 | C24: 7838273 | H24: =M42 -> 31475 | I24: =C24+E24+G24+H24 -> 7869748 | K24: 博多港運 | L24: 九州会会費 | O24: 会費加入 | P24: 826910
I25: =C25+E25+G25 -> 0 | K25: 札幌通運 | L25: 北海道会費 | M25: 4500 | O25: 会費加入 | P25: 826910
A26: =A8 -> 上期(22/09) | I26: =C26+E26+G26 -> 0 | K26: 仙台運送 | L26: みちのく会費 | O26: 会費加入 | P26: 826910
I27: =C27+E27+G27 -> 0 | K27: 仙台運送 | L27: みちのく会 特別会費 | O27: 交際費 | P27: 826800
B28: 計 | C28: =SUM(C24:C27) -> 7838273 | D28: 計 | E28: =SUM(E24:E27) -> 0 | F28: 計 | G28: =SUM(G24:G27) -> 0 | H28: =SUM(H24:H27) -> 31475 | I28: =SUM(I24:I27) -> 7869748 | J28: =I28-H28 -> 7838273 | K28: 川崎運送 | L28: 会費 | M28: 25000 | N28: 39900 | O28: 会費加入 | P28: 826910 | S28: =SUM(S22:S26) -> 0 | U28: =SUM(U22:U26) -> 0 | W28: =SUM(W22:W26) -> 0 | Y28: =U28+W28 -> 0
K29: 丸全昭和運輸 | L29: 事務所清掃代 | O29: 雑費 | P29: 827900 | AA29: 翌月繰越
B30: 日本通運 他 | C30: 2538570 | H30: =N42 -> 111353 | I30: =C30+E30+G30+H30 -> 2649923 | K30: 丸全昭和運輸 | L30: 全通神奈川連絡会費 | O30: 会費加入 | P30: 826910 | S30: =S6+S20+S28 -> -7278847 | U30: =U20+U28 -> 10057301 | W30: =W20+W28 -> 567930 | Y30: =Y20+Y28 -> 10625231 | AA30: =S30-Y30 -> -17904078
I31: =C31+E31+G31 -> 0 | K31: 全国通運 | L31: 郵送料 | N31: 640 | O31: 郵便料 | P31: 826430
A32: =A14 -> 下期(22/09) | I32: =C32+E32+G32 -> 0 | K32: 全国通運 | L32: A4ｶｯﾄ紙 | O32: 用紙代 | P32: 826730 | Q32: =IF(LEFT(P34,1)="3","原","") -> 
I33: =C33+E33+G33 -> 0 | K33: 全国通運 | L33: 全通VPN料金（NTT） | N33: 21120 | O33: 雑費 | P33: 827900 | Q33: =IF(LEFT(P35,1)="3","原","") -> 
I34: =C34+E34+G34 -> 0 | K34: 全国通運 | L34: 全通VPN料金（専用線） | O34: 雑費 | P34: 827900 | Q34: =IF(LEFT(P36,1)="3","原","") -> 
B35: 計 | C35: =SUM(C30:C34) -> 2538570 | D35: 計 | E35: =SUM(E30:E34) -> 0 | F35: 計 | G35: =SUM(G30:G34) -> 0 | H35: =SUM(H30:H34) -> 111353 | I35: =SUM(C35:H35) -> 2649923 | J35: =I35-H35 -> 2538570 | K35: 全国通運 | L35: 情報ｼｽﾃﾑ開発料金 | N35: 7150 | O35: 雑費 | P35: 827900 | Q35: =IF(LEFT(P37,1)="3","原","") -> 
K36: 全国通運 | L36: 情報ｼｽﾃﾑ基本料金 | N36: 12243 | O36: 雑費 | P36: 827900 | Q36: =IF(LEFT(P38,1)="3","原","") -> 
K37: 全国通運 | L37: 通風コンテナ | O37: 雑費 | P37: 827900
A38: 合計 | C38: =C28+C35 -> 10376843 | E38: =E28+E35 -> 0 | G38: =G28+G35 -> 0 | H38: =H28+H35 -> 142828 | I38: =I28+I35 -> 10519671 | J38: =I38-H38 -> 10376843 | K38: 運送保証協会 | L38: 保証料(JR分) | N38: 30240 | O38: 雑費 | P38: 827900
D39: 前途金 | E39: 仮払金 | K39: 運送保証協会 | L39: 保証料(神奈川臨海分） | N39: 60 | O39: 雑費 | P39: 827900
A40: 他店貸,借A/C差額(上期) | C40: =I40-M42 -> 7712653 | D40: 1768000 | E40: =C40-D40 -> 5944653 | H40: 上期交計尻未払金 | I40: =I28-H10 -> 7744128 | K40: =+K3 -> 2022-09-01 | L40: 計 | M40: =SUM(M5:M39) -> 31475 | N40: =SUM(N5:N39) -> 111353
A41: 他店貸,借A/C差額(下期) | C41: =I41-N42 -> 2472680 | E41: =C41+D41-J6 -> 2472680 | H41: 下期交計尻未払金 | I41: =I35-H16 -> 2584033 | M41: 仮払金 | N41: 仮払金
K42: =K40 -> 2022-09-01 | L42: 合 計 | M42: =M40 -> 31475 | N42: =N40 -> 111353
H43: 上期 | I43: =I40+M47 -> 7744947.5
H44: 下期 | I44: =I41+N47 -> 2584506 | M44: 計算料（雑費） | N44: 計算料（雑費）
M45: 745 | N45: 430
M46: =M45*0.1 -> 74.5 | N46: =N45*0.1 -> 43 | O46: ※2019年9月下期より消費税10%
M47: =M45+M46 -> 819.5 | N47: =N45+N46 -> 473

Sheet 22.10
A3: 2022-10-01 | B3: 交計受取勘定 | K3: =+A3 -> 2022-10-01 | L3: 交計業務経費(A表) | M3: (上期) | N3: (下期) | S3: =EOMONTH(A3,1) -> 2022-11-30 | T3: 全国通運圧縮対象計上額一覧
B4: ｺﾝﾃﾅ-配達料 | D4: ｺﾝﾃﾅ-配達料 | F4: ｺﾝﾃﾅ-配達料 | K4: 支払先 | L4: 内 容 | M4: 被請求金額 | N4: 被請求金額 | S4: 買掛金 | U4: 仮払金 | W4: 売掛金 | Y4: 貸方計 | AA4: 差額
A5: 決済日 | B5: 請求先 | C5: 金額 | D5: =+B5 -> 請求先 | E5: 金額 | F5: =+D5 -> 請求先 | G5: 金額 | H5: 合計 | K5: 輸送新聞社 | L5: 購読料 | M5: 1975 | O5: 図書費 | P5: 826780 | Q5: =IF(LEFT(P5,1)="3","原","") -> 
B6: 中京通運他 | C6: 488840 | H6: =C6+E6+G6 -> 488840 | K6: 輸送新聞社 | L6: 送料 | O6: 郵便料 | P6: 826430 | Q6: =IF(LEFT(P6,1)="3","原","") ->  | R6: 繰越 | S6: =INDIRECT(IF(MONTH(A3)=1,RIGHT(YEAR(A3)-1,2)&".12",RIGHT(YEAR(A3),2)&"."&TEXT(MONTH(A3)-1,"00"))&"!AA30") -> -17904078
H7: =C7+E7+G7 -> 0 | K7: 交通日本社 | L7: 通運業者名簿追録 | O7: 図書費 | P7: 826780 | R7: =MONTH(A3) -> 10 | S7: 5350760 | T7: 他店借 | U7: 2924020 | W7: 225720
A8: ="上期("&TEXT(A3,"YY")&"/"&TEXT(A3,"MM")&")" -> 上期(22/10) | H8: =C8+E8+G8 -> 0 | K8: 交通日本社 | L8: 送料 | O8: 郵便料 | P8: 826430 | S8: 6492735 | T8: 鉄道 | U8: 6824441 | W8: 21780
H9: =C9+E9+G9 -> 0 | K9: 通運新聞社 | L9: 購読料 | O9: 図書費 | P9: 826780 | U9: 1822000 | W9: 312950
B10: 計 | C10: =SUM(C6:C9) -> 488840 | D10: 計 | E10: =SUM(E6:E9) -> 0 | F10: 計 | G10: =SUM(G6:G9) -> 0 | H10: =SUM(H6:H9) -> 488840 | K10: 通運新聞社 | L10: 郵送料 | O10: 郵便料 | P10: 826430 | U10: 2563000
K11: 通運情報社 | L11: 購読料 | O11: 図書費 | P11: 826780 | U11: ※4月コンテナ運賃一部前払い取込漏れ分
B12: 中京通運 他 | C12: 70730 | H12: =C12+E12+G12 -> 70730 | K12: 運輸世界新聞社 | L12: 購読料 | O12: 図書費 | P12: 826780
B13: 保証預り金利子 | H13: =C13+E13+G13 -> 0 | K13: 運輸図書 | L13: ｺﾝﾃﾅ貨物集配便覧追補 | O13: 図書費 | P13: 826780
A14: ="下期("&TEXT(A3,"YY")&"/"&TEXT(A3,"MM")&")" -> 下期(22/10) | H14: =C14+E14+G14 -> 0 | K14: 運輸図書 | L14: 送料 | O14: 郵便料 | P14: 826430
H15: =C15+E15+G15 -> 0 | K15: 全国通運業連合会 | L15: 全国大会会費 | O15: 会費加入 | P15: 826910
B16: 計 | C16: =SUM(C12:C15) -> 70730 | D16: 計 | E16: =SUM(E12:E15) -> 0 | F16: 計 | G16: =SUM(G12:G15) -> 0 | H16: =SUM(H12:H15) -> 70730 | K16: 全国通運業連合会 | L16: 懇親会会費 | O16: 交際費 | P16: 826800
K17: 関東通運業連合会 | L17: ｺﾝﾃﾅ委員会会費 | O17: 会費加入 | P17: 826910
K18: 関東通運業連合会 | L18: 東名大通友会会費 | O18: 会費加入 | P18: 826910
A19: 合計 | C19: =C10+C16 -> 559570 | E19: =E10+E16 -> 0 | G19: =G10+G16 -> 0 | H19: =H10+H16 -> 559570 | K19: 関東通運業連合会 | L19: 会費 | N19: 39900 | O19: 会費加入 | P19: 826910
K20: 中部通運業連合会 | L20: 東名大通友会会費 | O20: 会費加入 | P20: 826910 | Q20: =IF(LEFT(P21,1)="3","原","") ->  | S20: =SUM(S7:S19) -> 11843495 | U20: =SUM(U6:U19) -> 14133461 | W20: =SUM(W6:W19) -> 560450 | Y20: =U20+W20 -> 14693911 | AA20: =S20-Y20 -> -2850416
A21: =+A3 -> 2022-10-01 | B21: 交計支払勘定 | K21: 日本通運(横浜) | L21: 鉄道貨物利用運送会費 | O21: 会費加入 | P21: 826910 | U21: 事故費 | W21: その他
B22: ｺﾝﾃﾅ-着店借 | D22: ｺﾝﾃﾅ-着店借 | F22: ｺﾝﾃﾅ-着店借 | H22: 業務経費 | K22: 日本通運(横浜) | L22: 神奈川県通運会費 | O22: 会費加入 | P22: 826910
A23: 決済日 | B23: 配送依頼先 | C23: 金額 | D23: =+B23 -> 配送依頼先 | E23: 金額 | F23: =+D23 -> 配送依頼先 | G23: 金額 | H23: (A)表 | I23: 合計 | K23: 日本通運(横浜) | L23: 通運業界臨時会費 | O23: 会費加入 | P23: 826910
B24: 日本通運他 | C24: 7913461 | H24: =M42 -> 35975 | I24: =C24+E24+G24+H24 -> 7949436 | K24: 博多港運 | L24: 九州会会費 | M24: 4500 | N24: 4500 | O24: 会費加入 | P24: 826910
I25: =C25+E25+G25 -> 0 | K25: 札幌通運 | L25: 北海道会費 | M25: 4500 | O25: 会費加入 | P25: 826910
A26: =A8 -> 上期(22/10) | I26: =C26+E26+G26 -> 0 | K26: 仙台運送 | L26: みちのく会費 | O26: 会費加入 | P26: 826910
I27: =C27+E27+G27 -> 0 | K27: 仙台運送 | L27: みちのく会 特別会費 | O27: 交際費 | P27: 826800
B28: 計 | C28: =SUM(C24:C27) -> 7913461 | D28: 計 | E28: =SUM(E24:E27) -> 0 | F28: 計 | G28: =SUM(G24:G27) -> 0 | H28: =SUM(H24:H27) -> 35975 | I28: =SUM(I24:I27) -> 7949436 | J28: =I28-H28 -> 7913461 | K28: 川崎運送 | L28: 会費 | M28: 25000 | O28: 会費加入 | P28: 826910 | S28: =SUM(S22:S26) -> 0 | U28: =SUM(U22:U26) -> 0 | W28: =SUM(W22:W26) -> 0 | Y28: =U28+W28 -> 0
K29: 丸全昭和運輸 | L29: 事務所清掃代 | O29: 雑費 | P29: 827900 | AA29: 翌月繰越
B30: 日本通運 他 | C30: 2994750 | H30: =N42 -> 117903 | I30: =C30+E30+G30+H30 -> 3112653 | K30: 丸全昭和運輸 | L30: 全通神奈川連絡会費 | O30: 会費加入 | P30: 826910 | S30: =S6+S20+S28 -> -6060583 | U30: =U20+U28 -> 14133461 | W30: =W20+W28 -> 560450 | Y30: =Y20+Y28 -> 14693911 | AA30: =S30-Y30 -> -20754494
I31: =C31+E31+G31 -> 0 | K31: 全国通運 | L31: 郵送料 | N31: 640 | O31: 郵便料 | P31: 826430
A32: =A14 -> 下期(22/10) | I32: =C32+E32+G32 -> 0 | K32: 全国通運 | L32: A4ｶｯﾄ紙 | O32: 用紙代 | P32: 826730 | Q32: =IF(LEFT(P34,1)="3","原","") -> 
I33: =C33+E33+G33 -> 0 | K33: 全国通運 | L33: 全通VPN料金（NTT） | O33: 雑費 | P33: 827900 | Q33: =IF(LEFT(P35,1)="3","原","") -> 
I34: =C34+E34+G34 -> 0 | K34: 全国通運 | L34: 全通VPN料金（専用線） | N34: 21120 | O34: 雑費 | P34: 827900 | Q34: =IF(LEFT(P36,1)="3","原","") -> 
B35: 計 | C35: =SUM(C30:C34) -> 2994750 | D35: 計 | E35: =SUM(E30:E34) -> 0 | F35: 計 | G35: =SUM(G30:G34) -> 0 | H35: =SUM(H30:H34) -> 117903 | I35: =SUM(C35:H35) -> 3112653 | J35: =I35-H35 -> 2994750 | K35: 全国通運 | L35: 情報ｼｽﾃﾑ開発料金 | N35: 7150 | O35: 雑費 | P35: 827900 | Q35: =IF(LEFT(P37,1)="3","原","") -> 
K36: 全国通運 | L36: 情報ｼｽﾃﾑ基本料金 | N36: 12243 | O36: 雑費 | P36: 827900 | Q36: =IF(LEFT(P38,1)="3","原","") -> 
K37: 全国通運 | L37: 通風コンテナ | O37: 雑費 | P37: 827900
A38: 合計 | C38: =C28+C35 -> 10908211 | E38: =E28+E35 -> 0 | G38: =G28+G35 -> 0 | H38: =H28+H35 -> 153878 | I38: =I28+I35 -> 11062089 | J38: =I38-H38 -> 10908211 | K38: 運送保証協会 | L38: 保証料(JR分) | N38: 32260 | O38: 雑費 | P38: 827900
D39: 前途金 | E39: 仮払金 | K39: 運送保証協会 | L39: 保証料(神奈川臨海分） | N39: 90 | O39: 雑費 | P39: 827900
A40: 他店貸,借A/C差額(上期) | C40: =I40-M42 -> 7424621 | D40: 1750000 | E40: =C40-D40 -> 5674621 | H40: 上期交計尻未払金 | I40: =I28-H10 -> 7460596 | K40: =+K3 -> 2022-10-01 | L40: 計 | M40: =SUM(M5:M39) -> 35975 | N40: =SUM(N5:N39) -> 117903
A41: 他店貸,借A/C差額(下期) | C41: =I41-N42 -> 2924020 | E41: =C41+D41-J6 -> 2924020 | H41: 下期交計尻未払金 | I41: =I35-H16 -> 3041923 | M41: 仮払金 | N41: 仮払金
K42: =K40 -> 2022-10-01 | L42: 合 計 | M42: =M40 -> 35975 | N42: =N40 -> 117903
H43: 上期 | I43: =I40+M47 -> 7463184.3
H44: 下期 | I44: =I41+N47 -> 3042456.5 | M44: 計算料（雑費） | N44: 計算料（雑費）
M45: 2353 | N45: 485
M46: =M45*0.1 -> 235.3 | N46: =N45*0.1 -> 48.5 | O46: ※2019年9月下期より消費税10%
M47: =M45+M46 -> 2588.3 | N47: =N45+N46 -> 533.5

Sheet 22.11
A3: 2022-11-01 | B3: 交計受取勘定 | K3: =+A3 -> 2022-11-01 | L3: 交計業務経費(A表) | M3: (上期) | N3: (下期) | S3: =EOMONTH(A3,1) -> 2022-12-31 | T3: 全国通運圧縮対象計上額一覧
B4: ｺﾝﾃﾅ-配達料 | D4: ｺﾝﾃﾅ-配達料 | F4: ｺﾝﾃﾅ-配達料 | K4: 支払先 | L4: 内 容 | M4: 被請求金額 | N4: 被請求金額 | S4: 買掛金 | U4: 仮払金 | W4: 売掛金 | Y4: 貸方計 | AA4: 差額
A5: 決済日 | B5: 請求先 | C5: 金額 | D5: =+B5 -> 請求先 | E5: 金額 | F5: =+D5 -> 請求先 | G5: 金額 | H5: 合計 | K5: 輸送新聞社 | L5: 購読料 | O5: 図書費 | P5: 826780 | Q5: =IF(LEFT(P5,1)="3","原","") -> 
B6: 中京通運他 | C6: 565840 | H6: =C6+E6+G6 -> 565840 | K6: 輸送新聞社 | L6: 送料 | M6: 1975 | O6: 郵便料 | P6: 826430 | Q6: =IF(LEFT(P6,1)="3","原","") ->  | R6: 繰越 | S6: =INDIRECT(IF(MONTH(A3)=1,RIGHT(YEAR(A3)-1,2)&".12",RIGHT(YEAR(A3),2)&"."&TEXT(MONTH(A3)-1,"00"))&"!AA30") -> -20754494
H7: =C7+E7+G7 -> 0 | K7: 交通日本社 | L7: 通運業者名簿追録 | O7: 図書費 | P7: 826780 | R7: =MONTH(A3) -> 11 | S7: 6306410 | T7: 他店借 | U7: 6316016 | W7: 65340
A8: ="上期("&TEXT(A3,"YY")&"/"&TEXT(A3,"MM")&")" -> 上期(22/11) | H8: =C8+E8+G8 -> 0 | K8: 交通日本社 | L8: 送料 | O8: 郵便料 | P8: 826430 | S8: 6167722 | T8: 鉄道 | U8: 2856260 | W8: 223520
H9: =C9+E9+G9 -> 0 | K9: 通運新聞社 | L9: 購読料 | O9: 図書費 | P9: 826780 | U9: 1989000 | W9: 165880
B10: 計 | C10: =SUM(C6:C9) -> 565840 | D10: 計 | E10: =SUM(E6:E9) -> 0 | F10: 計 | G10: =SUM(G6:G9) -> 0 | H10: =SUM(H6:H9) -> 565840 | K10: 通運新聞社 | L10: 郵送料 | O10: 郵便料 | P10: 826430
K11: 通運情報社 | L11: 購読料 | O11: 図書費 | P11: 826780
B12: 中京通運 他 | C12: 88000 | H12: =C12+E12+G12 -> 88000 | K12: 運輸世界新聞社 | L12: 購読料 | O12: 図書費 | P12: 826780
B13: 保証預り金利子 | H13: =C13+E13+G13 -> 0 | K13: 運輸図書 | L13: ｺﾝﾃﾅ貨物集配便覧追補 | O13: 図書費 | P13: 826780
A14: ="下期("&TEXT(A3,"YY")&"/"&TEXT(A3,"MM")&")" -> 下期(22/11) | H14: =C14+E14+G14 -> 0 | K14: 運輸図書 | L14: 送料 | O14: 郵便料 | P14: 826430
H15: =C15+E15+G15 -> 0 | K15: 全国通運業連合会 | L15: 全国大会会費 | O15: 会費加入 | P15: 826910
B16: 計 | C16: =SUM(C12:C15) -> 88000 | D16: 計 | E16: =SUM(E12:E15) -> 0 | F16: 計 | G16: =SUM(G12:G15) -> 0 | H16: =SUM(H12:H15) -> 88000 | K16: 全国通運業連合会 | L16: 懇親会会費 | O16: 交際費 | P16: 826800
K17: 関東通運業連合会 | L17: ｺﾝﾃﾅ委員会会費 | O17: 会費加入 | P17: 826910
K18: 関東通運業連合会 | L18: 東名大通友会会費 | O18: 会費加入 | P18: 826910
A19: 合計 | C19: =C10+C16 -> 653840 | E19: =E10+E16 -> 0 | G19: =G10+G16 -> 0 | H19: =H10+H16 -> 653840 | K19: 関東通運業連合会 | L19: 会費 | N19: 39900 | O19: 会費加入 | P19: 826910
K20: 中部通運業連合会 | L20: 東名大通友会会費 | O20: 会費加入 | P20: 826910 | Q20: =IF(LEFT(P21,1)="3","原","") ->  | S20: =SUM(S7:S19) -> 12474132 | U20: =SUM(U6:U19) -> 11161276 | W20: =SUM(W6:W19) -> 454740 | Y20: =U20+W20 -> 11616016 | AA20: =S20-Y20 -> 858116
A21: =+A3 -> 2022-11-01 | B21: 交計支払勘定 | K21: 日本通運(横浜) | L21: 鉄道貨物利用運送会費 | O21: 会費加入 | P21: 826910 | U21: 事故費 | W21: その他
B22: ｺﾝﾃﾅ-着店借 | D22: ｺﾝﾃﾅ-着店借 | F22: ｺﾝﾃﾅ-着店借 | H22: 業務経費 | K22: 日本通運(横浜) | L22: 神奈川県通運会費 | O22: 会費加入 | P22: 826910
A23: 決済日 | B23: 配送依頼先 | C23: 金額 | D23: =+B23 -> 配送依頼先 | E23: 金額 | F23: =+D23 -> 配送依頼先 | G23: 金額 | H23: (A)表 | I23: 合計 | K23: 日本通運(横浜) | L23: 通運業界臨時会費 | O23: 会費加入 | P23: 826910
B24: 日本通運他 | C24: 9300281 | H24: =M42 -> 31475 | I24: =C24+E24+G24+H24 -> 9331756 | K24: 博多港運 | L24: 九州会会費 | N24: 4500 | O24: 会費加入 | P24: 826910
I25: =C25+E25+G25 -> 0 | K25: 札幌通運 | L25: 北海道会費 | M25: 4500 | O25: 会費加入 | P25: 826910
A26: =A8 -> 上期(22/11) | I26: =C26+E26+G26 -> 0 | K26: 仙台運送 | L26: みちのく会費 | O26: 会費加入 | P26: 826910
I27: =C27+E27+G27 -> 0 | K27: 仙台運送 | L27: みちのく会 特別会費 | O27: 交際費 | P27: 826800
B28: 計 | C28: =SUM(C24:C27) -> 9300281 | D28: 計 | E28: =SUM(E24:E27) -> 0 | F28: 計 | G28: =SUM(G24:G27) -> 0 | H28: =SUM(H24:H27) -> 31475 | I28: =SUM(I24:I27) -> 9331756 | J28: =I28-H28 -> 9300281 | K28: 川崎運送 | L28: 会費 | M28: 25000 | O28: 会費加入 | P28: 826910 | S28: =SUM(S22:S26) -> 0 | U28: =SUM(U22:U26) -> 0 | W28: =SUM(W22:W26) -> 0 | Y28: =U28+W28 -> 0
K29: 丸全昭和運輸 | L29: 事務所清掃代 | O29: 雑費 | P29: 827900 | AA29: 翌月繰越
B30: 日本通運 他 | C30: 2944260 | H30: =N42 -> 117253 | I30: =C30+E30+G30+H30 -> 3061513 | K30: 丸全昭和運輸 | L30: 全通神奈川連絡会費 | O30: 会費加入 | P30: 826910 | S30: =S6+S20+S28 -> -8280362 | U30: =U20+U28 -> 11161276 | W30: =W20+W28 -> 454740 | Y30: =Y20+Y28 -> 11616016 | AA30: =S30-Y30 -> -19896378
I31: =C31+E31+G31 -> 0 | K31: 全国通運 | L31: 郵送料 | N31: 640 | O31: 郵便料 | P31: 826430
A32: =A14 -> 下期(22/11) | I32: =C32+E32+G32 -> 0 | K32: 全国通運 | L32: A4ｶｯﾄ紙 | O32: 用紙代 | P32: 826730 | Q32: =IF(LEFT(P34,1)="3","原","") -> 
I33: =C33+E33+G33 -> 0 | K33: 全国通運 | L33: 全通VPN料金（NTT） | O33: 雑費 | P33: 827900 | Q33: =IF(LEFT(P35,1)="3","原","") -> 
I34: =C34+E34+G34 -> 0 | K34: 全国通運 | L34: 全通VPN料金（専用線） | N34: 21120 | O34: 雑費 | P34: 827900 | Q34: =IF(LEFT(P36,1)="3","原","") -> 
B35: 計 | C35: =SUM(C30:C34) -> 2944260 | D35: 計 | E35: =SUM(E30:E34) -> 0 | F35: 計 | G35: =SUM(G30:G34) -> 0 | H35: =SUM(H30:H34) -> 117253 | I35: =SUM(C35:H35) -> 3061513 | J35: =I35-H35 -> 2944260 | K35: 全国通運 | L35: 情報ｼｽﾃﾑ開発料金 | N35: 7150 | O35: 雑費 | P35: 827900 | Q35: =IF(LEFT(P37,1)="3","原","") -> 
K36: 全国通運 | L36: 情報ｼｽﾃﾑ基本料金 | N36: 12243 | O36: 雑費 | P36: 827900 | Q36: =IF(LEFT(P38,1)="3","原","") -> 
K37: 全国通運 | L37: 通風コンテナ | O37: 雑費 | P37: 827900
A38: 合計 | C38: =C28+C35 -> 12244541 | E38: =E28+E35 -> 0 | G38: =G28+G35 -> 0 | H38: =H28+H35 -> 148728 | I38: =I28+I35 -> 12393269 | J38: =I38-H38 -> 12244541 | K38: 運送保証協会 | L38: 保証料(JR分) | N38: 31640 | O38: 雑費 | P38: 827900
D39: 前途金 | E39: 仮払金 | K39: 運送保証協会 | L39: 保証料(神奈川臨海分） | N39: 60 | O39: 雑費 | P39: 827900
A40: 他店貸,借A/C差額(上期) | C40: =I40-M42 -> 8734441 | D40: 1910000 | E40: =C40-D40 -> 6824441 | H40: 上期交計尻未払金 | I40: =I28-H10 -> 8765916 | K40: =+K3 -> 2022-11-01 | L40: 計 | M40: =SUM(M5:M39) -> 31475 | N40: =SUM(N5:N39) -> 117253
A41: 他店貸,借A/C差額(下期) | C41: =I41-N42 -> 2856260 | E41: =C41+D41-J6 -> 2856260 | H41: 下期交計尻未払金 | I41: =I35-H16 -> 2973513 | M41: 仮払金 | N41: 仮払金
K42: =K40 -> 2022-11-01 | L42: 合 計 | M42: =M40 -> 31475 | N42: =N40 -> 117253
H43: 上期 | I43: =I40+M47 -> 8768835.4
H44: 下期 | I44: =I41+N47 -> 2974107 | M44: 計算料（雑費） | N44: 計算料（雑費）
M45: 2654 | N45: 540
M46: =M45*0.1 -> 265.4 | N46: =N45*0.1 -> 54 | O46: ※2019年9月下期より消費税10%
M47: =M45+M46 -> 2919.4 | N47: =N45+N46 -> 594

Sheet 22.12
A3: 2022-12-01 | B3: 交計受取勘定 | K3: =+A3 -> 2022-12-01 | L3: 交計業務経費(A表) | M3: (上期) | N3: (下期) | S3: =EOMONTH(A3,1) -> 2023-01-31 | T3: 全国通運圧縮対象計上額一覧
B4: ｺﾝﾃﾅ-配達料 | D4: ｺﾝﾃﾅ-配達料 | F4: ｺﾝﾃﾅ-配達料 | K4: 支払先 | L4: 内 容 | M4: 被請求金額 | N4: 被請求金額 | S4: 買掛金 | U4: 仮払金 | W4: 売掛金 | Y4: 貸方計 | AA4: 差額
A5: 決済日 | B5: 請求先 | C5: 金額 | D5: =+B5 -> 請求先 | E5: 金額 | F5: =+D5 -> 請求先 | G5: 金額 | H5: 合計 | K5: 輸送新聞社 | L5: 購読料 | O5: 図書費 | P5: 826780 | Q5: =IF(LEFT(P5,1)="3","原","") -> 
B6: 中京通運他 | C6: 454410 | H6: =C6+E6+G6 -> 454410 | K6: 輸送新聞社 | L6: 送料 | M6: 1975 | O6: 郵便料 | P6: 826430 | Q6: =IF(LEFT(P6,1)="3","原","") ->  | R6: 繰越 | S6: =INDIRECT(IF(MONTH(A3)=1,RIGHT(YEAR(A3)-1,2)&".12",RIGHT(YEAR(A3),2)&"."&TEXT(MONTH(A3)-1,"00"))&"!AA30") -> -19896378
H7: =C7+E7+G7 -> 0 | K7: 交通日本社 | L7: 通運業者名簿追録 | O7: 図書費 | P7: 826780 | R7: =MONTH(A3) -> 12 | S7: 4080817 | T7: 他店借 | U7: 3871450 | W7: 49500
A8: ="上期("&TEXT(A3,"YY")&"/"&TEXT(A3,"MM")&")" -> 上期(22/12) | H8: =C8+E8+G8 -> 0 | K8: 交通日本社 | L8: 送料 | O8: 郵便料 | P8: 826430 | S8: 6598281 | T8: 鉄道 | U8: 7034717 | W8: 21780
H9: =C9+E9+G9 -> 0 | K9: 通運新聞社 | L9: 購読料 | O9: 図書費 | P9: 826780 | U9: 1481000
B10: 計 | C10: =SUM(C6:C9) -> 454410 | D10: 計 | E10: =SUM(E6:E9) -> 0 | F10: 計 | G10: =SUM(G6:G9) -> 0 | H10: =SUM(H6:H9) -> 454410 | K10: 通運新聞社 | L10: 郵送料 | O10: 郵便料 | P10: 826430
K11: 通運情報社 | L11: 購読料 | O11: 図書費 | P11: 826780
B12: 中京通運 他 | C12: 147400 | H12: =C12+E12+G12 -> 147400 | K12: 運輸世界新聞社 | L12: 購読料 | O12: 図書費 | P12: 826780
B13: 保証預り金利子 | H13: =C13+E13+G13 -> 0 | K13: 運輸図書 | L13: ｺﾝﾃﾅ貨物集配便覧追補 | O13: 図書費 | P13: 826780
A14: ="下期("&TEXT(A3,"YY")&"/"&TEXT(A3,"MM")&")" -> 下期(22/12) | H14: =C14+E14+G14 -> 0 | K14: 運輸図書 | L14: 送料 | O14: 郵便料 | P14: 826430
H15: =C15+E15+G15 -> 0 | K15: 全国通運業連合会 | L15: 全国大会会費 | O15: 会費加入 | P15: 826910
B16: 計 | C16: =SUM(C12:C15) -> 147400 | D16: 計 | E16: =SUM(E12:E15) -> 0 | F16: 計 | G16: =SUM(G12:G15) -> 0 | H16: =SUM(H12:H15) -> 147400 | K16: 全国通運業連合会 | L16: 懇親会会費 | O16: 交際費 | P16: 826800
K17: 関東通運業連合会 | L17: ｺﾝﾃﾅ委員会会費 | O17: 会費加入 | P17: 826910
K18: 関東通運業連合会 | L18: 東名大通友会会費 | O18: 会費加入 | P18: 826910
A19: 合計 | C19: =C10+C16 -> 601810 | E19: =E10+E16 -> 0 | G19: =G10+G16 -> 0 | H19: =H10+H16 -> 601810 | K19: 関東通運業連合会 | L19: 会費 | N19: 39900 | O19: 会費加入 | P19: 826910
K20: 中部通運業連合会 | L20: 東名大通友会会費 | O20: 会費加入 | P20: 826910 | Q20: =IF(LEFT(P21,1)="3","原","") ->  | S20: =SUM(S7:S19) -> 10679098 | U20: =SUM(U6:U19) -> 12387167 | W20: =SUM(W6:W19) -> 71280 | Y20: =U20+W20 -> 12458447 | AA20: =S20-Y20 -> -1779349
A21: =+A3 -> 2022-12-01 | B21: 交計支払勘定 | K21: 日本通運(横浜) | L21: 鉄道貨物利用運送会費 | O21: 会費加入 | P21: 826910 | U21: 事故費 | W21: その他
B22: ｺﾝﾃﾅ-着店借 | D22: ｺﾝﾃﾅ-着店借 | F22: ｺﾝﾃﾅ-着店借 | H22: 業務経費 | K22: 日本通運(横浜) | L22: 神奈川県通運会費 | O22: 会費加入 | P22: 826910
A23: 決済日 | B23: 配送依頼先 | C23: 金額 | D23: =+B23 -> 配送依頼先 | E23: 金額 | F23: =+D23 -> 配送依頼先 | G23: 金額 | H23: (A)表 | I23: 合計 | K23: 日本通運(横浜) | L23: 通運業界臨時会費 | O23: 会費加入 | P23: 826910
B24: 日本通運他 | C24: 8592426 | H24: =M42 -> 35975 | I24: =C24+E24+G24+H24 -> 8628401 | K24: 博多港運 | L24: 九州会会費 | M24: 4500 | O24: 会費加入 | P24: 826910
I25: =C25+E25+G25 -> 0 | K25: 札幌通運 | L25: 北海道会費 | M25: 4500 | O25: 会費加入 | P25: 826910
A26: =A8 -> 上期(22/12) | I26: =C26+E26+G26 -> 0 | K26: 仙台運送 | L26: みちのく会費 | O26: 会費加入 | P26: 826910
I27: =C27+E27+G27 -> 0 | K27: 仙台運送 | L27: みちのく会 特別会費 | O27: 交際費 | P27: 826800
B28: 計 | C28: =SUM(C24:C27) -> 8592426 | D28: 計 | E28: =SUM(E24:E27) -> 0 | F28: 計 | G28: =SUM(G24:G27) -> 0 | H28: =SUM(H24:H27) -> 35975 | I28: =SUM(I24:I27) -> 8628401 | J28: =I28-H28 -> 8592426 | K28: 川崎運送 | L28: 会費 | M28: 25000 | O28: 会費加入 | P28: 826910 | S28: =SUM(S22:S26) -> 0 | U28: =SUM(U22:U26) -> 0 | W28: =SUM(W22:W26) -> 0 | Y28: =U28+W28 -> 0
K29: 丸全昭和運輸 | L29: 事務所清掃代 | O29: 雑費 | P29: 827900 | AA29: 翌月繰越
B30: 日本通運 他 | C30: 4018850 | H30: =N42 -> 114653 | I30: =C30+E30+G30+H30 -> 4133503 | K30: 丸全昭和運輸 | L30: 全通神奈川連絡会費 | O30: 会費加入 | P30: 826910 | S30: =S6+S20+S28 -> -9217280 | U30: =U20+U28 -> 12387167 | W30: =W20+W28 -> 71280 | Y30: =Y20+Y28 -> 12458447 | AA30: =S30-Y30 -> -21675727
I31: =C31+E31+G31 -> 0 | K31: 全国通運 | L31: 郵送料 | N31: 640 | O31: 郵便料 | P31: 826430
A32: =A14 -> 下期(22/12) | I32: =C32+E32+G32 -> 0 | K32: 全国通運 | L32: A4ｶｯﾄ紙 | O32: 用紙代 | P32: 826730 | Q32: =IF(LEFT(P34,1)="3","原","") -> 
I33: =C33+E33+G33 -> 0 | K33: 全国通運 | L33: 全通VPN料金（NTT） | O33: 雑費 | P33: 827900 | Q33: =IF(LEFT(P35,1)="3","原","") -> 
I34: =C34+E34+G34 -> 0 | K34: 全国通運 | L34: 全通VPN料金（専用線） | N34: 21120 | O34: 雑費 | P34: 827900 | Q34: =IF(LEFT(P36,1)="3","原","") -> 
B35: 計 | C35: =SUM(C30:C34) -> 4018850 | D35: 計 | E35: =SUM(E30:E34) -> 0 | F35: 計 | G35: =SUM(G30:G34) -> 0 | H35: =SUM(H30:H34) -> 114653 | I35: =SUM(C35:H35) -> 4133503 | J35: =I35-H35 -> 4018850 | K35: 全国通運 | L35: 情報ｼｽﾃﾑ開発料金 | N35: 7150 | O35: 雑費 | P35: 827900 | Q35: =IF(LEFT(P37,1)="3","原","") -> 
K36: 全国通運 | L36: 情報ｼｽﾃﾑ基本料金 | N36: 12243 | O36: 雑費 | P36: 827900 | Q36: =IF(LEFT(P38,1)="3","原","") -> 
K37: 全国通運 | L37: 通風コンテナ | O37: 雑費 | P37: 827900
A38: 合計 | C38: =C28+C35 -> 12611276 | E38: =E28+E35 -> 0 | G38: =G28+G35 -> 0 | H38: =H28+H35 -> 150628 | I38: =I28+I35 -> 12761904 | J38: =I38-H38 -> 12611276 | K38: 運送保証協会 | L38: 保証料(JR分) | N38: 33520 | O38: 雑費 | P38: 827900
D39: 前途金 | E39: 仮払金 | K39: 運送保証協会 | L39: 保証料(神奈川臨海分） | N39: 80 | O39: 雑費 | P39: 827900
A40: 他店貸,借A/C差額(上期) | C40: =I40-M42 -> 8138016 | D40: 1822000 | E40: =C40-D40 -> 6316016 | H40: 上期交計尻未払金 | I40: =I28-H10 -> 8173991 | K40: =+K3 -> 2022-12-01 | L40: 計 | M40: =SUM(M5:M39) -> 35975 | N40: =SUM(N5:N39) -> 114653
A41: 他店貸,借A/C差額(下期) | C41: =I41-N42 -> 3871450 | E41: =C41+D41-J6 -> 3871450 | H41: 下期交計尻未払金 | I41: =I35-H16 -> 3986103 | M41: 仮払金 | N41: 仮払金
K42: =K40 -> 2022-12-01 | L42: 合 計 | M42: =M40 -> 35975 | N42: =N40 -> 114653
H43: 上期 | I43: =I40+M47 -> 8176440.7
H44: 下期 | I44: =I41+N47 -> 3987032.5 | M44: 計算料（雑費） | N44: 計算料（雑費）
M45: 2227 | N45: 845
M46: =M45*0.1 -> 222.7 | N46: =N45*0.1 -> 84.5 | O46: ※2019年9月下期より消費税10%
M47: =M45+M46 -> 2449.7 | N47: =N45+N46 -> 929.5

Sheet 23.01
A3: 2023-01-01 | B3: 交計受取勘定 | K3: =+A3 -> 2023-01-01 | L3: 交計業務経費(A表) | M3: (上期) | N3: (下期) | S3: =EOMONTH(A3,1) -> 2023-02-28 | T3: 全国通運圧縮対象計上額一覧
B4: ｺﾝﾃﾅ-配達料 | D4: ｺﾝﾃﾅ-配達料 | F4: ｺﾝﾃﾅ-配達料 | K4: 支払先 | L4: 内 容 | M4: 被請求金額 | N4: 被請求金額 | S4: 買掛金 | U4: 仮払金 | W4: 売掛金 | Y4: 貸方計 | AA4: 差額
A5: 決済日 | B5: 請求先 | C5: 金額 | D5: =+B5 -> 請求先 | E5: 金額 | F5: =+D5 -> 請求先 | G5: 金額 | H5: 合計 | K5: 輸送新聞社 | L5: 購読料 | O5: 図書費 | P5: 826780 | Q5: =IF(LEFT(P5,1)="3","原","") -> 
B6: 中京通運他 | C6: 204380 | H6: =C6+E6+G6 -> 204380 | K6: 輸送新聞社 | L6: 送料 | M6: 1975 | O6: 郵便料 | P6: 826430 | Q6: =IF(LEFT(P6,1)="3","原","") ->  | R6: 繰越 | S6: =INDIRECT(IF(MONTH(A3)=1,RIGHT(YEAR(A3)-1,2)&".12",RIGHT(YEAR(A3),2)&"."&TEXT(MONTH(A3)-1,"00"))&"!AA30") -> -21675727
H7: =C7+E7+G7 -> 0 | K7: 交通日本社 | L7: 通運業者名簿追録 | O7: 図書費 | P7: 826780 | R7: =MONTH(A3) -> 1 | S7: 5036130 | T7: 他店借 | U7: 3913178 | W7: 17600
A8: ="上期("&TEXT(A3,"YY")&"/"&TEXT(A3,"MM")&")" -> 上期(23/01) | H8: =C8+E8+G8 -> 0 | K8: 交通日本社 | L8: 送料 | O8: 郵便料 | P8: 826430 | S8: 3407910 | T8: 鉄道 | U8: 2112330
H9: =C9+E9+G9 -> 0 | K9: 通運新聞社 | L9: 購読料 | O9: 図書費 | P9: 826780 | U9: 1593000
B10: 計 | C10: =SUM(C6:C9) -> 204380 | D10: 計 | E10: =SUM(E6:E9) -> 0 | F10: 計 | G10: =SUM(G6:G9) -> 0 | H10: =SUM(H6:H9) -> 204380 | K10: 通運新聞社 | L10: 郵送料 | O10: 郵便料 | P10: 826430
K11: 通運情報社 | L11: 購読料 | O11: 図書費 | P11: 826780
B12: 中京通運 他 | C12: 32780 | H12: =C12+E12+G12 -> 32780 | K12: 運輸世界新聞社 | L12: 購読料 | O12: 図書費 | P12: 826780
B13: 保証預り金利子 | H13: =C13+E13+G13 -> 0 | K13: 運輸図書 | L13: ｺﾝﾃﾅ貨物集配便覧追補 | O13: 図書費 | P13: 826780
A14: ="下期("&TEXT(A3,"YY")&"/"&TEXT(A3,"MM")&")" -> 下期(23/01) | H14: =C14+E14+G14 -> 0 | K14: 運輸図書 | L14: 送料 | O14: 郵便料 | P14: 826430
H15: =C15+E15+G15 -> 0 | K15: 全国通運業連合会 | L15: 全国大会会費 | O15: 会費加入 | P15: 826910
B16: 計 | C16: =SUM(C12:C15) -> 32780 | D16: 計 | E16: =SUM(E12:E15) -> 0 | F16: 計 | G16: =SUM(G12:G15) -> 0 | H16: =SUM(H12:H15) -> 32780 | K16: 全国通運業連合会 | L16: 懇親会会費 | O16: 交際費 | P16: 826800
K17: 関東通運業連合会 | L17: ｺﾝﾃﾅ委員会会費 | O17: 会費加入 | P17: 826910
K18: 関東通運業連合会 | L18: 東名大通友会会費 | O18: 会費加入 | P18: 826910
A19: 合計 | C19: =C10+C16 -> 237160 | E19: =E10+E16 -> 0 | G19: =G10+G16 -> 0 | H19: =H10+H16 -> 237160 | K19: 関東通運業連合会 | L19: 会費 | N19: 39900 | O19: 会費加入 | P19: 826910
K20: 中部通運業連合会 | L20: 東名大通友会会費 | O20: 会費加入 | P20: 826910 | Q20: =IF(LEFT(P21,1)="3","原","") ->  | S20: =SUM(S7:S19) -> 8444040 | U20: =SUM(U6:U19) -> 7618508 | W20: =SUM(W6:W19) -> 17600 | Y20: =U20+W20 -> 7636108 | AA20: =S20-Y20 -> 807932
A21: =+A3 -> 2023-01-01 | B21: 交計支払勘定 | K21: 日本通運(横浜) | L21: 鉄道貨物利用運送会費 | O21: 会費加入 | P21: 826910 | U21: 事故費 | W21: その他
B22: ｺﾝﾃﾅ-着店借 | D22: ｺﾝﾃﾅ-着店借 | F22: ｺﾝﾃﾅ-着店借 | H22: 業務経費 | K22: 日本通運(横浜) | L22: 神奈川県通運会費 | O22: 会費加入 | P22: 826910
A23: 決済日 | B23: 配送依頼先 | C23: 金額 | D23: =+B23 -> 配送依頼先 | E23: 金額 | F23: =+D23 -> 配送依頼先 | G23: 金額 | H23: (A)表 | I23: 合計 | K23: 日本通運(横浜) | L23: 通運業界臨時会費 | O23: 会費加入 | P23: 826910
B24: 日本通運他 | C24: 9228097 | H24: =M42 -> 31475 | I24: =C24+E24+G24+H24 -> 9259572 | K24: 博多港運 | L24: 九州会会費 | N24: 4500 | O24: 会費加入 | P24: 826910
I25: =C25+E25+G25 -> 0 | K25: 札幌通運 | L25: 北海道会費 | M25: 4500 | O25: 会費加入 | P25: 826910
A26: =A8 -> 上期(23/01) | I26: =C26+E26+G26 -> 0 | K26: 仙台運送 | L26: みちのく会費 | O26: 会費加入 | P26: 826910
I27: =C27+E27+G27 -> 0 | K27: 仙台運送 | L27: みちのく会 特別会費 | O27: 交際費 | P27: 826800
B28: 計 | C28: =SUM(C24:C27) -> 9228097 | D28: 計 | E28: =SUM(E24:E27) -> 0 | F28: 計 | G28: =SUM(G24:G27) -> 0 | H28: =SUM(H24:H27) -> 31475 | I28: =SUM(I24:I27) -> 9259572 | J28: =I28-H28 -> 9228097 | K28: 川崎運送 | L28: 会費 | M28: 25000 | O28: 会費加入 | P28: 826910 | S28: =SUM(S22:S26) -> 0 | U28: =SUM(U22:U26) -> 0 | W28: =SUM(W22:W26) -> 0 | Y28: =U28+W28 -> 0
K29: 丸全昭和運輸 | L29: 事務所清掃代 | O29: 雑費 | P29: 827900 | AA29: 翌月繰越
B30: 日本通運 他 | C30: 2145110 | H30: =N42 -> 121293 | I30: =C30+E30+G30+H30 -> 2266403 | K30: 丸全昭和運輸 | L30: 全通神奈川連絡会費 | O30: 会費加入 | P30: 826910 | S30: =S6+S20+S28 -> -13231687 | U30: =U20+U28 -> 7618508 | W30: =W20+W28 -> 17600 | Y30: =Y20+Y28 -> 7636108 | AA30: =S30-Y30 -> -20867795
I31: =C31+E31+G31 -> 0 | K31: 全国通運 | L31: 郵送料 | N31: 640 | O31: 郵便料 | P31: 826430
A32: =A14 -> 下期(23/01) | I32: =C32+E32+G32 -> 0 | K32: 全国通運 | L32: A4ｶｯﾄ紙 | O32: 用紙代 | P32: 826730 | Q32: =IF(LEFT(P34,1)="3","原","") -> 
I33: =C33+E33+G33 -> 0 | K33: 全国通運 | L33: 全通VPN料金（NTT） | O33: 雑費 | P33: 827900 | Q33: =IF(LEFT(P35,1)="3","原","") -> 
I34: =C34+E34+G34 -> 0 | K34: 全国通運 | L34: 全通VPN料金（専用線） | N34: 21120 | O34: 雑費 | P34: 827900 | Q34: =IF(LEFT(P36,1)="3","原","") -> 
B35: 計 | C35: =SUM(C30:C34) -> 2145110 | D35: 計 | E35: =SUM(E30:E34) -> 0 | F35: 計 | G35: =SUM(G30:G34) -> 0 | H35: =SUM(H30:H34) -> 121293 | I35: =SUM(C35:H35) -> 2266403 | J35: =I35-H35 -> 2145110 | K35: 全国通運 | L35: 情報ｼｽﾃﾑ開発料金 | N35: 7150 | O35: 雑費 | P35: 827900 | Q35: =IF(LEFT(P37,1)="3","原","") -> 
K36: 全国通運 | L36: 情報ｼｽﾃﾑ基本料金 | N36: 12243 | O36: 雑費 | P36: 827900 | Q36: =IF(LEFT(P38,1)="3","原","") -> 
K37: 全国通運 | L37: 通風コンテナ | O37: 雑費 | P37: 827900
A38: 合計 | C38: =C28+C35 -> 11373207 | E38: =E28+E35 -> 0 | G38: =G28+G35 -> 0 | H38: =H28+H35 -> 152768 | I38: =I28+I35 -> 11525975 | J38: =I38-H38 -> 11373207 | K38: 運送保証協会 | L38: 保証料(JR分) | N38: 35680 | O38: 雑費 | P38: 827900
D39: 前途金 | E39: 仮払金 | K39: 運送保証協会 | L39: 保証料(神奈川臨海分） | N39: 60 | O39: 雑費 | P39: 827900
A40: 他店貸,借A/C差額(上期) | C40: =I40-M42 -> 9023717 | D40: 1989000 | E40: =C40-D40 -> 7034717 | H40: 上期交計尻未払金 | I40: =I28-H10 -> 9055192 | K40: =+K3 -> 2023-01-01 | L40: 計 | M40: =SUM(M5:M39) -> 31475 | N40: =SUM(N5:N39) -> 121293
A41: 他店貸,借A/C差額(下期) | C41: =I41-N42 -> 2112330 | E41: =C41+D41-J6 -> 2112330 | H41: 下期交計尻未払金 | I41: =I35-H16 -> 2233623 | M41: 仮払金 | N41: 仮払金
K42: =K40 -> 2023-01-01 | L42: 合 計 | M42: =M40 -> 31475 | N42: =N40 -> 121293
H43: 上期 | I43: =I40+M47 -> 9056447.1
H44: 下期 | I44: =I41+N47 -> 2233909 | M44: 計算料（雑費） | N44: 計算料（雑費）
M45: 1141 | N45: 260
M46: =M45*0.1 -> 114.1 | N46: =N45*0.1 -> 26 | O46: ※2019年9月下期より消費税10%
M47: =M45+M46 -> 1255.1 | N47: =N45+N46 -> 286

Sheet 23.02
A3: 2023-02-01 | B3: 交計受取勘定 | K3: =+A3 -> 2023-02-01 | L3: 交計業務経費(A表) | M3: (上期) | N3: (下期) | S3: =EOMONTH(A3,1) -> 2023-03-31 | T3: 全国通運圧縮対象計上額一覧
B4: ｺﾝﾃﾅ-配達料 | D4: ｺﾝﾃﾅ-配達料 | F4: ｺﾝﾃﾅ-配達料 | K4: 支払先 | L4: 内 容 | M4: 被請求金額 | N4: 被請求金額 | S4: 買掛金 | U4: 仮払金 | W4: 売掛金 | Y4: 貸方計 | AA4: 差額
A5: 決済日 | B5: 請求先 | C5: 金額 | D5: =+B5 -> 請求先 | E5: 金額 | F5: =+D5 -> 請求先 | G5: 金額 | H5: 合計 | K5: 輸送新聞社 | L5: 購読料 | O5: 図書費 | P5: 826780 | Q5: =IF(LEFT(P5,1)="3","原","") -> 
B6: 中京通運他 | C6: 66330 | H6: =C6+E6+G6 -> 66330 | K6: 輸送新聞社 | L6: 送料 | M6: 1975 | O6: 郵便料 | P6: 826430 | Q6: =IF(LEFT(P6,1)="3","原","") ->  | R6: 繰越 | S6: =INDIRECT(IF(MONTH(A3)=1,RIGHT(YEAR(A3)-1,2)&".12",RIGHT(YEAR(A3),2)&"."&TEXT(MONTH(A3)-1,"00"))&"!AA30") -> -20867795
A7: ローパーテーション | H7: =C7+E7+G7 -> 0 | K7: 交通日本社 | L7: 通運業者名簿追録 | O7: 図書費 | P7: 826780 | R7: =MONTH(A3) -> 2 | S7: 5540920 | T7: 他店借 | U7: 6881391 | W7: 195030
A8: ="上期("&TEXT(A3,"YY")&"/"&TEXT(A3,"MM")&")" -> 上期(23/02) | H8: =C8+E8+G8 -> 0 | K8: 交通日本社 | L8: 送料 | O8: 郵便料 | P8: 826430 | S8: 5373687 | T8: 鉄道 | U8: 1918950 | W8: 82060
H9: =C9+E9+G9 -> 0 | K9: 通運新聞社 | L9: 購読料 | O9: 図書費 | P9: 826780 | W9: 69740
B10: 計 | C10: =SUM(C6:C9) -> 66330 | D10: 計 | E10: =SUM(E6:E9) -> 0 | F10: 計 | G10: =SUM(G6:G9) -> 0 | H10: =SUM(H6:H9) -> 66330 | K10: 通運新聞社 | L10: 郵送料 | O10: 郵便料 | P10: 826430 | W10: 43560
K11: 通運情報社 | L11: 購読料 | O11: 図書費 | P11: 826780
B12: 中京通運 他 | C12: 32450 | H12: =C12+E12+G12 -> 32450 | K12: 運輸世界新聞社 | L12: 購読料 | O12: 図書費 | P12: 826780
B13: 保証預り金利子 | H13: =C13+E13+G13 -> 0 | K13: 運輸図書 | L13: ｺﾝﾃﾅ貨物集配便覧追補 | O13: 図書費 | P13: 826780
A14: ="下期("&TEXT(A3,"YY")&"/"&TEXT(A3,"MM")&")" -> 下期(23/02) | H14: =C14+E14+G14 -> 0 | K14: 運輸図書 | L14: 送料 | O14: 郵便料 | P14: 826430
H15: =C15+E15+G15 -> 0 | K15: 全国通運業連合会 | L15: 全国大会会費 | O15: 会費加入 | P15: 826910
B16: 計 | C16: =SUM(C12:C15) -> 32450 | D16: 計 | E16: =SUM(E12:E15) -> 0 | F16: 計 | G16: =SUM(G12:G15) -> 0 | H16: =SUM(H12:H15) -> 32450 | K16: 全国通運業連合会 | L16: 懇親会会費 | O16: 交際費 | P16: 826800
K17: 関東通運業連合会 | L17: ｺﾝﾃﾅ委員会会費 | O17: 会費加入 | P17: 826910
K18: 関東通運業連合会 | L18: 東名大通友会会費 | O18: 会費加入 | P18: 826910
A19: 合計 | C19: =C10+C16 -> 98780 | E19: =E10+E16 -> 0 | G19: =G10+G16 -> 0 | H19: =H10+H16 -> 98780 | K19: 関東通運業連合会 | L19: 会費 | N19: 39900 | O19: 会費加入 | P19: 826910
K20: 中部通運業連合会 | L20: 東名大通友会会費 | O20: 会費加入 | P20: 826910 | Q20: =IF(LEFT(P21,1)="3","原","") ->  | S20: =SUM(S7:S19) -> 10914607 | U20: =SUM(U6:U19) -> 8800341 | W20: =SUM(W6:W19) -> 390390 | Y20: =U20+W20 -> 9190731 | AA20: =S20-Y20 -> 1723876
A21: =+A3 -> 2023-02-01 | B21: 交計支払勘定 | K21: 日本通運(横浜) | L21: 鉄道貨物利用運送会費 | O21: 会費加入 | P21: 826910 | U21: 事故費 | W21: その他
B22: ｺﾝﾃﾅ-着店借 | D22: ｺﾝﾃﾅ-着店借 | F22: ｺﾝﾃﾅ-着店借 | H22: 業務経費 | K22: 日本通運(横浜) | L22: 神奈川県通運会費 | O22: 会費加入 | P22: 826910
A23: 決済日 | B23: 配送依頼先 | C23: 金額 | D23: =+B23 -> 配送依頼先 | E23: 金額 | F23: =+D23 -> 配送依頼先 | G23: 金額 | H23: (A)表 | I23: 合計 | K23: 日本通運(横浜) | L23: 通運業界臨時会費 | O23: 会費加入 | P23: 826910
B24: 日本通運他 | C24: 5460508 | H24: =M42 -> 31475 | I24: =C24+E24+G24+H24 -> 5491983 | K24: 博多港運 | L24: 九州会会費 | N24: 4500 | O24: 会費加入 | P24: 826910
I25: =C25+E25+G25 -> 0 | K25: 札幌通運 | L25: 北海道会費 | M25: 4500 | O25: 会費加入 | P25: 826910
A26: =A8 -> 上期(23/02) | I26: =C26+E26+G26 -> 0 | K26: 仙台運送 | L26: みちのく会費 | O26: 会費加入 | P26: 826910
I27: =C27+E27+G27 -> 0 | K27: 仙台運送 | L27: みちのく会 特別会費 | O27: 交際費 | P27: 826800
B28: 計 | C28: =SUM(C24:C27) -> 5460508 | D28: 計 | E28: =SUM(E24:E27) -> 0 | F28: 計 | G28: =SUM(G24:G27) -> 0 | H28: =SUM(H24:H27) -> 31475 | I28: =SUM(I24:I27) -> 5491983 | J28: =I28-H28 -> 5460508 | K28: 川崎運送 | L28: 会費 | M28: 25000 | O28: 会費加入 | P28: 826910 | S28: =SUM(S22:S26) -> 0 | U28: =SUM(U22:U26) -> 0 | W28: =SUM(W22:W26) -> 0 | Y28: =U28+W28 -> 0
K29: 丸全昭和運輸 | L29: 事務所清掃代 | O29: 雑費 | P29: 827900 | AA29: 翌月繰越
B30: 日本通運 他 | C30: 1951400 | H30: =N42 -> 129053 | I30: =C30+E30+G30+H30 -> 2080453 | K30: 丸全昭和運輸 | L30: 全通神奈川連絡会費 | O30: 会費加入 | P30: 826910 | S30: =S6+S20+S28 -> -9953188 | U30: =U20+U28 -> 8800341 | W30: =W20+W28 -> 390390 | Y30: =Y20+Y28 -> 9190731 | AA30: =S30-Y30 -> -19143919
I31: =C31+E31+G31 -> 0 | K31: 全国通運 | L31: 郵送料 | N31: 640 | O31: 郵便料 | P31: 826430
A32: =A14 -> 下期(23/02) | I32: =C32+E32+G32 -> 0 | K32: 全国通運 | L32: A4ｶｯﾄ紙 | O32: 用紙代 | P32: 826730 | Q32: =IF(LEFT(P34,1)="3","原","") -> 
I33: =C33+E33+G33 -> 0 | K33: 全国通運 | L33: 全通VPN料金（NTT） | O33: 雑費 | P33: 827900 | Q33: =IF(LEFT(P35,1)="3","原","") -> 
I34: =C34+E34+G34 -> 0 | K34: 全国通運 | L34: 全通VPN料金（専用線） | N34: 21120 | O34: 雑費 | P34: 827900 | Q34: =IF(LEFT(P36,1)="3","原","") -> 
B35: 計 | C35: =SUM(C30:C34) -> 1951400 | D35: 計 | E35: =SUM(E30:E34) -> 0 | F35: 計 | G35: =SUM(G30:G34) -> 0 | H35: =SUM(H30:H34) -> 129053 | I35: =SUM(C35:H35) -> 2080453 | J35: =I35-H35 -> 1951400 | K35: 全国通運 | L35: 情報ｼｽﾃﾑ開発料金 | N35: 12243 | O35: 雑費 | P35: 827900 | Q35: =IF(LEFT(P37,1)="3","原","") -> 
K36: 全国通運 | L36: 情報ｼｽﾃﾑ基本料金 | N36: 7150 | O36: 雑費 | P36: 827900 | Q36: =IF(LEFT(P38,1)="3","原","") -> 
K37: 全国通運 | L37: 通風コンテナ | O37: 雑費 | P37: 827900
A38: 合計 | C38: =C28+C35 -> 7411908 | E38: =E28+E35 -> 0 | G38: =G28+G35 -> 0 | H38: =H28+H35 -> 160528 | I38: =I28+I35 -> 7572436 | J38: =I38-H38 -> 7411908 | K38: 運送保証協会 | L38: 保証料(JR分) | N38: 43500 | O38: 雑費 | P38: 827900
D39: 前途金 | E39: 仮払金 | K39: 運送保証協会 | L39: 保証料(神奈川臨海分） | O39: 雑費 | P39: 827900
A40: 他店貸,借A/C差額(上期) | C40: =I40-M42 -> 5394178 | D40: 1481000 | E40: =C40-D40 -> 3913178 | H40: 上期交計尻未払金 | I40: =I28-H10 -> 5425653 | K40: =+K3 -> 2023-02-01 | L40: 計 | M40: =SUM(M5:M39) -> 31475 | N40: =SUM(N5:N39) -> 129053
A41: 他店貸,借A/C差額(下期) | C41: =I41-N42 -> 1918950 | E41: =C41+D41-J6 -> 1918950 | H41: 下期交計尻未払金 | I41: =I35-H16 -> 2048003 | M41: 仮払金 | N41: 仮払金
K42: =K40 -> 2023-02-01 | L42: 合 計 | M42: =M40 -> 31475 | N42: =N40 -> 129053
H43: 上期 | I43: =I40+M47 -> 5426126
H44: 下期 | I44: =I41+N47 -> 2048289 | M44: 計算料（雑費） | N44: 計算料（雑費）
M45: 430 | N45: 260
M46: =M45*0.1 -> 43 | N46: =N45*0.1 -> 26 | O46: ※2019年9月下期より消費税10%
M47: =M45+M46 -> 473 | N47: =N45+N46 -> 286

Sheet 23.03
A3: 2023-03-01 | B3: 交計受取勘定 | K3: =+A3 -> 2023-03-01 | L3: 交計業務経費(A表) | M3: (上期) | N3: (下期) | S3: =EOMONTH(A3,1) -> 2023-04-30 | T3: 全国通運圧縮対象計上額一覧
B4: ｺﾝﾃﾅ-配達料 | D4: ｺﾝﾃﾅ-配達料 | F4: ｺﾝﾃﾅ-配達料 | K4: 支払先 | L4: 内 容 | M4: 被請求金額 | N4: 被請求金額 | S4: 買掛金 | U4: 仮払金 | W4: 売掛金 | Y4: 貸方計 | AA4: 差額
A5: 決済日 | B5: 請求先 | C5: 金額 | D5: =+B5 -> 請求先 | E5: 金額 | F5: =+D5 -> 請求先 | G5: 金額 | H5: 合計 | K5: 輸送新聞社 | L5: 購読料 | O5: 図書費 | P5: 826780 | Q5: =IF(LEFT(P5,1)="3","原","") -> 
B6: 中京通運他 | C6: 142560 | H6: =C6+E6+G6 -> 142560 | K6: 輸送新聞社 | L6: 送料 | M6: 1975 | O6: 郵便料 | P6: 826430 | Q6: =IF(LEFT(P6,1)="3","原","") ->  | R6: 繰越 | S6: =INDIRECT(IF(MONTH(A3)=1,RIGHT(YEAR(A3)-1,2)&".12",RIGHT(YEAR(A3),2)&"."&TEXT(MONTH(A3)-1,"00"))&"!AA30") -> -19143919
A7: ローパーテーション | H7: =C7+E7+G7 -> 0 | K7: 交通日本社 | L7: 通運業者名簿追録 | O7: 図書費 | P7: 826780 | R7: =MONTH(A3) -> 3 | S7: 6254380 | T7: 他店借 | U7: 2834440 | W7: 62480
A8: ="上期("&TEXT(A3,"YY")&"/"&TEXT(A3,"MM")&")" -> 上期(23/03) | H8: =C8+E8+G8 -> 0 | K8: 交通日本社 | L8: 送料 | O8: 郵便料 | P8: 826430 | S8: 7126106 | T8: 鉄道 | U8: 3335281 | W8: 8580
H9: =C9+E9+G9 -> 0 | K9: 通運新聞社 | L9: 購読料 | O9: 図書費 | P9: 826780 | U9: 2109000 | W9: 85690
B10: 計 | C10: =SUM(C6:C9) -> 142560 | D10: 計 | E10: =SUM(E6:E9) -> 0 | F10: 計 | G10: =SUM(G6:G9) -> 0 | H10: =SUM(H6:H9) -> 142560 | K10: 通運新聞社 | L10: 郵送料 | O10: 郵便料 | P10: 826430 | U10: 2040000
K11: 通運情報社 | L11: 購読料 | O11: 図書費 | P11: 826780
B12: 中京通運 他 | C12: 29040 | H12: =C12+E12+G12 -> 29040 | K12: 運輸世界新聞社 | L12: 購読料 | O12: 図書費 | P12: 826780
B13: 保証預り金利子 | C13: 15000 | H13: =C13+E13+G13 -> 15000 | K13: 運輸図書 | L13: ｺﾝﾃﾅ貨物集配便覧追補 | O13: 図書費 | P13: 826780
A14: ="下期("&TEXT(A3,"YY")&"/"&TEXT(A3,"MM")&")" -> 下期(23/03) | H14: =C14+E14+G14 -> 0 | K14: 運輸図書 | L14: 送料 | O14: 郵便料 | P14: 826430
H15: =C15+E15+G15 -> 0 | K15: 全国通運業連合会 | L15: 全国大会会費 | O15: 会費加入 | P15: 826910
B16: 計 | C16: =SUM(C12:C15) -> 44040 | D16: 計 | E16: =SUM(E12:E15) -> 0 | F16: 計 | G16: =SUM(G12:G15) -> 0 | H16: =SUM(H12:H15) -> 44040 | K16: 全国通運業連合会 | L16: 懇親会会費 | O16: 交際費 | P16: 826800
K17: 関東通運業連合会 | L17: ｺﾝﾃﾅ委員会会費 | O17: 会費加入 | P17: 826910
K18: 関東通運業連合会 | L18: 東名大通友会会費 | O18: 会費加入 | P18: 826910
A19: 合計 | C19: =C10+C16 -> 186600 | E19: =E10+E16 -> 0 | G19: =G10+G16 -> 0 | H19: =H10+H16 -> 186600 | K19: 関東通運業連合会 | L19: 会費 | N19: 39900 | O19: 会費加入 | P19: 826910
K20: 中部通運業連合会 | L20: 東名大通友会会費 | O20: 会費加入 | P20: 826910 | Q20: =IF(LEFT(P21,1)="3","原","") ->  | S20: =SUM(S7:S19) -> 13380486 | U20: =SUM(U6:U19) -> 10318721 | W20: =SUM(W6:W19) -> 156750 | Y20: =U20+W20 -> 10475471 | AA20: =S20-Y20 -> 2905015
A21: =+A3 -> 2023-03-01 | B21: 交計支払勘定 | K21: 日本通運(横浜) | L21: 鉄道貨物利用運送会費 | O21: 会費加入 | P21: 826910 | U21: 事故費 | W21: その他
B22: ｺﾝﾃﾅ-着店借 | D22: ｺﾝﾃﾅ-着店借 | F22: ｺﾝﾃﾅ-着店借 | H22: 業務経費 | K22: 日本通運(横浜) | L22: 神奈川県通運会費 | O22: 会費加入 | P22: 826910
A23: 決済日 | B23: 配送依頼先 | C23: 金額 | D23: =+B23 -> 配送依頼先 | E23: 金額 | F23: =+D23 -> 配送依頼先 | G23: 金額 | H23: (A)表 | I23: 合計 | K23: 日本通運(横浜) | L23: 通運業界臨時会費 | O23: 会費加入 | P23: 826910
B24: 日本通運他 | C24: 8616951 | H24: =M42 -> 31475 | I24: =C24+E24+G24+H24 -> 8648426 | K24: 博多港運 | L24: 九州会会費 | N24: 4500 | O24: 会費加入 | P24: 826910
I25: =C25+E25+G25 -> 0 | K25: 札幌通運 | L25: 北海道会費 | M25: 4500 | O25: 会費加入 | P25: 826910
A26: =A8 -> 上期(23/03) | I26: =C26+E26+G26 -> 0 | K26: 仙台運送 | L26: みちのく会費 | O26: 会費加入 | P26: 826910
I27: =C27+E27+G27 -> 0 | K27: 仙台運送 | L27: みちのく会 特別会費 | O27: 交際費 | P27: 826800
B28: 計 | C28: =SUM(C24:C27) -> 8616951 | D28: 計 | E28: =SUM(E24:E27) -> 0 | F28: 計 | G28: =SUM(G24:G27) -> 0 | H28: =SUM(H24:H27) -> 31475 | I28: =SUM(I24:I27) -> 8648426 | J28: =I28-H28 -> 8616951 | K28: 川崎運送 | L28: 会費 | M28: 25000 | O28: 会費加入 | P28: 826910 | S28: =SUM(S22:S26) -> 0 | U28: =SUM(U22:U26) -> 0 | W28: =SUM(W22:W26) -> 0 | Y28: =U28+W28 -> 0
K29: 丸全昭和運輸 | L29: 事務所清掃代 | O29: 雑費 | P29: 827900 | AA29: 翌月繰越
B30: 日本通運 他 | C30: 2878480 | H30: =N42 -> 128323 | I30: =C30+E30+G30+H30 -> 3006803 | K30: 丸全昭和運輸 | L30: 全通神奈川連絡会費 | O30: 会費加入 | P30: 826910 | S30: =S6+S20+S28 -> -5763433 | U30: =U20+U28 -> 10318721 | W30: =W20+W28 -> 156750 | Y30: =Y20+Y28 -> 10475471 | AA30: =S30-Y30 -> -16238904
I31: =C31+E31+G31 -> 0 | K31: 全国通運 | L31: 郵送料 | N31: 640 | O31: 郵便料 | P31: 826430
A32: =A14 -> 下期(23/03) | I32: =C32+E32+G32 -> 0 | K32: 全国通運 | L32: A4ｶｯﾄ紙 | O32: 用紙代 | P32: 826730 | Q32: =IF(LEFT(P34,1)="3","原","") -> 
I33: =C33+E33+G33 -> 0 | K33: 全国通運 | L33: 全通VPN料金（NTT） | O33: 雑費 | P33: 827900 | Q33: =IF(LEFT(P35,1)="3","原","") -> 
I34: =C34+E34+G34 -> 0 | K34: 全国通運 | L34: 全通VPN料金（専用線） | N34: 21120 | O34: 雑費 | P34: 827900 | Q34: =IF(LEFT(P36,1)="3","原","") -> 
B35: 計 | C35: =SUM(C30:C34) -> 2878480 | D35: 計 | E35: =SUM(E30:E34) -> 0 | F35: 計 | G35: =SUM(G30:G34) -> 0 | H35: =SUM(H30:H34) -> 128323 | I35: =SUM(C35:H35) -> 3006803 | J35: =I35-H35 -> 2878480 | K35: 全国通運 | L35: 情報ｼｽﾃﾑ開発料金 | N35: 12243 | O35: 雑費 | P35: 827900 | Q35: =IF(LEFT(P37,1)="3","原","") -> 
K36: 全国通運 | L36: 情報ｼｽﾃﾑ基本料金 | N36: 7150 | O36: 雑費 | P36: 827900 | Q36: =IF(LEFT(P38,1)="3","原","") -> 
K37: 全国通運 | L37: 通風コンテナ | O37: 雑費 | P37: 827900
A38: 合計 | C38: =C28+C35 -> 11495431 | E38: =E28+E35 -> 0 | G38: =G28+G35 -> 0 | H38: =H28+H35 -> 159798 | I38: =I28+I35 -> 11655229 | J38: =I38-H38 -> 11495431 | K38: 運送保証協会 | L38: 保証料(JR分) | N38: 42750 | O38: 雑費 | P38: 827900
D39: 前途金 | E39: 仮払金 | K39: 運送保証協会 | L39: 保証料(神奈川臨海分） | N39: 20 | O39: 雑費 | P39: 827900
A40: 他店貸,借A/C差額(上期) | C40: =I40-M42 -> 8474391 | D40: 1593000 | E40: =C40-D40 -> 6881391 | H40: 上期交計尻未払金 | I40: =I28-H10 -> 8505866 | K40: =+K3 -> 2023-03-01 | L40: 計 | M40: =SUM(M5:M39) -> 31475 | N40: =SUM(N5:N39) -> 128323
A41: 他店貸,借A/C差額(下期) | C41: =I41-N42 -> 2834440 | E41: =C41+D41-J6 -> 2834440 | H41: 下期交計尻未払金 | I41: =I35-H16 -> 2962763 | M41: 仮払金 | N41: 仮払金
K42: =K40 -> 2023-03-01 | L42: 合 計 | M42: =M40 -> 31475 | N42: =N40 -> 128323
H43: 上期 | I43: =I40+M47 -> 8506795.5
H44: 下期 | I44: =I41+N47 -> 2962983 | M44: 計算料（雑費） | N44: 計算料（雑費）
M45: 845 | N45: 200
M46: =M45*0.1 -> 84.5 | N46: =N45*0.1 -> 20 | O46: ※2019年9月下期より消費税10%
M47: =M45+M46 -> 929.5 | N47: =N45+N46 -> 220

Sheet 23.04
A3: 2023-04-01 | B3: 交計受取勘定 | K3: =+A3 -> 2023-04-01 | L3: 交計業務経費(A表) | M3: (上期) | N3: (下期) | S3: =EOMONTH(A3,1) -> 2023-05-31 | T3: 全国通運圧縮対象計上額一覧
B4: ｺﾝﾃﾅ-配達料 | D4: ｺﾝﾃﾅ-配達料 | F4: ｺﾝﾃﾅ-配達料 | K4: 支払先 | L4: 内 容 | M4: 被請求金額 | N4: 被請求金額 | S4: 買掛金 | U4: 仮払金 | W4: 売掛金 | Y4: 貸方計 | AA4: 差額
A5: 決済日 | B5: 請求先 | C5: 金額 | D5: =+B5 -> 請求先 | E5: 金額 | F5: =+D5 -> 請求先 | G5: 金額 | H5: 合計 | K5: 輸送新聞社 | L5: 購読料 | O5: 図書費 | P5: 826780 | Q5: =IF(LEFT(P5,1)="3","原","") -> 
B6: 中京通運他 | C6: 331870 | H6: =C6+E6+G6 -> 331870 | K6: 輸送新聞社 | L6: 送料 | O6: 郵便料 | P6: 826430 | Q6: =IF(LEFT(P6,1)="3","原","") ->  | R6: 繰越 | S6: =INDIRECT(IF(MONTH(A3)=1,RIGHT(YEAR(A3)-1,2)&".12",RIGHT(YEAR(A3),2)&"."&TEXT(MONTH(A3)-1,"00"))&"!AA30") -> -16238904
A7: ローパーテーション | H7: =C7+E7+G7 -> 0 | K7: 交通日本社 | L7: 通運業者名簿追録 | O7: 図書費 | P7: 826780 | R7: =MONTH(A3) -> 4 | S7: 4984740 | T7: 他店借 | U7: 6728963 | W7: 124520
A8: ="上期("&TEXT(A3,"YY")&"/"&TEXT(A3,"MM")&")" -> 上期(23/04) | H8: =C8+E8+G8 -> 0 | K8: 交通日本社 | L8: 送料 | O8: 郵便料 | P8: 826430 | S8: 6924155 | T8: 鉄道 | U8: 3611850 | W8: 60720
H9: =C9+E9+G9 -> 0 | K9: 通運新聞社 | L9: 購読料 | M9: 2200 | O9: 図書費 | P9: 826780 | U9: 1725000
B10: 計 | C10: =SUM(C6:C9) -> 331870 | D10: 計 | E10: =SUM(E6:E9) -> 0 | F10: 計 | G10: =SUM(G6:G9) -> 0 | H10: =SUM(H6:H9) -> 331870 | K10: 通運新聞社 | L10: 郵送料 | O10: 郵便料 | P10: 826430
K11: 通運情報社 | L11: 購読料 | O11: 図書費 | P11: 826780
B12: 中京通運 他 | C12: 39490 | H12: =C12+E12+G12 -> 39490 | K12: 運輸世界新聞社 | L12: 購読料 | O12: 図書費 | P12: 826780
B13: 保証預り金利子 | H13: =C13+E13+G13 -> 0 | K13: 運輸図書 | L13: ｺﾝﾃﾅ貨物集配便覧追補 | O13: 図書費 | P13: 826780
A14: ="下期("&TEXT(A3,"YY")&"/"&TEXT(A3,"MM")&")" -> 下期(23/04) | H14: =C14+E14+G14 -> 0 | K14: 運輸図書 | L14: 送料 | O14: 郵便料 | P14: 826430
H15: =C15+E15+G15 -> 0 | K15: 全国通運業連合会 | L15: 全国大会会費 | O15: 会費加入 | P15: 826910
B16: 計 | C16: =SUM(C12:C15) -> 39490 | D16: 計 | E16: =SUM(E12:E15) -> 0 | F16: 計 | G16: =SUM(G12:G15) -> 0 | H16: =SUM(H12:H15) -> 39490 | K16: 全国通運業連合会 | L16: 懇親会会費 | O16: 交際費 | P16: 826800
K17: 関東通運業連合会 | L17: ｺﾝﾃﾅ委員会会費 | O17: 会費加入 | P17: 826910
K18: 関東通運業連合会 | L18: 東名大通友会会費 | O18: 会費加入 | P18: 826910
A19: 合計 | C19: =C10+C16 -> 371360 | E19: =E10+E16 -> 0 | G19: =G10+G16 -> 0 | H19: =H10+H16 -> 371360 | K19: 関東通運業連合会 | L19: 会費 | N19: 39900 | O19: 会費加入 | P19: 826910
K20: 中部通運業連合会 | L20: 東名大通友会会費 | O20: 会費加入 | P20: 826910 | Q20: =IF(LEFT(P21,1)="3","原","") ->  | S20: =SUM(S7:S19) -> 11908895 | U20: =SUM(U6:U19) -> 12065813 | W20: =SUM(W6:W19) -> 185240 | Y20: =U20+W20 -> 12251053 | AA20: =S20-Y20 -> -342158
A21: =+A3 -> 2023-04-01 | B21: 交計支払勘定 | K21: 日本通運(横浜) | L21: 鉄道貨物利用運送会費 | O21: 会費加入 | P21: 826910 | U21: 事故費 | W21: その他
B22: ｺﾝﾃﾅ-着店借 | D22: ｺﾝﾃﾅ-着店借 | F22: ｺﾝﾃﾅ-着店借 | H22: 業務経費 | K22: 日本通運(横浜) | L22: 神奈川県通運会費 | O22: 会費加入 | P22: 826910
A23: 決済日 | B23: 配送依頼先 | C23: 金額 | D23: =+B23 -> 配送依頼先 | E23: 金額 | F23: =+D23 -> 配送依頼先 | G23: 金額 | H23: (A)表 | I23: 合計 | K23: 日本通運(横浜) | L23: 通運業界臨時会費 | O23: 会費加入 | P23: 826910
B24: 日本通運他 | C24: 5776151 | H24: =M42 -> 11200 | I24: =C24+E24+G24+H24 -> 5787351 | K24: 博多港運 | L24: 九州会会費 | O24: 会費加入 | P24: 826910
I25: =C25+E25+G25 -> 0 | K25: 札幌通運 | L25: 北海道会費 | M25: 4500 | O25: 会費加入 | P25: 826910
A26: =A8 -> 上期(23/04) | I26: =C26+E26+G26 -> 0 | K26: 仙台運送 | L26: みちのく会費 | M26: 4500 | O26: 会費加入 | P26: 826910
I27: =C27+E27+G27 -> 0 | K27: 仙台運送 | L27: みちのく会 特別会費 | O27: 交際費 | P27: 826800
B28: 計 | C28: =SUM(C24:C27) -> 5776151 | D28: 計 | E28: =SUM(E24:E27) -> 0 | F28: 計 | G28: =SUM(G24:G27) -> 0 | H28: =SUM(H24:H27) -> 11200 | I28: =SUM(I24:I27) -> 5787351 | J28: =I28-H28 -> 5776151 | K28: 川崎運送 | L28: 会費 | N28: 25000 | O28: 会費加入 | P28: 826910 | S28: =SUM(S22:S26) -> 0 | U28: =SUM(U22:U26) -> 0 | W28: =SUM(W22:W26) -> 0 | Y28: =U28+W28 -> 0
K29: 丸全昭和運輸 | L29: 事務所清掃代 | O29: 雑費 | P29: 827900 | AA29: 翌月繰越
B30: 日本通運 他 | C30: 3651340 | H30: =N42 -> 146078 | I30: =C30+E30+G30+H30 -> 3797418 | K30: 丸全昭和運輸 | L30: 全通神奈川連絡会費 | O30: 会費加入 | P30: 826910 | S30: =S6+S20+S28 -> -4330009 | U30: =U20+U28 -> 12065813 | W30: =W20+W28 -> 185240 | Y30: =Y20+Y28 -> 12251053 | AA30: =S30-Y30 -> -16581062
I31: =C31+E31+G31 -> 0 | K31: 全国通運 | L31: 郵送料 | N31: 640 | O31: 郵便料 | P31: 826430
A32: =A14 -> 下期(23/04) | I32: =C32+E32+G32 -> 0 | K32: 全国通運 | L32: A4ｶｯﾄ紙 | O32: 用紙代 | P32: 826730 | Q32: =IF(LEFT(P34,1)="3","原","") -> 
I33: =C33+E33+G33 -> 0 | K33: 全国通運 | L33: 全通VPN料金（NTT） | O33: 雑費 | P33: 827900 | Q33: =IF(LEFT(P35,1)="3","原","") -> 
I34: =C34+E34+G34 -> 0 | K34: 全国通運 | L34: 全通VPN料金（専用線） | N34: 21120 | O34: 雑費 | P34: 827900 | Q34: =IF(LEFT(P36,1)="3","原","") -> 
B35: 計 | C35: =SUM(C30:C34) -> 3651340 | D35: 計 | E35: =SUM(E30:E34) -> 0 | F35: 計 | G35: =SUM(G30:G34) -> 0 | H35: =SUM(H30:H34) -> 146078 | I35: =SUM(C35:H35) -> 3797418 | J35: =I35-H35 -> 3651340 | K35: 全国通運 | L35: 情報ｼｽﾃﾑ開発料金 | N35: 11628 | O35: 雑費 | P35: 827900 | Q35: =IF(LEFT(P37,1)="3","原","") -> 
K36: 全国通運 | L36: 情報ｼｽﾃﾑ基本料金 | N36: 7150 | O36: 雑費 | P36: 827900 | Q36: =IF(LEFT(P38,1)="3","原","") -> 
K37: 全国通運 | L37: 通風コンテナ | O37: 雑費 | P37: 827900
A38: 合計 | C38: =C28+C35 -> 9427491 | E38: =E28+E35 -> 0 | G38: =G28+G35 -> 0 | H38: =H28+H35 -> 157278 | I38: =I28+I35 -> 9584769 | J38: =I38-H38 -> 9427491 | K38: 運送保証協会 | L38: 保証料(JR分) | N38: 40600 | O38: 雑費 | P38: 827900
D39: 前途金 | E39: 仮払金 | K39: 運送保証協会 | L39: 保証料(神奈川臨海分） | N39: 40 | O39: 雑費 | P39: 827900
A40: 他店貸,借A/C差額(上期) | C40: =I40-M42 -> 5444281 | D40: 2109000 | E40: =C40-D40 -> 3335281 | H40: 上期交計尻未払金 | I40: =I28-H10 -> 5455481 | K40: =+K3 -> 2023-04-01 | L40: 計 | M40: =SUM(M5:M39) -> 11200 | N40: =SUM(N5:N39) -> 146078
A41: 他店貸,借A/C差額(下期) | C41: =I41-N42 -> 3611850 | E41: =C41+D41-J6 -> 3611850 | H41: 下期交計尻未払金 | I41: =I35-H16 -> 3757928 | M41: 仮払金 | N41: 仮払金
K42: =K40 -> 2023-04-01 | L42: 合 計 | M42: =M40 -> 11200 | N42: =N40 -> 146078
H43: 上期 | I43: =I40+M47 -> 5457376.3
H44: 下期 | I44: =I41+N47 -> 3758214 | M44: 計算料（雑費） | N44: 計算料（雑費）
M45: 1723 | N45: 260
M46: =M45*0.1 -> 172.3 | N46: =N45*0.1 -> 26 | O46: ※2019年9月下期より消費税10%
M47: =M45+M46 -> 1895.3 | N47: =N45+N46 -> 286

Sheet 23.05
A3: 2023-05-01 | B3: 交計受取勘定 | K3: =+A3 -> 2023-05-01 | L3: 交計業務経費(A表) | M3: (上期) | N3: (下期) | S3: =EOMONTH(A3,1) -> 2023-06-30 | T3: 全国通運圧縮対象計上額一覧
B4: ｺﾝﾃﾅ-配達料 | D4: ｺﾝﾃﾅ-配達料 | F4: ｺﾝﾃﾅ-配達料 | K4: 支払先 | L4: 内 容 | M4: 被請求金額 | N4: 被請求金額 | S4: 買掛金 | U4: 仮払金 | W4: 売掛金 | Y4: 貸方計 | AA4: 差額
A5: 決済日 | B5: 請求先 | C5: 金額 | D5: =+B5 -> 請求先 | E5: 金額 | F5: =+D5 -> 請求先 | G5: 金額 | H5: 合計 | K5: 輸送新聞社 | L5: 購読料 | O5: 図書費 | P5: 826780 | Q5: =IF(LEFT(P5,1)="3","原","") -> 
B6: 中京通運他 | C6: 23980 | H6: =C6+E6+G6 -> 23980 | K6: 輸送新聞社 | L6: 送料 | M6: 2200 | O6: 郵便料 | P6: 826430 | Q6: =IF(LEFT(P6,1)="3","原","") ->  | R6: 繰越 | S6: =INDIRECT(IF(MONTH(A3)=1,RIGHT(YEAR(A3)-1,2)&".12",RIGHT(YEAR(A3),2)&"."&TEXT(MONTH(A3)-1,"00"))&"!AA30") -> -16581062
A7: ローパーテーション | H7: =C7+E7+G7 -> 0 | K7: 交通日本社 | L7: 通運業者名簿追録 | O7: 図書費 | P7: 826780 | R7: =MONTH(A3) -> 5 | S7: 5828403 | T7: 他店借 | U7: 2915828
A8: ="上期("&TEXT(A3,"YY")&"/"&TEXT(A3,"MM")&")" -> 上期(23/05) | H8: =C8+E8+G8 -> 0 | K8: 交通日本社 | L8: 送料 | O8: 郵便料 | P8: 826430 | S8: 6032090 | T8: 鉄道 | U8: 6703554
H9: =C9+E9+G9 -> 0 | K9: 通運新聞社 | L9: 購読料 | O9: 図書費 | P9: 826780 | U9: 1793000
B10: 計 | C10: =SUM(C6:C9) -> 23980 | D10: 計 | E10: =SUM(E6:E9) -> 0 | F10: 計 | G10: =SUM(G6:G9) -> 0 | H10: =SUM(H6:H9) -> 23980 | K10: 通運新聞社 | L10: 郵送料 | O10: 郵便料 | P10: 826430
K11: 通運情報社 | L11: 購読料 | O11: 図書費 | P11: 826780
B12: 中京通運 他 | C12: 36740 | H12: =C12+E12+G12 -> 36740 | K12: 運輸世界新聞社 | L12: 購読料 | O12: 図書費 | P12: 826780
B13: 保証預り金利子 | H13: =C13+E13+G13 -> 0 | K13: 運輸図書 | L13: ｺﾝﾃﾅ貨物集配便覧追補 | O13: 図書費 | P13: 826780
A14: ="下期("&TEXT(A3,"YY")&"/"&TEXT(A3,"MM")&")" -> 下期(23/05) | H14: =C14+E14+G14 -> 0 | K14: 運輸図書 | L14: 送料 | O14: 郵便料 | P14: 826430
H15: =C15+E15+G15 -> 0 | K15: 全国通運業連合会 | L15: 全国大会会費 | O15: 会費加入 | P15: 826910
B16: 計 | C16: =SUM(C12:C15) -> 36740 | D16: 計 | E16: =SUM(E12:E15) -> 0 | F16: 計 | G16: =SUM(G12:G15) -> 0 | H16: =SUM(H12:H15) -> 36740 | K16: 全国通運業連合会 | L16: 懇親会会費 | O16: 交際費 | P16: 826800
K17: 関東通運業連合会 | L17: ｺﾝﾃﾅ委員会会費 | O17: 会費加入 | P17: 826910
K18: 関東通運業連合会 | L18: 東名大通友会会費 | O18: 会費加入 | P18: 826910
A19: 合計 | C19: =C10+C16 -> 60720 | E19: =E10+E16 -> 0 | G19: =G10+G16 -> 0 | H19: =H10+H16 -> 60720 | K19: 関東通運業連合会 | L19: 会費 | N19: 39900 | O19: 会費加入 | P19: 826910
K20: 中部通運業連合会 | L20: 東名大通友会会費 | O20: 会費加入 | P20: 826910 | Q20: =IF(LEFT(P21,1)="3","原","") ->  | S20: =SUM(S7:S19) -> 11860493 | U20: =SUM(U6:U19) -> 11412382 | W20: =SUM(W6:W19) -> 0 | Y20: =U20+W20 -> 11412382 | AA20: =S20-Y20 -> 448111
A21: =+A3 -> 2023-05-01 | B21: 交計支払勘定 | K21: 日本通運(横浜) | L21: 鉄道貨物利用運送会費 | O21: 会費加入 | P21: 826910 | U21: 事故費 | W21: その他
B22: ｺﾝﾃﾅ-着店借 | D22: ｺﾝﾃﾅ-着店借 | F22: ｺﾝﾃﾅ-着店借 | H22: 業務経費 | K22: 日本通運(横浜) | L22: 神奈川県通運会費 | O22: 会費加入 | P22: 826910
A23: 決済日 | B23: 配送依頼先 | C23: 金額 | D23: =+B23 -> 配送依頼先 | E23: 金額 | F23: =+D23 -> 配送依頼先 | G23: 金額 | H23: (A)表 | I23: 合計 | K23: 日本通運(横浜) | L23: 通運業界臨時会費 | O23: 会費加入 | P23: 826910
B24: 日本通運他 | C24: 8792943 | H24: =M42 -> 36200 | I24: =C24+E24+G24+H24 -> 8829143 | K24: 博多港運 | L24: 九州会会費 | M24: 4500 | N24: 4500 | O24: 会費加入 | P24: 826910
I25: =C25+E25+G25 -> 0 | K25: 札幌通運 | L25: 北海道会費 | N25: 4500 | O25: 会費加入 | P25: 826910
A26: =A8 -> 上期(23/05) | I26: =C26+E26+G26 -> 0 | K26: 仙台運送 | L26: みちのく会費 | M26: 4500 | O26: 会費加入 | P26: 826910
I27: =C27+E27+G27 -> 0 | K27: 仙台運送 | L27: みちのく会 特別会費 | O27: 交際費 | P27: 826800
B28: 計 | C28: =SUM(C24:C27) -> 8792943 | D28: 計 | E28: =SUM(E24:E27) -> 0 | F28: 計 | G28: =SUM(G24:G27) -> 0 | H28: =SUM(H24:H27) -> 36200 | I28: =SUM(I24:I27) -> 8829143 | K28: 川崎運送 | L28: 会費 | M28: 25000 | O28: 会費加入 | P28: 826910 | S28: =SUM(S22:S26) -> 0 | U28: =SUM(U22:U26) -> 0 | W28: =SUM(W22:W26) -> 0 | Y28: =U28+W28 -> 0
K29: 丸全昭和運輸 | L29: 事務所清掃代 | O29: 雑費 | P29: 827900 | AA29: 翌月繰越
B30: 日本通運 他 | C30: 2952568 | H30: =N42 -> 83630 | I30: =C30+E30+G30+H30 -> 3036198 | K30: 丸全昭和運輸 | L30: 全通神奈川連絡会費 | O30: 会費加入 | P30: 826910 | S30: =S6+S20+S28 -> -4720569 | U30: =U20+U28 -> 11412382 | W30: =W20+W28 -> 0 | Y30: =Y20+Y28 -> 11412382 | AA30: =S30-Y30 -> -16132951
I31: =C31+E31+G31 -> 0 | K31: 全国通運 | L31: 郵送料 | O31: 郵便料 | P31: 826430
A32: =A14 -> 下期(23/05) | I32: =C32+E32+G32 -> 0 | K32: 全国通運 | L32: A4ｶｯﾄ紙 | O32: 用紙代 | P32: 826730 | Q32: =IF(LEFT(P34,1)="3","原","") -> 
I33: =C33+E33+G33 -> 0 | K33: 全国通運 | L33: 全通VPN料金（NTT） | O33: 雑費 | P33: 827900 | Q33: =IF(LEFT(P35,1)="3","原","") -> 
I34: =C34+E34+G34 -> 0 | K34: 全国通運 | L34: 全通VPN料金（専用線） | O34: 雑費 | P34: 827900 | Q34: =IF(LEFT(P36,1)="3","原","") -> 
B35: 計 | C35: =SUM(C30:C34) -> 2952568 | D35: 計 | E35: =SUM(E30:E34) -> 0 | F35: 計 | G35: =SUM(G30:G34) -> 0 | H35: =SUM(H30:H34) -> 83630 | I35: =SUM(C35:H35) -> 3036198 | K35: 全国通運 | L35: 情報ｼｽﾃﾑ開発料金 | O35: 雑費 | P35: 827900 | Q35: =IF(LEFT(P37,1)="3","原","") -> 
K36: 全国通運 | L36: 情報ｼｽﾃﾑ基本料金 | O36: 雑費 | P36: 827900 | Q36: =IF(LEFT(P38,1)="3","原","") -> 
K37: 全国通運 | L37: 通風コンテナ | O37: 雑費 | P37: 827900
A38: 合計 | C38: =C28+C35 -> 11745511 | E38: =E28+E35 -> 0 | G38: =G28+G35 -> 0 | H38: =H28+H35 -> 119830 | I38: =I28+I35 -> 11865341 | K38: 運送保証協会 | L38: 保証料(JR分) | N38: 34690 | O38: 雑費 | P38: 827900
D39: 前途金 | E39: 仮払金 | K39: 運送保証協会 | L39: 保証料(神奈川臨海分） | N39: 40 | O39: 雑費 | P39: 827900
A40: 他店貸,借A/C差額(上期) | C40: =I40-M42 -> 8768963 | D40: 2040000 | E40: =C40-D40 -> 6728963 | H40: 上期交計尻未払金 | I40: =I28-H10 -> 8805163 | K40: =+K3 -> 2023-05-01 | L40: 計 | M40: =SUM(M5:M39) -> 36200 | N40: =SUM(N5:N39) -> 83630
A41: 他店貸,借A/C差額(下期) | C41: =I41-N42 -> 2915828 | E41: =C41+D41-J6 -> 2915828 | H41: 下期交計尻未払金 | I41: =I35-H16 -> 2999458 | M41: 仮払金 | N41: 仮払金
K42: =K40 -> 2023-05-01 | L42: 合 計 | M42: =M40 -> 36200 | N42: =N40 -> 83630
H43: 上期 | I43: =I40+M47 -> 8805383
H44: 下期 | I44: =I41+N47 -> 2999744 | M44: 計算料（雑費） | N44: 計算料（雑費）
M45: 200 | N45: 260
M46: =M45*0.1 -> 20 | N46: =N45*0.1 -> 26 | O46: ※2019年9月下期より消費税10%
M47: =M45+M46 -> 220 | N47: =N45+N46 -> 286

Sheet 23.06
A3: 2023-06-01 | B3: 交計受取勘定 | K3: =+A3 -> 2023-06-01 | L3: 交計業務経費(A表) | M3: (上期) | N3: (下期) | S3: =EOMONTH(A3,1) -> 2023-07-31 | T3: 全国通運圧縮対象計上額一覧
B4: ｺﾝﾃﾅ-配達料 | D4: ｺﾝﾃﾅ-配達料 | F4: ｺﾝﾃﾅ-配達料 | K4: 支払先 | L4: 内 容 | M4: 被請求金額 | N4: 被請求金額 | S4: 買掛金 | U4: 仮払金 | W4: 売掛金 | Y4: 貸方計 | AA4: 差額
A5: 決済日 | B5: 請求先 | C5: 金額 | D5: =+B5 -> 請求先 | E5: 金額 | F5: =+D5 -> 請求先 | G5: 金額 | H5: 合計 | K5: 輸送新聞社 | L5: 購読料 | O5: 図書費 | P5: 826780 | Q5: =IF(LEFT(P5,1)="3","原","") -> 
B6: 中京通運他 | C6: 174130 | H6: =C6+E6+G6 -> 174130 | K6: 輸送新聞社 | L6: 送料 | O6: 郵便料 | P6: 826430 | Q6: =IF(LEFT(P6,1)="3","原","") ->  | R6: 繰越 | S6: =INDIRECT(IF(MONTH(A3)=1,RIGHT(YEAR(A3)-1,2)&".12",RIGHT(YEAR(A3),2)&"."&TEXT(MONTH(A3)-1,"00"))&"!AA30") -> -16132951
A7: ローパーテーション | H7: =C7+E7+G7 -> 0 | K7: 交通日本社 | L7: 通運業者名簿追録 | O7: 図書費 | P7: 826780 | R7: =MONTH(A3) -> 6 | T7: 他店借
A8: ="上期("&TEXT(A3,"YY")&"/"&TEXT(A3,"MM")&")" -> 上期(23/06) | H8: =C8+E8+G8 -> 0 | K8: 交通日本社 | L8: 送料 | O8: 郵便料 | P8: 826430 | T8: 鉄道
H9: =C9+E9+G9 -> 0 | K9: 通運新聞社 | L9: 購読料 | M9: 2200 | O9: 図書費 | P9: 826780
B10: 計 | C10: =SUM(C6:C9) -> 174130 | D10: 計 | E10: =SUM(E6:E9) -> 0 | F10: 計 | G10: =SUM(G6:G9) -> 0 | H10: =SUM(H6:H9) -> 174130 | K10: 通運新聞社 | L10: 郵送料 | O10: 郵便料 | P10: 826430
K11: 通運情報社 | L11: 購読料 | O11: 図書費 | P11: 826780
B12: 中京通運 他 | C12: 107470 | H12: =C12+E12+G12 -> 107470 | K12: 運輸世界新聞社 | L12: 購読料 | O12: 図書費 | P12: 826780
B13: 保証預り金利子 | H13: =C13+E13+G13 -> 0 | K13: 運輸図書 | L13: ｺﾝﾃﾅ貨物集配便覧追補 | O13: 図書費 | P13: 826780
A14: ="下期("&TEXT(A3,"YY")&"/"&TEXT(A3,"MM")&")" -> 下期(23/06) | H14: =C14+E14+G14 -> 0 | K14: 運輸図書 | L14: 送料 | O14: 郵便料 | P14: 826430
H15: =C15+E15+G15 -> 0 | K15: 全国通運業連合会 | L15: 全国大会会費 | O15: 会費加入 | P15: 826910
B16: 計 | C16: =SUM(C12:C15) -> 107470 | D16: 計 | E16: =SUM(E12:E15) -> 0 | F16: 計 | G16: =SUM(G12:G15) -> 0 | H16: =SUM(H12:H15) -> 107470 | K16: 全国通運業連合会 | L16: 懇親会会費 | N16: 10000 | O16: 交際費 | P16: 826800
K17: 関東通運業連合会 | L17: ｺﾝﾃﾅ委員会会費 | O17: 会費加入 | P17: 826910
K18: 関東通運業連合会 | L18: 東名大通友会会費 | O18: 会費加入 | P18: 826910
A19: 合計 | C19: =C10+C16 -> 281600 | E19: =E10+E16 -> 0 | G19: =G10+G16 -> 0 | H19: =H10+H16 -> 281600 | K19: 関東通運業連合会 | L19: 会費 | N19: 39900 | O19: 会費加入 | P19: 826910
K20: 中部通運業連合会 | L20: 東名大通友会会費 | O20: 会費加入 | P20: 826910 | Q20: =IF(LEFT(P21,1)="3","原","") ->  | S20: =SUM(S7:S19) -> 0 | U20: =SUM(U6:U19) -> 0 | W20: =SUM(W6:W19) -> 0 | Y20: =U20+W20 -> 0 | AA20: =S20-Y20 -> 0
A21: =+A3 -> 2023-06-01 | B21: 交計支払勘定 | K21: 日本通運(横浜) | L21: 鉄道貨物利用運送会費 | O21: 会費加入 | P21: 826910 | U21: 事故費 | W21: その他
B22: ｺﾝﾃﾅ-着店借 | D22: ｺﾝﾃﾅ-着店借 | F22: ｺﾝﾃﾅ-着店借 | H22: 業務経費 | K22: 日本通運(横浜) | L22: 神奈川県通運会費 | O22: 会費加入 | P22: 826910
A23: 決済日 | B23: 配送依頼先 | C23: 金額 | D23: =+B23 -> 配送依頼先 | E23: 金額 | F23: =+D23 -> 配送依頼先 | G23: 金額 | H23: (A)表 | I23: 合計 | K23: 日本通運(横浜) | L23: 通運業界臨時会費 | O23: 会費加入 | P23: 826910
B24: 日本通運他 | C24: 8602684 | H24: =M42 -> 36200 | I24: =C24+E24+G24+H24 -> 8638884 | K24: 博多港運 | L24: 九州会会費 | N24: 4500 | O24: 会費加入 | P24: 826910
I25: =C25+E25+G25 -> 0 | K25: 札幌通運 | L25: 北海道会費 | M25: 4500 | O25: 会費加入 | P25: 826910
A26: =A8 -> 上期(23/06) | I26: =C26+E26+G26 -> 0 | K26: 仙台運送 | L26: みちのく会費 | M26: 4500 | O26: 会費加入 | P26: 826910
I27: =C27+E27+G27 -> 0 | K27: 仙台運送 | L27: みちのく会 特別会費 | O27: 交際費 | P27: 826800
B28: 計 | C28: =SUM(C24:C27) -> 8602684 | D28: 計 | E28: =SUM(E24:E27) -> 0 | F28: 計 | G28: =SUM(G24:G27) -> 0 | H28: =SUM(H24:H27) -> 36200 | I28: =SUM(I24:I27) -> 8638884 | K28: 川崎運送 | L28: 会費 | M28: 25000 | O28: 会費加入 | P28: 826910 | S28: =SUM(S22:S26) -> 0 | U28: =SUM(U22:U26) -> 0 | W28: =SUM(W22:W26) -> 0 | Y28: =U28+W28 -> 0
K29: 丸全昭和運輸 | L29: 事務所清掃代 | O29: 雑費 | P29: 827900 | AA29: 翌月繰越
B30: 日本通運 他 | C30: 3493600 | H30: =N42 -> 124848 | I30: =C30+E30+G30+H30 -> 3618448 | K30: 丸全昭和運輸 | L30: 全通神奈川連絡会費 | O30: 会費加入 | P30: 826910 | S30: =S6+S20+S28 -> -16132951 | U30: =U20+U28 -> 0 | W30: =W20+W28 -> 0 | Y30: =Y20+Y28 -> 0 | AA30: =S30-Y30 -> -16132951
I31: =C31+E31+G31 -> 0 | K31: 全国通運 | L31: 郵送料 | N31: 640 | O31: 郵便料 | P31: 826430
A32: =A14 -> 下期(23/06) | I32: =C32+E32+G32 -> 0 | K32: 全国通運 | L32: A4ｶｯﾄ紙 | O32: 用紙代 | P32: 826730 | Q32: =IF(LEFT(P34,1)="3","原","") -> 
I33: =C33+E33+G33 -> 0 | K33: 全国通運 | L33: 全通VPN料金（NTT） | O33: 雑費 | P33: 827900 | Q33: =IF(LEFT(P35,1)="3","原","") -> 
I34: =C34+E34+G34 -> 0 | K34: 全国通運 | L34: 全通VPN料金（専用線） | N34: 21120 | O34: 雑費 | P34: 827900 | Q34: =IF(LEFT(P36,1)="3","原","") -> 
B35: 計 | C35: =SUM(C30:C34) -> 3493600 | D35: 計 | E35: =SUM(E30:E34) -> 0 | F35: 計 | G35: =SUM(G30:G34) -> 0 | H35: =SUM(H30:H34) -> 124848 | I35: =SUM(C35:H35) -> 3618448 | K35: 全国通運 | L35: 情報ｼｽﾃﾑ開発料金 | N35: 11628 | O35: 雑費 | P35: 827900 | Q35: =IF(LEFT(P37,1)="3","原","") -> 
K36: 全国通運 | L36: 情報ｼｽﾃﾑ基本料金 | N36: 7150 | O36: 雑費 | P36: 827900 | Q36: =IF(LEFT(P38,1)="3","原","") -> 
K37: 全国通運 | L37: 通風コンテナ | O37: 雑費 | P37: 827900
A38: 合計 | C38: =C28+C35 -> 12096284 | E38: =E28+E35 -> 0 | G38: =G28+G35 -> 0 | H38: =H28+H35 -> 161048 | I38: =I28+I35 -> 12257332 | K38: 運送保証協会 | L38: 保証料(JR分) | N38: 29670 | O38: 雑費 | P38: 827900
D39: 前途金 | E39: 仮払金 | K39: 運送保証協会 | L39: 保証料(神奈川臨海分） | N39: 240 | O39: 雑費 | P39: 827900
A40: 他店貸,借A/C差額(上期) | C40: =I40-M42 -> 8428554 | D40: 1725000 | E40: =C40-D40 -> 6703554 | H40: 上期交計尻未払金 | I40: =I28-H10 -> 8464754 | K40: =+K3 -> 2023-06-01 | L40: 計 | M40: =SUM(M5:M39) -> 36200 | N40: =SUM(N5:N39) -> 124848
A41: 他店貸,借A/C差額(下期) | C41: =I41-N42 -> 3386130 | E41: =C41+D41-J6 -> 3386130 | H41: 下期交計尻未払金 | I41: =I35-H16 -> 3510978 | M41: 仮払金 | N41: 仮払金
K42: =K40 -> 2023-06-01 | L42: 合 計 | M42: =M40 -> 36200 | N42: =N40 -> 124848
H43: 上期 | I43: =I40+M47 -> 8465848.5
H44: 下期 | I44: =I41+N47 -> 3511687.5 | M44: 計算料（雑費） | N44: 計算料（雑費）
M45: 995 | N45: 645
M46: =M45*0.1 -> 99.5 | N46: =N45*0.1 -> 64.5 | O46: ※2019年9月下期より消費税10%
M47: =M45+M46 -> 1094.5 | N47: =N45+N46 -> 709.5

Sheet 計算用シート
A1: ・使い方
A2: 交計請求書を受取・支払それぞれ分けて縦方向に金額を打ち込み。
A3: 合計（黄色）の金額を各月シート（交計受取勘定、交計支払勘定）に貼り付ける。
B5: 交計受取勘定 | C5: 交計支払勘定
A7: 合計 | B7: =SUM(B8:B98) -> 107470 | C7: =SUM(C8:C85) -> 3493600
A8: ここから記入→ | B8: 27500 | C8: 28600 | G8: ※108行目まで入力クリア可能
A9: 下に向けて↓↓ | B9: 28490 | C9: 19030
B10: 13750 | C10: 27280
B11: 13750 | C11: 31130
B12: 23980 | C12: 22880 | E12: 使い方：
C13: 22000 | E13: B列（受取）とC列（支払）の下方向にそれぞれ金額を入力する。（下方向）
C14: 31900 | E14: 7行目に集計されるのでコピーして、各月シートの該当期（上下）の受取と支払それぞれに値貼付けする。
C15: 109780
C16: 42900
C17: 11440
C18: 38060
C19: 10450
C20: 11990
C21: 61820
C22: 11440
C23: 50820
C24: 99000
C25: 11440
C26: 22880
C27: 38170
C28: 8910
C29: 11440
C30: 641850
C31: 187000
C32: 86460
C33: 48730
C34: 89870
C35: 69300
C36: 8800
C37: 102300
C38: 11440
C39: 22990
C40: 31020
C41: 96580
C42: 186010
C43: 28600
C44: 92400
C45: 284240
C46: 56760
C47: 8910
C48: 57090
C49: 11990
C50: 11440
C51: 104720
C52: 9460
C53: 13970
C54: 8910
C55: 8910
C56: 32340
C57: 259160
C58: 121880
C59: 8910
C60: 68200
A108: 100まで計算

Sheet 使い方
A1: 使い方
A3: 概要
A4: 毎月前半と後半に全国通運より請求書一式が経理部宛てに送られてくるので
A5: それを基に、集計から一般出金の起票・支払い手配・月次の相殺振替までを管理会計課にて行う。
A6: ※1ヶ月を上期・下期に分けて請求書の束が封筒で送られてくる。（例：4月前半 --> 3月下期分、4月後半 --> 4月上期分
A8: １．請求書受領時の処理
A9: 送られてきた請求書は、計算料と経費分、その他の３つに仕分ける必要がある。
A10: ※上期のみ、前渡金が発生し別紙で入っているので4つに仕分ける。
A12: 計算料：青色の交計分通知書に計算料として記載されている
A13: 経費：月ごとの【集計表】（シート名：例 19.04）のK列（会社名）とL列（内容）で判断する。チェック時に余白にケ（経費のケ？）を書いておく。
A14: その他：経費を除いた請求書の合計。受取分と支払分に分ける必要があるので【計算用シート】を用いて集計する。
A15: ※その他の受取か支払いの判断は、請求書の宛名（～殿）で判断する。【株式会社 日新殿】となっていたら日新宛ての請求なので支払分となる。
A18: ２．請求書の仕分け後の処理
A19: 上記3つに仕分けたものを、【集計表】へ入力する。
A21: それぞれの項目を下記の通り算出する。
A22: その他：【集計表】左側に【計算用シート】で集計した交計受取勘定と交計支払勘定をそれぞれコピーして、値貼付けする。（※上下に注意）
A23: 経費：【集計表】中部に交計業務経費の欄があるので、チャック時にケを記入した分を入力する。
A24: 計算料：【集計表】中部の下に計算料の入力欄があるので、交計分通知書の金額を入力する。（※消費税が自動計算されるので、交計分通知書の消費税額と一致しているかチェック）
A25: ※前渡金（上期のみ）」【集計表】左側の下に【前渡金】の欄に入力。
A27: 入力後、I列43・44行目に合計金額が出てくるので交計分通知書の【差引当社の取立高】の金額と一致していればOK。
A29: ３．一般出金の起票・支払い手配処理

Sheet DEN
C1: X | D1: ← “X”を入力し、バッチインプットの処理モードを“E”で実行すると伝票概要画面で止まり、確認することが出来る
A2: 伝票日付 | B2: 会社 | C2: 転記日付 | D2: 伝票ﾀｲﾌﾟ | E2: 通貨ｺｰﾄﾞ | F2: 換算ﾚｰﾄ | G2: 参照伝票番号 | H2: ヘッダテキスト | I2: 税自動計算 | J2: 転記ｷｰ | K2: 勘定コード | L2: 特殊GL | M2: 金額 | N2: 国内通貨額 | O2: 税ｺｰﾄﾞ | P2: 事業領域 | Q2: 原価センタ | R2: 利益センタ | S2: ソートキー | T2: 明細テキスト | U2: 起算日 | V2: 期日 | W2: 振出日 | X2: 支払方法 | Y2: 支払保留 | Z2: 取引先銀行 | AA2: 取引銀行 | AB2: 中央銀行CD | AC2: 数量 | AD2: 数量単位 | AE2: 指図書 | AF2: ＷＢＳ | AG2: 得意先ｺｰﾄﾞ | AH2: 品目ｺｰﾄﾞ | AI2: 販売組織 | AJ2: 流通ﾁｬﾈﾙ | AK2: 製品部門 | AL2: 品目ｸﾞﾙｰﾌﾟ | AM2: 営業所 | AN2: 営業グループ | AO2: 需要家
A3: =TEXT(TODAY(),"YYYYMMDD") -> 20230714 | B3: =IF(AND($H3<>"",$H3<>"eof"),"NS","") -> NS | C3: 2023.06.30 | D3: =IF(AND($H3<>"",$H3<>"eof"),"SA","") -> SA | E3: =IF(AND($H3<>"",$H3<>"eof"),"JPY","") -> JPY | H3: =IF(バッチ変換用2!C5="eof","",バッチ変換用2!C5) -> 交計経費 6月上期振替 | I3: =IF(H3<>"","x","") -> x | J3: =IF(K3<>"",IF(K3="148100","50","40"),"") -> 40 | K3: =バッチ変換用2!D5 -> 352500 | M3: =バッチ変換用2!E5 -> 2200 | O3: =IF(AND(バッチ変換用2!G5="",J3="50")," ",バッチ変換用2!G5) -> AA | P3: =IF(Q3<>"","NS03","") -> NS03 | Q3: =バッチ変換用2!H5 -> NS-0259 | S3: =バッチ変換用2!I5 -> 通運新聞社 | T3: =バッチ変換用2!J5 -> 購読料
A4: =IF(AND($H4="",$J3<>"",$J4=""),"eof",IF($H4<>"",$A$3,"")) ->  | B4: =IF(AND($H4<>"",$H4<>"eof"),"NS","") ->  | C4: =IF(AND($H4<>"",$H4<>"eof"),$C$3,"") ->  | D4: =IF(AND($H4<>"",$H4<>"eof"),"SA","") ->  | E4: =IF(AND($H4<>"",$H4<>"eof"),"JPY","") ->  | H4: =IF(バッチ変換用2!C6="eof","",バッチ変換用2!C6) ->  | I4: =IF(H4<>"","x","") ->  | J4: =IF(K4<>"",IF(K4="148100","50","40"),"") -> 40 | K4: =バッチ変換用2!D6 -> 352810 | M4: =バッチ変換用2!E6 -> 4500 | O4: =IF(AND(バッチ変換用2!G6="",J4="50")," ",バッチ変換用2!G6) ->  | P4: =IF(Q4<>"","NS03","") -> NS03 | Q4: =バッチ変換用2!H6 -> NS-0259 | S4: =バッチ変換用2!I6 -> 札幌通運 | T4: =バッチ変換用2!J6 -> 北海道会費
A5: =IF(AND($H5="",$J4<>"",$J5=""),"eof",IF($H5<>"",$A$3,"")) ->  | C5: =IF(AND($H5<>"",$H5<>"eof"),$C$3,"") ->  | H5: =IF(バッチ変換用2!C7="eof","",バッチ変換用2!C7) ->  | J5: =IF(K5<>"",IF(K5="148100","50","40"),"") -> 40 | K5: =バッチ変換用2!D7 -> 352810 | M5: =バッチ変換用2!E7 -> 4500 | O5: =IF(AND(バッチ変換用2!G7="",J5="50")," ",バッチ変換用2!G7) ->  | P5: NS03 | Q5: =バッチ変換用2!H7 -> NS-0259 | S5: =バッチ変換用2!I7 -> 仙台運送 | T5: =バッチ変換用2!J7 -> みちのく会費
A6: =IF(AND($H6="",$J5<>"",$J6=""),"eof",IF($H6<>"",$A$3,"")) ->  | H6: =IF(バッチ変換用2!C8="eof","",バッチ変換用2!C8) ->  | J6: 40 | K6: =バッチ変換用2!D8 -> 352810 | M6: =バッチ変換用2!E8 -> 25000 | O6: =IF(AND(バッチ変換用2!G8="",J6="50")," ",バッチ変換用2!G8) ->  | P6: NS03 | Q6: =バッチ変換用2!H8 -> NS-0259 | S6: =バッチ変換用2!I8 -> 川崎運送 | T6: =バッチ変換用2!J8 -> 会費
A7: =IF(AND($H7="",$J6<>"",$J7=""),"eof",IF($H7<>"",$A$3,"")) -> 20230714 | B7: NS | C7: 2023.06.30 | D7: SA | E7: JPY | H7: =IF(バッチ変換用2!C9="eof","",バッチ変換用2!C9) -> 交計経費 5月下期確定 | I7: x | J7: 40 | K7: =バッチ変換用2!D9 -> 352810 | M7: =バッチ変換用2!E9 -> 39900 | O7: =IF(AND(バッチ変換用2!G9="",J7="50")," ",バッチ変換用2!G9) ->  | P7: NS03 | Q7: =バッチ変換用2!H9 -> NS-0259 | S7: =バッチ変換用2!I9 -> 関東通運業連合会 | T7: =バッチ変換用2!J9 -> 会費
H8: =IF(バッチ変換用2!C10="eof","",バッチ変換用2!C10) ->  | J8: 40 | K8: =バッチ変換用2!D10 -> 352810 | M8: =バッチ変換用2!E10 -> 4500 | O8: =IF(AND(バッチ変換用2!G10="",J8="50")," ",バッチ変換用2!G10) ->  | P8: NS03 | Q8: =バッチ変換用2!H10 -> NS-0259 | S8: =バッチ変換用2!I10 -> 博多港運 | T8: =バッチ変換用2!J10 -> 九州会会費
H9: =IF(バッチ変換用2!C11="eof","",バッチ変換用2!C11) ->  | J9: 40 | K9: =バッチ変換用2!D11 -> 352810 | M9: =バッチ変換用2!E11 -> 4500 | O9: =IF(AND(バッチ変換用2!G11="",J9="50")," ",バッチ変換用2!G11) ->  | P9: NS03 | Q9: =バッチ変換用2!H11 -> NS-0259 | S9: =バッチ変換用2!I11 -> 札幌通運 | T9: =バッチ変換用2!J11 -> 北海道会費
H10: =IF(バッチ変換用2!C12="eof","",バッチ変換用2!C12) ->  | J10: 40 | K10: =バッチ変換用2!D12 -> 352900 | M10: =バッチ変換用2!E12 -> 34690 | O10: =IF(AND(バッチ変換用2!G12="",J10="50")," ",バッチ変換用2!G12) -> AA | P10: NS03 | Q10: =バッチ変換用2!H12 -> NS-0259 | S10: =バッチ変換用2!I12 -> 運送保証協会 | T10: =バッチ変換用2!J12 -> 保証料(JR分)
H11: =IF(バッチ変換用2!C13="eof","",バッチ変換用2!C13) ->  | J11: 40 | K11: =バッチ変換用2!D13 -> 352900 | M11: =バッチ変換用2!E13 -> 40 | O11: =IF(AND(バッチ変換用2!G13="",J11="50")," ",バッチ変換用2!G13) -> AA | P11: NS03 | Q11: =バッチ変換用2!H13 -> NS-0259 | S11: =バッチ変換用2!I13 -> 運送保証協会 | T11: =バッチ変換用2!J13 -> 保証料(神奈川臨海分）
A12: 20230714 | B12: NS | C12: 2023.06.30 | D12: SA | E12: JPY | H12: =IF(バッチ変換用2!C14="eof","",バッチ変換用2!C14) -> 交計経費 6月下期概算 | I12: x | J12: 40 | K12: =バッチ変換用2!D14 -> 352810 | M12: =バッチ変換用2!E14 -> 39900 | O12: =IF(AND(バッチ変換用2!G14="",J12="50")," ",バッチ変換用2!G14) ->  | P12: NS03 | Q12: =バッチ変換用2!H14 -> NS-0259 | S12: =バッチ変換用2!I14 -> 関東通運業連合会 | T12: =バッチ変換用2!J14 -> 会費
H13: =IF(バッチ変換用2!C15="eof","",バッチ変換用2!C15) ->  | J13: 40 | K13: =バッチ変換用2!D15 -> 352810 | M13: =バッチ変換用2!E15 -> 4500 | O13: =IF(AND(バッチ変換用2!G15="",J13="50")," ",バッチ変換用2!G15) ->  | P13: NS03 | Q13: =バッチ変換用2!H15 -> NS-0259 | S13: =バッチ変換用2!I15 -> 博多港運 | T13: =バッチ変換用2!J15 -> 九州会会費
H14: =IF(バッチ変換用2!C16="eof","",バッチ変換用2!C16) ->  | J14: 40 | K14: =バッチ変換用2!D16 -> 352810 | M14: =バッチ変換用2!E16 -> 4500 | O14: =IF(AND(バッチ変換用2!G16="",J14="50")," ",バッチ変換用2!G16) ->  | P14: NS03 | Q14: =バッチ変換用2!H16 -> NS-0259 | S14: =バッチ変換用2!I16 -> 札幌通運 | T14: =バッチ変換用2!J16 -> 北海道会費
H15: =IF(バッチ変換用2!C17="eof","",バッチ変換用2!C17) ->  | J15: 40 | K15: =バッチ変換用2!D17 -> 352900 | M15: =バッチ変換用2!E17 -> 34690 | O15: =IF(AND(バッチ変換用2!G17="",J15="50")," ",バッチ変換用2!G17) -> AA | P15: NS03 | Q15: =バッチ変換用2!H17 -> NS-0259 | S15: =バッチ変換用2!I17 -> 運送保証協会 | T15: =バッチ変換用2!J17 -> 保証料(JR分)
H16: =IF(バッチ変換用2!C18="eof","",バッチ変換用2!C18) ->  | J16: 40 | K16: =バッチ変換用2!D18 -> 352900 | M16: =バッチ変換用2!E18 -> 40 | O16: =IF(AND(バッチ変換用2!G18="",J16="50")," ",バッチ変換用2!G18) -> AA | P16: NS03 | Q16: =バッチ変換用2!H18 -> NS-0259 | S16: =バッチ変換用2!I18 -> 運送保証協会 | T16: =バッチ変換用2!J18 -> 保証料(神奈川臨海分）
H17: =IF(バッチ変換用2!C19="eof","",バッチ変換用2!C19) ->  | J17: 50 | K17: =バッチ変換用2!D19 -> 148100 | M17: =バッチ変換用2!E19 -> 83630 | O17: =IF(AND(バッチ変換用2!G19="",J17="50")," ",バッチ変換用2!G19) ->  | Q17: =バッチ変換用2!H19 ->  | S17: =バッチ変換用2!I19 -> 交計下期概算 | T17: =バッチ変換用2!J19 -> 交計下期概算
A18: =IF(AND($H18="",$J17<>"",$J18=""),"eof",IF($H18<>"",$A$3,"")) -> eof | H18: =IF(バッチ変換用2!C20="eof","",バッチ変換用2!C20) ->  | K18: =バッチ変換用2!D20 ->  | M18: =バッチ変換用2!E20 ->  | O18: =IF(AND(バッチ変換用2!G20="",J18="50")," ",バッチ変換用2!G20) ->  | Q18: =バッチ変換用2!H20 ->  | S18: =バッチ変換用2!I20 ->  | T18: =バッチ変換用2!J20 -> 
H19: =IF(バッチ変換用2!C21="eof","",バッチ変換用2!C21) ->  | K19: =バッチ変換用2!D21 ->  | M19: =バッチ変換用2!E21 ->  | O19: =IF(AND(バッチ変換用2!G21="",J19="50")," ",バッチ変換用2!G21) ->  | Q19: =バッチ変換用2!H21 ->  | S19: =バッチ変換用2!I21 ->  | T19: =バッチ変換用2!J21 -> 
H20: =IF(バッチ変換用2!C22="eof","",バッチ変換用2!C22) ->  | K20: =バッチ変換用2!D22 ->  | M20: =バッチ変換用2!E22 ->  | O20: =IF(AND(バッチ変換用2!G22="",J20="50")," ",バッチ変換用2!G22) ->  | Q20: =バッチ変換用2!H22 ->  | S20: =バッチ変換用2!I22 ->  | T20: =バッチ変換用2!J22 -> 
H21: =IF(バッチ変換用2!C23="eof","",バッチ変換用2!C23) ->  | K21: =バッチ変換用2!D23 ->  | M21: =バッチ変換用2!E23 ->  | O21: =IF(AND(バッチ変換用2!G23="",J21="50")," ",バッチ変換用2!G23) ->  | Q21: =バッチ変換用2!H23 ->  | S21: =バッチ変換用2!I23 ->  | T21: =バッチ変換用2!J23 -> 
H22: =IF(バッチ変換用2!C24="eof","",バッチ変換用2!C24) ->  | K22: =バッチ変換用2!D24 ->  | M22: =バッチ変換用2!E24 ->  | O22: =IF(AND(バッチ変換用2!G24="",J22="50")," ",バッチ変換用2!G24) ->  | Q22: =バッチ変換用2!H24 ->  | S22: =バッチ変換用2!I24 ->  | T22: =バッチ変換用2!J24 -> 
H23: =IF(バッチ変換用2!C25="eof","",バッチ変換用2!C25) ->  | K23: =バッチ変換用2!D25 ->  | M23: =バッチ変換用2!E25 ->  | O23: =IF(AND(バッチ変換用2!G25="",J23="50")," ",バッチ変換用2!G25) ->  | Q23: =バッチ変換用2!H25 ->  | S23: =バッチ変換用2!I25 ->  | T23: =バッチ変換用2!J25 -> 
H24: =IF(バッチ変換用2!C26="eof","",バッチ変換用2!C26) ->  | K24: =バッチ変換用2!D26 ->  | M24: =バッチ変換用2!E26 ->  | O24: =IF(AND(バッチ変換用2!G26="",J24="50")," ",バッチ変換用2!G26) ->  | Q24: =バッチ変換用2!H26 ->  | S24: =バッチ変換用2!I26 ->  | T24: =バッチ変換用2!J26 -> 
H25: =IF(バッチ変換用2!C27="eof","",バッチ変換用2!C27) ->  | K25: =バッチ変換用2!D27 ->  | M25: =バッチ変換用2!E27 ->  | O25: =IF(AND(バッチ変換用2!G27="",J25="50")," ",バッチ変換用2!G27) ->  | Q25: =バッチ変換用2!H27 ->  | S25: =バッチ変換用2!I27 ->  | T25: =バッチ変換用2!J27 -> 
H26: =IF(バッチ変換用2!C28="eof","",バッチ変換用2!C28) ->  | K26: =バッチ変換用2!D28 ->  | M26: =バッチ変換用2!E28 ->  | O26: =IF(AND(バッチ変換用2!G28="",J26="50")," ",バッチ変換用2!G28) ->  | Q26: =バッチ変換用2!H28 ->  | S26: =バッチ変換用2!I28 ->  | T26: =バッチ変換用2!J28 -> 
H27: =IF(バッチ変換用2!C29="eof","",バッチ変換用2!C29) ->  | K27: =バッチ変換用2!D29 ->  | M27: =バッチ変換用2!E29 ->  | O27: =IF(AND(バッチ変換用2!G29="",J27="50")," ",バッチ変換用2!G29) ->  | Q27: =バッチ変換用2!H29 ->  | S27: =バッチ変換用2!I29 ->  | T27: =バッチ変換用2!J29 -> 
H28: =IF(バッチ変換用2!C30="eof","",バッチ変換用2!C30) ->  | K28: =バッチ変換用2!D30 ->  | M28: =バッチ変換用2!E30 ->  | O28: =IF(AND(バッチ変換用2!G30="",J28="50")," ",バッチ変換用2!G30) ->  | Q28: =バッチ変換用2!H30 ->  | S28: =バッチ変換用2!I30 ->  | T28: =バッチ変換用2!J30 -> 
H29: =IF(バッチ変換用2!C31="eof","",バッチ変換用2!C31) ->  | K29: =バッチ変換用2!D31 ->  | M29: =バッチ変換用2!E31 ->  | O29: =IF(AND(バッチ変換用2!G31="",J29="50")," ",バッチ変換用2!G31) ->  | Q29: =バッチ変換用2!H31 ->  | S29: =バッチ変換用2!I31 ->  | T29: =バッチ変換用2!J31 -> 
H30: =IF(バッチ変換用2!C32="eof","",バッチ変換用2!C32) ->  | K30: =バッチ変換用2!D32 ->  | M30: =バッチ変換用2!E32 ->  | O30: =IF(AND(バッチ変換用2!G32="",J30="50")," ",バッチ変換用2!G32) ->  | Q30: =バッチ変換用2!H32 ->  | S30: =バッチ変換用2!I32 ->  | T30: =バッチ変換用2!J32 -> 
H31: =IF(バッチ変換用2!C33="eof","",バッチ変換用2!C33) ->  | K31: =バッチ変換用2!D33 ->  | M31: =バッチ変換用2!E33 ->  | O31: =IF(AND(バッチ変換用2!G33="",J31="50")," ",バッチ変換用2!G33) ->  | Q31: =バッチ変換用2!H33 ->  | S31: =バッチ変換用2!I33 ->  | T31: =バッチ変換用2!J33 -> 
H32: =IF(バッチ変換用2!C34="eof","",バッチ変換用2!C34) ->  | K32: =バッチ変換用2!D34 ->  | M32: =バッチ変換用2!E34 ->  | O32: =IF(AND(バッチ変換用2!G34="",J32="50")," ",バッチ変換用2!G34) ->  | Q32: =バッチ変換用2!H34 ->  | S32: =バッチ変換用2!I34 ->  | T32: =バッチ変換用2!J34 -> 
H33: =IF(バッチ変換用2!C35="eof","",バッチ変換用2!C35) ->  | K33: =バッチ変換用2!D35 ->  | M33: =バッチ変換用2!E35 ->  | O33: =IF(AND(バッチ変換用2!G35="",J33="50")," ",バッチ変換用2!G35) ->  | Q33: =バッチ変換用2!H35 ->  | S33: =バッチ変換用2!I35 ->  | T33: =バッチ変換用2!J35 -> 
H34: =IF(バッチ変換用2!C36="eof","",バッチ変換用2!C36) ->  | K34: =バッチ変換用2!D36 ->  | M34: =バッチ変換用2!E36 ->  | O34: =IF(AND(バッチ変換用2!G36="",J34="50")," ",バッチ変換用2!G36) ->  | Q34: =バッチ変換用2!H36 ->  | S34: =バッチ変換用2!I36 ->  | T34: =バッチ変換用2!J36 -> 
H35: =IF(バッチ変換用2!C37="eof","",バッチ変換用2!C37) ->  | K35: =バッチ変換用2!D37 ->  | M35: =バッチ変換用2!E37 ->  | O35: =IF(AND(バッチ変換用2!G37="",J35="50")," ",バッチ変換用2!G37) ->  | Q35: =バッチ変換用2!H37 ->  | S35: =バッチ変換用2!I37 ->  | T35: =バッチ変換用2!J37 -> 
H36: =IF(バッチ変換用2!C38="eof","",バッチ変換用2!C38) ->  | K36: =バッチ変換用2!D38 ->  | M36: =バッチ変換用2!E38 ->  | O36: =IF(AND(バッチ変換用2!G38="",J36="50")," ",バッチ変換用2!G38) ->  | Q36: =バッチ変換用2!H38 ->  | S36: =バッチ変換用2!I38 ->  | T36: =バッチ変換用2!J38 -> 
H37: =IF(バッチ変換用2!C39="eof","",バッチ変換用2!C39) ->  | K37: =バッチ変換用2!D39 ->  | M37: =バッチ変換用2!E39 ->  | O37: =IF(AND(バッチ変換用2!G39="",J37="50")," ",バッチ変換用2!G39) ->  | Q37: =バッチ変換用2!H39 ->  | S37: =バッチ変換用2!I39 ->  | T37: =バッチ変換用2!J39 -> 
H38: =IF(バッチ変換用2!C40="eof","",バッチ変換用2!C40) ->  | K38: =バッチ変換用2!D40 ->  | M38: =バッチ変換用2!E40 ->  | O38: =IF(AND(バッチ変換用2!G40="",J38="50")," ",バッチ変換用2!G40) ->  | Q38: =バッチ変換用2!H40 ->  | S38: =バッチ変換用2!I40 ->  | T38: =バッチ変換用2!J40 -> 
H39: =IF(バッチ変換用2!C41="eof","",バッチ変換用2!C41) ->  | K39: =バッチ変換用2!D41 ->  | M39: =バッチ変換用2!E41 ->  | O39: =IF(AND(バッチ変換用2!G41="",J39="50")," ",バッチ変換用2!G41) ->  | Q39: =バッチ変換用2!H41 ->  | S39: =バッチ変換用2!I41 ->  | T39: =バッチ変換用2!J41 -> 
H40: =IF(バッチ変換用2!C42="eof","",バッチ変換用2!C42) ->  | K40: =バッチ変換用2!D42 ->  | M40: =バッチ変換用2!E42 ->  | O40: =IF(AND(バッチ変換用2!G42="",J40="50")," ",バッチ変換用2!G42) ->  | Q40: =バッチ変換用2!H42 ->  | S40: =バッチ変換用2!I42 ->  | T40: =バッチ変換用2!J42 -> 
H41: =IF(バッチ変換用2!C43="eof","",バッチ変換用2!C43) ->  | K41: =バッチ変換用2!D43 ->  | M41: =バッチ変換用2!E43 ->  | O41: =IF(AND(バッチ変換用2!G43="",J41="50")," ",バッチ変換用2!G43) ->  | Q41: =バッチ変換用2!H43 ->  | S41: =バッチ変換用2!I43 ->  | T41: =バッチ変換用2!J43 -> 
H42: =IF(バッチ変換用2!C44="eof","",バッチ変換用2!C44) ->  | K42: =バッチ変換用2!D44 ->  | M42: =バッチ変換用2!E44 ->  | O42: =IF(AND(バッチ変換用2!G44="",J42="50")," ",バッチ変換用2!G44) ->  | Q42: =バッチ変換用2!H44 ->  | S42: =バッチ変換用2!I44 ->  | T42: =バッチ変換用2!J44 -> 
H43: =IF(バッチ変換用2!C45="eof","",バッチ変換用2!C45) ->  | K43: =バッチ変換用2!D45 ->  | M43: =バッチ変換用2!E45 ->  | O43: =IF(AND(バッチ変換用2!G45="",J43="50")," ",バッチ変換用2!G45) ->  | Q43: =バッチ変換用2!H45 ->  | S43: =バッチ変換用2!I45 ->  | T43: =バッチ変換用2!J45 -> 
H44: =IF(バッチ変換用2!C46="eof","",バッチ変換用2!C46) ->  | K44: =バッチ変換用2!D46 ->  | M44: =バッチ変換用2!E46 ->  | O44: =IF(AND(バッチ変換用2!G46="",J44="50")," ",バッチ変換用2!G46) ->  | Q44: =バッチ変換用2!H46 ->  | S44: =バッチ変換用2!I46 ->  | T44: =バッチ変換用2!J46 -> 
H45: =IF(バッチ変換用2!C47="eof","",バッチ変換用2!C47) ->  | K45: =バッチ変換用2!D47 ->  | M45: =バッチ変換用2!E47 ->  | O45: =IF(AND(バッチ変換用2!G47="",J45="50")," ",バッチ変換用2!G47) ->  | Q45: =バッチ変換用2!H47 ->  | S45: =バッチ変換用2!I47 ->  | T45: =バッチ変換用2!J47 -> 
H46: =IF(バッチ変換用2!C48="eof","",バッチ変換用2!C48) ->  | K46: =バッチ変換用2!D48 ->  | M46: =バッチ変換用2!E48 ->  | O46: =IF(AND(バッチ変換用2!G48="",J46="50")," ",バッチ変換用2!G48) ->  | Q46: =バッチ変換用2!H48 ->  | S46: =バッチ変換用2!I48 ->  | T46: =バッチ変換用2!J48 -> 
H47: =IF(バッチ変換用2!C49="eof","",バッチ変換用2!C49) ->  | K47: =バッチ変換用2!D49 ->  | M47: =バッチ変換用2!E49 ->  | O47: =IF(AND(バッチ変換用2!G49="",J47="50")," ",バッチ変換用2!G49) ->  | Q47: =バッチ変換用2!H49 ->  | S47: =バッチ変換用2!I49 ->  | T47: =バッチ変換用2!J49 -> 
H48: =IF(バッチ変換用2!C50="eof","",バッチ変換用2!C50) ->  | K48: =バッチ変換用2!D50 ->  | M48: =バッチ変換用2!E50 ->  | O48: =IF(AND(バッチ変換用2!G50="",J48="50")," ",バッチ変換用2!G50) ->  | Q48: =バッチ変換用2!H50 ->  | S48: =バッチ変換用2!I50 ->  | T48: =バッチ変換用2!J50 -> 
H49: =IF(バッチ変換用2!C51="eof","",バッチ変換用2!C51) ->  | K49: =バッチ変換用2!D51 ->  | M49: =バッチ変換用2!E51 ->  | O49: =IF(AND(バッチ変換用2!G51="",J49="50")," ",バッチ変換用2!G51) ->  | Q49: =バッチ変換用2!H51 ->  | S49: =バッチ変換用2!I51 ->  | T49: =バッチ変換用2!J51 -> 
H50: =IF(バッチ変換用2!C52="eof","",バッチ変換用2!C52) ->  | K50: =バッチ変換用2!D52 ->  | M50: =バッチ変換用2!E52 ->  | O50: =IF(AND(バッチ変換用2!G52="",J50="50")," ",バッチ変換用2!G52) ->  | Q50: =バッチ変換用2!H52 ->  | S50: =バッチ変換用2!I52 ->  | T50: =バッチ変換用2!J52 -> 
H51: =IF(バッチ変換用2!C53="eof","",バッチ変換用2!C53) ->  | K51: =バッチ変換用2!D53 ->  | M51: =バッチ変換用2!E53 ->  | O51: =IF(AND(バッチ変換用2!G53="",J51="50")," ",バッチ変換用2!G53) ->  | Q51: =バッチ変換用2!H53 ->  | S51: =バッチ変換用2!I53 ->  | T51: =バッチ変換用2!J53 -> 
H52: =IF(バッチ変換用2!C54="eof","",バッチ変換用2!C54) ->  | K52: =バッチ変換用2!D54 ->  | M52: =バッチ変換用2!E54 ->  | O52: =IF(AND(バッチ変換用2!G54="",J52="50")," ",バッチ変換用2!G54) ->  | Q52: =バッチ変換用2!H54 ->  | S52: =バッチ変換用2!I54 ->  | T52: =バッチ変換用2!J54 -> 
H53: =IF(バッチ変換用2!C55="eof","",バッチ変換用2!C55) ->  | K53: =バッチ変換用2!D55 ->  | M53: =バッチ変換用2!E55 ->  | O53: =IF(AND(バッチ変換用2!G55="",J53="50")," ",バッチ変換用2!G55) ->  | Q53: =バッチ変換用2!H55 ->  | S53: =バッチ変換用2!I55 ->  | T53: =バッチ変換用2!J55 -> 
H54: =IF(バッチ変換用2!C56="eof","",バッチ変換用2!C56) ->  | K54: =バッチ変換用2!D56 ->  | M54: =バッチ変換用2!E56 ->  | O54: =IF(AND(バッチ変換用2!G56="",J54="50")," ",バッチ変換用2!G56) ->  | Q54: =バッチ変換用2!H56 ->  | S54: =バッチ変換用2!I56 ->  | T54: =バッチ変換用2!J56 -> 
H55: =IF(バッチ変換用2!C57="eof","",バッチ変換用2!C57) ->  | K55: =バッチ変換用2!D57 ->  | M55: =バッチ変換用2!E57 ->  | O55: =IF(AND(バッチ変換用2!G57="",J55="50")," ",バッチ変換用2!G57) ->  | Q55: =バッチ変換用2!H57 ->  | S55: =バッチ変換用2!I57 ->  | T55: =バッチ変換用2!J57 -> 
H56: =IF(バッチ変換用2!C58="eof","",バッチ変換用2!C58) ->  | K56: =バッチ変換用2!D58 ->  | M56: =バッチ変換用2!E58 ->  | O56: =IF(AND(バッチ変換用2!G58="",J56="50")," ",バッチ変換用2!G58) ->  | Q56: =バッチ変換用2!H58 ->  | S56: =バッチ変換用2!I58 ->  | T56: =バッチ変換用2!J58 -> 
H57: =IF(バッチ変換用2!C59="eof","",バッチ変換用2!C59) ->  | K57: =バッチ変換用2!D59 ->  | M57: =バッチ変換用2!E59 ->  | O57: =IF(AND(バッチ変換用2!G59="",J57="50")," ",バッチ変換用2!G59) ->  | Q57: =バッチ変換用2!H59 ->  | S57: =バッチ変換用2!I59 ->  | T57: =バッチ変換用2!J59 -> 
H58: =IF(バッチ変換用2!C60="eof","",バッチ変換用2!C60) ->  | K58: =バッチ変換用2!D60 ->  | M58: =バッチ変換用2!E60 ->  | O58: =IF(AND(バッチ変換用2!G60="",J58="50")," ",バッチ変換用2!G60) ->  | Q58: =バッチ変換用2!H60 ->  | S58: =バッチ変換用2!I60 ->  | T58: =バッチ変換用2!J60 -> 
H59: =IF(バッチ変換用2!C61="eof","",バッチ変換用2!C61) ->  | K59: =バッチ変換用2!D61 ->  | M59: =バッチ変換用2!E61 ->  | O59: =IF(AND(バッチ変換用2!G61="",J59="50")," ",バッチ変換用2!G61) ->  | Q59: =バッチ変換用2!H61 ->  | S59: =バッチ変換用2!I61 ->  | T59: =バッチ変換用2!J61 -> 
H60: =IF(バッチ変換用2!C62="eof","",バッチ変換用2!C62) ->  | K60: =バッチ変換用2!D62 ->  | M60: =バッチ変換用2!E62 ->  | O60: =IF(AND(バッチ変換用2!G62="",J60="50")," ",バッチ変換用2!G62) ->  | Q60: =バッチ変換用2!H62 ->  | S60: =バッチ変換用2!I62 ->  | T60: =バッチ変換用2!J62 -> 
H61: =IF(バッチ変換用2!C63="eof","",バッチ変換用2!C63) ->  | K61: =バッチ変換用2!D63 ->  | M61: =バッチ変換用2!E63 ->  | O61: =IF(AND(バッチ変換用2!G63="",J61="50")," ",バッチ変換用2!G63) ->  | Q61: =バッチ変換用2!H63 ->  | S61: =バッチ変換用2!I63 ->  | T61: =バッチ変換用2!J63 -> 
H62: =IF(バッチ変換用2!C64="eof","",バッチ変換用2!C64) ->  | K62: =バッチ変換用2!D64 ->  | M62: =バッチ変換用2!E64 ->  | O62: =IF(AND(バッチ変換用2!G64="",J62="50")," ",バッチ変換用2!G64) ->  | Q62: =バッチ変換用2!H64 ->  | S62: =バッチ変換用2!I64 ->  | T62: =バッチ変換用2!J64 -> 
H63: =IF(バッチ変換用2!C65="eof","",バッチ変換用2!C65) ->  | K63: =バッチ変換用2!D65 ->  | M63: =バッチ変換用2!E65 ->  | O63: =IF(AND(バッチ変換用2!G65="",J63="50")," ",バッチ変換用2!G65) ->  | Q63: =バッチ変換用2!H65 ->  | S63: =バッチ変換用2!I65 ->  | T63: =バッチ変換用2!J65 -> 
H64: =IF(バッチ変換用2!C66="eof","",バッチ変換用2!C66) ->  | K64: =バッチ変換用2!D66 ->  | M64: =バッチ変換用2!E66 ->  | O64: =IF(AND(バッチ変換用2!G66="",J64="50")," ",バッチ変換用2!G66) ->  | Q64: =バッチ変換用2!H66 ->  | S64: =バッチ変換用2!I66 ->  | T64: =バッチ変換用2!J66 -> 
H65: =IF(バッチ変換用2!C67="eof","",バッチ変換用2!C67) ->  | K65: =バッチ変換用2!D67 ->  | M65: =バッチ変換用2!E67 ->  | O65: =IF(AND(バッチ変換用2!G67="",J65="50")," ",バッチ変換用2!G67) ->  | Q65: =バッチ変換用2!H67 ->  | S65: =バッチ変換用2!I67 ->  | T65: =バッチ変換用2!J67 -> 
H66: =IF(バッチ変換用2!C68="eof","",バッチ変換用2!C68) ->  | K66: =バッチ変換用2!D68 ->  | M66: =バッチ変換用2!E68 ->  | O66: =IF(AND(バッチ変換用2!G68="",J66="50")," ",バッチ変換用2!G68) ->  | Q66: =バッチ変換用2!H68 ->  | S66: =バッチ変換用2!I68 ->  | T66: =バッチ変換用2!J68 -> 
H67: =IF(バッチ変換用2!C69="eof","",バッチ変換用2!C69) ->  | K67: =バッチ変換用2!D69 ->  | M67: =バッチ変換用2!E69 ->  | O67: =IF(AND(バッチ変換用2!G69="",J67="50")," ",バッチ変換用2!G69) ->  | Q67: =バッチ変換用2!H69 ->  | S67: =バッチ変換用2!I69 ->  | T67: =バッチ変換用2!J69 -> 
B68: =IF(AND($H68<>"",$H68<>"eof"),"NS","") ->  | D68: =IF(AND($H68<>"",$H68<>"eof"),"SA","") ->  | E68: =IF(AND($H68<>"",$H68<>"eof"),"JPY","") ->  | H68: =IF(バッチ変換用2!C70="eof","",バッチ変換用2!C70) ->  | I68: =IF(H68<>"","x","") ->  | J68: =IF(K68<>"",IF(K68="148100","50","40"),"") ->  | K68: =バッチ変換用2!D70 ->  | M68: =バッチ変換用2!E70 ->  | O68: =IF(AND(バッチ変換用2!G70="",J68="50")," ",バッチ変換用2!G70) ->  | P68: =IF(Q68<>"","NS03","") ->  | Q68: =バッチ変換用2!H70 ->  | S68: =バッチ変換用2!I70 ->  | T68: =バッチ変換用2!J70 -> 
A69: =IF(AND($H69="",$J68<>"",$J69=""),"eof",IF($H69<>"",$A$3,"")) ->  | C69: =IF(AND($H69<>"",$H69<>"eof"),$C$3,"") ->  | H69: =IF(バッチ変換用2!C71="eof","",バッチ変換用2!C71) ->  | K69: =バッチ変換用2!D71 ->  | M69: =バッチ変換用2!E71 ->  | O69: =IF(AND(バッチ変換用2!G71="",J69="50")," ",バッチ変換用2!G71) ->  | Q69: =バッチ変換用2!H71 ->  | S69: =バッチ変換用2!I71 ->  | T69: =バッチ変換用2!J71 -> 
H70: =IF(バッチ変換用2!C72="eof","",バッチ変換用2!C72) ->  | K70: =バッチ変換用2!D72 ->  | M70: =バッチ変換用2!E72 ->  | O70: =IF(AND(バッチ変換用2!G72="",J70="50")," ",バッチ変換用2!G72) ->  | Q70: =バッチ変換用2!H72 ->  | S70: =バッチ変換用2!I72 ->  | T70: =バッチ変換用2!J72 -> 
H71: =IF(バッチ変換用2!C73="eof","",バッチ変換用2!C73) ->  | K71: =バッチ変換用2!D73 ->  | M71: =バッチ変換用2!E73 ->  | O71: =IF(AND(バッチ変換用2!G73="",J71="50")," ",バッチ変換用2!G73) ->  | Q71: =バッチ変換用2!H73 ->  | S71: =バッチ変換用2!I73 ->  | T71: =バッチ変換用2!J73 -> 
H72: =IF(バッチ変換用2!C74="eof","",バッチ変換用2!C74) ->  | K72: =バッチ変換用2!D74 ->  | M72: =バッチ変換用2!E74 ->  | O72: =IF(AND(バッチ変換用2!G74="",J72="50")," ",バッチ変換用2!G74) ->  | Q72: =バッチ変換用2!H74 ->  | S72: =バッチ変換用2!I74 ->  | T72: =バッチ変換用2!J74 -> 
H73: =IF(バッチ変換用2!C75="eof","",バッチ変換用2!C75) ->  | K73: =バッチ変換用2!D75 ->  | M73: =バッチ変換用2!E75 ->  | O73: =IF(AND(バッチ変換用2!G75="",J73="50")," ",バッチ変換用2!G75) ->  | Q73: =バッチ変換用2!H75 ->  | S73: =バッチ変換用2!I75 ->  | T73: =バッチ変換用2!J75 -> 
H74: =IF(バッチ変換用2!C76="eof","",バッチ変換用2!C76) ->  | K74: =バッチ変換用2!D76 ->  | M74: =バッチ変換用2!E76 ->  | O74: =IF(AND(バッチ変換用2!G76="",J74="50")," ",バッチ変換用2!G76) ->  | Q74: =バッチ変換用2!H76 ->  | S74: =バッチ変換用2!I76 ->  | T74: =バッチ変換用2!J76 -> 
H75: =IF(バッチ変換用2!C77="eof","",バッチ変換用2!C77) ->  | K75: =バッチ変換用2!D77 ->  | M75: =バッチ変換用2!E77 ->  | O75: =IF(AND(バッチ変換用2!G77="",J75="50")," ",バッチ変換用2!G77) ->  | Q75: =バッチ変換用2!H77 ->  | S75: =バッチ変換用2!I77 ->  | T75: =バッチ変換用2!J77 -> 
H76: =IF(バッチ変換用2!C78="eof","",バッチ変換用2!C78) ->  | K76: =バッチ変換用2!D78 ->  | M76: =バッチ変換用2!E78 ->  | O76: =IF(AND(バッチ変換用2!G78="",J76="50")," ",バッチ変換用2!G78) ->  | Q76: =バッチ変換用2!H78 ->  | S76: =バッチ変換用2!I78 ->  | T76: =バッチ変換用2!J78 -> 
H77: =IF(バッチ変換用2!C79="eof","",バッチ変換用2!C79) ->  | K77: =バッチ変換用2!D79 ->  | M77: =バッチ変換用2!E79 ->  | O77: =IF(AND(バッチ変換用2!G79="",J77="50")," ",バッチ変換用2!G79) ->  | Q77: =バッチ変換用2!H79 ->  | S77: =バッチ変換用2!I79 ->  | T77: =バッチ変換用2!J79 -> 
H78: =IF(バッチ変換用2!C80="eof","",バッチ変換用2!C80) ->  | K78: =バッチ変換用2!D80 ->  | M78: =バッチ変換用2!E80 ->  | O78: =IF(AND(バッチ変換用2!G80="",J78="50")," ",バッチ変換用2!G80) ->  | Q78: =バッチ変換用2!H80 ->  | S78: =バッチ変換用2!I80 ->  | T78: =バッチ変換用2!J80 -> 
H79: =IF(バッチ変換用2!C81="eof","",バッチ変換用2!C81) ->  | K79: =バッチ変換用2!D81 ->  | M79: =バッチ変換用2!E81 ->  | O79: =IF(AND(バッチ変換用2!G81="",J79="50")," ",バッチ変換用2!G81) ->  | Q79: =バッチ変換用2!H81 ->  | S79: =バッチ変換用2!I81 ->  | T79: =バッチ変換用2!J81 -> 
H80: =IF(バッチ変換用2!C82="eof","",バッチ変換用2!C82) ->  | K80: =バッチ変換用2!D82 ->  | M80: =バッチ変換用2!E82 ->  | O80: =IF(AND(バッチ変換用2!G82="",J80="50")," ",バッチ変換用2!G82) ->  | Q80: =バッチ変換用2!H82 ->  | S80: =バッチ変換用2!I82 ->  | T80: =バッチ変換用2!J82 -> 
H81: =IF(バッチ変換用2!C83="eof","",バッチ変換用2!C83) ->  | K81: =バッチ変換用2!D83 ->  | M81: =バッチ変換用2!E83 ->  | O81: =IF(AND(バッチ変換用2!G83="",J81="50")," ",バッチ変換用2!G83) ->  | Q81: =バッチ変換用2!H83 ->  | S81: =バッチ変換用2!I83 ->  | T81: =バッチ変換用2!J83 -> 
H82: =IF(バッチ変換用2!C84="eof","",バッチ変換用2!C84) ->  | K82: =バッチ変換用2!D84 ->  | M82: =バッチ変換用2!E84 ->  | O82: =IF(AND(バッチ変換用2!G84="",J82="50")," ",バッチ変換用2!G84) ->  | Q82: =バッチ変換用2!H84 ->  | S82: =バッチ変換用2!I84 ->  | T82: =バッチ変換用2!J84 -> 
H83: =IF(バッチ変換用2!C85="eof","",バッチ変換用2!C85) ->  | K83: =バッチ変換用2!D85 ->  | M83: =バッチ変換用2!E85 ->  | O83: =IF(AND(バッチ変換用2!G85="",J83="50")," ",バッチ変換用2!G85) ->  | Q83: =バッチ変換用2!H85 ->  | S83: =バッチ変換用2!I85 ->  | T83: =バッチ変換用2!J85 -> 
H84: =IF(バッチ変換用2!C86="eof","",バッチ変換用2!C86) ->  | K84: =バッチ変換用2!D86 ->  | M84: =バッチ変換用2!E86 ->  | O84: =IF(AND(バッチ変換用2!G86="",J84="50")," ",バッチ変換用2!G86) ->  | Q84: =バッチ変換用2!H86 ->  | S84: =バッチ変換用2!I86 ->  | T84: =バッチ変換用2!J86 -> 
H85: =IF(バッチ変換用2!C87="eof","",バッチ変換用2!C87) ->  | K85: =バッチ変換用2!D87 ->  | M85: =バッチ変換用2!E87 ->  | O85: =IF(AND(バッチ変換用2!G87="",J85="50")," ",バッチ変換用2!G87) ->  | Q85: =バッチ変換用2!H87 ->  | S85: =バッチ変換用2!I87 ->  | T85: =バッチ変換用2!J87 -> 
H86: =IF(バッチ変換用2!C88="eof","",バッチ変換用2!C88) ->  | K86: =バッチ変換用2!D88 ->  | M86: =バッチ変換用2!E88 ->  | O86: =IF(AND(バッチ変換用2!G88="",J86="50")," ",バッチ変換用2!G88) ->  | Q86: =バッチ変換用2!H88 ->  | S86: =バッチ変換用2!I88 ->  | T86: =バッチ変換用2!J88 -> 
H87: =IF(バッチ変換用2!C89="eof","",バッチ変換用2!C89) ->  | K87: =バッチ変換用2!D89 ->  | M87: =バッチ変換用2!E89 ->  | O87: =IF(AND(バッチ変換用2!G89="",J87="50")," ",バッチ変換用2!G89) ->  | Q87: =バッチ変換用2!H89 ->  | S87: =バッチ変換用2!I89 ->  | T87: =バッチ変換用2!J89 -> 
H88: =IF(バッチ変換用2!C90="eof","",バッチ変換用2!C90) ->  | K88: =バッチ変換用2!D90 ->  | M88: =バッチ変換用2!E90 ->  | O88: =IF(AND(バッチ変換用2!G90="",J88="50")," ",バッチ変換用2!G90) ->  | Q88: =バッチ変換用2!H90 ->  | S88: =バッチ変換用2!I90 ->  | T88: =バッチ変換用2!J90 -> 
H89: =IF(バッチ変換用2!C91="eof","",バッチ変換用2!C91) ->  | K89: =バッチ変換用2!D91 ->  | M89: =バッチ変換用2!E91 ->  | O89: =IF(AND(バッチ変換用2!G91="",J89="50")," ",バッチ変換用2!G91) ->  | Q89: =バッチ変換用2!H91 ->  | S89: =バッチ変換用2!I91 ->  | T89: =バッチ変換用2!J91 -> 
H90: =IF(バッチ変換用2!C92="eof","",バッチ変換用2!C92) ->  | K90: =バッチ変換用2!D92 ->  | M90: =バッチ変換用2!E92 ->  | O90: =IF(AND(バッチ変換用2!G92="",J90="50")," ",バッチ変換用2!G92) ->  | Q90: =バッチ変換用2!H92 ->  | S90: =バッチ変換用2!I92 ->  | T90: =バッチ変換用2!J92 -> 
H91: =IF(バッチ変換用2!C93="eof","",バッチ変換用2!C93) ->  | K91: =バッチ変換用2!D93 ->  | M91: =バッチ変換用2!E93 ->  | O91: =IF(AND(バッチ変換用2!G93="",J91="50")," ",バッチ変換用2!G93) ->  | Q91: =バッチ変換用2!H93 ->  | S91: =バッチ変換用2!I93 ->  | T91: =バッチ変換用2!J93 -> 
H92: =IF(バッチ変換用2!C94="eof","",バッチ変換用2!C94) ->  | K92: =バッチ変換用2!D94 ->  | M92: =バッチ変換用2!E94 ->  | O92: =IF(AND(バッチ変換用2!G94="",J92="50")," ",バッチ変換用2!G94) ->  | Q92: =バッチ変換用2!H94 ->  | S92: =バッチ変換用2!I94 ->  | T92: =バッチ変換用2!J94 -> 
H93: =IF(バッチ変換用2!C95="eof","",バッチ変換用2!C95) ->  | K93: =バッチ変換用2!D95 ->  | M93: =バッチ変換用2!E95 ->  | O93: =IF(AND(バッチ変換用2!G95="",J93="50")," ",バッチ変換用2!G95) ->  | Q93: =バッチ変換用2!H95 ->  | S93: =バッチ変換用2!I95 ->  | T93: =バッチ変換用2!J95 -> 
H94: =IF(バッチ変換用2!C96="eof","",バッチ変換用2!C96) ->  | K94: =バッチ変換用2!D96 ->  | M94: =バッチ変換用2!E96 ->  | O94: =IF(AND(バッチ変換用2!G96="",J94="50")," ",バッチ変換用2!G96) ->  | Q94: =バッチ変換用2!H96 ->  | S94: =バッチ変換用2!I96 ->  | T94: =バッチ変換用2!J96 -> 
H95: =IF(バッチ変換用2!C97="eof","",バッチ変換用2!C97) ->  | K95: =バッチ変換用2!D97 ->  | M95: =バッチ変換用2!E97 ->  | O95: =IF(AND(バッチ変換用2!G97="",J95="50")," ",バッチ変換用2!G97) ->  | Q95: =バッチ変換用2!H97 ->  | S95: =バッチ変換用2!I97 ->  | T95: =バッチ変換用2!J97 -> 
H96: =IF(バッチ変換用2!C98="eof","",バッチ変換用2!C98) ->  | K96: =バッチ変換用2!D98 ->  | M96: =バッチ変換用2!E98 ->  | O96: =IF(AND(バッチ変換用2!G98="",J96="50")," ",バッチ変換用2!G98) ->  | Q96: =バッチ変換用2!H98 ->  | S96: =バッチ変換用2!I98 ->  | T96: =バッチ変換用2!J98 -> 
H97: =IF(バッチ変換用2!C99="eof","",バッチ変換用2!C99) ->  | K97: =バッチ変換用2!D99 ->  | M97: =バッチ変換用2!E99 ->  | O97: =IF(AND(バッチ変換用2!G99="",J97="50")," ",バッチ変換用2!G99) ->  | Q97: =バッチ変換用2!H99 ->  | S97: =バッチ変換用2!I99 ->  | T97: =バッチ変換用2!J99 -> 
H98: =IF(バッチ変換用2!C100="eof","",バッチ変換用2!C100) ->  | K98: =バッチ変換用2!D100 ->  | M98: =バッチ変換用2!E100 ->  | O98: =IF(AND(バッチ変換用2!G100="",J98="50")," ",バッチ変換用2!G100) ->  | Q98: =バッチ変換用2!H100 ->  | S98: =バッチ変換用2!I100 ->  | T98: =バッチ変換用2!J100 -> 
H99: =IF(バッチ変換用2!C101="eof","",バッチ変換用2!C101) ->  | K99: =バッチ変換用2!D101 ->  | M99: =バッチ変換用2!E101 ->  | O99: =IF(AND(バッチ変換用2!G101="",J99="50")," ",バッチ変換用2!G101) ->  | Q99: =バッチ変換用2!H101 ->  | S99: =バッチ変換用2!I101 ->  | T99: =バッチ変換用2!J101 -> 
H100: =IF(バッチ変換用2!C102="eof","",バッチ変換用2!C102) ->  | K100: =バッチ変換用2!D102 ->  | M100: =バッチ変換用2!E102 ->  | O100: =IF(AND(バッチ変換用2!G102="",J100="50")," ",バッチ変換用2!G102) ->  | Q100: =バッチ変換用2!H102 ->  | S100: =バッチ変換用2!I102 ->  | T100: =バッチ変換用2!J102 -> 
H101: =IF(バッチ変換用2!C103="eof","",バッチ変換用2!C103) ->  | K101: =バッチ変換用2!D103 ->  | M101: =バッチ変換用2!E103 ->  | O101: =IF(AND(バッチ変換用2!G103="",J101="50")," ",バッチ変換用2!G103) ->  | Q101: =バッチ変換用2!H103 ->  | S101: =バッチ変換用2!I103 ->  | T101: =バッチ変換用2!J103 -> 
H102: =IF(バッチ変換用2!C104="eof","",バッチ変換用2!C104) ->  | K102: =バッチ変換用2!D104 ->  | M102: =バッチ変換用2!E104 ->  | O102: =IF(AND(バッチ変換用2!G104="",J102="50")," ",バッチ変換用2!G104) ->  | Q102: =バッチ変換用2!H104 ->  | S102: =バッチ変換用2!I104 ->  | T102: =バッチ変換用2!J104 -> 
A104: ここまで

Sheet バッチ変換用
A2: 月次 （YY.MM） | C2: ※シート保護（パス無） 訂正後は保護をかけること ※左部、月次を入力すると当月上期と前月下期の金額が参照される。 | N2: 仕訳用データ
A3: =MID(SUBSTITUTE(DEN!C3,".",""),3,2)&"."&MID(SUBSTITUTE(DEN!C3,".",""),5,2) -> 23.06
C4: =A3&"上期確定" -> 23.06上期確定 | D4: =IF(RIGHT(A3,2)="01",LEFT(A3,2)-1&".12確定",LEFT(A3,2)&"."&TEXT(RIGHT(A3,2)-1,"00")&"下期確定") -> 23.05下期確定 | N4: 伝票ヘッダ | R4: ="交計経費 "&IF(VALUE(RIGHT(A3,2))>=10,RIGHT($A$3,2),SUBSTITUTE(RIGHT($A$3,2),0,""))&"月上期振替" -> 交計経費 6月上期振替 | Y4: 伝票ヘッダ | AC4: ="交計経費 "&IF(RIGHT($A$3,2)="01","12",TEXT(RIGHT($A$3,2)-1,"0"))&"月下期確定" -> 交計経費 5月下期確定 | AJ4: 伝票ヘッダ | AN4: ="交計経費 "&IF(VALUE(RIGHT(A3,2))>=10,RIGHT($A$3,2),SUBSTITUTE(RIGHT($A$3,2),0,""))&"月下期概算" -> 交計経費 6月下期概算
C5: ※数式 | D5: ※数式 | I5: 上期 | K5: 下期 | P5: 列 | Q5: B | R5: C | T5: E | U5: F | V5: G | W5: H | AA5: 列 | AB5: B | AD5: D | AE5: E | AF5: F | AG5: G | AH5: H | AL5: 列 | AM5: B | AO5: D | AP5: E | AQ5: F | AR5: G | AS5: H
B6: 勘定CD | C6: 上期 金額 | D6: 下期 金額 | E6: 税CD | F6: 原価ｾﾝﾀ | G6: ｿｰﾄｷｰ | H6: 明細ﾃｷｽﾄ | I6: ﾁｪｯｸ | J6: 連番 | K6: ﾁｪｯｸ | L6: 連番 | N6: 上期 | O6: Idx | Q6: 勘定CD | R6: 上期 金額 | S6: ｘ | T6: 税CD | U6: 原価ｾﾝﾀ | V6: ｿｰﾄｷｰ | W6: 明細ﾃｷｽﾄ | Y6: 下期 | Z6: Idx | AB6: 勘定CD | AC6: ｘ | AD6: 下期 金額 | AE6: 税CD | AF6: 原価ｾﾝﾀ | AG6: ｿｰﾄｷｰ | AH6: 明細ﾃｷｽﾄ | AJ6: 下期 概算 | AK6: Idx | AM6: 勘定CD | AN6: ｘ | AO6: 下期 金額 | AP6: 税CD | AQ6: 原価ｾﾝﾀ | AR6: ｿｰﾄｷｰ | AS6: 明細ﾃｷｽﾄ
A7: 5 | B7: 352500 | C7: =INDIRECT($A$3&"!$M"&$A7) -> 0 | D7: =INDIRECT(IF(RIGHT($A$3,2)="01",LEFT($A$3,2)-1&".12",LEFT($A$3,2)&"."&TEXT(RIGHT($A$3,2)-1,"00"))&"!$N"&$A7) -> 0 | E7: AA | F7: NS-0259 | G7: 輸送新聞社 | H7: 購読料 | I7: =IF(C7>0,"有","") ->  | J7: =IF($I7="有",COUNTIF($I$7:I7,"有"),"") ->  | K7: =IF(D7>0,"有","") ->  | L7: =IF($K7="有",COUNTIF($K$7:K7,"有"),"") ->  | N7: 1 | O7: =IF(P7="該当",COUNTIF($P$7:P7,"該当"),"") -> 1 | P7: =IF(ISERROR(INDEX($B$7:$H$41,MATCH($N7,$J$7:$J$41,0),MATCH(C$6,$B$6:$H$6,0)))=FALSE,"該当",IF(P6="該当","end","")) -> 該当 | Q7: =IF($P7="該当",INDEX($B$7:$H$41,MATCH($N7,$J$7:$J$41,0),MATCH(INDIRECT(Q$5&"$6"),$Q$6:$W$6,0)),"") -> 352500 | R7: 2200 | T7: =IF($P7="該当",INDEX($B$7:$H$41,MATCH($N7,$J$7:$J$41,0),MATCH(INDIRECT(T$5&"$6"),$Q$6:$W$6,0)),"") -> AA | U7: NS-0259 | V7: 通運新聞社 | W7: 購読料 | Y7: 1 | Z7: =IF(AA7="該当",MAX($O$7:$O$40)+COUNTIF($AA$7:AA7,"該当"),"") -> 5 | AA7: =IF(ISERROR(INDEX($B$7:$H$41,MATCH($Y7,$L$7:$L$41,0),MATCH(D$6,$B$6:$H$6,0)))=FALSE,"該当",IF(AA6="該当","end","")) -> 該当 | AB7: =IF($AA7="該当",INDEX($B$7:$H$41,MATCH($Y7,$L$7:$L$41,0),MATCH(INDIRECT(AB$5&"$6"),$AB$6:$AH$6,0)),"") -> 352810 | AD7: =IF($AA7="該当",INDEX($B$7:$H$41,MATCH($Y7,$L$7:$L$41,0),MATCH(INDIRECT(AD$5&"$6"),$AB$6:$AH$6,0)),"") -> 39900 | AF7: NS-0259 | AG7: 関東通運業連合会 | AH7: 会費 | AJ7: 1 | AK7: =IF(AA7="該当",MAX($Z$7:$Z$40)+COUNTIF($AL$7:AL7,"該当"),IF(AA7="end",MAX($Z$7:$Z$40)+COUNTIF($AL$7:AL7,"該当")+1,"")) -> 10 | AL7: =IF(ISERROR(INDEX($B$7:$H$41,MATCH($AJ7,$L$7:$L$41,0),MATCH(D$6,$B$6:$H$6,0)))=FALSE,"該当",IF(AL6="該当","end","")) -> 該当 | AM7: =IF($AA7="該当",INDEX($B$7:$H$41,MATCH($Y7,$L$7:$L$41,0),MATCH(INDIRECT(AM$5&"$6"),$AB$6:$AH$6,0)),IF(AL7="end","148100","")) -> 352810 | AO7: =IF($AA7="該当",INDEX($B$7:$H$41,MATCH($Y7,$L$7:$L$41,0),MATCH(INDIRECT(AO$5&"$6"),$AB$6:$AH$6,0)),IF(AL7="end",SUM($AO6:AO$7),"")) -> 39900 | AP7: =IF($AA7="該当",INDEX($B$7:$H$41,MATCH($Y7,$L$7:$L$41,0),MATCH(INDIRECT(AP$5&"$6"),$AB$6:$AH$6,0)),"") ->  | AQ7: NS-0259 | AR7: =IF($AA7="該当",INDEX($B$7:$H$41,MATCH($Y7,$L$7:$L$41,0),MATCH(INDIRECT(AR$5&"$6"),$AB$6:$AH$6,0)),IF(AL7="end","交計下期概算","")) -> 関東通運業連合会 | AS7: =IF($AA7="該当",INDEX($B$7:$H$41,MATCH($Y7,$L$7:$L$41,0),MATCH(INDIRECT(AS$5&"$6"),$AB$6:$AH$6,0)),IF(AL7="end","交計下期概算","")) -> 会費
A8: 6 | B8: 352130 | C8: =INDIRECT($A$3&"!$M"&$A8) -> 0 | D8: =INDIRECT(IF(RIGHT($A$3,2)="01",LEFT($A$3,2)-1&".12",LEFT($A$3,2)&"."&TEXT(RIGHT($A$3,2)-1,"00"))&"!$N"&$A8) -> 0 | E8: AA | F8: NS-0259 | G8: 輸送新聞社 | H8: 送料 | I8: =IF(C8>0,"有","") ->  | J8: =IF($I8="有",COUNTIF($I$7:I8,"有"),"") ->  | K8: =IF(D8>0,"有","") ->  | L8: =IF($K8="有",COUNTIF($K$7:K8,"有"),"") ->  | N8: 2 | O8: =IF(P8="該当",COUNTIF($P$7:P8,"該当"),"") -> 2 | P8: 該当 | Q8: 352810 | R8: 4500 | U8: NS-0259 | V8: 札幌通運 | W8: 北海道会費 | Y8: 2 | Z8: =IF(AA8="該当",MAX($O$7:$O$40)+COUNTIF($AA$7:AA8,"該当"),"") -> 6 | AA8: 該当 | AB8: 352810 | AD8: 4500 | AF8: NS-0259 | AG8: 博多港運 | AH8: 九州会会費 | AJ8: 2 | AK8: =IF(AA8="該当",MAX($Z$7:$Z$40)+COUNTIF($AL$7:AL8,"該当"),IF(AA8="end",MAX($Z$7:$Z$40)+COUNTIF($AL$7:AL8,"該当")+1,"")) -> 11 | AL8: 該当 | AM8: 352810 | AO8: =IF($AA8="該当",INDEX($B$7:$H$41,MATCH($Y8,$L$7:$L$41,0),MATCH(INDIRECT(AO$5&"$6"),$AB$6:$AH$6,0)),IF(AL8="end",SUM($AO7:AO$7),"")) -> 4500 | AQ8: NS-0259 | AR8: 博多港運 | AS8: 九州会会費
A9: 7 | B9: 352500 | C9: 0 | D9: 0 | E9: AA | F9: NS-0259 | G9: 交通日本社 | H9: 通運業者名簿追録 | J9: =IF($I9="有",COUNTIF($I$7:I9,"有"),"") ->  | L9: =IF($K9="有",COUNTIF($K$7:K9,"有"),"") ->  | N9: 3 | O9: =IF(P9="該当",COUNTIF($P$7:P9,"該当"),"") -> 3 | P9: 該当 | Q9: 352810 | R9: 4500 | U9: NS-0259 | V9: 仙台運送 | W9: みちのく会費 | Y9: 3 | Z9: =IF(AA9="該当",MAX($O$7:$O$40)+COUNTIF($AA$7:AA9,"該当"),"") -> 7 | AA9: 該当 | AB9: 352810 | AD9: 4500 | AF9: NS-0259 | AG9: 札幌通運 | AH9: 北海道会費 | AJ9: 3 | AK9: =IF(AA9="該当",MAX($Z$7:$Z$40)+COUNTIF($AL$7:AL9,"該当"),IF(AA9="end",MAX($Z$7:$Z$40)+COUNTIF($AL$7:AL9,"該当")+1,"")) -> 12 | AL9: 該当 | AM9: 352810 | AO9: =IF($AA9="該当",INDEX($B$7:$H$41,MATCH($Y9,$L$7:$L$41,0),MATCH(INDIRECT(AO$5&"$6"),$AB$6:$AH$6,0)),IF(AL9="end",SUM($AO$7:AO8),"")) -> 4500 | AQ9: NS-0259 | AR9: 札幌通運 | AS9: 北海道会費
A10: 8 | B10: 352130 | C10: 0 | D10: 0 | E10: AA | F10: NS-0259 | G10: 交通日本社 | H10: 送料 | J10: =IF($I10="有",COUNTIF($I$7:I10,"有"),"") ->  | L10: =IF($K10="有",COUNTIF($K$7:K10,"有"),"") ->  | N10: 4 | O10: =IF(P10="該当",COUNTIF($P$7:P10,"該当"),"") -> 4 | P10: 該当 | Q10: 352810 | R10: 25000 | U10: NS-0259 | V10: 川崎運送 | W10: 会費 | Y10: 4 | Z10: =IF(AA10="該当",MAX($O$7:$O$40)+COUNTIF($AA$7:AA10,"該当"),"") -> 8 | AA10: 該当 | AB10: 352900 | AD10: 34690 | AE10: AA | AF10: NS-0259 | AG10: 運送保証協会 | AH10: 保証料(JR分) | AJ10: 4 | AK10: =IF(AA10="該当",MAX($Z$7:$Z$40)+COUNTIF($AL$7:AL10,"該当"),IF(AA10="end",MAX($Z$7:$Z$40)+COUNTIF($AL$7:AL10,"該当")+1,"")) -> 13 | AL10: 該当 | AM10: 352900 | AO10: =IF($AA10="該当",INDEX($B$7:$H$41,MATCH($Y10,$L$7:$L$41,0),MATCH(INDIRECT(AO$5&"$6"),$AB$6:$AH$6,0)),IF(AL10="end",SUM($AO$7:AO9),"")) -> 34690 | AP10: AA | AQ10: NS-0259 | AR10: 運送保証協会 | AS10: 保証料(JR分)
A11: 9 | B11: 352500 | C11: 2200 | D11: 0 | E11: AA | F11: NS-0259 | G11: 通運新聞社 | H11: 購読料 | I11: 有 | J11: =IF($I11="有",COUNTIF($I$7:I11,"有"),"") -> 1 | L11: =IF($K11="有",COUNTIF($K$7:K11,"有"),"") ->  | N11: 5 | O11: =IF(P11="該当",COUNTIF($P$7:P11,"該当"),"") ->  | P11: end | Y11: 5 | Z11: =IF(AA11="該当",MAX($O$7:$O$40)+COUNTIF($AA$7:AA11,"該当"),"") -> 9 | AA11: 該当 | AB11: 352900 | AD11: 40 | AE11: AA | AF11: NS-0259 | AG11: 運送保証協会 | AH11: 保証料(神奈川臨海分） | AJ11: 5 | AK11: =IF(AA11="該当",MAX($Z$7:$Z$40)+COUNTIF($AL$7:AL11,"該当"),IF(AA11="end",MAX($Z$7:$Z$40)+COUNTIF($AL$7:AL11,"該当")+1,"")) -> 14 | AL11: 該当 | AM11: 352900 | AO11: =IF($AA11="該当",INDEX($B$7:$H$41,MATCH($Y11,$L$7:$L$41,0),MATCH(INDIRECT(AO$5&"$6"),$AB$6:$AH$6,0)),IF(AL11="end",SUM($AO$7:AO10),"")) -> 40 | AP11: AA | AQ11: NS-0259 | AR11: 運送保証協会 | AS11: 保証料(神奈川臨海分）
A12: 10 | B12: 352130 | C12: 0 | D12: 0 | E12: AA | F12: NS-0259 | G12: 通運新聞社 | H12: 郵送料 | J12: =IF($I12="有",COUNTIF($I$7:I12,"有"),"") ->  | L12: =IF($K12="有",COUNTIF($K$7:K12,"有"),"") ->  | N12: 6 | O12: =IF(P12="該当",COUNTIF($P$7:P12,"該当"),"") ->  | Y12: 6 | Z12: =IF(AA12="該当",MAX($O$7:$O$40)+COUNTIF($AA$7:AA12,"該当"),"") ->  | AA12: end | AJ12: 6 | AK12: =IF(AA12="該当",MAX($Z$7:$Z$40)+COUNTIF($AL$7:AL12,"該当"),IF(AA12="end",MAX($Z$7:$Z$40)+COUNTIF($AL$7:AL12,"該当")+1,"")) -> 15 | AL12: end | AM12: 148100 | AO12: =IF($AA12="該当",INDEX($B$7:$H$41,MATCH($Y12,$L$7:$L$41,0),MATCH(INDIRECT(AO$5&"$6"),$AB$6:$AH$6,0)),IF(AL12="end",SUM($AO$7:AO11),"")) -> 83630 | AR12: 交計下期概算 | AS12: 交計下期概算
A13: 11 | B13: 352500 | C13: 0 | D13: 0 | E13: AA | F13: NS-0259 | G13: 通運情報社 | H13: 購読料 | J13: =IF($I13="有",COUNTIF($I$7:I13,"有"),"") ->  | L13: =IF($K13="有",COUNTIF($K$7:K13,"有"),"") ->  | N13: 7 | O13: =IF(P13="該当",COUNTIF($P$7:P13,"該当"),"") ->  | Y13: 7 | Z13: =IF(AA13="該当",MAX($O$7:$O$40)+COUNTIF($AA$7:AA13,"該当"),"") ->  | AJ13: 7 | AK13: =IF(AA13="該当",MAX($Z$7:$Z$40)+COUNTIF($AL$7:AL13,"該当"),IF(AA13="end",MAX($Z$7:$Z$40)+COUNTIF($AL$7:AL13,"該当")+1,"")) ->  | AO13: =IF($AA13="該当",INDEX($B$7:$H$41,MATCH($Y13,$L$7:$L$41,0),MATCH(INDIRECT(AO$5&"$6"),$AB$6:$AH$6,0)),IF(AL13="end",SUM($AO$7:AO12),"")) -> 
A14: 12 | B14: 352500 | C14: 0 | D14: 0 | E14: AA | F14: NS-0259 | G14: 運輸世界新聞社 | H14: 購読料 | J14: =IF($I14="有",COUNTIF($I$7:I14,"有"),"") ->  | L14: =IF($K14="有",COUNTIF($K$7:K14,"有"),"") ->  | N14: 8 | O14: =IF(P14="該当",COUNTIF($P$7:P14,"該当"),"") ->  | Y14: 8 | Z14: =IF(AA14="該当",MAX($O$7:$O$40)+COUNTIF($AA$7:AA14,"該当"),"") ->  | AJ14: 8 | AK14: =IF(AA14="該当",MAX($Z$7:$Z$40)+COUNTIF($AL$7:AL14,"該当"),IF(AA14="end",MAX($Z$7:$Z$40)+COUNTIF($AL$7:AL14,"該当")+1,"")) ->  | AO14: =IF($AA14="該当",INDEX($B$7:$H$41,MATCH($Y14,$L$7:$L$41,0),MATCH(INDIRECT(AO$5&"$6"),$AB$6:$AH$6,0)),IF(AL14="end",SUM($AO$7:AO13),"")) -> 
A15: 13 | B15: 352500 | C15: 0 | D15: 0 | E15: AA | F15: NS-0259 | G15: 運輸図書 | H15: ｺﾝﾃﾅ貨物集配便覧追補 | J15: =IF($I15="有",COUNTIF($I$7:I15,"有"),"") ->  | L15: =IF($K15="有",COUNTIF($K$7:K15,"有"),"") ->  | N15: 9 | O15: =IF(P15="該当",COUNTIF($P$7:P15,"該当"),"") ->  | Y15: 9 | Z15: =IF(AA15="該当",MAX($O$7:$O$40)+COUNTIF($AA$7:AA15,"該当"),"") ->  | AJ15: 9 | AK15: =IF(AA15="該当",MAX($Z$7:$Z$40)+COUNTIF($AL$7:AL15,"該当"),IF(AA15="end",MAX($Z$7:$Z$40)+COUNTIF($AL$7:AL15,"該当")+1,"")) ->  | AO15: =IF($AA15="該当",INDEX($B$7:$H$41,MATCH($Y15,$L$7:$L$41,0),MATCH(INDIRECT(AO$5&"$6"),$AB$6:$AH$6,0)),IF(AL15="end",SUM($AO$7:AO14),"")) -> 
A16: 14 | B16: 352130 | C16: 0 | D16: 0 | E16: AA | F16: NS-0259 | G16: 運輸図書 | H16: 送料 | J16: =IF($I16="有",COUNTIF($I$7:I16,"有"),"") ->  | L16: =IF($K16="有",COUNTIF($K$7:K16,"有"),"") ->  | N16: 10 | O16: =IF(P16="該当",COUNTIF($P$7:P16,"該当"),"") ->  | Y16: 10 | Z16: =IF(AA16="該当",MAX($O$7:$O$40)+COUNTIF($AA$7:AA16,"該当"),"") ->  | AJ16: 10 | AK16: =IF(AA16="該当",MAX($Z$7:$Z$40)+COUNTIF($AL$7:AL16,"該当"),IF(AA16="end",MAX($Z$7:$Z$40)+COUNTIF($AL$7:AL16,"該当")+1,"")) ->  | AO16: =IF($AA16="該当",INDEX($B$7:$H$41,MATCH($Y16,$L$7:$L$41,0),MATCH(INDIRECT(AO$5&"$6"),$AB$6:$AH$6,0)),IF(AL16="end",SUM($AO$7:AO15),"")) -> 
A17: 15 | B17: 352810 | C17: 0 | D17: 0 | F17: NS-0259 | G17: 全国通運業連合会 | H17: 全国大会会費 | J17: =IF($I17="有",COUNTIF($I$7:I17,"有"),"") ->  | L17: =IF($K17="有",COUNTIF($K$7:K17,"有"),"") ->  | N17: 11 | O17: =IF(P17="該当",COUNTIF($P$7:P17,"該当"),"") ->  | Y17: 11 | Z17: =IF(AA17="該当",MAX($O$7:$O$40)+COUNTIF($AA$7:AA17,"該当"),"") ->  | AD17: =IF($AA17="該当",INDEX($B$7:$H$41,MATCH($Y17,$L$7:$L$41,0),MATCH(INDIRECT(AD$5&"$6"),$AB$6:$AH$6,0)),"") ->  | AJ17: 11 | AK17: =IF(AA17="該当",MAX($Z$7:$Z$40)+COUNTIF($AL$7:AL17,"該当"),IF(AA17="end",MAX($Z$7:$Z$40)+COUNTIF($AL$7:AL17,"該当")+1,"")) ->  | AO17: =IF($AA17="該当",INDEX($B$7:$H$41,MATCH($Y17,$L$7:$L$41,0),MATCH(INDIRECT(AO$5&"$6"),$AB$6:$AH$6,0)),IF(AL17="end",SUM($AO$7:AO16),"")) -> 
A18: 16 | B18: 826800 | C18: 0 | D18: 0 | E18: AA | F18: NS-0259 | G18: 全国通運業連合会 | H18: 懇親会会費 | J18: =IF($I18="有",COUNTIF($I$7:I18,"有"),"") ->  | L18: =IF($K18="有",COUNTIF($K$7:K18,"有"),"") ->  | N18: 12 | O18: =IF(P18="該当",COUNTIF($P$7:P18,"該当"),"") ->  | Y18: 12 | Z18: =IF(AA18="該当",MAX($O$7:$O$40)+COUNTIF($AA$7:AA18,"該当"),"") ->  | AJ18: 12 | AK18: =IF(AA18="該当",MAX($Z$7:$Z$40)+COUNTIF($AL$7:AL18,"該当"),IF(AA18="end",MAX($Z$7:$Z$40)+COUNTIF($AL$7:AL18,"該当")+1,"")) ->  | AO18: =IF($AA18="該当",INDEX($B$7:$H$41,MATCH($Y18,$L$7:$L$41,0),MATCH(INDIRECT(AO$5&"$6"),$AB$6:$AH$6,0)),IF(AL18="end",SUM($AO$7:AO17),"")) -> 
A19: 17 | B19: 352810 | C19: 0 | D19: 0 | F19: NS-0259 | G19: 関東通運業連合会 | H19: ｺﾝﾃﾅ委員会会費 | J19: =IF($I19="有",COUNTIF($I$7:I19,"有"),"") ->  | L19: =IF($K19="有",COUNTIF($K$7:K19,"有"),"") ->  | N19: 13 | O19: =IF(P19="該当",COUNTIF($P$7:P19,"該当"),"") ->  | Y19: 13 | Z19: =IF(AA19="該当",MAX($O$7:$O$40)+COUNTIF($AA$7:AA19,"該当"),"") ->  | AJ19: 13 | AK19: =IF(AA19="該当",MAX($Z$7:$Z$40)+COUNTIF($AL$7:AL19,"該当"),IF(AA19="end",MAX($Z$7:$Z$40)+COUNTIF($AL$7:AL19,"該当")+1,"")) ->  | AO19: =IF($AA19="該当",INDEX($B$7:$H$41,MATCH($Y19,$L$7:$L$41,0),MATCH(INDIRECT(AO$5&"$6"),$AB$6:$AH$6,0)),IF(AL19="end",SUM($AO$7:AO18),"")) -> 
A20: 18 | B20: 352810 | C20: 0 | D20: 0 | F20: NS-0259 | G20: 関東通運業連合会 | H20: 東名大通友会会費 | J20: =IF($I20="有",COUNTIF($I$7:I20,"有"),"") ->  | L20: =IF($K20="有",COUNTIF($K$7:K20,"有"),"") ->  | N20: 14 | O20: =IF(P20="該当",COUNTIF($P$7:P20,"該当"),"") ->  | Y20: 14 | Z20: =IF(AA20="該当",MAX($O$7:$O$40)+COUNTIF($AA$7:AA20,"該当"),"") ->  | AJ20: 14 | AK20: =IF(AA20="該当",MAX($Z$7:$Z$40)+COUNTIF($AL$7:AL20,"該当"),IF(AA20="end",MAX($Z$7:$Z$40)+COUNTIF($AL$7:AL20,"該当")+1,"")) ->  | AO20: =IF($AA20="該当",INDEX($B$7:$H$41,MATCH($Y20,$L$7:$L$41,0),MATCH(INDIRECT(AO$5&"$6"),$AB$6:$AH$6,0)),IF(AL20="end",SUM($AO$7:AO19),"")) -> 
A21: 19 | B21: 352810 | C21: 0 | D21: 39900 | F21: NS-0259 | G21: 関東通運業連合会 | H21: 会費 | J21: =IF($I21="有",COUNTIF($I$7:I21,"有"),"") ->  | K21: 有 | L21: =IF($K21="有",COUNTIF($K$7:K21,"有"),"") -> 1 | N21: 15 | O21: =IF(P21="該当",COUNTIF($P$7:P21,"該当"),"") ->  | Y21: 15 | Z21: =IF(AA21="該当",MAX($O$7:$O$40)+COUNTIF($AA$7:AA21,"該当"),"") ->  | AJ21: 15 | AK21: =IF(AA21="該当",MAX($Z$7:$Z$40)+COUNTIF($AL$7:AL21,"該当"),IF(AA21="end",MAX($Z$7:$Z$40)+COUNTIF($AL$7:AL21,"該当")+1,"")) ->  | AO21: =IF($AA21="該当",INDEX($B$7:$H$41,MATCH($Y21,$L$7:$L$41,0),MATCH(INDIRECT(AO$5&"$6"),$AB$6:$AH$6,0)),IF(AL21="end",SUM($AO$7:AO20),"")) -> 
A22: 20 | B22: 352810 | C22: 0 | D22: =INDIRECT(IF(RIGHT($A$3,2)="01",LEFT($A$3,2)-1&".12",LEFT($A$3,2)&"."&TEXT(RIGHT($A$3,2)-1,"00"))&"!$N"&$A22) -> 0 | F22: NS-0259 | G22: 中部通運業連合会 | H22: 東名大通友会会費 | I22: =IF(C22>0,"有","") ->  | J22: =IF($I22="有",COUNTIF($I$7:I22,"有"),"") ->  | K22: =IF(D22>0,"有","") ->  | L22: =IF($K22="有",COUNTIF($K$7:K22,"有"),"") ->  | N22: 16 | O22: =IF(P22="該当",COUNTIF($P$7:P22,"該当"),"") ->  | Y22: 16 | Z22: =IF(AA22="該当",MAX($O$7:$O$40)+COUNTIF($AA$7:AA22,"該当"),"") ->  | AJ22: 16 | AK22: =IF(AA22="該当",MAX($Z$7:$Z$40)+COUNTIF($AL$7:AL22,"該当"),IF(AA22="end",MAX($Z$7:$Z$40)+COUNTIF($AL$7:AL22,"該当")+1,"")) ->  | AM22: =IF($AA22="該当",INDEX($B$7:$H$41,MATCH($Y22,$L$7:$L$41,0),MATCH(INDIRECT(AM$5&"$6"),$AB$6:$AH$6,0)),IF(AL22="end","148100","")) ->  | AO22: =IF($AA22="該当",INDEX($B$7:$H$41,MATCH($Y22,$L$7:$L$41,0),MATCH(INDIRECT(AO$5&"$6"),$AB$6:$AH$6,0)),IF(AL22="end",SUM($AO$7:AO21),"")) ->  | AR22: =IF($AA22="該当",INDEX($B$7:$H$41,MATCH($Y22,$L$7:$L$41,0),MATCH(INDIRECT(AR$5&"$6"),$AB$6:$AH$6,0)),IF(AL22="end","交計下期概算","")) ->  | AS22: =IF($AA22="該当",INDEX($B$7:$H$41,MATCH($Y22,$L$7:$L$41,0),MATCH(INDIRECT(AS$5&"$6"),$AB$6:$AH$6,0)),IF(AL22="end","交計下期概算","")) -> 
A23: 21 | B23: 352810 | C23: 0 | D23: 0 | F23: NS-0259 | G23: 日本通運(横浜) | H23: 鉄道貨物利用運送会費 | J23: =IF($I23="有",COUNTIF($I$7:I23,"有"),"") ->  | L23: =IF($K23="有",COUNTIF($K$7:K23,"有"),"") ->  | N23: 17 | O23: =IF(P23="該当",COUNTIF($P$7:P23,"該当"),"") ->  | Y23: 17 | Z23: =IF(AA23="該当",MAX($O$7:$O$40)+COUNTIF($AA$7:AA23,"該当"),"") ->  | AJ23: 17 | AK23: =IF(AA23="該当",MAX($Z$7:$Z$40)+COUNTIF($AL$7:AL23,"該当"),IF(AA23="end",MAX($Z$7:$Z$40)+COUNTIF($AL$7:AL23,"該当")+1,"")) ->  | AO23: =IF($AA23="該当",INDEX($B$7:$H$41,MATCH($Y23,$L$7:$L$41,0),MATCH(INDIRECT(AO$5&"$6"),$AB$6:$AH$6,0)),IF(AL23="end",SUM($AO$7:AO22),"")) -> 
A24: 22 | B24: 352810 | C24: 0 | D24: 0 | F24: NS-0259 | G24: 日本通運(横浜) | H24: 神奈川県通運会費 | J24: =IF($I24="有",COUNTIF($I$7:I24,"有"),"") ->  | L24: =IF($K24="有",COUNTIF($K$7:K24,"有"),"") ->  | N24: 18 | O24: =IF(P24="該当",COUNTIF($P$7:P24,"該当"),"") ->  | Y24: 18 | Z24: =IF(AA24="該当",MAX($O$7:$O$40)+COUNTIF($AA$7:AA24,"該当"),"") ->  | AJ24: 18 | AK24: =IF(AA24="該当",MAX($Z$7:$Z$40)+COUNTIF($AL$7:AL24,"該当"),IF(AA24="end",MAX($Z$7:$Z$40)+COUNTIF($AL$7:AL24,"該当")+1,"")) ->  | AO24: =IF($AA24="該当",INDEX($B$7:$H$41,MATCH($Y24,$L$7:$L$41,0),MATCH(INDIRECT(AO$5&"$6"),$AB$6:$AH$6,0)),IF(AL24="end",SUM($AO$7:AO23),"")) -> 
A25: 23 | B25: 352810 | C25: 0 | D25: 0 | F25: NS-0259 | G25: 日本通運(横浜) | H25: 通運業界臨時会費 | J25: =IF($I25="有",COUNTIF($I$7:I25,"有"),"") ->  | L25: =IF($K25="有",COUNTIF($K$7:K25,"有"),"") ->  | N25: 19 | O25: =IF(P25="該当",COUNTIF($P$7:P25,"該当"),"") ->  | Y25: 19 | Z25: =IF(AA25="該当",MAX($O$7:$O$40)+COUNTIF($AA$7:AA25,"該当"),"") ->  | AJ25: 19 | AK25: =IF(AA25="該当",MAX($Z$7:$Z$40)+COUNTIF($AL$7:AL25,"該当"),IF(AA25="end",MAX($Z$7:$Z$40)+COUNTIF($AL$7:AL25,"該当")+1,"")) ->  | AO25: =IF($AA25="該当",INDEX($B$7:$H$41,MATCH($Y25,$L$7:$L$41,0),MATCH(INDIRECT(AO$5&"$6"),$AB$6:$AH$6,0)),IF(AL25="end",SUM($AO$7:AO24),"")) -> 
A26: 24 | B26: 352810 | C26: 0 | D26: 4500 | F26: NS-0259 | G26: 博多港運 | H26: 九州会会費 | J26: =IF($I26="有",COUNTIF($I$7:I26,"有"),"") ->  | K26: 有 | L26: =IF($K26="有",COUNTIF($K$7:K26,"有"),"") -> 2 | N26: 20 | O26: =IF(P26="該当",COUNTIF($P$7:P26,"該当"),"") ->  | Y26: 20 | Z26: =IF(AA26="該当",MAX($O$7:$O$40)+COUNTIF($AA$7:AA26,"該当"),"") ->  | AJ26: 20 | AK26: =IF(AA26="該当",MAX($Z$7:$Z$40)+COUNTIF($AL$7:AL26,"該当"),IF(AA26="end",MAX($Z$7:$Z$40)+COUNTIF($AL$7:AL26,"該当")+1,"")) ->  | AO26: =IF($AA26="該当",INDEX($B$7:$H$41,MATCH($Y26,$L$7:$L$41,0),MATCH(INDIRECT(AO$5&"$6"),$AB$6:$AH$6,0)),IF(AL26="end",SUM($AO$7:AO25),"")) -> 
A27: 25 | B27: 352810 | C27: 4500 | D27: 4500 | F27: NS-0259 | G27: 札幌通運 | H27: 北海道会費 | I27: 有 | J27: =IF($I27="有",COUNTIF($I$7:I27,"有"),"") -> 2 | K27: 有 | L27: =IF($K27="有",COUNTIF($K$7:K27,"有"),"") -> 3 | N27: 21 | O27: =IF(P27="該当",COUNTIF($P$7:P27,"該当"),"") ->  | Q27: =IF($P27="該当",INDEX($B$7:$H$41,MATCH($N27,$J$7:$J$41,0),MATCH(INDIRECT(Q$5&"$6"),$Q$6:$W$6,0)),"") ->  | T27: =IF($P27="該当",INDEX($B$7:$H$41,MATCH($N27,$J$7:$J$41,0),MATCH(INDIRECT(T$5&"$6"),$Q$6:$W$6,0)),"") ->  | Y27: 21 | Z27: =IF(AA27="該当",MAX($O$7:$O$40)+COUNTIF($AA$7:AA27,"該当"),"") ->  | AD27: =IF($AA27="該当",INDEX($B$7:$H$41,MATCH($Y27,$L$7:$L$41,0),MATCH(INDIRECT(AD$5&"$6"),$AB$6:$AH$6,0)),"") ->  | AJ27: 21 | AK27: =IF(AA27="該当",MAX($Z$7:$Z$40)+COUNTIF($AL$7:AL27,"該当"),IF(AA27="end",MAX($Z$7:$Z$40)+COUNTIF($AL$7:AL27,"該当")+1,"")) ->  | AO27: =IF($AA27="該当",INDEX($B$7:$H$41,MATCH($Y27,$L$7:$L$41,0),MATCH(INDIRECT(AO$5&"$6"),$AB$6:$AH$6,0)),IF(AL27="end",SUM($AO$7:AO26),"")) ->  | AP27: =IF($AA27="該当",INDEX($B$7:$H$41,MATCH($Y27,$L$7:$L$41,0),MATCH(INDIRECT(AP$5&"$6"),$AB$6:$AH$6,0)),"") -> 
A28: 26 | B28: 352810 | C28: 4500 | D28: 0 | F28: NS-0259 | G28: 仙台運送 | H28: みちのく会費 | I28: 有 | J28: =IF($I28="有",COUNTIF($I$7:I28,"有"),"") -> 3 | L28: =IF($K28="有",COUNTIF($K$7:K28,"有"),"") ->  | N28: 22 | O28: =IF(P28="該当",COUNTIF($P$7:P28,"該当"),"") ->  | Y28: 22 | Z28: =IF(AA28="該当",MAX($O$7:$O$40)+COUNTIF($AA$7:AA28,"該当"),"") ->  | AJ28: 22 | AK28: =IF(AA28="該当",MAX($Z$7:$Z$40)+COUNTIF($AL$7:AL28,"該当"),IF(AA28="end",MAX($Z$7:$Z$40)+COUNTIF($AL$7:AL28,"該当")+1,"")) ->  | AO28: =IF($AA28="該当",INDEX($B$7:$H$41,MATCH($Y28,$L$7:$L$41,0),MATCH(INDIRECT(AO$5&"$6"),$AB$6:$AH$6,0)),IF(AL28="end",SUM($AO$7:AO27),"")) -> 
A29: 27 | B29: 826800 | C29: 0 | D29: 0 | E29: AA | F29: NS-0259 | G29: 仙台運送 | H29: みちのく会費 特別会費 | J29: =IF($I29="有",COUNTIF($I$7:I29,"有"),"") ->  | L29: =IF($K29="有",COUNTIF($K$7:K29,"有"),"") ->  | N29: 23 | O29: =IF(P29="該当",COUNTIF($P$7:P29,"該当"),"") ->  | Y29: 23 | Z29: =IF(AA29="該当",MAX($O$7:$O$40)+COUNTIF($AA$7:AA29,"該当"),"") ->  | AJ29: 23 | AK29: =IF(AA29="該当",MAX($Z$7:$Z$40)+COUNTIF($AL$7:AL29,"該当"),IF(AA29="end",MAX($Z$7:$Z$40)+COUNTIF($AL$7:AL29,"該当")+1,"")) ->  | AO29: =IF($AA29="該当",INDEX($B$7:$H$41,MATCH($Y29,$L$7:$L$41,0),MATCH(INDIRECT(AO$5&"$6"),$AB$6:$AH$6,0)),IF(AL29="end",SUM($AO$7:AO28),"")) -> 
A30: 28 | B30: 352810 | C30: 25000 | D30: 0 | F30: NS-0259 | G30: 川崎運送 | H30: 会費 | I30: 有 | J30: =IF($I30="有",COUNTIF($I$7:I30,"有"),"") -> 4 | L30: =IF($K30="有",COUNTIF($K$7:K30,"有"),"") ->  | N30: 24 | O30: =IF(P30="該当",COUNTIF($P$7:P30,"該当"),"") ->  | Y30: 24 | Z30: =IF(AA30="該当",MAX($O$7:$O$40)+COUNTIF($AA$7:AA30,"該当"),"") ->  | AJ30: 24 | AK30: =IF(AA30="該当",MAX($Z$7:$Z$40)+COUNTIF($AL$7:AL30,"該当"),IF(AA30="end",MAX($Z$7:$Z$40)+COUNTIF($AL$7:AL30,"該当")+1,"")) ->  | AO30: =IF($AA30="該当",INDEX($B$7:$H$41,MATCH($Y30,$L$7:$L$41,0),MATCH(INDIRECT(AO$5&"$6"),$AB$6:$AH$6,0)),IF(AL30="end",SUM($AO$7:AO29),"")) -> 
A31: 29 | B31: 352900 | C31: 0 | D31: 0 | E31: AA | F31: NS-0259 | G31: 丸全昭和運輸 | H31: 事務所清掃代 | J31: =IF($I31="有",COUNTIF($I$7:I31,"有"),"") ->  | L31: =IF($K31="有",COUNTIF($K$7:K31,"有"),"") ->  | N31: 25 | O31: =IF(P31="該当",COUNTIF($P$7:P31,"該当"),"") ->  | Y31: 25 | Z31: =IF(AA31="該当",MAX($O$7:$O$40)+COUNTIF($AA$7:AA31,"該当"),"") ->  | AJ31: 25 | AK31: =IF(AA31="該当",MAX($Z$7:$Z$40)+COUNTIF($AL$7:AL31,"該当"),IF(AA31="end",MAX($Z$7:$Z$40)+COUNTIF($AL$7:AL31,"該当")+1,"")) ->  | AO31: =IF($AA31="該当",INDEX($B$7:$H$41,MATCH($Y31,$L$7:$L$41,0),MATCH(INDIRECT(AO$5&"$6"),$AB$6:$AH$6,0)),IF(AL31="end",SUM($AO$7:AO30),"")) -> 
A32: 30 | B32: 352810 | C32: 0 | D32: 0 | F32: NS-0259 | G32: 丸全昭和運輸 | H32: 全通神奈川連絡会費 | J32: =IF($I32="有",COUNTIF($I$7:I32,"有"),"") ->  | L32: =IF($K32="有",COUNTIF($K$7:K32,"有"),"") ->  | N32: 26 | O32: =IF(P32="該当",COUNTIF($P$7:P32,"該当"),"") ->  | Y32: 26 | Z32: =IF(AA32="該当",MAX($O$7:$O$40)+COUNTIF($AA$7:AA32,"該当"),"") ->  | AJ32: 26 | AK32: =IF(AA32="該当",MAX($Z$7:$Z$40)+COUNTIF($AL$7:AL32,"該当"),IF(AA32="end",MAX($Z$7:$Z$40)+COUNTIF($AL$7:AL32,"該当")+1,"")) ->  | AO32: =IF($AA32="該当",INDEX($B$7:$H$41,MATCH($Y32,$L$7:$L$41,0),MATCH(INDIRECT(AO$5&"$6"),$AB$6:$AH$6,0)),IF(AL32="end",SUM($AO$7:AO31),"")) -> 
A33: 31 | B33: 352130 | C33: 0 | D33: 0 | E33: AA | F33: NS-0259 | G33: 全国通運 | H33: 郵送料 | J33: =IF($I33="有",COUNTIF($I$7:I33,"有"),"") ->  | L33: =IF($K33="有",COUNTIF($K$7:K33,"有"),"") ->  | N33: 27 | O33: =IF(P33="該当",COUNTIF($P$7:P33,"該当"),"") ->  | Y33: 27 | Z33: =IF(AA33="該当",MAX($O$7:$O$40)+COUNTIF($AA$7:AA33,"該当"),"") ->  | AD33: =IF($AA33="該当",INDEX($B$7:$H$41,MATCH($Y33,$L$7:$L$41,0),MATCH(INDIRECT(AD$5&"$6"),$AB$6:$AH$6,0)),"") ->  | AJ33: 27 | AK33: =IF(AA33="該当",MAX($Z$7:$Z$40)+COUNTIF($AL$7:AL33,"該当"),IF(AA33="end",MAX($Z$7:$Z$40)+COUNTIF($AL$7:AL33,"該当")+1,"")) ->  | AO33: =IF($AA33="該当",INDEX($B$7:$H$41,MATCH($Y33,$L$7:$L$41,0),MATCH(INDIRECT(AO$5&"$6"),$AB$6:$AH$6,0)),IF(AL33="end",SUM($AO$7:AO32),"")) -> 
A34: 32 | B34: 352430 | C34: 0 | D34: 0 | E34: AA | F34: NS-0259 | G34: 全国通運 | H34: A4ｶｯﾄ紙 | J34: =IF($I34="有",COUNTIF($I$7:I34,"有"),"") ->  | L34: =IF($K34="有",COUNTIF($K$7:K34,"有"),"") ->  | N34: 28 | O34: =IF(P34="該当",COUNTIF($P$7:P34,"該当"),"") ->  | Y34: 28 | Z34: =IF(AA34="該当",MAX($O$7:$O$40)+COUNTIF($AA$7:AA34,"該当"),"") ->  | AJ34: 28 | AK34: =IF(AA34="該当",MAX($Z$7:$Z$40)+COUNTIF($AL$7:AL34,"該当"),IF(AA34="end",MAX($Z$7:$Z$40)+COUNTIF($AL$7:AL34,"該当")+1,"")) ->  | AO34: =IF($AA34="該当",INDEX($B$7:$H$41,MATCH($Y34,$L$7:$L$41,0),MATCH(INDIRECT(AO$5&"$6"),$AB$6:$AH$6,0)),IF(AL34="end",SUM($AO$7:AO33),"")) -> 
A35: 33 | B35: 352900 | C35: 0 | D35: 0 | E35: AA | F35: NS-0259 | G35: 全国通運 | H35: ｼｽﾃﾑ通信料金（NTT） | I35: =IF(C35>0,"有","") ->  | J35: =IF($I35="有",COUNTIF($I$7:I35,"有"),"") ->  | K35: =IF(D35>0,"有","") ->  | L35: =IF($K35="有",COUNTIF($K$7:K35,"有"),"") ->  | N35: 29 | O35: =IF(P35="該当",COUNTIF($P$7:P35,"該当"),"") ->  | P35: =IF(ISERROR(INDEX($B$7:$H$41,MATCH($N35,$J$7:$J$41,0),MATCH(C$6,$B$6:$H$6,0)))=FALSE,"該当",IF(P33="該当","end","")) ->  | Y35: 29 | Z35: =IF(AA35="該当",MAX($O$7:$O$40)+COUNTIF($AA$7:AA35,"該当"),"") ->  | AA35: =IF(ISERROR(INDEX($B$7:$H$41,MATCH($Y35,$L$7:$L$41,0),MATCH(D$6,$B$6:$H$6,0)))=FALSE,"該当",IF(AA33="該当","end","")) ->  | AJ35: 29 | AK35: =IF(AA35="該当",MAX($Z$7:$Z$40)+COUNTIF($AL$7:AL35,"該当"),IF(AA35="end",MAX($Z$7:$Z$40)+COUNTIF($AL$7:AL35,"該当")+1,"")) ->  | AL35: =IF(ISERROR(INDEX($B$7:$H$41,MATCH($AJ35,$L$7:$L$41,0),MATCH(D$6,$B$6:$H$6,0)))=FALSE,"該当",IF(AL33="該当","end","")) ->  | AM35: =IF($AA35="該当",INDEX($B$7:$H$41,MATCH($Y35,$L$7:$L$41,0),MATCH(INDIRECT(AM$5&"$6"),$AB$6:$AH$6,0)),IF(AL35="end","148100","")) ->  | AO35: =IF($AA35="該当",INDEX($B$7:$H$41,MATCH($Y35,$L$7:$L$41,0),MATCH(INDIRECT(AO$5&"$6"),$AB$6:$AH$6,0)),IF(AL35="end",SUM($AO$7:AO33),"")) ->  | AR35: =IF($AA35="該当",INDEX($B$7:$H$41,MATCH($Y35,$L$7:$L$41,0),MATCH(INDIRECT(AR$5&"$6"),$AB$6:$AH$6,0)),IF(AL35="end","交計下期概算","")) ->  | AS35: =IF($AA35="該当",INDEX($B$7:$H$41,MATCH($Y35,$L$7:$L$41,0),MATCH(INDIRECT(AS$5&"$6"),$AB$6:$AH$6,0)),IF(AL35="end","交計下期概算","")) -> 
A36: 34 | B36: 352900 | C36: 0 | D36: 0 | E36: AA | F36: NS-0259 | G36: 全国通運 | H36: ｼｽﾃﾑ通信料金（専用線） | J36: =IF($I36="有",COUNTIF($I$7:I36,"有"),"") ->  | L36: =IF($K36="有",COUNTIF($K$7:K36,"有"),"") ->  | N36: 30 | O36: =IF(P36="該当",COUNTIF($P$7:P36,"該当"),"") ->  | P36: =IF(ISERROR(INDEX($B$7:$H$41,MATCH($N36,$J$7:$J$41,0),MATCH(C$6,$B$6:$H$6,0)))=FALSE,"該当",IF(P34="該当","end","")) ->  | Y36: 30 | Z36: =IF(AA36="該当",MAX($O$7:$O$40)+COUNTIF($AA$7:AA36,"該当"),"") ->  | AA36: =IF(ISERROR(INDEX($B$7:$H$41,MATCH($Y36,$L$7:$L$41,0),MATCH(D$6,$B$6:$H$6,0)))=FALSE,"該当",IF(AA34="該当","end","")) ->  | AJ36: 30 | AK36: =IF(AA36="該当",MAX($Z$7:$Z$40)+COUNTIF($AL$7:AL36,"該当"),IF(AA36="end",MAX($Z$7:$Z$40)+COUNTIF($AL$7:AL36,"該当")+1,"")) ->  | AL36: =IF(ISERROR(INDEX($B$7:$H$41,MATCH($AJ36,$L$7:$L$41,0),MATCH(D$6,$B$6:$H$6,0)))=FALSE,"該当",IF(AL34="該当","end","")) ->  | AO36: =IF($AA36="該当",INDEX($B$7:$H$41,MATCH($Y36,$L$7:$L$41,0),MATCH(INDIRECT(AO$5&"$6"),$AB$6:$AH$6,0)),IF(AL36="end",SUM($AO$7:AO34),"")) -> 
A37: 35 | B37: 352900 | C37: 0 | D37: 0 | E37: AA | F37: NS-0259 | G37: 全国通運 | H37: 情報ｼｽﾃﾑ開発料金 | J37: =IF($I37="有",COUNTIF($I$7:I37,"有"),"") ->  | L37: =IF($K37="有",COUNTIF($K$7:K37,"有"),"") ->  | N37: 31 | O37: =IF(P37="該当",COUNTIF($P$7:P37,"該当"),"") ->  | P37: =IF(ISERROR(INDEX($B$7:$H$41,MATCH($N37,$J$7:$J$41,0),MATCH(C$6,$B$6:$H$6,0)))=FALSE,"該当",IF(P36="該当","end","")) ->  | Y37: 31 | Z37: =IF(AA37="該当",MAX($O$7:$O$40)+COUNTIF($AA$7:AA37,"該当"),"") ->  | AA37: =IF(ISERROR(INDEX($B$7:$H$41,MATCH($Y37,$L$7:$L$41,0),MATCH(D$6,$B$6:$H$6,0)))=FALSE,"該当",IF(AA36="該当","end","")) ->  | AJ37: 31 | AK37: =IF(AA37="該当",MAX($Z$7:$Z$40)+COUNTIF($AL$7:AL37,"該当"),IF(AA37="end",MAX($Z$7:$Z$40)+COUNTIF($AL$7:AL37,"該当")+1,"")) ->  | AL37: =IF(ISERROR(INDEX($B$7:$H$41,MATCH($AJ37,$L$7:$L$41,0),MATCH(D$6,$B$6:$H$6,0)))=FALSE,"該当",IF(AL36="該当","end","")) ->  | AO37: =IF($AA37="該当",INDEX($B$7:$H$41,MATCH($Y37,$L$7:$L$41,0),MATCH(INDIRECT(AO$5&"$6"),$AB$6:$AH$6,0)),IF(AL37="end",SUM($AO$7:AO36),"")) -> 
A38: 36 | B38: 352900 | C38: 0 | D38: 0 | E38: AA | F38: NS-0259 | G38: 全国通運 | H38: 情報ｼｽﾃﾑ基本料金 | J38: =IF($I38="有",COUNTIF($I$7:I38,"有"),"") ->  | L38: =IF($K38="有",COUNTIF($K$7:K38,"有"),"") ->  | N38: 32 | O38: =IF(P38="該当",COUNTIF($P$7:P38,"該当"),"") ->  | P38: =IF(ISERROR(INDEX($B$7:$H$41,MATCH($N38,$J$7:$J$41,0),MATCH(C$6,$B$6:$H$6,0)))=FALSE,"該当",IF(P37="該当","end","")) ->  | Y38: 32 | Z38: =IF(AA38="該当",MAX($O$7:$O$40)+COUNTIF($AA$7:AA38,"該当"),"") ->  | AA38: =IF(ISERROR(INDEX($B$7:$H$41,MATCH($Y38,$L$7:$L$41,0),MATCH(D$6,$B$6:$H$6,0)))=FALSE,"該当",IF(AA37="該当","end","")) ->  | AJ38: 32 | AK38: =IF(AA38="該当",MAX($Z$7:$Z$40)+COUNTIF($AL$7:AL38,"該当"),IF(AA38="end",MAX($Z$7:$Z$40)+COUNTIF($AL$7:AL38,"該当")+1,"")) ->  | AL38: =IF(ISERROR(INDEX($B$7:$H$41,MATCH($AJ38,$L$7:$L$41,0),MATCH(D$6,$B$6:$H$6,0)))=FALSE,"該当",IF(AL37="該当","end","")) ->  | AO38: =IF($AA38="該当",INDEX($B$7:$H$41,MATCH($Y38,$L$7:$L$41,0),MATCH(INDIRECT(AO$5&"$6"),$AB$6:$AH$6,0)),IF(AL38="end",SUM($AO$7:AO37),"")) -> 
A39: 37 | B39: 352900 | C39: 0 | D39: 0 | E39: AA | F39: NS-0259 | G39: 全国通運 | H39: 通風コンテナ | J39: =IF($I39="有",COUNTIF($I$7:I39,"有"),"") ->  | L39: =IF($K39="有",COUNTIF($K$7:K39,"有"),"") ->  | N39: 33 | O39: =IF(P39="該当",COUNTIF($P$7:P39,"該当"),"") ->  | P39: =IF(ISERROR(INDEX($B$7:$H$41,MATCH($N39,$J$7:$J$41,0),MATCH(C$6,$B$6:$H$6,0)))=FALSE,"該当",IF(P38="該当","end","")) ->  | Y39: 33 | Z39: =IF(AA39="該当",MAX($O$7:$O$40)+COUNTIF($AA$7:AA39,"該当"),"") ->  | AA39: =IF(ISERROR(INDEX($B$7:$H$41,MATCH($Y39,$L$7:$L$41,0),MATCH(D$6,$B$6:$H$6,0)))=FALSE,"該当",IF(AA38="該当","end","")) ->  | AJ39: 33 | AK39: =IF(AA39="該当",MAX($Z$7:$Z$40)+COUNTIF($AL$7:AL39,"該当"),IF(AA39="end",MAX($Z$7:$Z$40)+COUNTIF($AL$7:AL39,"該当")+1,"")) ->  | AL39: =IF(ISERROR(INDEX($B$7:$H$41,MATCH($AJ39,$L$7:$L$41,0),MATCH(D$6,$B$6:$H$6,0)))=FALSE,"該当",IF(AL38="該当","end","")) ->  | AO39: =IF($AA39="該当",INDEX($B$7:$H$41,MATCH($Y39,$L$7:$L$41,0),MATCH(INDIRECT(AO$5&"$6"),$AB$6:$AH$6,0)),IF(AL39="end",SUM($AO$7:AO38),"")) -> 
A40: 38 | B40: 352900 | C40: 0 | D40: 34690 | E40: AA | F40: NS-0259 | G40: 運送保証協会 | H40: 保証料(JR分) | J40: =IF($I40="有",COUNTIF($I$7:I40,"有"),"") ->  | K40: 有 | L40: =IF($K40="有",COUNTIF($K$7:K40,"有"),"") -> 4 | N40: 34 | O40: =IF(P40="該当",COUNTIF($P$7:P40,"該当"),"") ->  | P40: =IF(ISERROR(INDEX($B$7:$H$41,MATCH($N40,$J$7:$J$41,0),MATCH(C$6,$B$6:$H$6,0)))=FALSE,"該当",IF(P39="該当","end","")) ->  | Y40: 34 | Z40: =IF(AA40="該当",MAX($O$7:$O$40)+COUNTIF($AA$7:AA40,"該当"),"") ->  | AA40: =IF(ISERROR(INDEX($B$7:$H$41,MATCH($Y40,$L$7:$L$41,0),MATCH(D$6,$B$6:$H$6,0)))=FALSE,"該当",IF(AA39="該当","end","")) ->  | AJ40: 34 | AK40: =IF(AA40="該当",MAX($Z$7:$Z$40)+COUNTIF($AL$7:AL40,"該当"),IF(AA40="end",MAX($Z$7:$Z$40)+COUNTIF($AL$7:AL40,"該当")+1,"")) ->  | AL40: =IF(ISERROR(INDEX($B$7:$H$41,MATCH($AJ40,$L$7:$L$41,0),MATCH(D$6,$B$6:$H$6,0)))=FALSE,"該当",IF(AL39="該当","end","")) ->  | AO40: =IF($AA40="該当",INDEX($B$7:$H$41,MATCH($Y40,$L$7:$L$41,0),MATCH(INDIRECT(AO$5&"$6"),$AB$6:$AH$6,0)),IF(AL40="end",SUM($AO$7:AO39),"")) -> 
A41: 39 | B41: 352900 | C41: 0 | D41: 40 | E41: AA | F41: NS-0259 | G41: 運送保証協会 | H41: 保証料(神奈川臨海分） | J41: =IF($I41="有",COUNTIF($I$7:I41,"有"),"") ->  | K41: 有 | L41: =IF($K41="有",COUNTIF($K$7:K41,"有"),"") -> 5
B42: 合計 | C42: =SUM(C7:C41) -> 36200 | D42: =SUM(D7:D41) -> 83630

Sheet バッチ変換用2
A1: ※シート保護（パス無） 訂正後は保護をかけること
A2: ※このシートがDENシートに反映。
B4: 対象 | C4: 伝票ヘッダ | D4: 勘定CD | E4: 上期 金額 | F4: ｘ | G4: 税CD | H4: 原価ｾﾝﾀ | I4: ｿｰﾄｷｰ | J4: 明細ﾃｷｽﾄ
A5: 1 | B5: =IF($A5<=MAX(バッチ変換用!$O$7:$O$40),"上",IF($A5<=MAX(バッチ変換用!$Z$7:$Z$40),"下確",IF($A5<=MAX(バッチ変換用!$AK$7:$AK$40),"下概",""))) -> 上 | C5: =IF(AND(B4="対象",B5="上"),バッチ変換用!$R$4,IF(AND(OR(B4="上",B4="対象"),B5="下確"),バッチ変換用!$AC$4,IF(AND(B4="下確",B5="下概"),バッチ変換用!$AN$4,IF(AND(B4="下概",B5=""),"eof","")))) -> 交計経費 6月上期振替 | D5: =IF($A5<=MAX(バッチ変換用!$O$7:$O$40),INDEX(バッチ変換用!$Q$7:$W$40,MATCH($A5,バッチ変換用!$O$7:$O$40,0),MATCH(バッチ変換用!Q$6,$D$4:$J$4,0)),IF($A5<=MAX(バッチ変換用!$Z$7:$Z$40),INDEX(バッチ変換用!$AB$7:$AH$40,MATCH($A5,バッチ変換用!$Z$7:$Z$40,0),MATCH(バッチ変換用!AB$6,$D$4:$J$4,0)),IF($A5<=MAX(バッチ変換用!$AK$7:$AK$40),INDEX(バッチ変換用!$AM$7:$AS$40,MATCH($A5,バッチ変換用!$AK$7:$AK$40,0),MATCH(バッチ変換用!AM$6,$D$4:$J$4,0)),""))) -> 352500 | E5: =IF($A5<=MAX(バッチ変換用!$O$7:$O$40),INDEX(バッチ変換用!$Q$7:$W$40,MATCH($A5,バッチ変換用!$O$7:$O$40,0),MATCH(バッチ変換用!R$6,$D$4:$J$4,0)),IF($A5<=MAX(バッチ変換用!$Z$7:$Z$40),INDEX(バッチ変換用!$AB$7:$AH$40,MATCH($A5,バッチ変換用!$Z$7:$Z$40,0),MATCH(バッチ変換用!AC$6,$D$4:$J$4,0)),IF($A5<=MAX(バッチ変換用!$AK$7:$AK$40),INDEX(バッチ変換用!$AM$7:$AS$40,MATCH($A5,バッチ変換用!$AK$7:$AK$40,0),MATCH(バッチ変換用!AN$6,$D$4:$J$4,0)),""))) -> 2200 | G5: =IF($A5<=MAX(バッチ変換用!$O$7:$O$40),INDEX(バッチ変換用!$Q$7:$W$40,MATCH($A5,バッチ変換用!$O$7:$O$40,0),MATCH(バッチ変換用!T$6,$D$4:$J$4,0)),IF($A5<=MAX(バッチ変換用!$Z$7:$Z$40),INDEX(バッチ変換用!$AB$7:$AH$40,MATCH($A5,バッチ変換用!$Z$7:$Z$40,0),MATCH(バッチ変換用!AE$6,$D$4:$J$4,0)),IF($A5<=MAX(バッチ変換用!$AK$7:$AK$40),INDEX(バッチ変換用!$AM$7:$AS$40,MATCH($A5,バッチ変換用!$AK$7:$AK$40,0),MATCH(バッチ変換用!AP$6,$D$4:$J$4,0))," "))) -> AA | H5: =IF($A5<=MAX(バッチ変換用!$O$7:$O$40),INDEX(バッチ変換用!$Q$7:$W$40,MATCH($A5,バッチ変換用!$O$7:$O$40,0),MATCH(バッチ変換用!U$6,$D$4:$J$4,0)),IF($A5<=MAX(バッチ変換用!$Z$7:$Z$40),INDEX(バッチ変換用!$AB$7:$AH$40,MATCH($A5,バッチ変換用!$Z$7:$Z$40,0),MATCH(バッチ変換用!AF$6,$D$4:$J$4,0)),IF($A5<=MAX(バッチ変換用!$AK$7:$AK$40),INDEX(バッチ変換用!$AM$7:$AS$40,MATCH($A5,バッチ変換用!$AK$7:$AK$40,0),MATCH(バッチ変換用!AQ$6,$D$4:$J$4,0)),""))) -> NS-0259 | I5: =IF($A5<=MAX(バッチ変換用!$O$7:$O$40),INDEX(バッチ変換用!$Q$7:$W$40,MATCH($A5,バッチ変換用!$O$7:$O$40,0),MATCH(バッチ変換用!V$6,$D$4:$J$4,0)),IF($A5<=MAX(バッチ変換用!$Z$7:$Z$40),INDEX(バッチ変換用!$AB$7:$AH$40,MATCH($A5,バッチ変換用!$Z$7:$Z$40,0),MATCH(バッチ変換用!AG$6,$D$4:$J$4,0)),IF($A5<=MAX(バッチ変換用!$AK$7:$AK$40),INDEX(バッチ変換用!$AM$7:$AS$40,MATCH($A5,バッチ変換用!$AK$7:$AK$40,0),MATCH(バッチ変換用!AR$6,$D$4:$J$4,0)),""))) -> 通運新聞社 | J5: =IF($A5<=MAX(バッチ変換用!$O$7:$O$40),INDEX(バッチ変換用!$Q$7:$W$40,MATCH($A5,バッチ変換用!$O$7:$O$40,0),MATCH(バッチ変換用!W$6,$D$4:$J$4,0)),IF($A5<=MAX(バッチ変換用!$Z$7:$Z$40),INDEX(バッチ変換用!$AB$7:$AH$40,MATCH($A5,バッチ変換用!$Z$7:$Z$40,0),MATCH(バッチ変換用!AH$6,$D$4:$J$4,0)),IF($A5<=MAX(バッチ変換用!$AK$7:$AK$40),INDEX(バッチ変換用!$AM$7:$AS$40,MATCH($A5,バッチ変換用!$AK$7:$AK$40,0),MATCH(バッチ変換用!AS$6,$D$4:$J$4,0)),""))) -> 購読料
A6: 2 | B6: =IF($A6<=MAX(バッチ変換用!$O$7:$O$40),"上",IF($A6<=MAX(バッチ変換用!$Z$7:$Z$40),"下確",IF($A6<=MAX(バッチ変換用!$AK$7:$AK$40),"下概",""))) -> 上 | C6: =IF(AND(B5="対象",B6="上"),バッチ変換用!$R$4,IF(AND(OR(B5="上",B5="対象"),B6="下確"),バッチ変換用!$AC$4,IF(AND(B5="下確",B6="下概"),バッチ変換用!$AN$4,IF(AND(B5="下概",B6=""),"eof","")))) ->  | D6: =IF($A6<=MAX(バッチ変換用!$O$7:$O$40),INDEX(バッチ変換用!$Q$7:$W$40,MATCH($A6,バッチ変換用!$O$7:$O$40,0),MATCH(バッチ変換用!Q$6,$D$4:$J$4,0)),IF($A6<=MAX(バッチ変換用!$Z$7:$Z$40),INDEX(バッチ変換用!$AB$7:$AH$40,MATCH($A6,バッチ変換用!$Z$7:$Z$40,0),MATCH(バッチ変換用!AB$6,$D$4:$J$4,0)),IF($A6<=MAX(バッチ変換用!$AK$7:$AK$40),INDEX(バッチ変換用!$AM$7:$AS$40,MATCH($A6,バッチ変換用!$AK$7:$AK$40,0),MATCH(バッチ変換用!AM$6,$D$4:$J$4,0)),""))) -> 352810 | E6: =IF($A6<=MAX(バッチ変換用!$O$7:$O$40),INDEX(バッチ変換用!$Q$7:$W$40,MATCH($A6,バッチ変換用!$O$7:$O$40,0),MATCH(バッチ変換用!R$6,$D$4:$J$4,0)),IF($A6<=MAX(バッチ変換用!$Z$7:$Z$40),INDEX(バッチ変換用!$AB$7:$AH$40,MATCH($A6,バッチ変換用!$Z$7:$Z$40,0),MATCH(バッチ変換用!AC$6,$D$4:$J$4,0)),IF($A6<=MAX(バッチ変換用!$AK$7:$AK$40),INDEX(バッチ変換用!$AM$7:$AS$40,MATCH($A6,バッチ変換用!$AK$7:$AK$40,0),MATCH(バッチ変換用!AN$6,$D$4:$J$4,0)),""))) -> 4500 | G6: =IF($A6<=MAX(バッチ変換用!$O$7:$O$40),INDEX(バッチ変換用!$Q$7:$W$40,MATCH($A6,バッチ変換用!$O$7:$O$40,0),MATCH(バッチ変換用!T$6,$D$4:$J$4,0)),IF($A6<=MAX(バッチ変換用!$Z$7:$Z$40),INDEX(バッチ変換用!$AB$7:$AH$40,MATCH($A6,バッチ変換用!$Z$7:$Z$40,0),MATCH(バッチ変換用!AE$6,$D$4:$J$4,0)),IF($A6<=MAX(バッチ変換用!$AK$7:$AK$40),INDEX(バッチ変換用!$AM$7:$AS$40,MATCH($A6,バッチ変換用!$AK$7:$AK$40,0),MATCH(バッチ変換用!AP$6,$D$4:$J$4,0))," "))) ->  | H6: =IF($A6<=MAX(バッチ変換用!$O$7:$O$40),INDEX(バッチ変換用!$Q$7:$W$40,MATCH($A6,バッチ変換用!$O$7:$O$40,0),MATCH(バッチ変換用!U$6,$D$4:$J$4,0)),IF($A6<=MAX(バッチ変換用!$Z$7:$Z$40),INDEX(バッチ変換用!$AB$7:$AH$40,MATCH($A6,バッチ変換用!$Z$7:$Z$40,0),MATCH(バッチ変換用!AF$6,$D$4:$J$4,0)),IF($A6<=MAX(バッチ変換用!$AK$7:$AK$40),INDEX(バッチ変換用!$AM$7:$AS$40,MATCH($A6,バッチ変換用!$AK$7:$AK$40,0),MATCH(バッチ変換用!AQ$6,$D$4:$J$4,0)),""))) -> NS-0259 | I6: =IF($A6<=MAX(バッチ変換用!$O$7:$O$40),INDEX(バッチ変換用!$Q$7:$W$40,MATCH($A6,バッチ変換用!$O$7:$O$40,0),MATCH(バッチ変換用!V$6,$D$4:$J$4,0)),IF($A6<=MAX(バッチ変換用!$Z$7:$Z$40),INDEX(バッチ変換用!$AB$7:$AH$40,MATCH($A6,バッチ変換用!$Z$7:$Z$40,0),MATCH(バッチ変換用!AG$6,$D$4:$J$4,0)),IF($A6<=MAX(バッチ変換用!$AK$7:$AK$40),INDEX(バッチ変換用!$AM$7:$AS$40,MATCH($A6,バッチ変換用!$AK$7:$AK$40,0),MATCH(バッチ変換用!AR$6,$D$4:$J$4,0)),""))) -> 札幌通運 | J6: =IF($A6<=MAX(バッチ変換用!$O$7:$O$40),INDEX(バッチ変換用!$Q$7:$W$40,MATCH($A6,バッチ変換用!$O$7:$O$40,0),MATCH(バッチ変換用!W$6,$D$4:$J$4,0)),IF($A6<=MAX(バッチ変換用!$Z$7:$Z$40),INDEX(バッチ変換用!$AB$7:$AH$40,MATCH($A6,バッチ変換用!$Z$7:$Z$40,0),MATCH(バッチ変換用!AH$6,$D$4:$J$4,0)),IF($A6<=MAX(バッチ変換用!$AK$7:$AK$40),INDEX(バッチ変換用!$AM$7:$AS$40,MATCH($A6,バッチ変換用!$AK$7:$AK$40,0),MATCH(バッチ変換用!AS$6,$D$4:$J$4,0)),""))) -> 北海道会費
A7: 3 | B7: =IF($A7<=MAX(バッチ変換用!$O$7:$O$40),"上",IF($A7<=MAX(バッチ変換用!$Z$7:$Z$40),"下確",IF($A7<=MAX(バッチ変換用!$AK$7:$AK$40),"下概",""))) -> 上 | C7: =IF(AND(B6="対象",B7="上"),バッチ変換用!$R$4,IF(AND(OR(B6="上",B6="対象"),B7="下確"),バッチ変換用!$AC$4,IF(AND(B6="下確",B7="下概"),バッチ変換用!$AN$4,IF(AND(B6="下概",B7=""),"eof","")))) ->  | D7: =IF($A7<=MAX(バッチ変換用!$O$7:$O$40),INDEX(バッチ変換用!$Q$7:$W$40,MATCH($A7,バッチ変換用!$O$7:$O$40,0),MATCH(バッチ変換用!Q$6,$D$4:$J$4,0)),IF($A7<=MAX(バッチ変換用!$Z$7:$Z$40),INDEX(バッチ変換用!$AB$7:$AH$40,MATCH($A7,バッチ変換用!$Z$7:$Z$40,0),MATCH(バッチ変換用!AB$6,$D$4:$J$4,0)),IF($A7<=MAX(バッチ変換用!$AK$7:$AK$40),INDEX(バッチ変換用!$AM$7:$AS$40,MATCH($A7,バッチ変換用!$AK$7:$AK$40,0),MATCH(バッチ変換用!AM$6,$D$4:$J$4,0)),""))) -> 352810 | E7: =IF($A7<=MAX(バッチ変換用!$O$7:$O$40),INDEX(バッチ変換用!$Q$7:$W$40,MATCH($A7,バッチ変換用!$O$7:$O$40,0),MATCH(バッチ変換用!R$6,$D$4:$J$4,0)),IF($A7<=MAX(バッチ変換用!$Z$7:$Z$40),INDEX(バッチ変換用!$AB$7:$AH$40,MATCH($A7,バッチ変換用!$Z$7:$Z$40,0),MATCH(バッチ変換用!AC$6,$D$4:$J$4,0)),IF($A7<=MAX(バッチ変換用!$AK$7:$AK$40),INDEX(バッチ変換用!$AM$7:$AS$40,MATCH($A7,バッチ変換用!$AK$7:$AK$40,0),MATCH(バッチ変換用!AN$6,$D$4:$J$4,0)),""))) -> 4500 | G7: =IF($A7<=MAX(バッチ変換用!$O$7:$O$40),INDEX(バッチ変換用!$Q$7:$W$40,MATCH($A7,バッチ変換用!$O$7:$O$40,0),MATCH(バッチ変換用!T$6,$D$4:$J$4,0)),IF($A7<=MAX(バッチ変換用!$Z$7:$Z$40),INDEX(バッチ変換用!$AB$7:$AH$40,MATCH($A7,バッチ変換用!$Z$7:$Z$40,0),MATCH(バッチ変換用!AE$6,$D$4:$J$4,0)),IF($A7<=MAX(バッチ変換用!$AK$7:$AK$40),INDEX(バッチ変換用!$AM$7:$AS$40,MATCH($A7,バッチ変換用!$AK$7:$AK$40,0),MATCH(バッチ変換用!AP$6,$D$4:$J$4,0))," "))) ->  | H7: =IF($A7<=MAX(バッチ変換用!$O$7:$O$40),INDEX(バッチ変換用!$Q$7:$W$40,MATCH($A7,バッチ変換用!$O$7:$O$40,0),MATCH(バッチ変換用!U$6,$D$4:$J$4,0)),IF($A7<=MAX(バッチ変換用!$Z$7:$Z$40),INDEX(バッチ変換用!$AB$7:$AH$40,MATCH($A7,バッチ変換用!$Z$7:$Z$40,0),MATCH(バッチ変換用!AF$6,$D$4:$J$4,0)),IF($A7<=MAX(バッチ変換用!$AK$7:$AK$40),INDEX(バッチ変換用!$AM$7:$AS$40,MATCH($A7,バッチ変換用!$AK$7:$AK$40,0),MATCH(バッチ変換用!AQ$6,$D$4:$J$4,0)),""))) -> NS-0259 | I7: =IF($A7<=MAX(バッチ変換用!$O$7:$O$40),INDEX(バッチ変換用!$Q$7:$W$40,MATCH($A7,バッチ変換用!$O$7:$O$40,0),MATCH(バッチ変換用!V$6,$D$4:$J$4,0)),IF($A7<=MAX(バッチ変換用!$Z$7:$Z$40),INDEX(バッチ変換用!$AB$7:$AH$40,MATCH($A7,バッチ変換用!$Z$7:$Z$40,0),MATCH(バッチ変換用!AG$6,$D$4:$J$4,0)),IF($A7<=MAX(バッチ変換用!$AK$7:$AK$40),INDEX(バッチ変換用!$AM$7:$AS$40,MATCH($A7,バッチ変換用!$AK$7:$AK$40,0),MATCH(バッチ変換用!AR$6,$D$4:$J$4,0)),""))) -> 仙台運送 | J7: =IF($A7<=MAX(バッチ変換用!$O$7:$O$40),INDEX(バッチ変換用!$Q$7:$W$40,MATCH($A7,バッチ変換用!$O$7:$O$40,0),MATCH(バッチ変換用!W$6,$D$4:$J$4,0)),IF($A7<=MAX(バッチ変換用!$Z$7:$Z$40),INDEX(バッチ変換用!$AB$7:$AH$40,MATCH($A7,バッチ変換用!$Z$7:$Z$40,0),MATCH(バッチ変換用!AH$6,$D$4:$J$4,0)),IF($A7<=MAX(バッチ変換用!$AK$7:$AK$40),INDEX(バッチ変換用!$AM$7:$AS$40,MATCH($A7,バッチ変換用!$AK$7:$AK$40,0),MATCH(バッチ変換用!AS$6,$D$4:$J$4,0)),""))) -> みちのく会費
A8: 4 | B8: =IF($A8<=MAX(バッチ変換用!$O$7:$O$40),"上",IF($A8<=MAX(バッチ変換用!$Z$7:$Z$40),"下確",IF($A8<=MAX(バッチ変換用!$AK$7:$AK$40),"下概",""))) -> 上 | C8: =IF(AND(B7="対象",B8="上"),バッチ変換用!$R$4,IF(AND(OR(B7="上",B7="対象"),B8="下確"),バッチ変換用!$AC$4,IF(AND(B7="下確",B8="下概"),バッチ変換用!$AN$4,IF(AND(B7="下概",B8=""),"eof","")))) ->  | D8: =IF($A8<=MAX(バッチ変換用!$O$7:$O$40),INDEX(バッチ変換用!$Q$7:$W$40,MATCH($A8,バッチ変換用!$O$7:$O$40,0),MATCH(バッチ変換用!Q$6,$D$4:$J$4,0)),IF($A8<=MAX(バッチ変換用!$Z$7:$Z$40),INDEX(バッチ変換用!$AB$7:$AH$40,MATCH($A8,バッチ変換用!$Z$7:$Z$40,0),MATCH(バッチ変換用!AB$6,$D$4:$J$4,0)),IF($A8<=MAX(バッチ変換用!$AK$7:$AK$40),INDEX(バッチ変換用!$AM$7:$AS$40,MATCH($A8,バッチ変換用!$AK$7:$AK$40,0),MATCH(バッチ変換用!AM$6,$D$4:$J$4,0)),""))) -> 352810 | E8: =IF($A8<=MAX(バッチ変換用!$O$7:$O$40),INDEX(バッチ変換用!$Q$7:$W$40,MATCH($A8,バッチ変換用!$O$7:$O$40,0),MATCH(バッチ変換用!R$6,$D$4:$J$4,0)),IF($A8<=MAX(バッチ変換用!$Z$7:$Z$40),INDEX(バッチ変換用!$AB$7:$AH$40,MATCH($A8,バッチ変換用!$Z$7:$Z$40,0),MATCH(バッチ変換用!AC$6,$D$4:$J$4,0)),IF($A8<=MAX(バッチ変換用!$AK$7:$AK$40),INDEX(バッチ変換用!$AM$7:$AS$40,MATCH($A8,バッチ変換用!$AK$7:$AK$40,0),MATCH(バッチ変換用!AN$6,$D$4:$J$4,0)),""))) -> 25000 | G8: =IF($A8<=MAX(バッチ変換用!$O$7:$O$40),INDEX(バッチ変換用!$Q$7:$W$40,MATCH($A8,バッチ変換用!$O$7:$O$40,0),MATCH(バッチ変換用!T$6,$D$4:$J$4,0)),IF($A8<=MAX(バッチ変換用!$Z$7:$Z$40),INDEX(バッチ変換用!$AB$7:$AH$40,MATCH($A8,バッチ変換用!$Z$7:$Z$40,0),MATCH(バッチ変換用!AE$6,$D$4:$J$4,0)),IF($A8<=MAX(バッチ変換用!$AK$7:$AK$40),INDEX(バッチ変換用!$AM$7:$AS$40,MATCH($A8,バッチ変換用!$AK$7:$AK$40,0),MATCH(バッチ変換用!AP$6,$D$4:$J$4,0))," "))) ->  | H8: =IF($A8<=MAX(バッチ変換用!$O$7:$O$40),INDEX(バッチ変換用!$Q$7:$W$40,MATCH($A8,バッチ変換用!$O$7:$O$40,0),MATCH(バッチ変換用!U$6,$D$4:$J$4,0)),IF($A8<=MAX(バッチ変換用!$Z$7:$Z$40),INDEX(バッチ変換用!$AB$7:$AH$40,MATCH($A8,バッチ変換用!$Z$7:$Z$40,0),MATCH(バッチ変換用!AF$6,$D$4:$J$4,0)),IF($A8<=MAX(バッチ変換用!$AK$7:$AK$40),INDEX(バッチ変換用!$AM$7:$AS$40,MATCH($A8,バッチ変換用!$AK$7:$AK$40,0),MATCH(バッチ変換用!AQ$6,$D$4:$J$4,0)),""))) -> NS-0259 | I8: =IF($A8<=MAX(バッチ変換用!$O$7:$O$40),INDEX(バッチ変換用!$Q$7:$W$40,MATCH($A8,バッチ変換用!$O$7:$O$40,0),MATCH(バッチ変換用!V$6,$D$4:$J$4,0)),IF($A8<=MAX(バッチ変換用!$Z$7:$Z$40),INDEX(バッチ変換用!$AB$7:$AH$40,MATCH($A8,バッチ変換用!$Z$7:$Z$40,0),MATCH(バッチ変換用!AG$6,$D$4:$J$4,0)),IF($A8<=MAX(バッチ変換用!$AK$7:$AK$40),INDEX(バッチ変換用!$AM$7:$AS$40,MATCH($A8,バッチ変換用!$AK$7:$AK$40,0),MATCH(バッチ変換用!AR$6,$D$4:$J$4,0)),""))) -> 川崎運送 | J8: =IF($A8<=MAX(バッチ変換用!$O$7:$O$40),INDEX(バッチ変換用!$Q$7:$W$40,MATCH($A8,バッチ変換用!$O$7:$O$40,0),MATCH(バッチ変換用!W$6,$D$4:$J$4,0)),IF($A8<=MAX(バッチ変換用!$Z$7:$Z$40),INDEX(バッチ変換用!$AB$7:$AH$40,MATCH($A8,バッチ変換用!$Z$7:$Z$40,0),MATCH(バッチ変換用!AH$6,$D$4:$J$4,0)),IF($A8<=MAX(バッチ変換用!$AK$7:$AK$40),INDEX(バッチ変換用!$AM$7:$AS$40,MATCH($A8,バッチ変換用!$AK$7:$AK$40,0),MATCH(バッチ変換用!AS$6,$D$4:$J$4,0)),""))) -> 会費
A9: 5 | B9: =IF($A9<=MAX(バッチ変換用!$O$7:$O$40),"上",IF($A9<=MAX(バッチ変換用!$Z$7:$Z$40),"下確",IF($A9<=MAX(バッチ変換用!$AK$7:$AK$40),"下概",""))) -> 下確 | C9: =IF(AND(B8="対象",B9="上"),バッチ変換用!$R$4,IF(AND(OR(B8="上",B8="対象"),B9="下確"),バッチ変換用!$AC$4,IF(AND(B8="下確",B9="下概"),バッチ変換用!$AN$4,IF(AND(B8="下概",B9=""),"eof","")))) -> 交計経費 5月下期確定 | D9: =IF($A9<=MAX(バッチ変換用!$O$7:$O$40),INDEX(バッチ変換用!$Q$7:$W$40,MATCH($A9,バッチ変換用!$O$7:$O$40,0),MATCH(バッチ変換用!Q$6,$D$4:$J$4,0)),IF($A9<=MAX(バッチ変換用!$Z$7:$Z$40),INDEX(バッチ変換用!$AB$7:$AH$40,MATCH($A9,バッチ変換用!$Z$7:$Z$40,0),MATCH(バッチ変換用!AB$6,$D$4:$J$4,0)),IF($A9<=MAX(バッチ変換用!$AK$7:$AK$40),INDEX(バッチ変換用!$AM$7:$AS$40,MATCH($A9,バッチ変換用!$AK$7:$AK$40,0),MATCH(バッチ変換用!AM$6,$D$4:$J$4,0)),""))) -> 352810 | E9: =IF($A9<=MAX(バッチ変換用!$O$7:$O$40),INDEX(バッチ変換用!$Q$7:$W$40,MATCH($A9,バッチ変換用!$O$7:$O$40,0),MATCH(バッチ変換用!R$6,$D$4:$J$4,0)),IF($A9<=MAX(バッチ変換用!$Z$7:$Z$40),INDEX(バッチ変換用!$AB$7:$AH$40,MATCH($A9,バッチ変換用!$Z$7:$Z$40,0),MATCH(バッチ変換用!AC$6,$D$4:$J$4,0)),IF($A9<=MAX(バッチ変換用!$AK$7:$AK$40),INDEX(バッチ変換用!$AM$7:$AS$40,MATCH($A9,バッチ変換用!$AK$7:$AK$40,0),MATCH(バッチ変換用!AN$6,$D$4:$J$4,0)),""))) -> 39900 | G9: =IF($A9<=MAX(バッチ変換用!$O$7:$O$40),INDEX(バッチ変換用!$Q$7:$W$40,MATCH($A9,バッチ変換用!$O$7:$O$40,0),MATCH(バッチ変換用!T$6,$D$4:$J$4,0)),IF($A9<=MAX(バッチ変換用!$Z$7:$Z$40),INDEX(バッチ変換用!$AB$7:$AH$40,MATCH($A9,バッチ変換用!$Z$7:$Z$40,0),MATCH(バッチ変換用!AE$6,$D$4:$J$4,0)),IF($A9<=MAX(バッチ変換用!$AK$7:$AK$40),INDEX(バッチ変換用!$AM$7:$AS$40,MATCH($A9,バッチ変換用!$AK$7:$AK$40,0),MATCH(バッチ変換用!AP$6,$D$4:$J$4,0))," "))) ->  | H9: =IF($A9<=MAX(バッチ変換用!$O$7:$O$40),INDEX(バッチ変換用!$Q$7:$W$40,MATCH($A9,バッチ変換用!$O$7:$O$40,0),MATCH(バッチ変換用!U$6,$D$4:$J$4,0)),IF($A9<=MAX(バッチ変換用!$Z$7:$Z$40),INDEX(バッチ変換用!$AB$7:$AH$40,MATCH($A9,バッチ変換用!$Z$7:$Z$40,0),MATCH(バッチ変換用!AF$6,$D$4:$J$4,0)),IF($A9<=MAX(バッチ変換用!$AK$7:$AK$40),INDEX(バッチ変換用!$AM$7:$AS$40,MATCH($A9,バッチ変換用!$AK$7:$AK$40,0),MATCH(バッチ変換用!AQ$6,$D$4:$J$4,0)),""))) -> NS-0259 | I9: =IF($A9<=MAX(バッチ変換用!$O$7:$O$40),INDEX(バッチ変換用!$Q$7:$W$40,MATCH($A9,バッチ変換用!$O$7:$O$40,0),MATCH(バッチ変換用!V$6,$D$4:$J$4,0)),IF($A9<=MAX(バッチ変換用!$Z$7:$Z$40),INDEX(バッチ変換用!$AB$7:$AH$40,MATCH($A9,バッチ変換用!$Z$7:$Z$40,0),MATCH(バッチ変換用!AG$6,$D$4:$J$4,0)),IF($A9<=MAX(バッチ変換用!$AK$7:$AK$40),INDEX(バッチ変換用!$AM$7:$AS$40,MATCH($A9,バッチ変換用!$AK$7:$AK$40,0),MATCH(バッチ変換用!AR$6,$D$4:$J$4,0)),""))) -> 関東通運業連合会 | J9: =IF($A9<=MAX(バッチ変換用!$O$7:$O$40),INDEX(バッチ変換用!$Q$7:$W$40,MATCH($A9,バッチ変換用!$O$7:$O$40,0),MATCH(バッチ変換用!W$6,$D$4:$J$4,0)),IF($A9<=MAX(バッチ変換用!$Z$7:$Z$40),INDEX(バッチ変換用!$AB$7:$AH$40,MATCH($A9,バッチ変換用!$Z$7:$Z$40,0),MATCH(バッチ変換用!AH$6,$D$4:$J$4,0)),IF($A9<=MAX(バッチ変換用!$AK$7:$AK$40),INDEX(バッチ変換用!$AM$7:$AS$40,MATCH($A9,バッチ変換用!$AK$7:$AK$40,0),MATCH(バッチ変換用!AS$6,$D$4:$J$4,0)),""))) -> 会費
A10: 6 | B10: =IF($A10<=MAX(バッチ変換用!$O$7:$O$40),"上",IF($A10<=MAX(バッチ変換用!$Z$7:$Z$40),"下確",IF($A10<=MAX(バッチ変換用!$AK$7:$AK$40),"下概",""))) -> 下確 | C10: =IF(AND(B9="対象",B10="上"),バッチ変換用!$R$4,IF(AND(OR(B9="上",B9="対象"),B10="下確"),バッチ変換用!$AC$4,IF(AND(B9="下確",B10="下概"),バッチ変換用!$AN$4,IF(AND(B9="下概",B10=""),"eof","")))) ->  | D10: =IF($A10<=MAX(バッチ変換用!$O$7:$O$40),INDEX(バッチ変換用!$Q$7:$W$40,MATCH($A10,バッチ変換用!$O$7:$O$40,0),MATCH(バッチ変換用!Q$6,$D$4:$J$4,0)),IF($A10<=MAX(バッチ変換用!$Z$7:$Z$40),INDEX(バッチ変換用!$AB$7:$AH$40,MATCH($A10,バッチ変換用!$Z$7:$Z$40,0),MATCH(バッチ変換用!AB$6,$D$4:$J$4,0)),IF($A10<=MAX(バッチ変換用!$AK$7:$AK$40),INDEX(バッチ変換用!$AM$7:$AS$40,MATCH($A10,バッチ変換用!$AK$7:$AK$40,0),MATCH(バッチ変換用!AM$6,$D$4:$J$4,0)),""))) -> 352810 | E10: =IF($A10<=MAX(バッチ変換用!$O$7:$O$40),INDEX(バッチ変換用!$Q$7:$W$40,MATCH($A10,バッチ変換用!$O$7:$O$40,0),MATCH(バッチ変換用!R$6,$D$4:$J$4,0)),IF($A10<=MAX(バッチ変換用!$Z$7:$Z$40),INDEX(バッチ変換用!$AB$7:$AH$40,MATCH($A10,バッチ変換用!$Z$7:$Z$40,0),MATCH(バッチ変換用!AC$6,$D$4:$J$4,0)),IF($A10<=MAX(バッチ変換用!$AK$7:$AK$40),INDEX(バッチ変換用!$AM$7:$AS$40,MATCH($A10,バッチ変換用!$AK$7:$AK$40,0),MATCH(バッチ変換用!AN$6,$D$4:$J$4,0)),""))) -> 4500 | G10: =IF($A10<=MAX(バッチ変換用!$O$7:$O$40),INDEX(バッチ変換用!$Q$7:$W$40,MATCH($A10,バッチ変換用!$O$7:$O$40,0),MATCH(バッチ変換用!T$6,$D$4:$J$4,0)),IF($A10<=MAX(バッチ変換用!$Z$7:$Z$40),INDEX(バッチ変換用!$AB$7:$AH$40,MATCH($A10,バッチ変換用!$Z$7:$Z$40,0),MATCH(バッチ変換用!AE$6,$D$4:$J$4,0)),IF($A10<=MAX(バッチ変換用!$AK$7:$AK$40),INDEX(バッチ変換用!$AM$7:$AS$40,MATCH($A10,バッチ変換用!$AK$7:$AK$40,0),MATCH(バッチ変換用!AP$6,$D$4:$J$4,0))," "))) ->  | H10: =IF($A10<=MAX(バッチ変換用!$O$7:$O$40),INDEX(バッチ変換用!$Q$7:$W$40,MATCH($A10,バッチ変換用!$O$7:$O$40,0),MATCH(バッチ変換用!U$6,$D$4:$J$4,0)),IF($A10<=MAX(バッチ変換用!$Z$7:$Z$40),INDEX(バッチ変換用!$AB$7:$AH$40,MATCH($A10,バッチ変換用!$Z$7:$Z$40,0),MATCH(バッチ変換用!AF$6,$D$4:$J$4,0)),IF($A10<=MAX(バッチ変換用!$AK$7:$AK$40),INDEX(バッチ変換用!$AM$7:$AS$40,MATCH($A10,バッチ変換用!$AK$7:$AK$40,0),MATCH(バッチ変換用!AQ$6,$D$4:$J$4,0)),""))) -> NS-0259 | I10: =IF($A10<=MAX(バッチ変換用!$O$7:$O$40),INDEX(バッチ変換用!$Q$7:$W$40,MATCH($A10,バッチ変換用!$O$7:$O$40,0),MATCH(バッチ変換用!V$6,$D$4:$J$4,0)),IF($A10<=MAX(バッチ変換用!$Z$7:$Z$40),INDEX(バッチ変換用!$AB$7:$AH$40,MATCH($A10,バッチ変換用!$Z$7:$Z$40,0),MATCH(バッチ変換用!AG$6,$D$4:$J$4,0)),IF($A10<=MAX(バッチ変換用!$AK$7:$AK$40),INDEX(バッチ変換用!$AM$7:$AS$40,MATCH($A10,バッチ変換用!$AK$7:$AK$40,0),MATCH(バッチ変換用!AR$6,$D$4:$J$4,0)),""))) -> 博多港運 | J10: =IF($A10<=MAX(バッチ変換用!$O$7:$O$40),INDEX(バッチ変換用!$Q$7:$W$40,MATCH($A10,バッチ変換用!$O$7:$O$40,0),MATCH(バッチ変換用!W$6,$D$4:$J$4,0)),IF($A10<=MAX(バッチ変換用!$Z$7:$Z$40),INDEX(バッチ変換用!$AB$7:$AH$40,MATCH($A10,バッチ変換用!$Z$7:$Z$40,0),MATCH(バッチ変換用!AH$6,$D$4:$J$4,0)),IF($A10<=MAX(バッチ変換用!$AK$7:$AK$40),INDEX(バッチ変換用!$AM$7:$AS$40,MATCH($A10,バッチ変換用!$AK$7:$AK$40,0),MATCH(バッチ変換用!AS$6,$D$4:$J$4,0)),""))) -> 九州会会費
A11: 7 | B11: =IF($A11<=MAX(バッチ変換用!$O$7:$O$40),"上",IF($A11<=MAX(バッチ変換用!$Z$7:$Z$40),"下確",IF($A11<=MAX(バッチ変換用!$AK$7:$AK$40),"下概",""))) -> 下確 | C11: =IF(AND(B10="対象",B11="上"),バッチ変換用!$R$4,IF(AND(OR(B10="上",B10="対象"),B11="下確"),バッチ変換用!$AC$4,IF(AND(B10="下確",B11="下概"),バッチ変換用!$AN$4,IF(AND(B10="下概",B11=""),"eof","")))) ->  | D11: =IF($A11<=MAX(バッチ変換用!$O$7:$O$40),INDEX(バッチ変換用!$Q$7:$W$40,MATCH($A11,バッチ変換用!$O$7:$O$40,0),MATCH(バッチ変換用!Q$6,$D$4:$J$4,0)),IF($A11<=MAX(バッチ変換用!$Z$7:$Z$40),INDEX(バッチ変換用!$AB$7:$AH$40,MATCH($A11,バッチ変換用!$Z$7:$Z$40,0),MATCH(バッチ変換用!AB$6,$D$4:$J$4,0)),IF($A11<=MAX(バッチ変換用!$AK$7:$AK$40),INDEX(バッチ変換用!$AM$7:$AS$40,MATCH($A11,バッチ変換用!$AK$7:$AK$40,0),MATCH(バッチ変換用!AM$6,$D$4:$J$4,0)),""))) -> 352810 | E11: =IF($A11<=MAX(バッチ変換用!$O$7:$O$40),INDEX(バッチ変換用!$Q$7:$W$40,MATCH($A11,バッチ変換用!$O$7:$O$40,0),MATCH(バッチ変換用!R$6,$D$4:$J$4,0)),IF($A11<=MAX(バッチ変換用!$Z$7:$Z$40),INDEX(バッチ変換用!$AB$7:$AH$40,MATCH($A11,バッチ変換用!$Z$7:$Z$40,0),MATCH(バッチ変換用!AC$6,$D$4:$J$4,0)),IF($A11<=MAX(バッチ変換用!$AK$7:$AK$40),INDEX(バッチ変換用!$AM$7:$AS$40,MATCH($A11,バッチ変換用!$AK$7:$AK$40,0),MATCH(バッチ変換用!AN$6,$D$4:$J$4,0)),""))) -> 4500 | G11: =IF($A11<=MAX(バッチ変換用!$O$7:$O$40),INDEX(バッチ変換用!$Q$7:$W$40,MATCH($A11,バッチ変換用!$O$7:$O$40,0),MATCH(バッチ変換用!T$6,$D$4:$J$4,0)),IF($A11<=MAX(バッチ変換用!$Z$7:$Z$40),INDEX(バッチ変換用!$AB$7:$AH$40,MATCH($A11,バッチ変換用!$Z$7:$Z$40,0),MATCH(バッチ変換用!AE$6,$D$4:$J$4,0)),IF($A11<=MAX(バッチ変換用!$AK$7:$AK$40),INDEX(バッチ変換用!$AM$7:$AS$40,MATCH($A11,バッチ変換用!$AK$7:$AK$40,0),MATCH(バッチ変換用!AP$6,$D$4:$J$4,0))," "))) ->  | H11: =IF($A11<=MAX(バッチ変換用!$O$7:$O$40),INDEX(バッチ変換用!$Q$7:$W$40,MATCH($A11,バッチ変換用!$O$7:$O$40,0),MATCH(バッチ変換用!U$6,$D$4:$J$4,0)),IF($A11<=MAX(バッチ変換用!$Z$7:$Z$40),INDEX(バッチ変換用!$AB$7:$AH$40,MATCH($A11,バッチ変換用!$Z$7:$Z$40,0),MATCH(バッチ変換用!AF$6,$D$4:$J$4,0)),IF($A11<=MAX(バッチ変換用!$AK$7:$AK$40),INDEX(バッチ変換用!$AM$7:$AS$40,MATCH($A11,バッチ変換用!$AK$7:$AK$40,0),MATCH(バッチ変換用!AQ$6,$D$4:$J$4,0)),""))) -> NS-0259 | I11: =IF($A11<=MAX(バッチ変換用!$O$7:$O$40),INDEX(バッチ変換用!$Q$7:$W$40,MATCH($A11,バッチ変換用!$O$7:$O$40,0),MATCH(バッチ変換用!V$6,$D$4:$J$4,0)),IF($A11<=MAX(バッチ変換用!$Z$7:$Z$40),INDEX(バッチ変換用!$AB$7:$AH$40,MATCH($A11,バッチ変換用!$Z$7:$Z$40,0),MATCH(バッチ変換用!AG$6,$D$4:$J$4,0)),IF($A11<=MAX(バッチ変換用!$AK$7:$AK$40),INDEX(バッチ変換用!$AM$7:$AS$40,MATCH($A11,バッチ変換用!$AK$7:$AK$40,0),MATCH(バッチ変換用!AR$6,$D$4:$J$4,0)),""))) -> 札幌通運 | J11: =IF($A11<=MAX(バッチ変換用!$O$7:$O$40),INDEX(バッチ変換用!$Q$7:$W$40,MATCH($A11,バッチ変換用!$O$7:$O$40,0),MATCH(バッチ変換用!W$6,$D$4:$J$4,0)),IF($A11<=MAX(バッチ変換用!$Z$7:$Z$40),INDEX(バッチ変換用!$AB$7:$AH$40,MATCH($A11,バッチ変換用!$Z$7:$Z$40,0),MATCH(バッチ変換用!AH$6,$D$4:$J$4,0)),IF($A11<=MAX(バッチ変換用!$AK$7:$AK$40),INDEX(バッチ変換用!$AM$7:$AS$40,MATCH($A11,バッチ変換用!$AK$7:$AK$40,0),MATCH(バッチ変換用!AS$6,$D$4:$J$4,0)),""))) -> 北海道会費
A12: 8 | B12: =IF($A12<=MAX(バッチ変換用!$O$7:$O$40),"上",IF($A12<=MAX(バッチ変換用!$Z$7:$Z$40),"下確",IF($A12<=MAX(バッチ変換用!$AK$7:$AK$40),"下概",""))) -> 下確 | C12: =IF(AND(B11="対象",B12="上"),バッチ変換用!$R$4,IF(AND(OR(B11="上",B11="対象"),B12="下確"),バッチ変換用!$AC$4,IF(AND(B11="下確",B12="下概"),バッチ変換用!$AN$4,IF(AND(B11="下概",B12=""),"eof","")))) ->  | D12: =IF($A12<=MAX(バッチ変換用!$O$7:$O$40),INDEX(バッチ変換用!$Q$7:$W$40,MATCH($A12,バッチ変換用!$O$7:$O$40,0),MATCH(バッチ変換用!Q$6,$D$4:$J$4,0)),IF($A12<=MAX(バッチ変換用!$Z$7:$Z$40),INDEX(バッチ変換用!$AB$7:$AH$40,MATCH($A12,バッチ変換用!$Z$7:$Z$40,0),MATCH(バッチ変換用!AB$6,$D$4:$J$4,0)),IF($A12<=MAX(バッチ変換用!$AK$7:$AK$40),INDEX(バッチ変換用!$AM$7:$AS$40,MATCH($A12,バッチ変換用!$AK$7:$AK$40,0),MATCH(バッチ変換用!AM$6,$D$4:$J$4,0)),""))) -> 352900 | E12: =IF($A12<=MAX(バッチ変換用!$O$7:$O$40),INDEX(バッチ変換用!$Q$7:$W$40,MATCH($A12,バッチ変換用!$O$7:$O$40,0),MATCH(バッチ変換用!R$6,$D$4:$J$4,0)),IF($A12<=MAX(バッチ変換用!$Z$7:$Z$40),INDEX(バッチ変換用!$AB$7:$AH$40,MATCH($A12,バッチ変換用!$Z$7:$Z$40,0),MATCH(バッチ変換用!AC$6,$D$4:$J$4,0)),IF($A12<=MAX(バッチ変換用!$AK$7:$AK$40),INDEX(バッチ変換用!$AM$7:$AS$40,MATCH($A12,バッチ変換用!$AK$7:$AK$40,0),MATCH(バッチ変換用!AN$6,$D$4:$J$4,0)),""))) -> 34690 | G12: =IF($A12<=MAX(バッチ変換用!$O$7:$O$40),INDEX(バッチ変換用!$Q$7:$W$40,MATCH($A12,バッチ変換用!$O$7:$O$40,0),MATCH(バッチ変換用!T$6,$D$4:$J$4,0)),IF($A12<=MAX(バッチ変換用!$Z$7:$Z$40),INDEX(バッチ変換用!$AB$7:$AH$40,MATCH($A12,バッチ変換用!$Z$7:$Z$40,0),MATCH(バッチ変換用!AE$6,$D$4:$J$4,0)),IF($A12<=MAX(バッチ変換用!$AK$7:$AK$40),INDEX(バッチ変換用!$AM$7:$AS$40,MATCH($A12,バッチ変換用!$AK$7:$AK$40,0),MATCH(バッチ変換用!AP$6,$D$4:$J$4,0))," "))) -> AA | H12: =IF($A12<=MAX(バッチ変換用!$O$7:$O$40),INDEX(バッチ変換用!$Q$7:$W$40,MATCH($A12,バッチ変換用!$O$7:$O$40,0),MATCH(バッチ変換用!U$6,$D$4:$J$4,0)),IF($A12<=MAX(バッチ変換用!$Z$7:$Z$40),INDEX(バッチ変換用!$AB$7:$AH$40,MATCH($A12,バッチ変換用!$Z$7:$Z$40,0),MATCH(バッチ変換用!AF$6,$D$4:$J$4,0)),IF($A12<=MAX(バッチ変換用!$AK$7:$AK$40),INDEX(バッチ変換用!$AM$7:$AS$40,MATCH($A12,バッチ変換用!$AK$7:$AK$40,0),MATCH(バッチ変換用!AQ$6,$D$4:$J$4,0)),""))) -> NS-0259 | I12: =IF($A12<=MAX(バッチ変換用!$O$7:$O$40),INDEX(バッチ変換用!$Q$7:$W$40,MATCH($A12,バッチ変換用!$O$7:$O$40,0),MATCH(バッチ変換用!V$6,$D$4:$J$4,0)),IF($A12<=MAX(バッチ変換用!$Z$7:$Z$40),INDEX(バッチ変換用!$AB$7:$AH$40,MATCH($A12,バッチ変換用!$Z$7:$Z$40,0),MATCH(バッチ変換用!AG$6,$D$4:$J$4,0)),IF($A12<=MAX(バッチ変換用!$AK$7:$AK$40),INDEX(バッチ変換用!$AM$7:$AS$40,MATCH($A12,バッチ変換用!$AK$7:$AK$40,0),MATCH(バッチ変換用!AR$6,$D$4:$J$4,0)),""))) -> 運送保証協会 | J12: =IF($A12<=MAX(バッチ変換用!$O$7:$O$40),INDEX(バッチ変換用!$Q$7:$W$40,MATCH($A12,バッチ変換用!$O$7:$O$40,0),MATCH(バッチ変換用!W$6,$D$4:$J$4,0)),IF($A12<=MAX(バッチ変換用!$Z$7:$Z$40),INDEX(バッチ変換用!$AB$7:$AH$40,MATCH($A12,バッチ変換用!$Z$7:$Z$40,0),MATCH(バッチ変換用!AH$6,$D$4:$J$4,0)),IF($A12<=MAX(バッチ変換用!$AK$7:$AK$40),INDEX(バッチ変換用!$AM$7:$AS$40,MATCH($A12,バッチ変換用!$AK$7:$AK$40,0),MATCH(バッチ変換用!AS$6,$D$4:$J$4,0)),""))) -> 保証料(JR分)
A13: 9 | B13: =IF($A13<=MAX(バッチ変換用!$O$7:$O$40),"上",IF($A13<=MAX(バッチ変換用!$Z$7:$Z$40),"下確",IF($A13<=MAX(バッチ変換用!$AK$7:$AK$40),"下概",""))) -> 下確 | C13: =IF(AND(B12="対象",B13="上"),バッチ変換用!$R$4,IF(AND(OR(B12="上",B12="対象"),B13="下確"),バッチ変換用!$AC$4,IF(AND(B12="下確",B13="下概"),バッチ変換用!$AN$4,IF(AND(B12="下概",B13=""),"eof","")))) ->  | D13: =IF($A13<=MAX(バッチ変換用!$O$7:$O$40),INDEX(バッチ変換用!$Q$7:$W$40,MATCH($A13,バッチ変換用!$O$7:$O$40,0),MATCH(バッチ変換用!Q$6,$D$4:$J$4,0)),IF($A13<=MAX(バッチ変換用!$Z$7:$Z$40),INDEX(バッチ変換用!$AB$7:$AH$40,MATCH($A13,バッチ変換用!$Z$7:$Z$40,0),MATCH(バッチ変換用!AB$6,$D$4:$J$4,0)),IF($A13<=MAX(バッチ変換用!$AK$7:$AK$40),INDEX(バッチ変換用!$AM$7:$AS$40,MATCH($A13,バッチ変換用!$AK$7:$AK$40,0),MATCH(バッチ変換用!AM$6,$D$4:$J$4,0)),""))) -> 352900 | E13: =IF($A13<=MAX(バッチ変換用!$O$7:$O$40),INDEX(バッチ変換用!$Q$7:$W$40,MATCH($A13,バッチ変換用!$O$7:$O$40,0),MATCH(バッチ変換用!R$6,$D$4:$J$4,0)),IF($A13<=MAX(バッチ変換用!$Z$7:$Z$40),INDEX(バッチ変換用!$AB$7:$AH$40,MATCH($A13,バッチ変換用!$Z$7:$Z$40,0),MATCH(バッチ変換用!AC$6,$D$4:$J$4,0)),IF($A13<=MAX(バッチ変換用!$AK$7:$AK$40),INDEX(バッチ変換用!$AM$7:$AS$40,MATCH($A13,バッチ変換用!$AK$7:$AK$40,0),MATCH(バッチ変換用!AN$6,$D$4:$J$4,0)),""))) -> 40 | G13: =IF($A13<=MAX(バッチ変換用!$O$7:$O$40),INDEX(バッチ変換用!$Q$7:$W$40,MATCH($A13,バッチ変換用!$O$7:$O$40,0),MATCH(バッチ変換用!T$6,$D$4:$J$4,0)),IF($A13<=MAX(バッチ変換用!$Z$7:$Z$40),INDEX(バッチ変換用!$AB$7:$AH$40,MATCH($A13,バッチ変換用!$Z$7:$Z$40,0),MATCH(バッチ変換用!AE$6,$D$4:$J$4,0)),IF($A13<=MAX(バッチ変換用!$AK$7:$AK$40),INDEX(バッチ変換用!$AM$7:$AS$40,MATCH($A13,バッチ変換用!$AK$7:$AK$40,0),MATCH(バッチ変換用!AP$6,$D$4:$J$4,0))," "))) -> AA | H13: =IF($A13<=MAX(バッチ変換用!$O$7:$O$40),INDEX(バッチ変換用!$Q$7:$W$40,MATCH($A13,バッチ変換用!$O$7:$O$40,0),MATCH(バッチ変換用!U$6,$D$4:$J$4,0)),IF($A13<=MAX(バッチ変換用!$Z$7:$Z$40),INDEX(バッチ変換用!$AB$7:$AH$40,MATCH($A13,バッチ変換用!$Z$7:$Z$40,0),MATCH(バッチ変換用!AF$6,$D$4:$J$4,0)),IF($A13<=MAX(バッチ変換用!$AK$7:$AK$40),INDEX(バッチ変換用!$AM$7:$AS$40,MATCH($A13,バッチ変換用!$AK$7:$AK$40,0),MATCH(バッチ変換用!AQ$6,$D$4:$J$4,0)),""))) -> NS-0259 | I13: =IF($A13<=MAX(バッチ変換用!$O$7:$O$40),INDEX(バッチ変換用!$Q$7:$W$40,MATCH($A13,バッチ変換用!$O$7:$O$40,0),MATCH(バッチ変換用!V$6,$D$4:$J$4,0)),IF($A13<=MAX(バッチ変換用!$Z$7:$Z$40),INDEX(バッチ変換用!$AB$7:$AH$40,MATCH($A13,バッチ変換用!$Z$7:$Z$40,0),MATCH(バッチ変換用!AG$6,$D$4:$J$4,0)),IF($A13<=MAX(バッチ変換用!$AK$7:$AK$40),INDEX(バッチ変換用!$AM$7:$AS$40,MATCH($A13,バッチ変換用!$AK$7:$AK$40,0),MATCH(バッチ変換用!AR$6,$D$4:$J$4,0)),""))) -> 運送保証協会 | J13: =IF($A13<=MAX(バッチ変換用!$O$7:$O$40),INDEX(バッチ変換用!$Q$7:$W$40,MATCH($A13,バッチ変換用!$O$7:$O$40,0),MATCH(バッチ変換用!W$6,$D$4:$J$4,0)),IF($A13<=MAX(バッチ変換用!$Z$7:$Z$40),INDEX(バッチ変換用!$AB$7:$AH$40,MATCH($A13,バッチ変換用!$Z$7:$Z$40,0),MATCH(バッチ変換用!AH$6,$D$4:$J$4,0)),IF($A13<=MAX(バッチ変換用!$AK$7:$AK$40),INDEX(バッチ変換用!$AM$7:$AS$40,MATCH($A13,バッチ変換用!$AK$7:$AK$40,0),MATCH(バッチ変換用!AS$6,$D$4:$J$4,0)),""))) -> 保証料(神奈川臨海分）
A14: 10 | B14: =IF($A14<=MAX(バッチ変換用!$O$7:$O$40),"上",IF($A14<=MAX(バッチ変換用!$Z$7:$Z$40),"下確",IF($A14<=MAX(バッチ変換用!$AK$7:$AK$40),"下概",""))) -> 下概 | C14: =IF(AND(B13="対象",B14="上"),バッチ変換用!$R$4,IF(AND(OR(B13="上",B13="対象"),B14="下確"),バッチ変換用!$AC$4,IF(AND(B13="下確",B14="下概"),バッチ変換用!$AN$4,IF(AND(B13="下概",B14=""),"eof","")))) -> 交計経費 6月下期概算 | D14: =IF($A14<=MAX(バッチ変換用!$O$7:$O$40),INDEX(バッチ変換用!$Q$7:$W$40,MATCH($A14,バッチ変換用!$O$7:$O$40,0),MATCH(バッチ変換用!Q$6,$D$4:$J$4,0)),IF($A14<=MAX(バッチ変換用!$Z$7:$Z$40),INDEX(バッチ変換用!$AB$7:$AH$40,MATCH($A14,バッチ変換用!$Z$7:$Z$40,0),MATCH(バッチ変換用!AB$6,$D$4:$J$4,0)),IF($A14<=MAX(バッチ変換用!$AK$7:$AK$40),INDEX(バッチ変換用!$AM$7:$AS$40,MATCH($A14,バッチ変換用!$AK$7:$AK$40,0),MATCH(バッチ変換用!AM$6,$D$4:$J$4,0)),""))) -> 352810 | E14: =IF($A14<=MAX(バッチ変換用!$O$7:$O$40),INDEX(バッチ変換用!$Q$7:$W$40,MATCH($A14,バッチ変換用!$O$7:$O$40,0),MATCH(バッチ変換用!R$6,$D$4:$J$4,0)),IF($A14<=MAX(バッチ変換用!$Z$7:$Z$40),INDEX(バッチ変換用!$AB$7:$AH$40,MATCH($A14,バッチ変換用!$Z$7:$Z$40,0),MATCH(バッチ変換用!AC$6,$D$4:$J$4,0)),IF($A14<=MAX(バッチ変換用!$AK$7:$AK$40),INDEX(バッチ変換用!$AM$7:$AS$40,MATCH($A14,バッチ変換用!$AK$7:$AK$40,0),MATCH(バッチ変換用!AN$6,$D$4:$J$4,0)),""))) -> 39900 | G14: =IF($A14<=MAX(バッチ変換用!$O$7:$O$40),INDEX(バッチ変換用!$Q$7:$W$40,MATCH($A14,バッチ変換用!$O$7:$O$40,0),MATCH(バッチ変換用!T$6,$D$4:$J$4,0)),IF($A14<=MAX(バッチ変換用!$Z$7:$Z$40),INDEX(バッチ変換用!$AB$7:$AH$40,MATCH($A14,バッチ変換用!$Z$7:$Z$40,0),MATCH(バッチ変換用!AE$6,$D$4:$J$4,0)),IF($A14<=MAX(バッチ変換用!$AK$7:$AK$40),INDEX(バッチ変換用!$AM$7:$AS$40,MATCH($A14,バッチ変換用!$AK$7:$AK$40,0),MATCH(バッチ変換用!AP$6,$D$4:$J$4,0))," "))) ->  | H14: =IF($A14<=MAX(バッチ変換用!$O$7:$O$40),INDEX(バッチ変換用!$Q$7:$W$40,MATCH($A14,バッチ変換用!$O$7:$O$40,0),MATCH(バッチ変換用!U$6,$D$4:$J$4,0)),IF($A14<=MAX(バッチ変換用!$Z$7:$Z$40),INDEX(バッチ変換用!$AB$7:$AH$40,MATCH($A14,バッチ変換用!$Z$7:$Z$40,0),MATCH(バッチ変換用!AF$6,$D$4:$J$4,0)),IF($A14<=MAX(バッチ変換用!$AK$7:$AK$40),INDEX(バッチ変換用!$AM$7:$AS$40,MATCH($A14,バッチ変換用!$AK$7:$AK$40,0),MATCH(バッチ変換用!AQ$6,$D$4:$J$4,0)),""))) -> NS-0259 | I14: =IF($A14<=MAX(バッチ変換用!$O$7:$O$40),INDEX(バッチ変換用!$Q$7:$W$40,MATCH($A14,バッチ変換用!$O$7:$O$40,0),MATCH(バッチ変換用!V$6,$D$4:$J$4,0)),IF($A14<=MAX(バッチ変換用!$Z$7:$Z$40),INDEX(バッチ変換用!$AB$7:$AH$40,MATCH($A14,バッチ変換用!$Z$7:$Z$40,0),MATCH(バッチ変換用!AG$6,$D$4:$J$4,0)),IF($A14<=MAX(バッチ変換用!$AK$7:$AK$40),INDEX(バッチ変換用!$AM$7:$AS$40,MATCH($A14,バッチ変換用!$AK$7:$AK$40,0),MATCH(バッチ変換用!AR$6,$D$4:$J$4,0)),""))) -> 関東通運業連合会 | J14: =IF($A14<=MAX(バッチ変換用!$O$7:$O$40),INDEX(バッチ変換用!$Q$7:$W$40,MATCH($A14,バッチ変換用!$O$7:$O$40,0),MATCH(バッチ変換用!W$6,$D$4:$J$4,0)),IF($A14<=MAX(バッチ変換用!$Z$7:$Z$40),INDEX(バッチ変換用!$AB$7:$AH$40,MATCH($A14,バッチ変換用!$Z$7:$Z$40,0),MATCH(バッチ変換用!AH$6,$D$4:$J$4,0)),IF($A14<=MAX(バッチ変換用!$AK$7:$AK$40),INDEX(バッチ変換用!$AM$7:$AS$40,MATCH($A14,バッチ変換用!$AK$7:$AK$40,0),MATCH(バッチ変換用!AS$6,$D$4:$J$4,0)),""))) -> 会費
A15: 11 | B15: =IF($A15<=MAX(バッチ変換用!$O$7:$O$40),"上",IF($A15<=MAX(バッチ変換用!$Z$7:$Z$40),"下確",IF($A15<=MAX(バッチ変換用!$AK$7:$AK$40),"下概",""))) -> 下概 | C15: =IF(AND(B14="対象",B15="上"),バッチ変換用!$R$4,IF(AND(OR(B14="上",B14="対象"),B15="下確"),バッチ変換用!$AC$4,IF(AND(B14="下確",B15="下概"),バッチ変換用!$AN$4,IF(AND(B14="下概",B15=""),"eof","")))) ->  | D15: =IF($A15<=MAX(バッチ変換用!$O$7:$O$40),INDEX(バッチ変換用!$Q$7:$W$40,MATCH($A15,バッチ変換用!$O$7:$O$40,0),MATCH(バッチ変換用!Q$6,$D$4:$J$4,0)),IF($A15<=MAX(バッチ変換用!$Z$7:$Z$40),INDEX(バッチ変換用!$AB$7:$AH$40,MATCH($A15,バッチ変換用!$Z$7:$Z$40,0),MATCH(バッチ変換用!AB$6,$D$4:$J$4,0)),IF($A15<=MAX(バッチ変換用!$AK$7:$AK$40),INDEX(バッチ変換用!$AM$7:$AS$40,MATCH($A15,バッチ変換用!$AK$7:$AK$40,0),MATCH(バッチ変換用!AM$6,$D$4:$J$4,0)),""))) -> 352810 | E15: =IF($A15<=MAX(バッチ変換用!$O$7:$O$40),INDEX(バッチ変換用!$Q$7:$W$40,MATCH($A15,バッチ変換用!$O$7:$O$40,0),MATCH(バッチ変換用!R$6,$D$4:$J$4,0)),IF($A15<=MAX(バッチ変換用!$Z$7:$Z$40),INDEX(バッチ変換用!$AB$7:$AH$40,MATCH($A15,バッチ変換用!$Z$7:$Z$40,0),MATCH(バッチ変換用!AC$6,$D$4:$J$4,0)),IF($A15<=MAX(バッチ変換用!$AK$7:$AK$40),INDEX(バッチ変換用!$AM$7:$AS$40,MATCH($A15,バッチ変換用!$AK$7:$AK$40,0),MATCH(バッチ変換用!AN$6,$D$4:$J$4,0)),""))) -> 4500 | G15: =IF($A15<=MAX(バッチ変換用!$O$7:$O$40),INDEX(バッチ変換用!$Q$7:$W$40,MATCH($A15,バッチ変換用!$O$7:$O$40,0),MATCH(バッチ変換用!T$6,$D$4:$J$4,0)),IF($A15<=MAX(バッチ変換用!$Z$7:$Z$40),INDEX(バッチ変換用!$AB$7:$AH$40,MATCH($A15,バッチ変換用!$Z$7:$Z$40,0),MATCH(バッチ変換用!AE$6,$D$4:$J$4,0)),IF($A15<=MAX(バッチ変換用!$AK$7:$AK$40),INDEX(バッチ変換用!$AM$7:$AS$40,MATCH($A15,バッチ変換用!$AK$7:$AK$40,0),MATCH(バッチ変換用!AP$6,$D$4:$J$4,0))," "))) ->  | H15: =IF($A15<=MAX(バッチ変換用!$O$7:$O$40),INDEX(バッチ変換用!$Q$7:$W$40,MATCH($A15,バッチ変換用!$O$7:$O$40,0),MATCH(バッチ変換用!U$6,$D$4:$J$4,0)),IF($A15<=MAX(バッチ変換用!$Z$7:$Z$40),INDEX(バッチ変換用!$AB$7:$AH$40,MATCH($A15,バッチ変換用!$Z$7:$Z$40,0),MATCH(バッチ変換用!AF$6,$D$4:$J$4,0)),IF($A15<=MAX(バッチ変換用!$AK$7:$AK$40),INDEX(バッチ変換用!$AM$7:$AS$40,MATCH($A15,バッチ変換用!$AK$7:$AK$40,0),MATCH(バッチ変換用!AQ$6,$D$4:$J$4,0)),""))) -> NS-0259 | I15: =IF($A15<=MAX(バッチ変換用!$O$7:$O$40),INDEX(バッチ変換用!$Q$7:$W$40,MATCH($A15,バッチ変換用!$O$7:$O$40,0),MATCH(バッチ変換用!V$6,$D$4:$J$4,0)),IF($A15<=MAX(バッチ変換用!$Z$7:$Z$40),INDEX(バッチ変換用!$AB$7:$AH$40,MATCH($A15,バッチ変換用!$Z$7:$Z$40,0),MATCH(バッチ変換用!AG$6,$D$4:$J$4,0)),IF($A15<=MAX(バッチ変換用!$AK$7:$AK$40),INDEX(バッチ変換用!$AM$7:$AS$40,MATCH($A15,バッチ変換用!$AK$7:$AK$40,0),MATCH(バッチ変換用!AR$6,$D$4:$J$4,0)),""))) -> 博多港運 | J15: =IF($A15<=MAX(バッチ変換用!$O$7:$O$40),INDEX(バッチ変換用!$Q$7:$W$40,MATCH($A15,バッチ変換用!$O$7:$O$40,0),MATCH(バッチ変換用!W$6,$D$4:$J$4,0)),IF($A15<=MAX(バッチ変換用!$Z$7:$Z$40),INDEX(バッチ変換用!$AB$7:$AH$40,MATCH($A15,バッチ変換用!$Z$7:$Z$40,0),MATCH(バッチ変換用!AH$6,$D$4:$J$4,0)),IF($A15<=MAX(バッチ変換用!$AK$7:$AK$40),INDEX(バッチ変換用!$AM$7:$AS$40,MATCH($A15,バッチ変換用!$AK$7:$AK$40,0),MATCH(バッチ変換用!AS$6,$D$4:$J$4,0)),""))) -> 九州会会費
A16: 12 | B16: =IF($A16<=MAX(バッチ変換用!$O$7:$O$40),"上",IF($A16<=MAX(バッチ変換用!$Z$7:$Z$40),"下確",IF($A16<=MAX(バッチ変換用!$AK$7:$AK$40),"下概",""))) -> 下概 | C16: =IF(AND(B15="対象",B16="上"),バッチ変換用!$R$4,IF(AND(OR(B15="上",B15="対象"),B16="下確"),バッチ変換用!$AC$4,IF(AND(B15="下確",B16="下概"),バッチ変換用!$AN$4,IF(AND(B15="下概",B16=""),"eof","")))) ->  | D16: =IF($A16<=MAX(バッチ変換用!$O$7:$O$40),INDEX(バッチ変換用!$Q$7:$W$40,MATCH($A16,バッチ変換用!$O$7:$O$40,0),MATCH(バッチ変換用!Q$6,$D$4:$J$4,0)),IF($A16<=MAX(バッチ変換用!$Z$7:$Z$40),INDEX(バッチ変換用!$AB$7:$AH$40,MATCH($A16,バッチ変換用!$Z$7:$Z$40,0),MATCH(バッチ変換用!AB$6,$D$4:$J$4,0)),IF($A16<=MAX(バッチ変換用!$AK$7:$AK$40),INDEX(バッチ変換用!$AM$7:$AS$40,MATCH($A16,バッチ変換用!$AK$7:$AK$40,0),MATCH(バッチ変換用!AM$6,$D$4:$J$4,0)),""))) -> 352810 | E16: =IF($A16<=MAX(バッチ変換用!$O$7:$O$40),INDEX(バッチ変換用!$Q$7:$W$40,MATCH($A16,バッチ変換用!$O$7:$O$40,0),MATCH(バッチ変換用!R$6,$D$4:$J$4,0)),IF($A16<=MAX(バッチ変換用!$Z$7:$Z$40),INDEX(バッチ変換用!$AB$7:$AH$40,MATCH($A16,バッチ変換用!$Z$7:$Z$40,0),MATCH(バッチ変換用!AC$6,$D$4:$J$4,0)),IF($A16<=MAX(バッチ変換用!$AK$7:$AK$40),INDEX(バッチ変換用!$AM$7:$AS$40,MATCH($A16,バッチ変換用!$AK$7:$AK$40,0),MATCH(バッチ変換用!AN$6,$D$4:$J$4,0)),""))) -> 4500 | G16: =IF($A16<=MAX(バッチ変換用!$O$7:$O$40),INDEX(バッチ変換用!$Q$7:$W$40,MATCH($A16,バッチ変換用!$O$7:$O$40,0),MATCH(バッチ変換用!T$6,$D$4:$J$4,0)),IF($A16<=MAX(バッチ変換用!$Z$7:$Z$40),INDEX(バッチ変換用!$AB$7:$AH$40,MATCH($A16,バッチ変換用!$Z$7:$Z$40,0),MATCH(バッチ変換用!AE$6,$D$4:$J$4,0)),IF($A16<=MAX(バッチ変換用!$AK$7:$AK$40),INDEX(バッチ変換用!$AM$7:$AS$40,MATCH($A16,バッチ変換用!$AK$7:$AK$40,0),MATCH(バッチ変換用!AP$6,$D$4:$J$4,0))," "))) ->  | H16: =IF($A16<=MAX(バッチ変換用!$O$7:$O$40),INDEX(バッチ変換用!$Q$7:$W$40,MATCH($A16,バッチ変換用!$O$7:$O$40,0),MATCH(バッチ変換用!U$6,$D$4:$J$4,0)),IF($A16<=MAX(バッチ変換用!$Z$7:$Z$40),INDEX(バッチ変換用!$AB$7:$AH$40,MATCH($A16,バッチ変換用!$Z$7:$Z$40,0),MATCH(バッチ変換用!AF$6,$D$4:$J$4,0)),IF($A16<=MAX(バッチ変換用!$AK$7:$AK$40),INDEX(バッチ変換用!$AM$7:$AS$40,MATCH($A16,バッチ変換用!$AK$7:$AK$40,0),MATCH(バッチ変換用!AQ$6,$D$4:$J$4,0)),""))) -> NS-0259 | I16: =IF($A16<=MAX(バッチ変換用!$O$7:$O$40),INDEX(バッチ変換用!$Q$7:$W$40,MATCH($A16,バッチ変換用!$O$7:$O$40,0),MATCH(バッチ変換用!V$6,$D$4:$J$4,0)),IF($A16<=MAX(バッチ変換用!$Z$7:$Z$40),INDEX(バッチ変換用!$AB$7:$AH$40,MATCH($A16,バッチ変換用!$Z$7:$Z$40,0),MATCH(バッチ変換用!AG$6,$D$4:$J$4,0)),IF($A16<=MAX(バッチ変換用!$AK$7:$AK$40),INDEX(バッチ変換用!$AM$7:$AS$40,MATCH($A16,バッチ変換用!$AK$7:$AK$40,0),MATCH(バッチ変換用!AR$6,$D$4:$J$4,0)),""))) -> 札幌通運 | J16: =IF($A16<=MAX(バッチ変換用!$O$7:$O$40),INDEX(バッチ変換用!$Q$7:$W$40,MATCH($A16,バッチ変換用!$O$7:$O$40,0),MATCH(バッチ変換用!W$6,$D$4:$J$4,0)),IF($A16<=MAX(バッチ変換用!$Z$7:$Z$40),INDEX(バッチ変換用!$AB$7:$AH$40,MATCH($A16,バッチ変換用!$Z$7:$Z$40,0),MATCH(バッチ変換用!AH$6,$D$4:$J$4,0)),IF($A16<=MAX(バッチ変換用!$AK$7:$AK$40),INDEX(バッチ変換用!$AM$7:$AS$40,MATCH($A16,バッチ変換用!$AK$7:$AK$40,0),MATCH(バッチ変換用!AS$6,$D$4:$J$4,0)),""))) -> 北海道会費
A17: 13 | B17: =IF($A17<=MAX(バッチ変換用!$O$7:$O$40),"上",IF($A17<=MAX(バッチ変換用!$Z$7:$Z$40),"下確",IF($A17<=MAX(バッチ変換用!$AK$7:$AK$40),"下概",""))) -> 下概 | C17: =IF(AND(B16="対象",B17="上"),バッチ変換用!$R$4,IF(AND(OR(B16="上",B16="対象"),B17="下確"),バッチ変換用!$AC$4,IF(AND(B16="下確",B17="下概"),バッチ変換用!$AN$4,IF(AND(B16="下概",B17=""),"eof","")))) ->  | D17: =IF($A17<=MAX(バッチ変換用!$O$7:$O$40),INDEX(バッチ変換用!$Q$7:$W$40,MATCH($A17,バッチ変換用!$O$7:$O$40,0),MATCH(バッチ変換用!Q$6,$D$4:$J$4,0)),IF($A17<=MAX(バッチ変換用!$Z$7:$Z$40),INDEX(バッチ変換用!$AB$7:$AH$40,MATCH($A17,バッチ変換用!$Z$7:$Z$40,0),MATCH(バッチ変換用!AB$6,$D$4:$J$4,0)),IF($A17<=MAX(バッチ変換用!$AK$7:$AK$40),INDEX(バッチ変換用!$AM$7:$AS$40,MATCH($A17,バッチ変換用!$AK$7:$AK$40,0),MATCH(バッチ変換用!AM$6,$D$4:$J$4,0)),""))) -> 352900 | E17: =IF($A17<=MAX(バッチ変換用!$O$7:$O$40),INDEX(バッチ変換用!$Q$7:$W$40,MATCH($A17,バッチ変換用!$O$7:$O$40,0),MATCH(バッチ変換用!R$6,$D$4:$J$4,0)),IF($A17<=MAX(バッチ変換用!$Z$7:$Z$40),INDEX(バッチ変換用!$AB$7:$AH$40,MATCH($A17,バッチ変換用!$Z$7:$Z$40,0),MATCH(バッチ変換用!AC$6,$D$4:$J$4,0)),IF($A17<=MAX(バッチ変換用!$AK$7:$AK$40),INDEX(バッチ変換用!$AM$7:$AS$40,MATCH($A17,バッチ変換用!$AK$7:$AK$40,0),MATCH(バッチ変換用!AN$6,$D$4:$J$4,0)),""))) -> 34690 | G17: =IF($A17<=MAX(バッチ変換用!$O$7:$O$40),INDEX(バッチ変換用!$Q$7:$W$40,MATCH($A17,バッチ変換用!$O$7:$O$40,0),MATCH(バッチ変換用!T$6,$D$4:$J$4,0)),IF($A17<=MAX(バッチ変換用!$Z$7:$Z$40),INDEX(バッチ変換用!$AB$7:$AH$40,MATCH($A17,バッチ変換用!$Z$7:$Z$40,0),MATCH(バッチ変換用!AE$6,$D$4:$J$4,0)),IF($A17<=MAX(バッチ変換用!$AK$7:$AK$40),INDEX(バッチ変換用!$AM$7:$AS$40,MATCH($A17,バッチ変換用!$AK$7:$AK$40,0),MATCH(バッチ変換用!AP$6,$D$4:$J$4,0))," "))) -> AA | H17: =IF($A17<=MAX(バッチ変換用!$O$7:$O$40),INDEX(バッチ変換用!$Q$7:$W$40,MATCH($A17,バッチ変換用!$O$7:$O$40,0),MATCH(バッチ変換用!U$6,$D$4:$J$4,0)),IF($A17<=MAX(バッチ変換用!$Z$7:$Z$40),INDEX(バッチ変換用!$AB$7:$AH$40,MATCH($A17,バッチ変換用!$Z$7:$Z$40,0),MATCH(バッチ変換用!AF$6,$D$4:$J$4,0)),IF($A17<=MAX(バッチ変換用!$AK$7:$AK$40),INDEX(バッチ変換用!$AM$7:$AS$40,MATCH($A17,バッチ変換用!$AK$7:$AK$40,0),MATCH(バッチ変換用!AQ$6,$D$4:$J$4,0)),""))) -> NS-0259 | I17: =IF($A17<=MAX(バッチ変換用!$O$7:$O$40),INDEX(バッチ変換用!$Q$7:$W$40,MATCH($A17,バッチ変換用!$O$7:$O$40,0),MATCH(バッチ変換用!V$6,$D$4:$J$4,0)),IF($A17<=MAX(バッチ変換用!$Z$7:$Z$40),INDEX(バッチ変換用!$AB$7:$AH$40,MATCH($A17,バッチ変換用!$Z$7:$Z$40,0),MATCH(バッチ変換用!AG$6,$D$4:$J$4,0)),IF($A17<=MAX(バッチ変換用!$AK$7:$AK$40),INDEX(バッチ変換用!$AM$7:$AS$40,MATCH($A17,バッチ変換用!$AK$7:$AK$40,0),MATCH(バッチ変換用!AR$6,$D$4:$J$4,0)),""))) -> 運送保証協会 | J17: =IF($A17<=MAX(バッチ変換用!$O$7:$O$40),INDEX(バッチ変換用!$Q$7:$W$40,MATCH($A17,バッチ変換用!$O$7:$O$40,0),MATCH(バッチ変換用!W$6,$D$4:$J$4,0)),IF($A17<=MAX(バッチ変換用!$Z$7:$Z$40),INDEX(バッチ変換用!$AB$7:$AH$40,MATCH($A17,バッチ変換用!$Z$7:$Z$40,0),MATCH(バッチ変換用!AH$6,$D$4:$J$4,0)),IF($A17<=MAX(バッチ変換用!$AK$7:$AK$40),INDEX(バッチ変換用!$AM$7:$AS$40,MATCH($A17,バッチ変換用!$AK$7:$AK$40,0),MATCH(バッチ変換用!AS$6,$D$4:$J$4,0)),""))) -> 保証料(JR分)
A18: 14 | B18: =IF($A18<=MAX(バッチ変換用!$O$7:$O$40),"上",IF($A18<=MAX(バッチ変換用!$Z$7:$Z$40),"下確",IF($A18<=MAX(バッチ変換用!$AK$7:$AK$40),"下概",""))) -> 下概 | C18: =IF(AND(B17="対象",B18="上"),バッチ変換用!$R$4,IF(AND(OR(B17="上",B17="対象"),B18="下確"),バッチ変換用!$AC$4,IF(AND(B17="下確",B18="下概"),バッチ変換用!$AN$4,IF(AND(B17="下概",B18=""),"eof","")))) ->  | D18: =IF($A18<=MAX(バッチ変換用!$O$7:$O$40),INDEX(バッチ変換用!$Q$7:$W$40,MATCH($A18,バッチ変換用!$O$7:$O$40,0),MATCH(バッチ変換用!Q$6,$D$4:$J$4,0)),IF($A18<=MAX(バッチ変換用!$Z$7:$Z$40),INDEX(バッチ変換用!$AB$7:$AH$40,MATCH($A18,バッチ変換用!$Z$7:$Z$40,0),MATCH(バッチ変換用!AB$6,$D$4:$J$4,0)),IF($A18<=MAX(バッチ変換用!$AK$7:$AK$40),INDEX(バッチ変換用!$AM$7:$AS$40,MATCH($A18,バッチ変換用!$AK$7:$AK$40,0),MATCH(バッチ変換用!AM$6,$D$4:$J$4,0)),""))) -> 352900 | E18: =IF($A18<=MAX(バッチ変換用!$O$7:$O$40),INDEX(バッチ変換用!$Q$7:$W$40,MATCH($A18,バッチ変換用!$O$7:$O$40,0),MATCH(バッチ変換用!R$6,$D$4:$J$4,0)),IF($A18<=MAX(バッチ変換用!$Z$7:$Z$40),INDEX(バッチ変換用!$AB$7:$AH$40,MATCH($A18,バッチ変換用!$Z$7:$Z$40,0),MATCH(バッチ変換用!AC$6,$D$4:$J$4,0)),IF($A18<=MAX(バッチ変換用!$AK$7:$AK$40),INDEX(バッチ変換用!$AM$7:$AS$40,MATCH($A18,バッチ変換用!$AK$7:$AK$40,0),MATCH(バッチ変換用!AN$6,$D$4:$J$4,0)),""))) -> 40 | G18: =IF($A18<=MAX(バッチ変換用!$O$7:$O$40),INDEX(バッチ変換用!$Q$7:$W$40,MATCH($A18,バッチ変換用!$O$7:$O$40,0),MATCH(バッチ変換用!T$6,$D$4:$J$4,0)),IF($A18<=MAX(バッチ変換用!$Z$7:$Z$40),INDEX(バッチ変換用!$AB$7:$AH$40,MATCH($A18,バッチ変換用!$Z$7:$Z$40,0),MATCH(バッチ変換用!AE$6,$D$4:$J$4,0)),IF($A18<=MAX(バッチ変換用!$AK$7:$AK$40),INDEX(バッチ変換用!$AM$7:$AS$40,MATCH($A18,バッチ変換用!$AK$7:$AK$40,0),MATCH(バッチ変換用!AP$6,$D$4:$J$4,0))," "))) -> AA | H18: =IF($A18<=MAX(バッチ変換用!$O$7:$O$40),INDEX(バッチ変換用!$Q$7:$W$40,MATCH($A18,バッチ変換用!$O$7:$O$40,0),MATCH(バッチ変換用!U$6,$D$4:$J$4,0)),IF($A18<=MAX(バッチ変換用!$Z$7:$Z$40),INDEX(バッチ変換用!$AB$7:$AH$40,MATCH($A18,バッチ変換用!$Z$7:$Z$40,0),MATCH(バッチ変換用!AF$6,$D$4:$J$4,0)),IF($A18<=MAX(バッチ変換用!$AK$7:$AK$40),INDEX(バッチ変換用!$AM$7:$AS$40,MATCH($A18,バッチ変換用!$AK$7:$AK$40,0),MATCH(バッチ変換用!AQ$6,$D$4:$J$4,0)),""))) -> NS-0259 | I18: =IF($A18<=MAX(バッチ変換用!$O$7:$O$40),INDEX(バッチ変換用!$Q$7:$W$40,MATCH($A18,バッチ変換用!$O$7:$O$40,0),MATCH(バッチ変換用!V$6,$D$4:$J$4,0)),IF($A18<=MAX(バッチ変換用!$Z$7:$Z$40),INDEX(バッチ変換用!$AB$7:$AH$40,MATCH($A18,バッチ変換用!$Z$7:$Z$40,0),MATCH(バッチ変換用!AG$6,$D$4:$J$4,0)),IF($A18<=MAX(バッチ変換用!$AK$7:$AK$40),INDEX(バッチ変換用!$AM$7:$AS$40,MATCH($A18,バッチ変換用!$AK$7:$AK$40,0),MATCH(バッチ変換用!AR$6,$D$4:$J$4,0)),""))) -> 運送保証協会 | J18: =IF($A18<=MAX(バッチ変換用!$O$7:$O$40),INDEX(バッチ変換用!$Q$7:$W$40,MATCH($A18,バッチ変換用!$O$7:$O$40,0),MATCH(バッチ変換用!W$6,$D$4:$J$4,0)),IF($A18<=MAX(バッチ変換用!$Z$7:$Z$40),INDEX(バッチ変換用!$AB$7:$AH$40,MATCH($A18,バッチ変換用!$Z$7:$Z$40,0),MATCH(バッチ変換用!AH$6,$D$4:$J$4,0)),IF($A18<=MAX(バッチ変換用!$AK$7:$AK$40),INDEX(バッチ変換用!$AM$7:$AS$40,MATCH($A18,バッチ変換用!$AK$7:$AK$40,0),MATCH(バッチ変換用!AS$6,$D$4:$J$4,0)),""))) -> 保証料(神奈川臨海分）
A19: 15 | B19: =IF($A19<=MAX(バッチ変換用!$O$7:$O$40),"上",IF($A19<=MAX(バッチ変換用!$Z$7:$Z$40),"下確",IF($A19<=MAX(バッチ変換用!$AK$7:$AK$40),"下概",""))) -> 下概 | C19: =IF(AND(B18="対象",B19="上"),バッチ変換用!$R$4,IF(AND(OR(B18="上",B18="対象"),B19="下確"),バッチ変換用!$AC$4,IF(AND(B18="下確",B19="下概"),バッチ変換用!$AN$4,IF(AND(B18="下概",B19=""),"eof","")))) ->  | D19: =IF($A19<=MAX(バッチ変換用!$O$7:$O$40),INDEX(バッチ変換用!$Q$7:$W$40,MATCH($A19,バッチ変換用!$O$7:$O$40,0),MATCH(バッチ変換用!Q$6,$D$4:$J$4,0)),IF($A19<=MAX(バッチ変換用!$Z$7:$Z$40),INDEX(バッチ変換用!$AB$7:$AH$40,MATCH($A19,バッチ変換用!$Z$7:$Z$40,0),MATCH(バッチ変換用!AB$6,$D$4:$J$4,0)),IF($A19<=MAX(バッチ変換用!$AK$7:$AK$40),INDEX(バッチ変換用!$AM$7:$AS$40,MATCH($A19,バッチ変換用!$AK$7:$AK$40,0),MATCH(バッチ変換用!AM$6,$D$4:$J$4,0)),""))) -> 148100 | E19: =IF($A19<=MAX(バッチ変換用!$O$7:$O$40),INDEX(バッチ変換用!$Q$7:$W$40,MATCH($A19,バッチ変換用!$O$7:$O$40,0),MATCH(バッチ変換用!R$6,$D$4:$J$4,0)),IF($A19<=MAX(バッチ変換用!$Z$7:$Z$40),INDEX(バッチ変換用!$AB$7:$AH$40,MATCH($A19,バッチ変換用!$Z$7:$Z$40,0),MATCH(バッチ変換用!AC$6,$D$4:$J$4,0)),IF($A19<=MAX(バッチ変換用!$AK$7:$AK$40),INDEX(バッチ変換用!$AM$7:$AS$40,MATCH($A19,バッチ変換用!$AK$7:$AK$40,0),MATCH(バッチ変換用!AN$6,$D$4:$J$4,0)),""))) -> 83630 | G19: =IF($A19<=MAX(バッチ変換用!$O$7:$O$40),INDEX(バッチ変換用!$Q$7:$W$40,MATCH($A19,バッチ変換用!$O$7:$O$40,0),MATCH(バッチ変換用!T$6,$D$4:$J$4,0)),IF($A19<=MAX(バッチ変換用!$Z$7:$Z$40),INDEX(バッチ変換用!$AB$7:$AH$40,MATCH($A19,バッチ変換用!$Z$7:$Z$40,0),MATCH(バッチ変換用!AE$6,$D$4:$J$4,0)),IF($A19<=MAX(バッチ変換用!$AK$7:$AK$40),INDEX(バッチ変換用!$AM$7:$AS$40,MATCH($A19,バッチ変換用!$AK$7:$AK$40,0),MATCH(バッチ変換用!AP$6,$D$4:$J$4,0))," "))) ->  | H19: =IF($A19<=MAX(バッチ変換用!$O$7:$O$40),INDEX(バッチ変換用!$Q$7:$W$40,MATCH($A19,バッチ変換用!$O$7:$O$40,0),MATCH(バッチ変換用!U$6,$D$4:$J$4,0)),IF($A19<=MAX(バッチ変換用!$Z$7:$Z$40),INDEX(バッチ変換用!$AB$7:$AH$40,MATCH($A19,バッチ変換用!$Z$7:$Z$40,0),MATCH(バッチ変換用!AF$6,$D$4:$J$4,0)),IF($A19<=MAX(バッチ変換用!$AK$7:$AK$40),INDEX(バッチ変換用!$AM$7:$AS$40,MATCH($A19,バッチ変換用!$AK$7:$AK$40,0),MATCH(バッチ変換用!AQ$6,$D$4:$J$4,0)),""))) ->  | I19: =IF($A19<=MAX(バッチ変換用!$O$7:$O$40),INDEX(バッチ変換用!$Q$7:$W$40,MATCH($A19,バッチ変換用!$O$7:$O$40,0),MATCH(バッチ変換用!V$6,$D$4:$J$4,0)),IF($A19<=MAX(バッチ変換用!$Z$7:$Z$40),INDEX(バッチ変換用!$AB$7:$AH$40,MATCH($A19,バッチ変換用!$Z$7:$Z$40,0),MATCH(バッチ変換用!AG$6,$D$4:$J$4,0)),IF($A19<=MAX(バッチ変換用!$AK$7:$AK$40),INDEX(バッチ変換用!$AM$7:$AS$40,MATCH($A19,バッチ変換用!$AK$7:$AK$40,0),MATCH(バッチ変換用!AR$6,$D$4:$J$4,0)),""))) -> 交計下期概算 | J19: =IF($A19<=MAX(バッチ変換用!$O$7:$O$40),INDEX(バッチ変換用!$Q$7:$W$40,MATCH($A19,バッチ変換用!$O$7:$O$40,0),MATCH(バッチ変換用!W$6,$D$4:$J$4,0)),IF($A19<=MAX(バッチ変換用!$Z$7:$Z$40),INDEX(バッチ変換用!$AB$7:$AH$40,MATCH($A19,バッチ変換用!$Z$7:$Z$40,0),MATCH(バッチ変換用!AH$6,$D$4:$J$4,0)),IF($A19<=MAX(バッチ変換用!$AK$7:$AK$40),INDEX(バッチ変換用!$AM$7:$AS$40,MATCH($A19,バッチ変換用!$AK$7:$AK$40,0),MATCH(バッチ変換用!AS$6,$D$4:$J$4,0)),""))) -> 交計下期概算
A20: 16 | B20: =IF($A20<=MAX(バッチ変換用!$O$7:$O$40),"上",IF($A20<=MAX(バッチ変換用!$Z$7:$Z$40),"下確",IF($A20<=MAX(バッチ変換用!$AK$7:$AK$40),"下概",""))) ->  | C20: =IF(AND(B19="対象",B20="上"),バッチ変換用!$R$4,IF(AND(OR(B19="上",B19="対象"),B20="下確"),バッチ変換用!$AC$4,IF(AND(B19="下確",B20="下概"),バッチ変換用!$AN$4,IF(AND(B19="下概",B20=""),"eof","")))) -> eof | D20: =IF($A20<=MAX(バッチ変換用!$O$7:$O$40),INDEX(バッチ変換用!$Q$7:$W$40,MATCH($A20,バッチ変換用!$O$7:$O$40,0),MATCH(バッチ変換用!Q$6,$D$4:$J$4,0)),IF($A20<=MAX(バッチ変換用!$Z$7:$Z$40),INDEX(バッチ変換用!$AB$7:$AH$40,MATCH($A20,バッチ変換用!$Z$7:$Z$40,0),MATCH(バッチ変換用!AB$6,$D$4:$J$4,0)),IF($A20<=MAX(バッチ変換用!$AK$7:$AK$40),INDEX(バッチ変換用!$AM$7:$AS$40,MATCH($A20,バッチ変換用!$AK$7:$AK$40,0),MATCH(バッチ変換用!AM$6,$D$4:$J$4,0)),""))) ->  | E20: =IF($A20<=MAX(バッチ変換用!$O$7:$O$40),INDEX(バッチ変換用!$Q$7:$W$40,MATCH($A20,バッチ変換用!$O$7:$O$40,0),MATCH(バッチ変換用!R$6,$D$4:$J$4,0)),IF($A20<=MAX(バッチ変換用!$Z$7:$Z$40),INDEX(バッチ変換用!$AB$7:$AH$40,MATCH($A20,バッチ変換用!$Z$7:$Z$40,0),MATCH(バッチ変換用!AC$6,$D$4:$J$4,0)),IF($A20<=MAX(バッチ変換用!$AK$7:$AK$40),INDEX(バッチ変換用!$AM$7:$AS$40,MATCH($A20,バッチ変換用!$AK$7:$AK$40,0),MATCH(バッチ変換用!AN$6,$D$4:$J$4,0)),""))) ->  | G20: =IF($A20<=MAX(バッチ変換用!$O$7:$O$40),INDEX(バッチ変換用!$Q$7:$W$40,MATCH($A20,バッチ変換用!$O$7:$O$40,0),MATCH(バッチ変換用!T$6,$D$4:$J$4,0)),IF($A20<=MAX(バッチ変換用!$Z$7:$Z$40),INDEX(バッチ変換用!$AB$7:$AH$40,MATCH($A20,バッチ変換用!$Z$7:$Z$40,0),MATCH(バッチ変換用!AE$6,$D$4:$J$4,0)),IF($A20<=MAX(バッチ変換用!$AK$7:$AK$40),INDEX(バッチ変換用!$AM$7:$AS$40,MATCH($A20,バッチ変換用!$AK$7:$AK$40,0),MATCH(バッチ変換用!AP$6,$D$4:$J$4,0))," "))) ->  | H20: =IF($A20<=MAX(バッチ変換用!$O$7:$O$40),INDEX(バッチ変換用!$Q$7:$W$40,MATCH($A20,バッチ変換用!$O$7:$O$40,0),MATCH(バッチ変換用!U$6,$D$4:$J$4,0)),IF($A20<=MAX(バッチ変換用!$Z$7:$Z$40),INDEX(バッチ変換用!$AB$7:$AH$40,MATCH($A20,バッチ変換用!$Z$7:$Z$40,0),MATCH(バッチ変換用!AF$6,$D$4:$J$4,0)),IF($A20<=MAX(バッチ変換用!$AK$7:$AK$40),INDEX(バッチ変換用!$AM$7:$AS$40,MATCH($A20,バッチ変換用!$AK$7:$AK$40,0),MATCH(バッチ変換用!AQ$6,$D$4:$J$4,0)),""))) ->  | I20: =IF($A20<=MAX(バッチ変換用!$O$7:$O$40),INDEX(バッチ変換用!$Q$7:$W$40,MATCH($A20,バッチ変換用!$O$7:$O$40,0),MATCH(バッチ変換用!V$6,$D$4:$J$4,0)),IF($A20<=MAX(バッチ変換用!$Z$7:$Z$40),INDEX(バッチ変換用!$AB$7:$AH$40,MATCH($A20,バッチ変換用!$Z$7:$Z$40,0),MATCH(バッチ変換用!AG$6,$D$4:$J$4,0)),IF($A20<=MAX(バッチ変換用!$AK$7:$AK$40),INDEX(バッチ変換用!$AM$7:$AS$40,MATCH($A20,バッチ変換用!$AK$7:$AK$40,0),MATCH(バッチ変換用!AR$6,$D$4:$J$4,0)),""))) ->  | J20: =IF($A20<=MAX(バッチ変換用!$O$7:$O$40),INDEX(バッチ変換用!$Q$7:$W$40,MATCH($A20,バッチ変換用!$O$7:$O$40,0),MATCH(バッチ変換用!W$6,$D$4:$J$4,0)),IF($A20<=MAX(バッチ変換用!$Z$7:$Z$40),INDEX(バッチ変換用!$AB$7:$AH$40,MATCH($A20,バッチ変換用!$Z$7:$Z$40,0),MATCH(バッチ変換用!AH$6,$D$4:$J$4,0)),IF($A20<=MAX(バッチ変換用!$AK$7:$AK$40),INDEX(バッチ変換用!$AM$7:$AS$40,MATCH($A20,バッチ変換用!$AK$7:$AK$40,0),MATCH(バッチ変換用!AS$6,$D$4:$J$4,0)),""))) -> 
A21: 17 | B21: =IF($A21<=MAX(バッチ変換用!$O$7:$O$40),"上",IF($A21<=MAX(バッチ変換用!$Z$7:$Z$40),"下確",IF($A21<=MAX(バッチ変換用!$AK$7:$AK$40),"下概",""))) ->  | C21: =IF(AND(B20="対象",B21="上"),バッチ変換用!$R$4,IF(AND(OR(B20="上",B20="対象"),B21="下確"),バッチ変換用!$AC$4,IF(AND(B20="下確",B21="下概"),バッチ変換用!$AN$4,IF(AND(B20="下概",B21=""),"eof","")))) ->  | D21: =IF($A21<=MAX(バッチ変換用!$O$7:$O$40),INDEX(バッチ変換用!$Q$7:$W$40,MATCH($A21,バッチ変換用!$O$7:$O$40,0),MATCH(バッチ変換用!Q$6,$D$4:$J$4,0)),IF($A21<=MAX(バッチ変換用!$Z$7:$Z$40),INDEX(バッチ変換用!$AB$7:$AH$40,MATCH($A21,バッチ変換用!$Z$7:$Z$40,0),MATCH(バッチ変換用!AB$6,$D$4:$J$4,0)),IF($A21<=MAX(バッチ変換用!$AK$7:$AK$40),INDEX(バッチ変換用!$AM$7:$AS$40,MATCH($A21,バッチ変換用!$AK$7:$AK$40,0),MATCH(バッチ変換用!AM$6,$D$4:$J$4,0)),""))) ->  | E21: =IF($A21<=MAX(バッチ変換用!$O$7:$O$40),INDEX(バッチ変換用!$Q$7:$W$40,MATCH($A21,バッチ変換用!$O$7:$O$40,0),MATCH(バッチ変換用!R$6,$D$4:$J$4,0)),IF($A21<=MAX(バッチ変換用!$Z$7:$Z$40),INDEX(バッチ変換用!$AB$7:$AH$40,MATCH($A21,バッチ変換用!$Z$7:$Z$40,0),MATCH(バッチ変換用!AC$6,$D$4:$J$4,0)),IF($A21<=MAX(バッチ変換用!$AK$7:$AK$40),INDEX(バッチ変換用!$AM$7:$AS$40,MATCH($A21,バッチ変換用!$AK$7:$AK$40,0),MATCH(バッチ変換用!AN$6,$D$4:$J$4,0)),""))) ->  | G21: =IF($A21<=MAX(バッチ変換用!$O$7:$O$40),INDEX(バッチ変換用!$Q$7:$W$40,MATCH($A21,バッチ変換用!$O$7:$O$40,0),MATCH(バッチ変換用!T$6,$D$4:$J$4,0)),IF($A21<=MAX(バッチ変換用!$Z$7:$Z$40),INDEX(バッチ変換用!$AB$7:$AH$40,MATCH($A21,バッチ変換用!$Z$7:$Z$40,0),MATCH(バッチ変換用!AE$6,$D$4:$J$4,0)),IF($A21<=MAX(バッチ変換用!$AK$7:$AK$40),INDEX(バッチ変換用!$AM$7:$AS$40,MATCH($A21,バッチ変換用!$AK$7:$AK$40,0),MATCH(バッチ変換用!AP$6,$D$4:$J$4,0))," "))) ->  | H21: =IF($A21<=MAX(バッチ変換用!$O$7:$O$40),INDEX(バッチ変換用!$Q$7:$W$40,MATCH($A21,バッチ変換用!$O$7:$O$40,0),MATCH(バッチ変換用!U$6,$D$4:$J$4,0)),IF($A21<=MAX(バッチ変換用!$Z$7:$Z$40),INDEX(バッチ変換用!$AB$7:$AH$40,MATCH($A21,バッチ変換用!$Z$7:$Z$40,0),MATCH(バッチ変換用!AF$6,$D$4:$J$4,0)),IF($A21<=MAX(バッチ変換用!$AK$7:$AK$40),INDEX(バッチ変換用!$AM$7:$AS$40,MATCH($A21,バッチ変換用!$AK$7:$AK$40,0),MATCH(バッチ変換用!AQ$6,$D$4:$J$4,0)),""))) ->  | I21: =IF($A21<=MAX(バッチ変換用!$O$7:$O$40),INDEX(バッチ変換用!$Q$7:$W$40,MATCH($A21,バッチ変換用!$O$7:$O$40,0),MATCH(バッチ変換用!V$6,$D$4:$J$4,0)),IF($A21<=MAX(バッチ変換用!$Z$7:$Z$40),INDEX(バッチ変換用!$AB$7:$AH$40,MATCH($A21,バッチ変換用!$Z$7:$Z$40,0),MATCH(バッチ変換用!AG$6,$D$4:$J$4,0)),IF($A21<=MAX(バッチ変換用!$AK$7:$AK$40),INDEX(バッチ変換用!$AM$7:$AS$40,MATCH($A21,バッチ変換用!$AK$7:$AK$40,0),MATCH(バッチ変換用!AR$6,$D$4:$J$4,0)),""))) ->  | J21: =IF($A21<=MAX(バッチ変換用!$O$7:$O$40),INDEX(バッチ変換用!$Q$7:$W$40,MATCH($A21,バッチ変換用!$O$7:$O$40,0),MATCH(バッチ変換用!W$6,$D$4:$J$4,0)),IF($A21<=MAX(バッチ変換用!$Z$7:$Z$40),INDEX(バッチ変換用!$AB$7:$AH$40,MATCH($A21,バッチ変換用!$Z$7:$Z$40,0),MATCH(バッチ変換用!AH$6,$D$4:$J$4,0)),IF($A21<=MAX(バッチ変換用!$AK$7:$AK$40),INDEX(バッチ変換用!$AM$7:$AS$40,MATCH($A21,バッチ変換用!$AK$7:$AK$40,0),MATCH(バッチ変換用!AS$6,$D$4:$J$4,0)),""))) -> 
A22: 18 | B22: =IF($A22<=MAX(バッチ変換用!$O$7:$O$40),"上",IF($A22<=MAX(バッチ変換用!$Z$7:$Z$40),"下確",IF($A22<=MAX(バッチ変換用!$AK$7:$AK$40),"下概",""))) ->  | C22: =IF(AND(B21="対象",B22="上"),バッチ変換用!$R$4,IF(AND(OR(B21="上",B21="対象"),B22="下確"),バッチ変換用!$AC$4,IF(AND(B21="下確",B22="下概"),バッチ変換用!$AN$4,IF(AND(B21="下概",B22=""),"eof","")))) ->  | D22: =IF($A22<=MAX(バッチ変換用!$O$7:$O$40),INDEX(バッチ変換用!$Q$7:$W$40,MATCH($A22,バッチ変換用!$O$7:$O$40,0),MATCH(バッチ変換用!Q$6,$D$4:$J$4,0)),IF($A22<=MAX(バッチ変換用!$Z$7:$Z$40),INDEX(バッチ変換用!$AB$7:$AH$40,MATCH($A22,バッチ変換用!$Z$7:$Z$40,0),MATCH(バッチ変換用!AB$6,$D$4:$J$4,0)),IF($A22<=MAX(バッチ変換用!$AK$7:$AK$40),INDEX(バッチ変換用!$AM$7:$AS$40,MATCH($A22,バッチ変換用!$AK$7:$AK$40,0),MATCH(バッチ変換用!AM$6,$D$4:$J$4,0)),""))) ->  | E22: =IF($A22<=MAX(バッチ変換用!$O$7:$O$40),INDEX(バッチ変換用!$Q$7:$W$40,MATCH($A22,バッチ変換用!$O$7:$O$40,0),MATCH(バッチ変換用!R$6,$D$4:$J$4,0)),IF($A22<=MAX(バッチ変換用!$Z$7:$Z$40),INDEX(バッチ変換用!$AB$7:$AH$40,MATCH($A22,バッチ変換用!$Z$7:$Z$40,0),MATCH(バッチ変換用!AC$6,$D$4:$J$4,0)),IF($A22<=MAX(バッチ変換用!$AK$7:$AK$40),INDEX(バッチ変換用!$AM$7:$AS$40,MATCH($A22,バッチ変換用!$AK$7:$AK$40,0),MATCH(バッチ変換用!AN$6,$D$4:$J$4,0)),""))) ->  | G22: =IF($A22<=MAX(バッチ変換用!$O$7:$O$40),INDEX(バッチ変換用!$Q$7:$W$40,MATCH($A22,バッチ変換用!$O$7:$O$40,0),MATCH(バッチ変換用!T$6,$D$4:$J$4,0)),IF($A22<=MAX(バッチ変換用!$Z$7:$Z$40),INDEX(バッチ変換用!$AB$7:$AH$40,MATCH($A22,バッチ変換用!$Z$7:$Z$40,0),MATCH(バッチ変換用!AE$6,$D$4:$J$4,0)),IF($A22<=MAX(バッチ変換用!$AK$7:$AK$40),INDEX(バッチ変換用!$AM$7:$AS$40,MATCH($A22,バッチ変換用!$AK$7:$AK$40,0),MATCH(バッチ変換用!AP$6,$D$4:$J$4,0))," "))) ->  | H22: =IF($A22<=MAX(バッチ変換用!$O$7:$O$40),INDEX(バッチ変換用!$Q$7:$W$40,MATCH($A22,バッチ変換用!$O$7:$O$40,0),MATCH(バッチ変換用!U$6,$D$4:$J$4,0)),IF($A22<=MAX(バッチ変換用!$Z$7:$Z$40),INDEX(バッチ変換用!$AB$7:$AH$40,MATCH($A22,バッチ変換用!$Z$7:$Z$40,0),MATCH(バッチ変換用!AF$6,$D$4:$J$4,0)),IF($A22<=MAX(バッチ変換用!$AK$7:$AK$40),INDEX(バッチ変換用!$AM$7:$AS$40,MATCH($A22,バッチ変換用!$AK$7:$AK$40,0),MATCH(バッチ変換用!AQ$6,$D$4:$J$4,0)),""))) ->  | I22: =IF($A22<=MAX(バッチ変換用!$O$7:$O$40),INDEX(バッチ変換用!$Q$7:$W$40,MATCH($A22,バッチ変換用!$O$7:$O$40,0),MATCH(バッチ変換用!V$6,$D$4:$J$4,0)),IF($A22<=MAX(バッチ変換用!$Z$7:$Z$40),INDEX(バッチ変換用!$AB$7:$AH$40,MATCH($A22,バッチ変換用!$Z$7:$Z$40,0),MATCH(バッチ変換用!AG$6,$D$4:$J$4,0)),IF($A22<=MAX(バッチ変換用!$AK$7:$AK$40),INDEX(バッチ変換用!$AM$7:$AS$40,MATCH($A22,バッチ変換用!$AK$7:$AK$40,0),MATCH(バッチ変換用!AR$6,$D$4:$J$4,0)),""))) ->  | J22: =IF($A22<=MAX(バッチ変換用!$O$7:$O$40),INDEX(バッチ変換用!$Q$7:$W$40,MATCH($A22,バッチ変換用!$O$7:$O$40,0),MATCH(バッチ変換用!W$6,$D$4:$J$4,0)),IF($A22<=MAX(バッチ変換用!$Z$7:$Z$40),INDEX(バッチ変換用!$AB$7:$AH$40,MATCH($A22,バッチ変換用!$Z$7:$Z$40,0),MATCH(バッチ変換用!AH$6,$D$4:$J$4,0)),IF($A22<=MAX(バッチ変換用!$AK$7:$AK$40),INDEX(バッチ変換用!$AM$7:$AS$40,MATCH($A22,バッチ変換用!$AK$7:$AK$40,0),MATCH(バッチ変換用!AS$6,$D$4:$J$4,0)),""))) -> 
A23: 19 | B23: =IF($A23<=MAX(バッチ変換用!$O$7:$O$40),"上",IF($A23<=MAX(バッチ変換用!$Z$7:$Z$40),"下確",IF($A23<=MAX(バッチ変換用!$AK$7:$AK$40),"下概",""))) ->  | C23: =IF(AND(B22="対象",B23="上"),バッチ変換用!$R$4,IF(AND(OR(B22="上",B22="対象"),B23="下確"),バッチ変換用!$AC$4,IF(AND(B22="下確",B23="下概"),バッチ変換用!$AN$4,IF(AND(B22="下概",B23=""),"eof","")))) ->  | D23: =IF($A23<=MAX(バッチ変換用!$O$7:$O$40),INDEX(バッチ変換用!$Q$7:$W$40,MATCH($A23,バッチ変換用!$O$7:$O$40,0),MATCH(バッチ変換用!Q$6,$D$4:$J$4,0)),IF($A23<=MAX(バッチ変換用!$Z$7:$Z$40),INDEX(バッチ変換用!$AB$7:$AH$40,MATCH($A23,バッチ変換用!$Z$7:$Z$40,0),MATCH(バッチ変換用!AB$6,$D$4:$J$4,0)),IF($A23<=MAX(バッチ変換用!$AK$7:$AK$40),INDEX(バッチ変換用!$AM$7:$AS$40,MATCH($A23,バッチ変換用!$AK$7:$AK$40,0),MATCH(バッチ変換用!AM$6,$D$4:$J$4,0)),""))) ->  | E23: =IF($A23<=MAX(バッチ変換用!$O$7:$O$40),INDEX(バッチ変換用!$Q$7:$W$40,MATCH($A23,バッチ変換用!$O$7:$O$40,0),MATCH(バッチ変換用!R$6,$D$4:$J$4,0)),IF($A23<=MAX(バッチ変換用!$Z$7:$Z$40),INDEX(バッチ変換用!$AB$7:$AH$40,MATCH($A23,バッチ変換用!$Z$7:$Z$40,0),MATCH(バッチ変換用!AC$6,$D$4:$J$4,0)),IF($A23<=MAX(バッチ変換用!$AK$7:$AK$40),INDEX(バッチ変換用!$AM$7:$AS$40,MATCH($A23,バッチ変換用!$AK$7:$AK$40,0),MATCH(バッチ変換用!AN$6,$D$4:$J$4,0)),""))) ->  | G23: =IF($A23<=MAX(バッチ変換用!$O$7:$O$40),INDEX(バッチ変換用!$Q$7:$W$40,MATCH($A23,バッチ変換用!$O$7:$O$40,0),MATCH(バッチ変換用!T$6,$D$4:$J$4,0)),IF($A23<=MAX(バッチ変換用!$Z$7:$Z$40),INDEX(バッチ変換用!$AB$7:$AH$40,MATCH($A23,バッチ変換用!$Z$7:$Z$40,0),MATCH(バッチ変換用!AE$6,$D$4:$J$4,0)),IF($A23<=MAX(バッチ変換用!$AK$7:$AK$40),INDEX(バッチ変換用!$AM$7:$AS$40,MATCH($A23,バッチ変換用!$AK$7:$AK$40,0),MATCH(バッチ変換用!AP$6,$D$4:$J$4,0))," "))) ->  | H23: =IF($A23<=MAX(バッチ変換用!$O$7:$O$40),INDEX(バッチ変換用!$Q$7:$W$40,MATCH($A23,バッチ変換用!$O$7:$O$40,0),MATCH(バッチ変換用!U$6,$D$4:$J$4,0)),IF($A23<=MAX(バッチ変換用!$Z$7:$Z$40),INDEX(バッチ変換用!$AB$7:$AH$40,MATCH($A23,バッチ変換用!$Z$7:$Z$40,0),MATCH(バッチ変換用!AF$6,$D$4:$J$4,0)),IF($A23<=MAX(バッチ変換用!$AK$7:$AK$40),INDEX(バッチ変換用!$AM$7:$AS$40,MATCH($A23,バッチ変換用!$AK$7:$AK$40,0),MATCH(バッチ変換用!AQ$6,$D$4:$J$4,0)),""))) ->  | I23: =IF($A23<=MAX(バッチ変換用!$O$7:$O$40),INDEX(バッチ変換用!$Q$7:$W$40,MATCH($A23,バッチ変換用!$O$7:$O$40,0),MATCH(バッチ変換用!V$6,$D$4:$J$4,0)),IF($A23<=MAX(バッチ変換用!$Z$7:$Z$40),INDEX(バッチ変換用!$AB$7:$AH$40,MATCH($A23,バッチ変換用!$Z$7:$Z$40,0),MATCH(バッチ変換用!AG$6,$D$4:$J$4,0)),IF($A23<=MAX(バッチ変換用!$AK$7:$AK$40),INDEX(バッチ変換用!$AM$7:$AS$40,MATCH($A23,バッチ変換用!$AK$7:$AK$40,0),MATCH(バッチ変換用!AR$6,$D$4:$J$4,0)),""))) ->  | J23: =IF($A23<=MAX(バッチ変換用!$O$7:$O$40),INDEX(バッチ変換用!$Q$7:$W$40,MATCH($A23,バッチ変換用!$O$7:$O$40,0),MATCH(バッチ変換用!W$6,$D$4:$J$4,0)),IF($A23<=MAX(バッチ変換用!$Z$7:$Z$40),INDEX(バッチ変換用!$AB$7:$AH$40,MATCH($A23,バッチ変換用!$Z$7:$Z$40,0),MATCH(バッチ変換用!AH$6,$D$4:$J$4,0)),IF($A23<=MAX(バッチ変換用!$AK$7:$AK$40),INDEX(バッチ変換用!$AM$7:$AS$40,MATCH($A23,バッチ変換用!$AK$7:$AK$40,0),MATCH(バッチ変換用!AS$6,$D$4:$J$4,0)),""))) -> 
A24: 20 | B24: =IF($A24<=MAX(バッチ変換用!$O$7:$O$40),"上",IF($A24<=MAX(バッチ変換用!$Z$7:$Z$40),"下確",IF($A24<=MAX(バッチ変換用!$AK$7:$AK$40),"下概",""))) ->  | C24: =IF(AND(B23="対象",B24="上"),バッチ変換用!$R$4,IF(AND(OR(B23="上",B23="対象"),B24="下確"),バッチ変換用!$AC$4,IF(AND(B23="下確",B24="下概"),バッチ変換用!$AN$4,IF(AND(B23="下概",B24=""),"eof","")))) ->  | D24: =IF($A24<=MAX(バッチ変換用!$O$7:$O$40),INDEX(バッチ変換用!$Q$7:$W$40,MATCH($A24,バッチ変換用!$O$7:$O$40,0),MATCH(バッチ変換用!Q$6,$D$4:$J$4,0)),IF($A24<=MAX(バッチ変換用!$Z$7:$Z$40),INDEX(バッチ変換用!$AB$7:$AH$40,MATCH($A24,バッチ変換用!$Z$7:$Z$40,0),MATCH(バッチ変換用!AB$6,$D$4:$J$4,0)),IF($A24<=MAX(バッチ変換用!$AK$7:$AK$40),INDEX(バッチ変換用!$AM$7:$AS$40,MATCH($A24,バッチ変換用!$AK$7:$AK$40,0),MATCH(バッチ変換用!AM$6,$D$4:$J$4,0)),""))) ->  | E24: =IF($A24<=MAX(バッチ変換用!$O$7:$O$40),INDEX(バッチ変換用!$Q$7:$W$40,MATCH($A24,バッチ変換用!$O$7:$O$40,0),MATCH(バッチ変換用!R$6,$D$4:$J$4,0)),IF($A24<=MAX(バッチ変換用!$Z$7:$Z$40),INDEX(バッチ変換用!$AB$7:$AH$40,MATCH($A24,バッチ変換用!$Z$7:$Z$40,0),MATCH(バッチ変換用!AC$6,$D$4:$J$4,0)),IF($A24<=MAX(バッチ変換用!$AK$7:$AK$40),INDEX(バッチ変換用!$AM$7:$AS$40,MATCH($A24,バッチ変換用!$AK$7:$AK$40,0),MATCH(バッチ変換用!AN$6,$D$4:$J$4,0)),""))) ->  | G24: =IF($A24<=MAX(バッチ変換用!$O$7:$O$40),INDEX(バッチ変換用!$Q$7:$W$40,MATCH($A24,バッチ変換用!$O$7:$O$40,0),MATCH(バッチ変換用!T$6,$D$4:$J$4,0)),IF($A24<=MAX(バッチ変換用!$Z$7:$Z$40),INDEX(バッチ変換用!$AB$7:$AH$40,MATCH($A24,バッチ変換用!$Z$7:$Z$40,0),MATCH(バッチ変換用!AE$6,$D$4:$J$4,0)),IF($A24<=MAX(バッチ変換用!$AK$7:$AK$40),INDEX(バッチ変換用!$AM$7:$AS$40,MATCH($A24,バッチ変換用!$AK$7:$AK$40,0),MATCH(バッチ変換用!AP$6,$D$4:$J$4,0))," "))) ->  | H24: =IF($A24<=MAX(バッチ変換用!$O$7:$O$40),INDEX(バッチ変換用!$Q$7:$W$40,MATCH($A24,バッチ変換用!$O$7:$O$40,0),MATCH(バッチ変換用!U$6,$D$4:$J$4,0)),IF($A24<=MAX(バッチ変換用!$Z$7:$Z$40),INDEX(バッチ変換用!$AB$7:$AH$40,MATCH($A24,バッチ変換用!$Z$7:$Z$40,0),MATCH(バッチ変換用!AF$6,$D$4:$J$4,0)),IF($A24<=MAX(バッチ変換用!$AK$7:$AK$40),INDEX(バッチ変換用!$AM$7:$AS$40,MATCH($A24,バッチ変換用!$AK$7:$AK$40,0),MATCH(バッチ変換用!AQ$6,$D$4:$J$4,0)),""))) ->  | I24: =IF($A24<=MAX(バッチ変換用!$O$7:$O$40),INDEX(バッチ変換用!$Q$7:$W$40,MATCH($A24,バッチ変換用!$O$7:$O$40,0),MATCH(バッチ変換用!V$6,$D$4:$J$4,0)),IF($A24<=MAX(バッチ変換用!$Z$7:$Z$40),INDEX(バッチ変換用!$AB$7:$AH$40,MATCH($A24,バッチ変換用!$Z$7:$Z$40,0),MATCH(バッチ変換用!AG$6,$D$4:$J$4,0)),IF($A24<=MAX(バッチ変換用!$AK$7:$AK$40),INDEX(バッチ変換用!$AM$7:$AS$40,MATCH($A24,バッチ変換用!$AK$7:$AK$40,0),MATCH(バッチ変換用!AR$6,$D$4:$J$4,0)),""))) ->  | J24: =IF($A24<=MAX(バッチ変換用!$O$7:$O$40),INDEX(バッチ変換用!$Q$7:$W$40,MATCH($A24,バッチ変換用!$O$7:$O$40,0),MATCH(バッチ変換用!W$6,$D$4:$J$4,0)),IF($A24<=MAX(バッチ変換用!$Z$7:$Z$40),INDEX(バッチ変換用!$AB$7:$AH$40,MATCH($A24,バッチ変換用!$Z$7:$Z$40,0),MATCH(バッチ変換用!AH$6,$D$4:$J$4,0)),IF($A24<=MAX(バッチ変換用!$AK$7:$AK$40),INDEX(バッチ変換用!$AM$7:$AS$40,MATCH($A24,バッチ変換用!$AK$7:$AK$40,0),MATCH(バッチ変換用!AS$6,$D$4:$J$4,0)),""))) -> 
A25: 21 | B25: =IF($A25<=MAX(バッチ変換用!$O$7:$O$40),"上",IF($A25<=MAX(バッチ変換用!$Z$7:$Z$40),"下確",IF($A25<=MAX(バッチ変換用!$AK$7:$AK$40),"下概",""))) ->  | C25: =IF(AND(B24="対象",B25="上"),バッチ変換用!$R$4,IF(AND(OR(B24="上",B24="対象"),B25="下確"),バッチ変換用!$AC$4,IF(AND(B24="下確",B25="下概"),バッチ変換用!$AN$4,IF(AND(B24="下概",B25=""),"eof","")))) ->  | D25: =IF($A25<=MAX(バッチ変換用!$O$7:$O$40),INDEX(バッチ変換用!$Q$7:$W$40,MATCH($A25,バッチ変換用!$O$7:$O$40,0),MATCH(バッチ変換用!Q$6,$D$4:$J$4,0)),IF($A25<=MAX(バッチ変換用!$Z$7:$Z$40),INDEX(バッチ変換用!$AB$7:$AH$40,MATCH($A25,バッチ変換用!$Z$7:$Z$40,0),MATCH(バッチ変換用!AB$6,$D$4:$J$4,0)),IF($A25<=MAX(バッチ変換用!$AK$7:$AK$40),INDEX(バッチ変換用!$AM$7:$AS$40,MATCH($A25,バッチ変換用!$AK$7:$AK$40,0),MATCH(バッチ変換用!AM$6,$D$4:$J$4,0)),""))) ->  | E25: =IF($A25<=MAX(バッチ変換用!$O$7:$O$40),INDEX(バッチ変換用!$Q$7:$W$40,MATCH($A25,バッチ変換用!$O$7:$O$40,0),MATCH(バッチ変換用!R$6,$D$4:$J$4,0)),IF($A25<=MAX(バッチ変換用!$Z$7:$Z$40),INDEX(バッチ変換用!$AB$7:$AH$40,MATCH($A25,バッチ変換用!$Z$7:$Z$40,0),MATCH(バッチ変換用!AC$6,$D$4:$J$4,0)),IF($A25<=MAX(バッチ変換用!$AK$7:$AK$40),INDEX(バッチ変換用!$AM$7:$AS$40,MATCH($A25,バッチ変換用!$AK$7:$AK$40,0),MATCH(バッチ変換用!AN$6,$D$4:$J$4,0)),""))) ->  | G25: =IF($A25<=MAX(バッチ変換用!$O$7:$O$40),INDEX(バッチ変換用!$Q$7:$W$40,MATCH($A25,バッチ変換用!$O$7:$O$40,0),MATCH(バッチ変換用!T$6,$D$4:$J$4,0)),IF($A25<=MAX(バッチ変換用!$Z$7:$Z$40),INDEX(バッチ変換用!$AB$7:$AH$40,MATCH($A25,バッチ変換用!$Z$7:$Z$40,0),MATCH(バッチ変換用!AE$6,$D$4:$J$4,0)),IF($A25<=MAX(バッチ変換用!$AK$7:$AK$40),INDEX(バッチ変換用!$AM$7:$AS$40,MATCH($A25,バッチ変換用!$AK$7:$AK$40,0),MATCH(バッチ変換用!AP$6,$D$4:$J$4,0))," "))) ->  | H25: =IF($A25<=MAX(バッチ変換用!$O$7:$O$40),INDEX(バッチ変換用!$Q$7:$W$40,MATCH($A25,バッチ変換用!$O$7:$O$40,0),MATCH(バッチ変換用!U$6,$D$4:$J$4,0)),IF($A25<=MAX(バッチ変換用!$Z$7:$Z$40),INDEX(バッチ変換用!$AB$7:$AH$40,MATCH($A25,バッチ変換用!$Z$7:$Z$40,0),MATCH(バッチ変換用!AF$6,$D$4:$J$4,0)),IF($A25<=MAX(バッチ変換用!$AK$7:$AK$40),INDEX(バッチ変換用!$AM$7:$AS$40,MATCH($A25,バッチ変換用!$AK$7:$AK$40,0),MATCH(バッチ変換用!AQ$6,$D$4:$J$4,0)),""))) ->  | I25: =IF($A25<=MAX(バッチ変換用!$O$7:$O$40),INDEX(バッチ変換用!$Q$7:$W$40,MATCH($A25,バッチ変換用!$O$7:$O$40,0),MATCH(バッチ変換用!V$6,$D$4:$J$4,0)),IF($A25<=MAX(バッチ変換用!$Z$7:$Z$40),INDEX(バッチ変換用!$AB$7:$AH$40,MATCH($A25,バッチ変換用!$Z$7:$Z$40,0),MATCH(バッチ変換用!AG$6,$D$4:$J$4,0)),IF($A25<=MAX(バッチ変換用!$AK$7:$AK$40),INDEX(バッチ変換用!$AM$7:$AS$40,MATCH($A25,バッチ変換用!$AK$7:$AK$40,0),MATCH(バッチ変換用!AR$6,$D$4:$J$4,0)),""))) ->  | J25: =IF($A25<=MAX(バッチ変換用!$O$7:$O$40),INDEX(バッチ変換用!$Q$7:$W$40,MATCH($A25,バッチ変換用!$O$7:$O$40,0),MATCH(バッチ変換用!W$6,$D$4:$J$4,0)),IF($A25<=MAX(バッチ変換用!$Z$7:$Z$40),INDEX(バッチ変換用!$AB$7:$AH$40,MATCH($A25,バッチ変換用!$Z$7:$Z$40,0),MATCH(バッチ変換用!AH$6,$D$4:$J$4,0)),IF($A25<=MAX(バッチ変換用!$AK$7:$AK$40),INDEX(バッチ変換用!$AM$7:$AS$40,MATCH($A25,バッチ変換用!$AK$7:$AK$40,0),MATCH(バッチ変換用!AS$6,$D$4:$J$4,0)),""))) -> 
